Workbook

Sheet COVER
C314: Global (excluding WWE)
H356: =+SUM(H345:H355) -> 0 | I356: =+SUM(I345:I355) -> 0 | J356: 0 | K356: 0 | L356: 0 | M356: 0 | N356: 0 | O356: 0 | P356: 0 | Q356: 0 | R356: 0 | S356: 0 | T356: 0 | U356: 0 | V356: 0 | W356: 0 | X356: 0 | Y356: 0 | Z356: 0 | AA356: 0 | AB356: 0 | AC356: 0 | AD356: 0 | AE356: 0 | AF356: 0 | AG356: 0 | AH356: 0 | AI356: 0 | AJ356: 0 | AK356: 0 | AL356: 0 | AM356: 0 | AN356: 0 | AO356: 0 | AP356: 0 | AQ356: 0 | AR356: 0 | AS356: 0 | AT356: 0 | AU356: 0 | AV356: 0 | AW356: 0 | AX356: 0 | AY356: 0
H373: =+SUM(H362:H372) -> 0 | I373: =+SUM(I362:I372) -> 0 | J373: 0 | K373: 0 | L373: 0 | M373: 0 | N373: 0 | O373: 0 | P373: 0 | Q373: 0 | R373: 0 | S373: 0 | T373: 0 | U373: 0 | V373: 0 | W373: 0 | X373: 0 | Y373: 0 | Z373: 0 | AA373: 0 | AB373: 0 | AC373: 0 | AD373: 0 | AE373: 0 | AF373: 0 | AG373: 0 | AH373: 0 | AI373: 0 | AJ373: 0 | AK373: 0 | AL373: 0 | AM373: 0 | AN373: 0 | AO373: 0 | AP373: 0 | AQ373: 0 | AR373: 0 | AS373: 0 | AT373: 0 | AU373: 0 | AV373: 0 | AW373: 0 | AX373: 0 | AY373: 0
I614: 16211.73813 | J614: 16211.73813 | K614: 16211.73813 | L614: 16211.73813 | M614: 16211.73813 | N614: 16211.73813 | O614: 16211.73813 | P614: 16211.73813 | Q614: 16211.73813 | R614: 16211.73813 | S614: 16211.73813 | T614: 16211.73813 | U614: 16211.73813 | V614: 16211.73813 | W614: 16211.73813 | X614: 16211.73813 | Y614: 16211.73813 | Z614: 16211.73813 | AA614: 16211.73813 | AB614: 16211.73813 | AC614: 16211.73813 | AD614: 16211.73813 | AE614: 16211.73813 | AF614: 16211.73813 | AG614: 16211.73813 | AH614: 16211.73813 | AI614: 16211.73813 | AJ614: 16211.73813 | AK614: 16211.73813 | AL614: 16211.73813 | AM614: 16211.73813 | AN614: 16211.73813 | AO614: 16211.73813 | AP614: 16211.73813 | AQ614: 16211.73813 | AR614: 16211.73813 | AS614: 16211.73813 | AT614: 16211.73813 | AU614: 16211.73813 | AV614: 16211.73813 | AW614: 16211.73813 | AX614: 16211.73813 | AY614: 16211.73813 | AZ614: 16211.73813 | BA614: 16211.73813

Sheet Instructions
A2: Instructions
B8: Sheet Description:
B11: 1) Dashboard: Input selection (follow instructions) and graphical display of Valuation. 2) Valuation: Calculation details & Cash Flow data from each Country/Area. 3) Future Investment Valuation: Includes an analysis of value creation through asset management and the calculations for the Future Investment Valuation (assuming only 2021-25 new awards).

Sheet Dashboard
E2: Valuation | M2: CPI | N2: Ke | R2: CPI | S2: Ke | W2: CPI | X2: Ke | Y2: EBITDA multiple
E3: =+K15 -> 2810.600786 | L3: Spain | M3: =+Valuation!D21 -> 0.02 | N3: =+Dashboard!D28 -> 0.07058439518 | Q3: Uruguay | R3: =+Valuation!D25 -> 0.07 | S3: =+Dashboard!D32 -> 0.115 | V3: Peru | W3: =+Valuation!D29 -> 0.03 | X3: =+Dashboard!D36 -> 0.1
L4: Colombia | M4: =+Valuation!D22 -> 0.04 | N4: =+Dashboard!D29 -> 0.1144112808 | Q4: Paraguay | R4: =+Valuation!D26 -> 0.041 | S4: =+Dashboard!D33 -> 0.13 | V4: USA | W4: =+Valuation!D30 -> 0.02 | X4: =+Dashboard!D37 -> 0.0575
L5: Italy | M5: =+Valuation!D24 -> 0.02 | N5: =+Dashboard!D31 -> 0.06071268511 | Q5: Brazil | R5: =+Valuation!D27 -> 0.045 | S5: =+Dashboard!D34 -> 0.15 | V5: Water | X5: =+Dashboard!D38 -> 0.1044276606 | Y5: =+F38 -> 10.5
E6: Impact Valuation | G6: =+E3-'INPUT DATA'!$E$558/1000 -> 0 | L6: Chile | M6: =+Valuation!D23 -> 0.031 | N6: =+Dashboard!D30 -> 0.1083443469 | Q6: Mexico | R6: =+Valuation!D28 -> 0.04 | S6: =+Dashboard!D35 -> 0.13 | V6: Future Investments | X6: =+Dashboard!D39 -> 0.1000306046
E8: 2810.600786
B11: Inputs: | J11: Valuation - Current Concessions Portfolio and 2021-25 new awards
C14: Country | D14: Long Term CPI | K14: EqValue 2021 (Eur)
C15: Scenario -> | D15: Base | E15: =+"+0.5%" -> +0.5% | F15: =+"-0.5%" -> -0.5% | K15: =+Valuation!F37/1000 -> 2810.600786
C16: Spain | D16: 0.02 | E16: 0.025 | F16: 0.015
C17: Colombia | D17: 0.04 | E17: 0.045 | F17: 0.035 | K17: EqValue 2025 (Eur)
C18: Chile | D18: 0.031 | E18: 0.036 | F18: 0.026 | K18: =+'INPUT DATA'!M517 -> 3690.847294
C19: Italy | D19: 0.02 | E19: 0.025 | F19: 0.015
C20: Uruguay | D20: 0.07 | E20: 0.075 | F20: 0.065 | K20: Peak Value (Eur)
C21: Paraguay | D21: 0.041 | E21: 0.046 | F21: 0.036 | K21: =+MAX('INPUT DATA'!$I$517:$BA$517) -> 4834.337464
C22: Brazil | D22: 0.045 | E22: 0.05 | F22: 0.04
C23: Mexico | D23: 0.04 | E23: 0.045 | F23: 0.035 | K23: Peak Value Year
C24: Peru | D24: 0.03 | E24: 0.035 | F24: 0.025 | K24: =+INDEX('INPUT DATA'!$I$499:$BA$499,0,MATCH($K$21,'INPUT DATA'!$I$517:$BA$517,0)) -> 2039
C25: USA | D25: 0.02 | E25: 0.025 | F25: 0.015
C27: Country | D27: Ke | F27: EBITDA Multiple
C28: Spain | D28: 0.07058439518 | J28: Valuation by Country/Area 2021 | P28: Shareholder distributions & Equity Contributions - Current Infrastructure Portfolio
C29: Colombia | D29: 0.1144112808
C30: Chile | D30: 0.1083443469
C31: Italy | D31: 0.06071268511
C32: Uruguay | D32: 0.115
C33: Paraguay | D33: 0.13
C34: Brazil | D34: 0.15
C35: Mexico | D35: 0.13
C36: Peru | D36: 0.1
C37: USA | D37: 0.0575
C38: Water | D38: 0.1044276606 | F38: 10.5
C39: Future investments | D39: 0.1000306046
K598: 16211.73813 | L598: 16211.73813 | M598: 16211.73813 | N598: 16211.73813 | O598: 16211.73813 | P598: 16211.73813 | Q598: 16211.73813 | R598: 16211.73813 | S598: 16211.73813 | T598: 16211.73813 | U598: 16211.73813 | V598: 16211.73813 | W598: 16211.73813 | X598: 16211.73813 | Y598: 16211.73813 | Z598: 16211.73813 | AA598: 16211.73813 | AB598: 16211.73813 | AC598: 16211.73813 | AD598: 16211.73813 | AE598: 16211.73813 | AG598: 16211.73813

Sheet Valuation
D2: Valuation | I2: CPI | J2: Ke | M2: CPI | N2: Ke | Q2: CPI | R2: Ke | S2: EBITDA multiple
D3: =+F37/1000 -> 2810.600786 | H3: Spain | I3: =+Dashboard!M3 -> 0.02 | J3: =+Dashboard!N3 -> 0.07058439518 | L3: Uruguay | M3: =+Dashboard!R3 -> 0.07 | N3: =+Dashboard!S3 -> 0.115 | P3: Peru | Q3: =+Dashboard!W3 -> 0.03 | R3: =+Dashboard!X3 -> 0.1
H4: Colombia | I4: =+Dashboard!M4 -> 0.04 | J4: =+Dashboard!N4 -> 0.1144112808 | L4: Paraguay | M4: =+Dashboard!R4 -> 0.041 | N4: =+Dashboard!S4 -> 0.13 | P4: USA | Q4: =+Dashboard!W4 -> 0.02 | R4: =+Dashboard!X4 -> 0.0575
H5: Italy | I5: =+Dashboard!M5 -> 0.02 | J5: =+Dashboard!N5 -> 0.06071268511 | L5: Brazil | M5: =+Dashboard!R5 -> 0.045 | N5: =+Dashboard!S5 -> 0.15 | P5: Water | R5: =+Dashboard!X5 -> 0.1044276606 | S5: =+Dashboard!Y5 -> 10.5
D6: Impact Valuation | F6: =+D3-'INPUT DATA'!$E$558/1000 -> 0 | H6: Chile | I6: =+Dashboard!M6 -> 0.031 | J6: =+Dashboard!N6 -> 0.1083443469 | L6: Mexico | M6: =+Dashboard!R6 -> 0.04 | N6: =+Dashboard!S6 -> 0.13 | P6: Future Investments | R6: =+Dashboard!X6 -> 0.1000306046
D8: 2810.600786
C12: Year | G12: 2021 | H12: 2022 | I12: =+H12+1 -> 2023 | J12: 2024 | K12: 2025 | L12: 2026 | M12: 2027 | N12: 2028 | O12: 2029 | P12: 2030 | Q12: 2031 | R12: 2032 | S12: 2033 | T12: 2034 | U12: 2035 | V12: 2036 | W12: 2037 | X12: 2038 | Y12: 2039 | Z12: 2040 | AA12: 2041 | AB12: 2042 | AC12: 2043 | AD12: 2044 | AE12: 2045 | AF12: 2046 | AG12: 2047 | AH12: 2048 | AI12: 2049 | AJ12: 2050 | AK12: 2051 | AL12: 2052 | AM12: 2053 | AN12: 2054 | AO12: 2055 | AP12: 2056 | AQ12: 2057 | AR12: 2058 | AS12: 2059 | AT12: 2060 | AU12: 2061 | AV12: 2062 | AW12: 2063 | AX12: 2064 | AY12: 2065
C15: Valuation
A17: 1 | C17: Valuation @ 31/12/2021
C19: =C17&" - [000' EUR]" -> Valuation @ 31/12/2021 - [000' EUR] | H19: CF to Equity →
C20: Year | D20: CPI | E20: Discount rate | F20: Valuation | H20: =+H$12 -> 2022 | I20: 2023 | J20: 2024 | K20: 2025 | L20: 2026 | M20: 2027 | N20: 2028 | O20: 2029 | P20: 2030 | Q20: 2031 | R20: 2032 | S20: 2033 | T20: 2034 | U20: 2035 | V20: 2036 | W20: 2037 | X20: 2038 | Y20: 2039 | Z20: 2040 | AA20: 2041 | AB20: 2042 | AC20: 2043 | AD20: 2044 | AE20: 2045 | AF20: 2046 | AG20: 2047 | AH20: 2048 | AI20: 2049 | AJ20: 2050 | AK20: 2051 | AL20: 2052 | AM20: 2053 | AN20: 2054 | AO20: 2055 | AP20: 2056 | AQ20: 2057 | AR20: 2058 | AS20: 2059 | AT20: 2060 | AU20: 2061 | AV20: 2062 | AW20: 2063 | AX20: 2064 | AY20: 2065
C21: Spain | D21: =2%+('INPUT DATA'!G3=1)*0+('INPUT DATA'!G3=2)*0.5%+('INPUT DATA'!G3=3)*-0.5% -> 0.02 | E21: =+Dashboard!D28 -> 0.07058439518 | F21: =+NPV(E21,H21:AY21) -> 276703.0083 | H21: =+H46+H68 -> 8051.483818 | I21: 19363.17028 | J21: 7412.837501 | K21: 52474.27714 | L21: 13754.59432 | M21: 15209.74355 | N21: 14002.61582 | O21: 11012.38471 | P21: 17429.41613 | Q21: 15504.2182 | R21: 23033.52211 | S21: 67512.08656 | T21: 27042.67668 | U21: 36486.5736 | V21: 41353.088 | W21: 46183.44299 | X21: 18729.17242 | Y21: 18230.90538 | Z21: 22417.78543 | AA21: 42249.13842 | AB21: 42361.59351 | AC21: 19702.95296 | AD21: 23288.13458 | AE21: 10900.64709 | AF21: 11110.88749 | AG21: 11367.98897 | AH21: 3052.257664 | AI21: 7149.012248 | AJ21: 10493.02214 | AK21: 5553.362787 | AL21: 2936.548598 | AM21: 630.9768018 | AN21: 651.3968049 | AO21: 672.6544934 | AP21: 113.5140168 | AQ21: 0 | AR21: 0 | AS21: 0 | AT21: 0 | AU21: 0 | AV21: 0 | AW21: 0 | AX21: 0 | AY21: 0
C22: Colombia | D22: =4%+('INPUT DATA'!G4=1)*0+('INPUT DATA'!G4=2)*0.5%+('INPUT DATA'!G4=3)*-0.5% -> 0.04 | E22: =+Dashboard!D29 -> 0.1144112808 | F22: 473796.4024 | H22: =+H47+H69 -> 48227.5717 | I22: 43441.6967 | J22: 21460.50029 | K22: 96685.54336 | L22: 62034.04176 | M22: 31088.99028 | N22: 82899.26513 | O22: 41814.98419 | P22: 50854.51857 | Q22: 53839.18011 | R22: 29477.9008 | S22: 65419.45778 | T22: 41856.46919 | U22: 70794.90337 | V22: 33308.02476 | W22: 61177.47956 | X22: 58525.91145 | Y22: 106984.2315 | Z22: 205271.2033 | AA22: 134750.516 | AB22: 62946.4954 | AC22: 92863.75608 | AD22: 120206.6418 | AE22: 136408.8599 | AF22: 0 | AG22: 0 | AH22: 0 | AI22: 0 | AJ22: 0 | AK22: 0 | AL22: 0 | AM22: 0 | AN22: 0 | AO22: 0 | AP22: 0 | AQ22: 0 | AR22: 0 | AS22: 0 | AT22: 0 | AU22: 0 | AV22: 0 | AW22: 0 | AX22: 0 | AY22: 0
C23: Chile | D23: =3.1%+('INPUT DATA'!G5=1)*0+('INPUT DATA'!G5=2)*0.5%+('INPUT DATA'!G5=3)*-0.5% -> 0.031 | E23: =+Dashboard!D30 -> 0.1083443469 | F23: 505114.1459 | H23: =+H48+H70 -> -31880.88409 | I23: 117028.9995 | J23: 135374.2847 | K23: 24486.67886 | L23: 13333.94367 | M23: 37290.76365 | N23: 127968.8533 | O23: 34652.77215 | P23: 34010.8824 | Q23: 88882.14424 | R23: 109443.1814 | S23: 20957.51005 | T23: 31700.27582 | U23: 23189.44837 | V23: 21058.97601 | W23: 24063.94142 | X23: 26852.0019 | Y23: 29233.83789 | Z23: 31813.2741 | AA23: 33577.61246 | AB23: 46575.2123 | AC23: 54189.85202 | AD23: 62973.89697 | AE23: 79641.72086 | AF23: 16071.53439 | AG23: 76185.96346 | AH23: 41992.27055 | AI23: 70093.75913 | AJ23: 118703.7119 | AK23: 200294.1825 | AL23: 212075.5825 | AM23: 201259.8187 | AN23: 56771.64392 | AO23: 84238.37034 | AP23: 82429.90378 | AQ23: 98295.69582 | AR23: 101762.2167 | AS23: 106613.0844 | AT23: 99984.04953 | AU23: 104111.9839 | AV23: 131395.8341 | AW23: 135860.7377 | AX23: 70346.46074 | AY23: 0
C24: Italy | D24: =2%+('INPUT DATA'!G6=1)*0+('INPUT DATA'!G6=2)*0.5%+('INPUT DATA'!G6=3)*-0.5% -> 0.02 | E24: =+Dashboard!D31 -> 0.06071268511 | F24: 957827.2073 | H24: =+H49+H71 -> -24697.37172 | I24: -43062.39604 | J24: 5063.598571 | K24: 23894.58656 | L24: 54240.45295 | M24: 89095.25206 | N24: 70319.75908 | O24: 81337.49397 | P24: 64382.91949 | Q24: 67570.40652 | R24: 68608.92971 | S24: 127335.0081 | T24: 59472.15186 | U24: 63203.71508 | V24: 66139.78088 | W24: 67772.48729 | X24: 68808.37149 | Y24: 70729.12313 | Z24: 70996.52139 | AA24: 74320.91319 | AB24: 75758.79163 | AC24: 77138.58893 | AD24: 97823.41323 | AE24: 87161.62021 | AF24: 123124.0081 | AG24: 98915.28299 | AH24: 124969.3869 | AI24: 126974.0127 | AJ24: 128582.2776 | AK24: 129934.4908 | AL24: 132829.8311 | AM24: 135057.7605 | AN24: 138111.9834 | AO24: 142318.218 | AP24: 146920.2187 | AQ24: 149454.5816 | AR24: 152986.862 | AS24: 156479.5378 | AT24: 160553.0143 | AU24: 163262.2299 | AV24: 0 | AW24: 0 | AX24: 0 | AY24: 0
C25: Uruguay | D25: =7%+('INPUT DATA'!G7=1)*0+('INPUT DATA'!G7=2)*0.5%+('INPUT DATA'!G7=3)*-0.5% -> 0.07 | E25: =+Dashboard!D32 -> 0.115 | F25: 47403.26132 | H25: =+H50+H72 -> -17778.62311 | I25: -9702.629193 | J25: 13460.63592 | K25: 9648.048055 | L25: 7559.689577 | M25: 6600.77403 | N25: 8676.144267 | O25: 7382.4208 | P25: 7651.233529 | Q25: 9059.839868 | R25: 10489.22828 | S25: 12414.6502 | T25: 11872.16045 | U25: 8752.772897 | V25: 7168.411359 | W25: 29904.84103 | X25: 50542.54021 | Y25: 1136.944643 | Z25: 20771.66798 | AA25: 27358.37915 | AB25: 24820.32 | AC25: 0 | AD25: 0 | AE25: 0 | AF25: 0 | AG25: 0 | AH25: 0 | AI25: 0 | AJ25: 0 | AK25: 0 | AL25: 0 | AM25: 0 | AN25: 0 | AO25: 0 | AP25: 0 | AQ25: 0 | AR25: 0 | AS25: 0 | AT25: 0 | AU25: 0 | AV25: 0 | AW25: 0 | AX25: 0 | AY25: 0
C26: Paraguay | D26: =4.1%+('INPUT DATA'!G8=1)*0+('INPUT DATA'!G8=2)*0.5%+('INPUT DATA'!G8=3)*-0.5% -> 0.041 | E26: =+Dashboard!D33 -> 0.13 | F26: 56471.84361 | H26: =+H51+H73 -> 26958.73513 | I26: 9235.977509 | J26: 5954.516542 | K26: 3370.85449 | L26: 291.324213 | M26: 3175.040314 | N26: 1970.377307 | O26: 1910.731601 | P26: 896.9918409 | Q26: 5061.225954 | R26: 6779.408793 | S26: 5974.744585 | T26: 6692.460038 | U26: 7901.075844 | V26: 7486.210894 | W26: 7170.189452 | X26: 7152.746746 | Y26: 6459.488103 | Z26: 6179.122948 | AA26: 1024.273771 | AB26: 1126.864685 | AC26: 4672.492627 | AD26: 11120.19941 | AE26: 20231.91763 | AF26: 24600.7005 | AG26: 9410.15812 | AH26: 0 | AI26: 0 | AJ26: 0 | AK26: 0 | AL26: 0 | AM26: 0 | AN26: 0 | AO26: 0 | AP26: 0 | AQ26: 0 | AR26: 0 | AS26: 0 | AT26: 0 | AU26: 0 | AV26: 0 | AW26: 0 | AX26: 0 | AY26: 0
C27: Brazil | D27: =4.5%+('INPUT DATA'!G9=1)*0+('INPUT DATA'!G9=2)*0.5%+('INPUT DATA'!G9=3)*-0.5% -> 0.045 | E27: =+Dashboard!D34 -> 0.15 | F27: 12346.89513 | H27: =+H52+H74 -> -21418.20854 | I27: -4282.651118 | J27: -24492.17636 | K27: -4871.314261 | L27: -10276.12704 | M27: 89.22550369 | N27: 559.2778833 | O27: 3015.423267 | P27: 3290.513223 | Q27: 4262.361813 | R27: 4489.724152 | S27: 7423.908104 | T27: 19111.59419 | U27: 23653.70407 | V27: 27797.01283 | W27: 32768.87031 | X27: 37400.66849 | Y27: 41460.14303 | Z27: 47172.8607 | AA27: 44394.10553 | AB27: 34948.9247 | AC27: 51434.82395 | AD27: 77014.96525 | AE27: 82635.54498 | AF27: 101951.7214 | AG27: 120498.7527 | AH27: 117145.6959 | AI27: 129706.6583 | AJ27: 145293.1032 | AK27: 139892.4191 | AL27: 3.16805723e-13 | AM27: 3.16805723e-13 | AN27: 3.16805723e-13 | AO27: 3.16805723e-13 | AP27: 0 | AQ27: 0 | AR27: 0 | AS27: 0 | AT27: 0 | AU27: 0 | AV27: 0 | AW27: 0 | AX27: 0 | AY27: 0
C28: Mexico | D28: =4%+('INPUT DATA'!G10=1)*0+('INPUT DATA'!G10=2)*0.5%+('INPUT DATA'!G10=3)*-0.5% -> 0.04 | E28: =+Dashboard!D35 -> 0.13 | F28: 50587.48445 | H28: =+H53+H75 -> 8608.901106 | I28: 4658.733123 | J28: 4997.326733 | K28: 5245.742437 | L28: 8273.543669 | M28: 12527.49346 | N28: 6159.956121 | O28: 6521.464555 | P28: 6148.094762 | Q28: 6274.287023 | R28: 6560.341378 | S28: 6845.091131 | T28: 7158.716256 | U28: 7536.568671 | V28: 7920.79481 | W28: 8253.993095 | X28: 8583.885253 | Y28: 8852.255121 | Z28: 8352.199859 | AA28: 8403.63643 | AB28: 8409.469601 | AC28: 5423.824188 | AD28: 0 | AE28: 0 | AF28: 0 | AG28: 0 | AH28: 0 | AI28: 0 | AJ28: 0 | AK28: 0 | AL28: 0 | AM28: 0 | AN28: 0 | AO28: 0 | AP28: 0 | AQ28: 0 | AR28: 0 | AS28: 0 | AT28: 0 | AU28: 0 | AV28: 0 | AW28: 0 | AX28: 0 | AY28: 0
C29: Peru | D29: =3%+('INPUT DATA'!G11=1)*0+('INPUT DATA'!G11=2)*0.5%+('INPUT DATA'!G11=3)*-0.5% -> 0.03 | E29: =+Dashboard!D36 -> 0.1 | F29: 11154.98101 | H29: =+H54+H76 -> 10535.01129 | I29: 3.577425559e-06 | J29: 9.935003618e-06 | K29: -1.954732124e-05 | L29: 1.346439876e-05 | M29: 1.599058396e-05 | N29: 4.414205387e-05 | O29: -2.184185405e-05 | P29: 8.787835213e-06 | Q29: 2.579979855e-05 | R29: 1.338007655e-05 | S29: 6.460045211e-05 | T29: 2.31641643e-05 | U29: -4.137107271e-05 | V29: 9.735113508e-05 | W29: -4.168117448e-05 | X29: 292.8436221 | Y29: 8449.742153 | Z29: 0 | AA29: 0 | AB29: 0 | AC29: 0 | AD29: 0 | AE29: 0 | AF29: 0 | AG29: 0 | AH29: 0 | AI29: 0 | AJ29: 0 | AK29: 0 | AL29: 0 | AM29: 0 | AN29: 0 | AO29: 0 | AP29: 0 | AQ29: 0 | AR29: 0 | AS29: 0 | AT29: 0 | AU29: 0 | AV29: 0 | AW29: 0 | AX29: 0 | AY29: 0
C30: USA | D30: =2%+('INPUT DATA'!G12=1)*0+('INPUT DATA'!G12=2)*0.5%+('INPUT DATA'!G12=3)*-0.5% -> 0.02 | E30: =+Dashboard!D37 -> 0.0575 | F30: 13864.70442 | H30: =+H55+H77 -> 444.966366 | I30: 447.5329931 | J30: 453.9793867 | K30: 461.0177928 | L30: 337.5901464 | M30: 564.2742613 | N30: 598.0791007 | O30: 757.6095108 | P30: 916.1003609 | Q30: 934.5214042 | R30: 1083.42047 | S30: 1171.925042 | T30: 1211.272465 | U30: 1249.954556 | V30: 1209.874824 | W30: 1219.442511 | X30: 1255.127783 | Y30: 1295.589676 | Z30: 1336.146527 | AA30: 1281.814518 | AB30: 1290.721178 | AC30: 1301.481977 | AD30: 1317.295961 | AE30: 1321.559838 | AF30: 1294.879 | AG30: 1250.917161 | AH30: 1215.239549 | AI30: 1188.549205 | AJ30: 1178.415783 | AK30: 1161.942442 | AL30: 1126.356009 | AM30: 1093.459352 | AN30: 1065.043763 | AO30: 1034.942039 | AP30: 897.0584865 | AQ30: 722.5595177 | AR30: 691.7696013 | AS30: 663.5188498 | AT30: 640.0869748 | AU30: 625.5842166 | AV30: 596.7029587 | AW30: 563.0549885 | AX30: 397.0127567 | AY30: 0
C31: Valuation Current Infrastructure Portfolio | F31: =+SUM(F21:F30) -> 2405269.934 | H31: =+SUM(H21:H30) -> 7051.581949 | I31: 137128.4338 | J31: 169685.5033 | K31: 211395.4344 | L31: 149549.0533 | M31: 195641.5571 | N31: 313154.3281 | O31: 188405.2847 | P31: 185580.6703 | Q31: 251388.1852 | R31: 259965.6571 | S31: 315054.3816 | T31: 206117.777 | U31: 242768.7164 | V31: 213442.1745 | W31: 278514.6876 | X31: 278143.2694 | Y31: 292832.2607 | Z31: 414310.7823 | AA31: 367360.3894 | AB31: 298238.393 | AC31: 306727.7727 | AD31: 393744.5472 | AE31: 418301.8706 | AF31: 278153.7309 | AG31: 317629.0634 | AH31: 288374.8506 | AI31: 335111.9915 | AJ31: 404250.5306 | AK31: 476836.3977 | AL31: 348968.3183 | AM31: 338042.0153 | AN31: 196600.0679 | AO31: 228264.1849 | AP31: 230360.695 | AQ31: 248472.8369 | AR31: 255440.8483 | AS31: 263756.141 | AT31: 261177.1508 | AU31: 267999.798 | AV31: 131992.537 | AW31: 136423.7927 | AX31: 70743.47349 | AY31: 0
C32: Water - Long Term Plants Contracts | E32: =+Dashboard!D38 -> 0.1044276606 | F32: =+NPV(E32,H32:AY32) -> 98871.73015 | H32: =+H57+H79 -> 24994.01662 | I32: 8433.934259 | J32: 10240.99235 | K32: 9274.213789 | L32: 9401.891074 | M32: 8216.177931 | N32: 8584.987973 | O32: 9225.136903 | P32: 10623.20741 | Q32: 10696.696 | R32: 10805.71465 | S32: 10640.1738 | T32: 9356.250794 | U32: 12596.17944 | V32: 17096.3334 | W32: 4411.589994 | X32: 16741.61094 | Y32: 10994.46008 | Z32: 5773.39618 | AA32: 5773.96504 | AB32: 5672.407379 | AC32: 5657.080568 | AD32: 5622.4228 | AE32: 5627.317004 | AF32: 5537.197372 | AG32: 3570.440049 | AH32: 1475.583965 | AI32: 1367.975586 | AJ32: 21721.11312 | AK32: 0 | AL32: 0 | AM32: 0 | AN32: 0 | AO32: 0 | AP32: 0 | AQ32: 0 | AR32: 0 | AS32: 0 | AT32: 0 | AU32: 0 | AV32: 0 | AW32: 0 | AX32: 0 | AY32: 0
E33: EBITDA multiple | F33: Valuation
C34: Water - Integrated Cycle + O&M Contracts | E34: =+Dashboard!$F$38 -> 10.5 | F34: =+(G351*E34-G352) -> 110191.7559
C35: Valuation current Water Portfolio | F35: =+F34+F32 -> 209063.486
C36: Future investments | E36: =+Dashboard!D39 -> 0.1000306046 | F36: =+NPV(E36,H36:AY36) -> 196267.3664 | H36: =+H58+H80 -> 0 | I36: -50000 | J36: -100000 | K36: -150000 | L36: -150000 | M36: -150000 | N36: 25254.81481 | O36: 90814.72593 | P36: 156685.8353 | Q36: 172874.3668 | R36: 189386.6689 | S36: 80974.40231 | T36: 82593.89035 | U36: 84245.76816 | V36: 85930.68352 | W36: 87649.2972 | X36: 89402.28314 | Y36: 91190.3288 | Z36: 93014.13538 | AA36: 94874.41809 | AB36: 96771.90645 | AC36: 98707.34458 | AD36: 123769.7736 | AE36: 186813.1849 | AF36: 251117.4646 | AG36: 316707.8298 | AH36: 296176.8575 | AI36: 252146.9837 | AJ36: 169756.7786 | AK36: 85718.76939 | AL36: 0 | AM36: 0 | AN36: 0 | AO36: 0 | AP36: 0 | AQ36: 0 | AR36: 0 | AS36: 0 | AT36: 0 | AU36: 0 | AV36: 0 | AW36: 0 | AX36: 0 | AY36: 0
C37: Total valuation @ 31/12/2021 | F37: =+F36+F35+F31 -> 2810600.786
C39: CALCULATION Ke | G39: =-F35 -> -209063.486 | H39: =+H35 -> 0 | I39: 0 | J39: 0 | K39: 0 | L39: 0 | M39: 0 | N39: 0 | O39: 0 | P39: 0 | Q39: 0 | R39: 0 | S39: 0 | T39: 0 | U39: 0 | V39: 0 | W39: 0 | X39: 0 | Y39: 0 | Z39: 0 | AA39: 0 | AB39: 0 | AC39: 0 | AD39: 0 | AE39: 0 | AF39: 0 | AG39: 0 | AH39: 0 | AI39: 0 | AJ39: 0 | AK39: 0 | AL39: 0 | AM39: 0 | AN39: 0 | AO39: 0 | AP39: 0 | AQ39: 0 | AR39: 0 | AS39: 0 | AT39: 0 | AU39: 0 | AV39: 0 | AW39: 0 | AX39: 0 | AY39: 0
A42: 1 | C42: Global Distributions
C44: =C42&" - [000' EUR]" -> Global Distributions - [000' EUR]
C45: Year | G45: 2021 | H45: =+H$12 -> 2022 | I45: 2023 | J45: 2024 | K45: 2025 | L45: 2026 | M45: 2027 | N45: 2028 | O45: 2029 | P45: 2030 | Q45: 2031 | R45: 2032 | S45: 2033 | T45: 2034 | U45: 2035 | V45: 2036 | W45: 2037 | X45: 2038 | Y45: 2039 | Z45: 2040 | AA45: 2041 | AB45: 2042 | AC45: 2043 | AD45: 2044 | AE45: 2045 | AF45: 2046 | AG45: 2047 | AH45: 2048 | AI45: 2049 | AJ45: 2050 | AK45: 2051 | AL45: 2052 | AM45: 2053 | AN45: 2054 | AO45: 2055 | AP45: 2056 | AQ45: 2057 | AR45: 2058 | AS45: 2059 | AT45: 2060 | AU45: 2061 | AV45: 2062 | AW45: 2063 | AX45: 2064 | AY45: 2065
B46: España | C46: Spain | H46: =-H106 -> 8051.483818 | I46: 19363.17028 | J46: 7412.837501 | K46: 52474.27714 | L46: 13754.59432 | M46: 15209.74355 | N46: 14002.61582 | O46: 11012.38471 | P46: 17429.41613 | Q46: 15504.2182 | R46: 23033.52211 | S46: 67512.08656 | T46: 27042.67668 | U46: 36486.5736 | V46: 41353.088 | W46: 46183.44299 | X46: 18729.17242 | Y46: 18230.90538 | Z46: 22417.78543 | AA46: 42249.13842 | AB46: 42361.59351 | AC46: 19702.95296 | AD46: 23288.13458 | AE46: 10900.64709 | AF46: 11110.88749 | AG46: 11367.98897 | AH46: 3052.257664 | AI46: 7149.012248 | AJ46: 10493.02214 | AK46: 5553.362787 | AL46: 2936.548598 | AM46: 630.9768018 | AN46: 651.3968049 | AO46: 672.6544934 | AP46: 113.5140168 | AQ46: 0 | AR46: 0 | AS46: 0 | AT46: 0 | AU46: 0 | AV46: 0 | AW46: 0 | AX46: 0 | AY46: 0
B47: Colombia | C47: Colombia | H47: =-H131 -> 72910.18592 | I47: 46450.31921 | J47: 21460.50029 | K47: 96685.54336 | L47: 62034.04176 | M47: 31088.99028 | N47: 82899.26513 | O47: 41814.98419 | P47: 50854.51857 | Q47: 53839.18011 | R47: 29477.9008 | S47: 65419.45778 | T47: 41856.46919 | U47: 70794.90337 | V47: 33308.02476 | W47: 61177.47956 | X47: 58525.91145 | Y47: 106984.2315 | Z47: 205271.2033 | AA47: 134750.516 | AB47: 62946.4954 | AC47: 92863.75608 | AD47: 120206.6418 | AE47: 136408.8599 | AF47: 0 | AG47: 0 | AH47: 0 | AI47: 0 | AJ47: 0 | AK47: 0 | AL47: 0 | AM47: 0 | AN47: 0 | AO47: 0 | AP47: 0 | AQ47: 0 | AR47: 0 | AS47: 0 | AT47: 0 | AU47: 0 | AV47: 0 | AW47: 0 | AX47: 0 | AY47: 0
B48: Chile | C48: Chile | H48: =-H156 -> 31846.32862 | I48: 146444.6207 | J48: 176644.4692 | K48: 24486.67887 | L48: 13333.94367 | M48: 37290.76365 | N48: 127968.8533 | O48: 34652.77215 | P48: 34010.8824 | Q48: 88882.14424 | R48: 109443.1814 | S48: 20957.51005 | T48: 31700.27582 | U48: 23189.44837 | V48: 21058.97601 | W48: 24063.94142 | X48: 26852.0019 | Y48: 29233.83789 | Z48: 31813.2741 | AA48: 33577.61246 | AB48: 46575.2123 | AC48: 54189.85202 | AD48: 62973.89697 | AE48: 79641.72086 | AF48: 16071.53439 | AG48: 76185.96346 | AH48: 41992.27055 | AI48: 70093.75913 | AJ48: 118703.7119 | AK48: 200294.1825 | AL48: 212075.5825 | AM48: 201259.8187 | AN48: 56771.64392 | AO48: 84238.37034 | AP48: 82429.90378 | AQ48: 98295.69582 | AR48: 101762.2167 | AS48: 106613.0844 | AT48: 99984.04953 | AU48: 104111.9839 | AV48: 131395.8341 | AW48: 135860.7377 | AX48: 70346.46074 | AY48: 0
B49: Italia | C49: Italy | H49: =-H181 -> 10464.26755 | I49: 5075.964684 | J49: 5063.598571 | K49: 23894.58656 | L49: 54240.45295 | M49: 89095.25206 | N49: 70319.75908 | O49: 81337.49397 | P49: 64382.91949 | Q49: 67570.40652 | R49: 68608.92971 | S49: 127335.0081 | T49: 59472.15186 | U49: 63203.71508 | V49: 66139.78088 | W49: 67772.48729 | X49: 68808.37149 | Y49: 70729.12313 | Z49: 70996.52139 | AA49: 74320.91319 | AB49: 75758.79163 | AC49: 77138.58893 | AD49: 97823.41323 | AE49: 87161.62021 | AF49: 123124.0081 | AG49: 98915.28299 | AH49: 124969.3869 | AI49: 126974.0127 | AJ49: 128582.2776 | AK49: 129934.4908 | AL49: 132829.8311 | AM49: 135057.7605 | AN49: 138111.9834 | AO49: 142318.218 | AP49: 146920.2187 | AQ49: 149454.5816 | AR49: 152986.862 | AS49: 156479.5378 | AT49: 160553.0143 | AU49: 163262.2299 | AV49: 0 | AW49: 0 | AX49: 0 | AY49: 0
B50: Uruguay | C50: Uruguay | H50: =-H206 -> 122.0586796 | I50: 1179.598825 | J50: 13460.63592 | K50: 9648.048055 | L50: 7559.689577 | M50: 6600.77403 | N50: 8676.144267 | O50: 7382.4208 | P50: 7651.233529 | Q50: 9059.839868 | R50: 10489.22828 | S50: 12414.6502 | T50: 11872.16045 | U50: 8752.772897 | V50: 7168.411359 | W50: 29904.84103 | X50: 50542.54021 | Y50: 1136.944643 | Z50: 20771.66798 | AA50: 27358.37915 | AB50: 24820.32 | AC50: 0 | AD50: 0 | AE50: 0 | AF50: 0 | AG50: 0 | AH50: 0 | AI50: 0 | AJ50: 0 | AK50: 0 | AL50: 0 | AM50: 0 | AN50: 0 | AO50: 0 | AP50: 0 | AQ50: 0 | AR50: 0 | AS50: 0 | AT50: 0 | AU50: 0 | AV50: 0 | AW50: 0 | AX50: 0 | AY50: 0
B51: Paraguay | C51: Paraguay | H51: =-H231 -> 45532.79017 | I51: 9235.977509 | J51: 5954.516542 | K51: 3370.85449 | L51: 291.324213 | M51: 3175.040314 | N51: 1970.377307 | O51: 1910.731601 | P51: 896.9918409 | Q51: 5061.225954 | R51: 6779.408793 | S51: 5974.744585 | T51: 6692.460038 | U51: 7901.075844 | V51: 7486.210894 | W51: 7170.189452 | X51: 7152.746746 | Y51: 6459.488103 | Z51: 6179.122948 | AA51: 1024.273771 | AB51: 1126.864685 | AC51: 4672.492627 | AD51: 11120.19941 | AE51: 20231.91763 | AF51: 24600.7005 | AG51: 9410.15812 | AH51: 0 | AI51: 0 | AJ51: 0 | AK51: 0 | AL51: 0 | AM51: 0 | AN51: 0 | AO51: 0 | AP51: 0 | AQ51: 0 | AR51: 0 | AS51: 0 | AT51: 0 | AU51: 0 | AV51: 0 | AW51: 0 | AX51: 0 | AY51: 0
B52: Brazil | C52: Brazil | H52: =-H256 -> 0 | I52: 0 | J52: 0 | K52: 0 | L52: 0 | M52: 89.22550369 | N52: 559.2778833 | O52: 3015.423267 | P52: 3290.513223 | Q52: 4262.361813 | R52: 4489.724152 | S52: 7423.908104 | T52: 19111.59419 | U52: 23653.70407 | V52: 27797.01283 | W52: 32768.87031 | X52: 37400.66849 | Y52: 41460.14303 | Z52: 47172.8607 | AA52: 44394.10553 | AB52: 34948.9247 | AC52: 51434.82395 | AD52: 77014.96525 | AE52: 82635.54498 | AF52: 101951.7214 | AG52: 120498.7527 | AH52: 117145.6959 | AI52: 129706.6583 | AJ52: 145293.1032 | AK52: 139892.4191 | AL52: 3.16805723e-13 | AM52: 3.16805723e-13 | AN52: 3.16805723e-13 | AO52: 3.16805723e-13 | AP52: 0 | AQ52: 0 | AR52: 0 | AS52: 0 | AT52: 0 | AU52: 0 | AV52: 0 | AW52: 0 | AX52: 0 | AY52: 0
B53: México | C53: Mexico | H53: =-H281 -> 8608.901106 | I53: 4658.733123 | J53: 4997.326733 | K53: 5245.742437 | L53: 8273.543669 | M53: 12527.49346 | N53: 6159.956121 | O53: 6521.464555 | P53: 6148.094762 | Q53: 6274.287023 | R53: 6560.341378 | S53: 6845.091131 | T53: 7158.716256 | U53: 7536.568671 | V53: 7920.79481 | W53: 8253.993095 | X53: 8583.885253 | Y53: 8852.255121 | Z53: 8352.199859 | AA53: 8403.63643 | AB53: 8409.469601 | AC53: 5423.824188 | AD53: 0 | AE53: 0 | AF53: 0 | AG53: 0 | AH53: 0 | AI53: 0 | AJ53: 0 | AK53: 0 | AL53: 0 | AM53: 0 | AN53: 0 | AO53: 0 | AP53: 0 | AQ53: 0 | AR53: 0 | AS53: 0 | AT53: 0 | AU53: 0 | AV53: 0 | AW53: 0 | AX53: 0 | AY53: 0
B54: Perú | C54: Peru | H54: =-H306 -> 10535.01129 | I54: 3.577425559e-06 | J54: 9.935003618e-06 | K54: -1.954732124e-05 | L54: 1.346439876e-05 | M54: 1.599058396e-05 | N54: 4.414205387e-05 | O54: -2.184185405e-05 | P54: 8.787835213e-06 | Q54: 2.579979855e-05 | R54: 1.338007655e-05 | S54: 6.460045211e-05 | T54: 2.31641643e-05 | U54: -4.137107271e-05 | V54: 9.735113508e-05 | W54: -4.168117448e-05 | X54: 292.8436221 | Y54: 8449.742153 | Z54: 0 | AA54: 0 | AB54: 0 | AC54: 0 | AD54: 0 | AE54: 0 | AF54: 0 | AG54: 0 | AH54: 0 | AI54: 0 | AJ54: 0 | AK54: 0 | AL54: 0 | AM54: 0 | AN54: 0 | AO54: 0 | AP54: 0 | AQ54: 0 | AR54: 0 | AS54: 0 | AT54: 0 | AU54: 0 | AV54: 0 | AW54: 0 | AX54: 0 | AY54: 0
B55: EEUU | C55: USA | H55: =-H331 -> 444.966366 | I55: 447.5329931 | J55: 453.9793867 | K55: 461.0177928 | L55: 337.5901464 | M55: 564.2742613 | N55: 598.0791007 | O55: 757.6095108 | P55: 916.1003609 | Q55: 934.5214042 | R55: 1083.42047 | S55: 1171.925042 | T55: 1211.272465 | U55: 1249.954556 | V55: 1209.874824 | W55: 1219.442511 | X55: 1255.127783 | Y55: 1295.589676 | Z55: 1336.146527 | AA55: 1281.814518 | AB55: 1290.721178 | AC55: 1301.481977 | AD55: 1317.295961 | AE55: 1321.559838 | AF55: 1294.879 | AG55: 1250.917161 | AH55: 1215.239549 | AI55: 1188.549205 | AJ55: 1178.415783 | AK55: 1161.942442 | AL55: 1126.356009 | AM55: 1093.459352 | AN55: 1065.043763 | AO55: 1034.942039 | AP55: 897.0584865 | AQ55: 722.5595177 | AR55: 691.7696013 | AS55: 663.5188498 | AT55: 640.0869748 | AU55: 625.5842166 | AV55: 596.7029587 | AW55: 563.0549885 | AX55: 397.0127567 | AY55: 0
C56: Total - Current Infrastructure portfolio | H56: =+SUM(H46:H55) -> 188515.9935 | I56: 232855.9173 | J56: 235447.8642 | K56: 216266.7487 | L56: 159825.1803 | M56: 195641.5571 | N56: 313154.3281 | O56: 188405.2847 | P56: 185580.6703 | Q56: 251388.1852 | R56: 259965.6571 | S56: 315054.3816 | T56: 206117.777 | U56: 242768.7164 | V56: 213442.1745 | W56: 278514.6876 | X56: 278143.2694 | Y56: 292832.2607 | Z56: 414310.7823 | AA56: 367360.3894 | AB56: 298238.393 | AC56: 306727.7727 | AD56: 393744.5472 | AE56: 418301.8706 | AF56: 278153.7309 | AG56: 317629.0634 | AH56: 288374.8506 | AI56: 335111.9915 | AJ56: 404250.5306 | AK56: 476836.3977 | AL56: 348968.3183 | AM56: 338042.0153 | AN56: 196600.0679 | AO56: 228264.1849 | AP56: 230360.695 | AQ56: 248472.8369 | AR56: 255440.8483 | AS56: 263756.141 | AT56: 261177.1508 | AU56: 267999.798 | AV56: 131992.537 | AW56: 136423.7927 | AX56: 70743.47349 | AY56: 0
C57: Water - Long Term Plants Contracts | H57: =+H345 -> 24994.01662 | I57: 8433.934259 | J57: 10240.99235 | K57: 9274.213789 | L57: 9401.891074 | M57: 8216.177931 | N57: 8584.987973 | O57: 9225.136903 | P57: 10623.20741 | Q57: 10696.696 | R57: 10805.71465 | S57: 10640.1738 | T57: 9356.250794 | U57: 12596.17944 | V57: 17096.3334 | W57: 4411.589994 | X57: 16741.61094 | Y57: 10994.46008 | Z57: 5773.39618 | AA57: 5773.96504 | AB57: 5672.407379 | AC57: 5657.080568 | AD57: 5622.4228 | AE57: 5627.317004 | AF57: 5537.197372 | AG57: 3570.440049 | AH57: 1475.583965 | AI57: 1367.975586 | AJ57: 21721.11312 | AK57: 0 | AL57: 0 | AM57: 0 | AN57: 0 | AO57: 0 | AP57: 0 | AQ57: 0 | AR57: 0 | AS57: 0 | AT57: 0 | AU57: 0 | AV57: 0 | AW57: 0 | AX57: 0 | AY57: 0
C58: Future investments | H58: =+SUMIF(H364:H368,">0") -> 0 | I58: 0 | J58: 0 | K58: 0 | L58: 0 | M58: 0 | N58: 125254.8148 | O58: 140814.7259 | P58: 156685.8353 | Q58: 172874.3668 | R58: 189386.6689 | S58: 80974.40231 | T58: 82593.89035 | U58: 84245.76816 | V58: 85930.68352 | W58: 87649.2972 | X58: 89402.28314 | Y58: 91190.3288 | Z58: 93014.13538 | AA58: 94874.41809 | AB58: 96771.90645 | AC58: 98707.34458 | AD58: 123769.7736 | AE58: 186813.1849 | AF58: 251117.4646 | AG58: 316707.8298 | AH58: 296176.8575 | AI58: 252146.9837 | AJ58: 169756.7786 | AK58: 85718.76939 | AL58: 0 | AM58: 0 | AN58: 0 | AO58: 0 | AP58: 0 | AQ58: 0 | AR58: 0 | AS58: 0 | AT58: 0 | AU58: 0 | AV58: 0 | AW58: 0 | AX58: 0 | AY58: 0
C59: Total | H59: =+SUM(H56:H58) -> 213510.0101 | I59: 241289.8515 | J59: 245688.8565 | K59: 225540.9625 | L59: 169227.0714 | M59: 203857.735 | N59: 446994.1309 | O59: 338445.1476 | P59: 352889.713 | Q59: 434959.2479 | R59: 460158.0407 | S59: 406668.9577 | T59: 298067.9181 | U59: 339610.664 | V59: 316469.1914 | W59: 370575.5748 | X59: 384287.1635 | Y59: 395017.0495 | Z59: 513098.3138 | AA59: 468008.7726 | AB59: 400682.7068 | AC59: 411092.1979 | AD59: 523136.7435 | AE59: 610742.3725 | AF59: 534808.3928 | AG59: 637907.3332 | AH59: 586027.2921 | AI59: 588626.9508 | AJ59: 595728.4223 | AK59: 562555.1671 | AL59: 348968.3183 | AM59: 338042.0153 | AN59: 196600.0679 | AO59: 228264.1849 | AP59: 230360.695 | AQ59: 248472.8369 | AR59: 255440.8483 | AS59: 263756.141 | AT59: 261177.1508 | AU59: 267999.798 | AV59: 131992.537 | AW59: 136423.7927 | AX59: 70743.47349 | AY59: 0
C64: Global Equity Contributions
C66: =C64&" - [000' EUR]" -> Global Equity Contributions - [000' EUR]
C67: Year | G67: 2021 | H67: =+H$12 -> 2022 | I67: 2023 | J67: 2024 | K67: 2025 | L67: 2026 | M67: 2027 | N67: 2028 | O67: 2029 | P67: 2030 | Q67: 2031 | R67: 2032 | S67: 2033 | T67: 2034 | U67: 2035 | V67: 2036 | W67: 2037 | X67: 2038 | Y67: 2039 | Z67: 2040 | AA67: 2041 | AB67: 2042 | AC67: 2043 | AD67: 2044 | AE67: 2045 | AF67: 2046 | AG67: 2047 | AH67: 2048 | AI67: 2049 | AJ67: 2050 | AK67: 2051 | AL67: 2052 | AM67: 2053 | AN67: 2054 | AO67: 2055 | AP67: 2056 | AQ67: 2057 | AR67: 2058 | AS67: 2059 | AT67: 2060 | AU67: 2061 | AV67: 2062 | AW67: 2063 | AX67: 2064 | AY67: 2065
C68: Spain | H68: =-H107 -> 0 | I68: 0 | J68: 0 | K68: 0 | L68: 0 | M68: 0 | N68: 0 | O68: 0 | P68: 0 | Q68: 0 | R68: 0 | S68: 0 | T68: 0 | U68: 0 | V68: 0 | W68: 0 | X68: 0 | Y68: 0 | Z68: 0 | AA68: 0 | AB68: 0 | AC68: 0 | AD68: 0 | AE68: 0 | AF68: 0 | AG68: 0 | AH68: 0 | AI68: 0 | AJ68: 0 | AK68: 0 | AL68: 0 | AM68: 0 | AN68: 0 | AO68: 0 | AP68: 0 | AQ68: 0 | AR68: 0 | AS68: 0 | AT68: 0 | AU68: 0 | AV68: 0 | AW68: 0 | AX68: 0 | AY68: 0
C69: Colombia | H69: =-H132 -> -24682.61421 | I69: -3008.622515 | J69: 0 | K69: 0 | L69: 0 | M69: 0 | N69: 0 | O69: 0 | P69: 0 | Q69: 0 | R69: 0 | S69: 0 | T69: 0 | U69: 0 | V69: 0 | W69: 0 | X69: 0 | Y69: 0 | Z69: 0 | AA69: 0 | AB69: 0 | AC69: 0 | AD69: 0 | AE69: 0 | AF69: 0 | AG69: 0 | AH69: 0 | AI69: 0 | AJ69: 0 | AK69: 0 | AL69: 0 | AM69: 0 | AN69: 0 | AO69: 0 | AP69: 0 | AQ69: 0 | AR69: 0 | AS69: 0 | AT69: 0 | AU69: 0 | AV69: 0 | AW69: 0 | AX69: 0 | AY69: 0
C70: Chile | H70: =-H157 -> -63727.21271 | I70: -29415.62116 | J70: -41270.18456 | K70: -2.923340288e-06 | L70: -2.334455649e-06 | M70: 0 | N70: 0 | O70: 0 | P70: 0 | Q70: 0 | R70: 0 | S70: 0 | T70: 0 | U70: 0 | V70: 0 | W70: 0 | X70: 0 | Y70: 0 | Z70: 0 | AA70: 0 | AB70: 0 | AC70: 0 | AD70: 0 | AE70: 0 | AF70: 0 | AG70: 0 | AH70: 0 | AI70: 0 | AJ70: 0 | AK70: 0 | AL70: 0 | AM70: 0 | AN70: 0 | AO70: 0 | AP70: 0 | AQ70: 0 | AR70: 0 | AS70: 0 | AT70: 0 | AU70: 0 | AV70: 0 | AW70: 0 | AX70: 0 | AY70: 0
C71: Italy | H71: =-H182 -> -35161.63927 | I71: -48138.36073 | J71: 0 | K71: 0 | L71: 0 | M71: 0 | N71: 0 | O71: 0 | P71: 0 | Q71: 0 | R71: 0 | S71: 0 | T71: 0 | U71: 0 | V71: 0 | W71: 0 | X71: 0 | Y71: 0 | Z71: 0 | AA71: 0 | AB71: 0 | AC71: 0 | AD71: 0 | AE71: 0 | AF71: 0 | AG71: 0 | AH71: 0 | AI71: 0 | AJ71: 0 | AK71: 0 | AL71: 0 | AM71: 0 | AN71: 0 | AO71: 0 | AP71: 0 | AQ71: 0 | AR71: 0 | AS71: 0 | AT71: 0 | AU71: 0 | AV71: 0 | AW71: 0 | AX71: 0 | AY71: 0
C72: Uruguay | H72: =-H207 -> -17900.68179 | I72: -10882.22802 | J72: 0 | K72: 0 | L72: 0 | M72: 0 | N72: 0 | O72: 0 | P72: 0 | Q72: 0 | R72: 0 | S72: 0 | T72: 0 | U72: 0 | V72: 0 | W72: 0 | X72: 0 | Y72: 0 | Z72: 0 | AA72: 0 | AB72: 0 | AC72: 0 | AD72: 0 | AE72: 0 | AF72: 0 | AG72: 0 | AH72: 0 | AI72: 0 | AJ72: 0 | AK72: 0 | AL72: 0 | AM72: 0 | AN72: 0 | AO72: 0 | AP72: 0 | AQ72: 0 | AR72: 0 | AS72: 0 | AT72: 0 | AU72: 0 | AV72: 0 | AW72: 0 | AX72: 0 | AY72: 0
C73: Paraguay | H73: =-H232 -> -18574.05503 | I73: 0 | J73: 0 | K73: 0 | L73: 0 | M73: 0 | N73: 0 | O73: 0 | P73: 0 | Q73: 0 | R73: 0 | S73: 0 | T73: 0 | U73: 0 | V73: 0 | W73: 0 | X73: 0 | Y73: 0 | Z73: 0 | AA73: 0 | AB73: 0 | AC73: 0 | AD73: 0 | AE73: 0 | AF73: 0 | AG73: 0 | AH73: 0 | AI73: 0 | AJ73: 0 | AK73: 0 | AL73: 0 | AM73: 0 | AN73: 0 | AO73: 0 | AP73: 0 | AQ73: 0 | AR73: 0 | AS73: 0 | AT73: 0 | AU73: 0 | AV73: 0 | AW73: 0 | AX73: 0 | AY73: 0
C74: Brazil | H74: =-H257 -> -21418.20854 | I74: -4282.651118 | J74: -24492.17636 | K74: -4871.314261 | L74: -10276.12704 | M74: 0 | N74: 0 | O74: 0 | P74: 0 | Q74: 0 | R74: 0 | S74: 0 | T74: 0 | U74: 0 | V74: 0 | W74: 0 | X74: 0 | Y74: 0 | Z74: 0 | AA74: 0 | AB74: 0 | AC74: 0 | AD74: 0 | AE74: 0 | AF74: 0 | AG74: 0 | AH74: 0 | AI74: 0 | AJ74: 0 | AK74: 0 | AL74: 0 | AM74: 0 | AN74: 0 | AO74: 0 | AP74: 0 | AQ74: 0 | AR74: 0 | AS74: 0 | AT74: 0 | AU74: 0 | AV74: 0 | AW74: 0 | AX74: 0 | AY74: 0
C75: Mexico | H75: =-H282 -> 0 | I75: 0 | J75: 0 | K75: 0 | L75: 0 | M75: 0 | N75: 0 | O75: 0 | P75: 0 | Q75: 0 | R75: 0 | S75: 0 | T75: 0 | U75: 0 | V75: 0 | W75: 0 | X75: 0 | Y75: 0 | Z75: 0 | AA75: 0 | AB75: 0 | AC75: 0 | AD75: 0 | AE75: 0 | AF75: 0 | AG75: 0 | AH75: 0 | AI75: 0 | AJ75: 0 | AK75: 0 | AL75: 0 | AM75: 0 | AN75: 0 | AO75: 0 | AP75: 0 | AQ75: 0 | AR75: 0 | AS75: 0 | AT75: 0 | AU75: 0 | AV75: 0 | AW75: 0 | AX75: 0 | AY75: 0
C76: Peru | H76: =-H307 -> 0 | I76: 0 | J76: 0 | K76: 0 | L76: 0 | M76: 0 | N76: 0 | O76: 0 | P76: 0 | Q76: 0 | R76: 0 | S76: 0 | T76: 0 | U76: 0 | V76: 0 | W76: 0 | X76: 0 | Y76: 0 | Z76: 0 | AA76: 0 | AB76: 0 | AC76: 0 | AD76: 0 | AE76: 0 | AF76: 0 | AG76: 0 | AH76: 0 | AI76: 0 | AJ76: 0 | AK76: 0 | AL76: 0 | AM76: 0 | AN76: 0 | AO76: 0 | AP76: 0 | AQ76: 0 | AR76: 0 | AS76: 0 | AT76: 0 | AU76: 0 | AV76: 0 | AW76: 0 | AX76: 0 | AY76: 0
C77: USA | H77: =-H332 -> 0 | I77: 0 | J77: 0 | K77: 0 | L77: 0 | M77: 0 | N77: 0 | O77: 0 | P77: 0 | Q77: 0 | R77: 0 | S77: 0 | T77: 0 | U77: 0 | V77: 0 | W77: 0 | X77: 0 | Y77: 0 | Z77: 0 | AA77: 0 | AB77: 0 | AC77: 0 | AD77: 0 | AE77: 0 | AF77: 0 | AG77: 0 | AH77: 0 | AI77: 0 | AJ77: 0 | AK77: 0 | AL77: 0 | AM77: 0 | AN77: 0 | AO77: 0 | AP77: 0 | AQ77: 0 | AR77: 0 | AS77: 0 | AT77: 0 | AU77: 0 | AV77: 0 | AW77: 0 | AX77: 0 | AY77: 0
C78: Total - Current Infrastructure portfolio | H78: =+SUM(H68:H77) -> -181464.4116 | I78: -95727.48353 | J78: -65762.36093 | K78: -4871.314264 | L78: -10276.12704 | M78: 0 | N78: 0 | O78: 0 | P78: 0 | Q78: 0 | R78: 0 | S78: 0 | T78: 0 | U78: 0 | V78: 0 | W78: 0 | X78: 0 | Y78: 0 | Z78: 0 | AA78: 0 | AB78: 0 | AC78: 0 | AD78: 0 | AE78: 0 | AF78: 0 | AG78: 0 | AH78: 0 | AI78: 0 | AJ78: 0 | AK78: 0 | AL78: 0 | AM78: 0 | AN78: 0 | AO78: 0 | AP78: 0 | AQ78: 0 | AR78: 0 | AS78: 0 | AT78: 0 | AU78: 0 | AV78: 0 | AW78: 0 | AX78: 0 | AY78: 0
C79: Water - Long Term Plants Contracts | H79: 0 | I79: 0 | J79: 0 | K79: 0 | L79: 0 | M79: 0 | N79: 0 | O79: 0 | P79: 0 | Q79: 0 | R79: 0 | S79: 0 | T79: 0 | U79: 0 | V79: 0 | W79: 0 | X79: 0 | Y79: 0 | Z79: 0 | AA79: 0 | AB79: 0 | AC79: 0 | AD79: 0 | AE79: 0 | AF79: 0 | AG79: 0 | AH79: 0 | AI79: 0 | AJ79: 0 | AK79: 0 | AL79: 0 | AM79: 0 | AN79: 0 | AO79: 0 | AP79: 0 | AQ79: 0 | AR79: 0 | AS79: 0 | AT79: 0 | AU79: 0 | AV79: 0 | AW79: 0 | AX79: 0 | AY79: 0
C80: Future investments | H80: =+SUMIF(H364:H368,"<0") -> 0 | I80: -50000 | J80: -100000 | K80: -150000 | L80: -150000 | M80: -150000 | N80: -100000 | O80: -50000 | P80: 0 | Q80: 0 | R80: 0 | S80: 0 | T80: 0 | U80: 0 | V80: 0 | W80: 0 | X80: 0 | Y80: 0 | Z80: 0 | AA80: 0 | AB80: 0 | AC80: 0 | AD80: 0 | AE80: 0 | AF80: 0 | AG80: 0 | AH80: 0 | AI80: 0 | AJ80: 0 | AK80: 0 | AL80: 0 | AM80: 0 | AN80: 0 | AO80: 0 | AP80: 0 | AQ80: 0 | AR80: 0 | AS80: 0 | AT80: 0 | AU80: 0 | AV80: 0 | AW80: 0 | AX80: 0 | AY80: 0
C81: Total | H81: =+SUM(H78:H80) -> -181464.4116 | I81: -145727.4835 | J81: -165762.3609 | K81: -154871.3143 | L81: -160276.127 | M81: -150000 | N81: -100000 | O81: -50000 | P81: 0 | Q81: 0 | R81: 0 | S81: 0 | T81: 0 | U81: 0 | V81: 0 | W81: 0 | X81: 0 | Y81: 0 | Z81: 0 | AA81: 0 | AB81: 0 | AC81: 0 | AD81: 0 | AE81: 0 | AF81: 0 | AG81: 0 | AH81: 0 | AI81: 0 | AJ81: 0 | AK81: 0 | AL81: 0 | AM81: 0 | AN81: 0 | AO81: 0 | AP81: 0 | AQ81: 0 | AR81: 0 | AS81: 0 | AT81: 0 | AU81: 0 | AV81: 0 | AW81: 0 | AX81: 0 | AY81: 0
C87: Cash Flows
A89: 1 | C89: Spain
C91: =+"Cash Flow "&C89&" - [000' EUR]" -> Cash Flow Spain - [000' EUR]
C92: Year | G92: 2021 | H92: =+H$12 -> 2022 | I92: 2023 | J92: 2024 | K92: 2025 | L92: 2026 | M92: 2027 | N92: 2028 | O92: 2029 | P92: 2030 | Q92: 2031 | R92: 2032 | S92: 2033 | T92: 2034 | U92: 2035 | V92: 2036 | W92: 2037 | X92: 2038 | Y92: 2039 | Z92: 2040 | AA92: 2041 | AB92: 2042 | AC92: 2043 | AD92: 2044 | AE92: 2045 | AF92: 2046 | AG92: 2047 | AH92: 2048 | AI92: 2049 | AJ92: 2050 | AK92: 2051 | AL92: 2052 | AM92: 2053 | AN92: 2054 | AO92: 2055 | AP92: 2056 | AQ92: 2057 | AR92: 2058 | AS92: 2059 | AT92: 2060 | AU92: 2061 | AV92: 2062 | AW92: 2063 | AX92: 2064 | AY92: 2065
C93: Income | H93: =+H94+H95+H96 -> 43884.54231 | I93: 50840.55411 | J93: 58084.48722 | K93: 58695.99818 | L93: 68746.88053 | M93: 67854.56971 | N93: 55605.9966 | O93: 61269.3455 | P93: 58553.52835 | Q93: 62135.07699 | R93: 65648.67815 | S93: 69666.22642 | T93: 70805.8852 | U93: 105129.5654 | V93: 54226.95144 | W93: 49111.07821 | X93: 50272.54761 | Y93: 60328.52723 | Z93: 50191.98757 | AA93: 56340.25635 | AB93: 56139.72212 | AC93: 29030.87997 | AD93: 31101.90531 | AE93: 19191.84344 | AF93: 19741.96192 | AG93: 20309.06934 | AH93: 17124.02687 | AI93: 16343.19088 | AJ93: 16176.34322 | AK93: 7147.535379 | AL93: 1110.08221 | AM93: 1143.437258 | AN93: 1177.280695 | AO93: 1212.307133 | AP93: 320.290714 | AQ93: 0 | AR93: 0 | AS93: 0 | AT93: 0 | AU93: 0 | AV93: 0 | AW93: 0 | AX93: 0 | AY93: 0
C94: Income with mitigated demand risk | H94: =+'INPUT DATA'!J27 -> 9837.627297 | I94: =+'INPUT DATA'!K27 -> 13923.18566 | J94: =+'INPUT DATA'!L27 -> 17648.50238 | K94: =+'INPUT DATA'!M27 -> 16115.97199 | L94: =+'INPUT DATA'!N27 -> 23791.79185 | M94: =+'INPUT DATA'!O27 -> 20484.31658 | N94: =+'INPUT DATA'!P27 -> 5905.045456 | O94: =+'INPUT DATA'!Q27 -> 9753.28939 | P94: =+'INPUT DATA'!R27 -> 5030.285865 | Q94: =+'INPUT DATA'!S27 -> 6305.199496 | R94: =+'INPUT DATA'!T27 -> 8549.783812 | S94: =+'INPUT DATA'!U27 -> 10620.34967 | T94: =+'INPUT DATA'!V27 -> 9664.295785 | U94: =+'INPUT DATA'!W27 -> 45916.3771 | V94: =+'INPUT DATA'!X27 -> 9061.562503 | W94: =+'INPUT DATA'!Y27 -> 9535.696806 | X94: =+'INPUT DATA'!Z27 -> 9716.117359 | Y94: =+'INPUT DATA'!AA27 -> 19153.70571 | Z94: =+'INPUT DATA'!AB27 -> 7808.742327 | AA94: =+'INPUT DATA'!AC27 -> 13824.66288 | AB94: =+'INPUT DATA'!AD27 -> 32193.01878 | AC94: =+'INPUT DATA'!AE27 -> 10716.71686 | AD94: =+'INPUT DATA'!AF27 -> 14191.07658 | AE94: =+'INPUT DATA'!AG27 -> 1809.567335 | AF94: =+'INPUT DATA'!AH27 -> 1845.758682 | AG94: =+'INPUT DATA'!AI27 -> 1882.673855 | AH94: =+'INPUT DATA'!AJ27 -> 1920.327332 | AI94: =+'INPUT DATA'!AK27 -> 1958.733879 | AJ94: =+'INPUT DATA'!AL27 -> 1997.908557 | AK94: =+'INPUT DATA'!AM27 -> 675.5667782 | AL94: =+'INPUT DATA'!AN27 -> 0 | AM94: =+'INPUT DATA'!AO27 -> 0 | AN94: =+'INPUT DATA'!AP27 -> 0 | AO94: =+'INPUT DATA'!AQ27 -> 0 | AP94: =+'INPUT DATA'!AR27 -> 0 | AQ94: =+'INPUT DATA'!AS27 -> 0 | AR94: =+'INPUT DATA'!AT27 -> 0 | AS94: =+'INPUT DATA'!AU27 -> 0 | AT94: =+'INPUT DATA'!AV27 -> 0 | AU94: =+'INPUT DATA'!AW27 -> 0 | AV94: =+'INPUT DATA'!AX27 -> 0 | AW94: =+'INPUT DATA'!AY27 -> 0 | AX94: =+'INPUT DATA'!AZ27 -> 0 | AY94: =+'INPUT DATA'!BA27 -> 0
C95: Income with low demand risk | H95: =+'INPUT DATA'!J28 -> 23289.59436 | I95: =+'INPUT DATA'!K28 -> 24183.49268 | J95: =+'INPUT DATA'!L28 -> 25658.5058 | K95: =+'INPUT DATA'!M28 -> 27252.41604 | L95: =+'INPUT DATA'!N28 -> 28959.09424 | M95: =+'INPUT DATA'!O28 -> 30768.51519 | N95: =+'INPUT DATA'!P28 -> 32347.55644 | O95: =+'INPUT DATA'!Q28 -> 33423.62246 | P95: =+'INPUT DATA'!R28 -> 34714.67622 | Q95: =+'INPUT DATA'!S28 -> 36015.27513 | R95: =+'INPUT DATA'!T28 -> 37403.25311 | S95: =+'INPUT DATA'!U28 -> 38725.71945 | T95: =+'INPUT DATA'!V28 -> 40136.2898 | U95: =+'INPUT DATA'!W28 -> 37501.14318 | V95: =+'INPUT DATA'!X28 -> 22695.73208 | W95: =+'INPUT DATA'!Y28 -> 16409.4227 | X95: =+'INPUT DATA'!Z28 -> 16760.80209 | Y95: =+'INPUT DATA'!AA28 -> 17115.29246 | Z95: =+'INPUT DATA'!AB28 -> 17513.73124 | AA95: =+'INPUT DATA'!AC28 -> 16901.30415 | AB95: =+'INPUT DATA'!AD28 -> 0 | AC95: =+'INPUT DATA'!AE28 -> 0 | AD95: =+'INPUT DATA'!AF28 -> 0 | AE95: =+'INPUT DATA'!AG28 -> 0 | AF95: =+'INPUT DATA'!AH28 -> 0 | AG95: =+'INPUT DATA'!AI28 -> 0 | AH95: =+'INPUT DATA'!AJ28 -> 0 | AI95: =+'INPUT DATA'!AK28 -> 0 | AJ95: =+'INPUT DATA'!AL28 -> 0 | AK95: =+'INPUT DATA'!AM28 -> 0 | AL95: =+'INPUT DATA'!AN28 -> 0 | AM95: =+'INPUT DATA'!AO28 -> 0 | AN95: =+'INPUT DATA'!AP28 -> 0 | AO95: =+'INPUT DATA'!AQ28 -> 0 | AP95: =+'INPUT DATA'!AR28 -> 0 | AQ95: =+'INPUT DATA'!AS28 -> 0 | AR95: =+'INPUT DATA'!AT28 -> 0 | AS95: =+'INPUT DATA'!AU28 -> 0 | AT95: =+'INPUT DATA'!AV28 -> 0 | AU95: =+'INPUT DATA'!AW28 -> 0 | AV95: =+'INPUT DATA'!AX28 -> 0 | AW95: =+'INPUT DATA'!AY28 -> 0 | AX95: =+'INPUT DATA'!AZ28 -> 0 | AY95: =+'INPUT DATA'!BA28 -> 0
C96: Income with demand risk | H96: =+'INPUT DATA'!J29 -> 10757.32066 | I96: =+'INPUT DATA'!K29 -> 12733.87576 | J96: =+'INPUT DATA'!L29 -> 14777.47904 | K96: =+'INPUT DATA'!M29 -> 15327.61014 | L96: =+'INPUT DATA'!N29 -> 15995.99443 | M96: =+'INPUT DATA'!O29 -> 16601.73795 | N96: =+'INPUT DATA'!P29 -> 17353.39471 | O96: =+'INPUT DATA'!Q29 -> 18092.43365 | P96: =+'INPUT DATA'!R29 -> 18808.56627 | Q96: =+'INPUT DATA'!S29 -> 19814.60236 | R96: =+'INPUT DATA'!T29 -> 19695.64123 | S96: =+'INPUT DATA'!U29 -> 20320.1573 | T96: =+'INPUT DATA'!V29 -> 21005.29962 | U96: =+'INPUT DATA'!W29 -> 21712.04515 | V96: =+'INPUT DATA'!X29 -> 22469.65686 | W96: =+'INPUT DATA'!Y29 -> 23165.9587 | X96: =+'INPUT DATA'!Z29 -> 23795.62816 | Y96: =+'INPUT DATA'!AA29 -> 24059.52906 | Z96: =+'INPUT DATA'!AB29 -> 24869.514 | AA96: =+'INPUT DATA'!AC29 -> 25614.28931 | AB96: =+'INPUT DATA'!AD29 -> 23946.70334 | AC96: =+'INPUT DATA'!AE29 -> 18314.16311 | AD96: =+'INPUT DATA'!AF29 -> 16910.82874 | AE96: =+'INPUT DATA'!AG29 -> 17382.27611 | AF96: =+'INPUT DATA'!AH29 -> 17896.20324 | AG96: =+'INPUT DATA'!AI29 -> 18426.39548 | AH96: =+'INPUT DATA'!AJ29 -> 15203.69954 | AI96: =+'INPUT DATA'!AK29 -> 14384.457 | AJ96: =+'INPUT DATA'!AL29 -> 14178.43467 | AK96: =+'INPUT DATA'!AM29 -> 6471.968601 | AL96: =+'INPUT DATA'!AN29 -> 1110.08221 | AM96: =+'INPUT DATA'!AO29 -> 1143.437258 | AN96: =+'INPUT DATA'!AP29 -> 1177.280695 | AO96: =+'INPUT DATA'!AQ29 -> 1212.307133 | AP96: =+'INPUT DATA'!AR29 -> 320.290714 | AQ96: =+'INPUT DATA'!AS29 -> 0 | AR96: =+'INPUT DATA'!AT29 -> 0 | AS96: =+'INPUT DATA'!AU29 -> 0 | AT96: =+'INPUT DATA'!AV29 -> 0 | AU96: =+'INPUT DATA'!AW29 -> 0 | AV96: =+'INPUT DATA'!AX29 -> 0 | AW96: =+'INPUT DATA'!AY29 -> 0 | AX96: =+'INPUT DATA'!AZ29 -> 0 | AY96: =+'INPUT DATA'!BA29 -> 0
C97: Operating Costs | H97: =+'INPUT DATA'!J30 -> -9440.091175 | I97: =+'INPUT DATA'!K30 -> -9096.423802 | J97: =+'INPUT DATA'!L30 -> -9979.263701 | K97: =+'INPUT DATA'!M30 -> -10562.09926 | L97: =+'INPUT DATA'!N30 -> -9994.828407 | M97: =+'INPUT DATA'!O30 -> -9436.845714 | N97: =+'INPUT DATA'!P30 -> -9375.60622 | O97: =+'INPUT DATA'!Q30 -> -9824.31442 | P97: =+'INPUT DATA'!R30 -> -9779.987292 | Q97: =+'INPUT DATA'!S30 -> -9931.957976 | R97: =+'INPUT DATA'!T30 -> -10108.86912 | S97: =+'INPUT DATA'!U30 -> -10226.43656 | T97: =+'INPUT DATA'!V30 -> -10398.23332 | U97: =+'INPUT DATA'!W30 -> -10409.8544 | V97: =+'INPUT DATA'!X30 -> -7617.549839 | W97: =+'INPUT DATA'!Y30 -> -7271.361146 | X97: =+'INPUT DATA'!Z30 -> -7393.540843 | Y97: =+'INPUT DATA'!AA30 -> -7494.11748 | Z97: =+'INPUT DATA'!AB30 -> -7629.87136 | AA97: =+'INPUT DATA'!AC30 -> -8250.851381 | AB97: =+'INPUT DATA'!AD30 -> -5720.144218 | AC97: =+'INPUT DATA'!AE30 -> -4785.450821 | AD97: =+'INPUT DATA'!AF30 -> -4882.146387 | AE97: =+'INPUT DATA'!AG30 -> -4975.981995 | AF97: =+'INPUT DATA'!AH30 -> -5076.627809 | AG97: =+'INPUT DATA'!AI30 -> -5177.707529 | AH97: =+'INPUT DATA'!AJ30 -> -4966.451049 | AI97: =+'INPUT DATA'!AK30 -> -4714.107212 | AJ97: =+'INPUT DATA'!AL30 -> -4537.006763 | AK97: =+'INPUT DATA'!AM30 -> -2464.517332 | AL97: =+'INPUT DATA'!AN30 -> -370.1578542 | AM97: =+'INPUT DATA'!AO30 -> -377.5610112 | AN97: =+'INPUT DATA'!AP30 -> -385.1122315 | AO97: =+'INPUT DATA'!AQ30 -> -392.8144761 | AP97: =+'INPUT DATA'!AR30 -> -167.4767562 | AQ97: =+'INPUT DATA'!AS30 -> 0 | AR97: =+'INPUT DATA'!AT30 -> 0 | AS97: =+'INPUT DATA'!AU30 -> 0 | AT97: =+'INPUT DATA'!AV30 -> 0 | AU97: =+'INPUT DATA'!AW30 -> 0 | AV97: =+'INPUT DATA'!AX30 -> 0 | AW97: =+'INPUT DATA'!AY30 -> 0 | AX97: =+'INPUT DATA'!AZ30 -> 0 | AY97: =+'INPUT DATA'!BA30 -> 0
C98: Investment & Capex | H98: =+'INPUT DATA'!J31 -> -3203.047147 | I98: =+'INPUT DATA'!K31 -> -3630.558749 | J98: =+'INPUT DATA'!L31 -> -2776.264808 | K98: =+'INPUT DATA'!M31 -> -3862.913918 | L98: =+'INPUT DATA'!N31 -> -3107.159588 | M98: =+'INPUT DATA'!O31 -> -2825.428697 | N98: =+'INPUT DATA'!P31 -> -1686.940824 | O98: =+'INPUT DATA'!Q31 -> -1342.41525 | P98: =+'INPUT DATA'!R31 -> -1188.897002 | Q98: =+'INPUT DATA'!S31 -> -1624.416577 | R98: =+'INPUT DATA'!T31 -> -1879.293709 | S98: =+'INPUT DATA'!U31 -> -2398.463808 | T98: =+'INPUT DATA'!V31 -> -2317.142623 | U98: =+'INPUT DATA'!W31 -> 370.9232563 | V98: =+'INPUT DATA'!X31 -> -1762.817511 | W98: =+'INPUT DATA'!Y31 -> -4034.921597 | X98: =+'INPUT DATA'!Z31 -> -3975.836555 | Y98: =+'INPUT DATA'!AA31 -> -4511.273269 | Z98: =+'INPUT DATA'!AB31 -> -2064.552008 | AA98: =+'INPUT DATA'!AC31 -> -1737.480192 | AB98: =+'INPUT DATA'!AD31 -> -4622.6003 | AC98: =+'INPUT DATA'!AE31 -> -761.4126677 | AD98: =+'INPUT DATA'!AF31 -> -236.0069299 | AE98: =+'INPUT DATA'!AG31 -> -515.5698404 | AF98: =+'INPUT DATA'!AH31 -> -661.5938461 | AG98: =+'INPUT DATA'!AI31 -> -783.2970926 | AH98: =+'INPUT DATA'!AJ31 -> -323.1344967 | AI98: =+'INPUT DATA'!AK31 -> -845.3066469 | AJ98: =+'INPUT DATA'!AL31 -> -798.0663914 | AK98: =+'INPUT DATA'!AM31 -> -759.7879462 | AL98: =+'INPUT DATA'!AN31 -> 0 | AM98: =+'INPUT DATA'!AO31 -> 0 | AN98: =+'INPUT DATA'!AP31 -> 0 | AO98: =+'INPUT DATA'!AQ31 -> 0 | AP98: =+'INPUT DATA'!AR31 -> 0 | AQ98: =+'INPUT DATA'!AS31 -> 0 | AR98: =+'INPUT DATA'!AT31 -> 0 | AS98: =+'INPUT DATA'!AU31 -> 0 | AT98: =+'INPUT DATA'!AV31 -> 0 | AU98: =+'INPUT DATA'!AW31 -> 0 | AV98: =+'INPUT DATA'!AX31 -> 0 | AW98: =+'INPUT DATA'!AY31 -> 0 | AX98: =+'INPUT DATA'!AZ31 -> 0 | AY98: =+'INPUT DATA'!BA31 -> 0
C99: Into / Out Operating Reserve Accounts | H99: =+'INPUT DATA'!J32 -> 0 | I99: =+'INPUT DATA'!K32 -> 0 | J99: =+'INPUT DATA'!L32 -> 0 | K99: =+'INPUT DATA'!M32 -> 0 | L99: =+'INPUT DATA'!N32 -> 0 | M99: =+'INPUT DATA'!O32 -> 0 | N99: =+'INPUT DATA'!P32 -> 0 | O99: =+'INPUT DATA'!Q32 -> 0 | P99: =+'INPUT DATA'!R32 -> 0 | Q99: =+'INPUT DATA'!S32 -> 0 | R99: =+'INPUT DATA'!T32 -> 0 | S99: =+'INPUT DATA'!U32 -> 0 | T99: =+'INPUT DATA'!V32 -> 0 | U99: =+'INPUT DATA'!W32 -> 0 | V99: =+'INPUT DATA'!X32 -> 0 | W99: =+'INPUT DATA'!Y32 -> 0 | X99: =+'INPUT DATA'!Z32 -> 0 | Y99: =+'INPUT DATA'!AA32 -> 0 | Z99: =+'INPUT DATA'!AB32 -> 0 | AA99: =+'INPUT DATA'!AC32 -> 0 | AB99: =+'INPUT DATA'!AD32 -> 0 | AC99: =+'INPUT DATA'!AE32 -> 0 | AD99: =+'INPUT DATA'!AF32 -> 0 | AE99: =+'INPUT DATA'!AG32 -> 0 | AF99: =+'INPUT DATA'!AH32 -> 0 | AG99: =+'INPUT DATA'!AI32 -> 0 | AH99: =+'INPUT DATA'!AJ32 -> 0 | AI99: =+'INPUT DATA'!AK32 -> 0 | AJ99: =+'INPUT DATA'!AL32 -> 0 | AK99: =+'INPUT DATA'!AM32 -> 0 | AL99: =+'INPUT DATA'!AN32 -> 0 | AM99: =+'INPUT DATA'!AO32 -> 0 | AN99: =+'INPUT DATA'!AP32 -> 0 | AO99: =+'INPUT DATA'!AQ32 -> 0 | AP99: =+'INPUT DATA'!AR32 -> 0 | AQ99: =+'INPUT DATA'!AS32 -> 0 | AR99: =+'INPUT DATA'!AT32 -> 0 | AS99: =+'INPUT DATA'!AU32 -> 0 | AT99: =+'INPUT DATA'!AV32 -> 0 | AU99: =+'INPUT DATA'!AW32 -> 0 | AV99: =+'INPUT DATA'!AX32 -> 0 | AW99: =+'INPUT DATA'!AY32 -> 0 | AX99: =+'INPUT DATA'!AZ32 -> 0 | AY99: =+'INPUT DATA'!BA32 -> 0
C100: Operating Cash Flow | H100: =+H93+H97+H98+H99 -> 31241.40399 | I100: 38113.57156 | J100: 45328.95871 | K100: 44270.985 | L100: 55644.89253 | M100: 55592.2953 | N100: 44543.44956 | O100: 50102.61583 | P100: 47584.64406 | Q100: 50578.70244 | R100: 53660.51532 | S100: 57041.32605 | T100: 58090.50925 | U100: 95090.63429 | V100: 44846.58409 | W100: 37804.79546 | X100: 38903.17021 | Y100: 48323.13648 | Z100: 40497.5642 | AA100: 46351.92477 | AB100: 45796.9776 | AC100: 23484.01649 | AD100: 25983.75199 | AE100: 13700.29161 | AF100: 14003.74027 | AG100: 14348.06472 | AH100: 11834.44133 | AI100: 10783.77702 | AJ100: 10841.27007 | AK100: 3923.230101 | AL100: 739.9243562 | AM100: 765.876247 | AN100: 792.1684633 | AO100: 819.4926568 | AP100: 152.8139578 | AQ100: 0 | AR100: 0 | AS100: 0 | AT100: 0 | AU100: 0 | AV100: 0 | AW100: 0 | AX100: 0 | AY100: 0
C101: Taxes | H101: =+'INPUT DATA'!J34 -> -574.9088537 | I101: =+'INPUT DATA'!K34 -> -2955.303247 | J101: =+'INPUT DATA'!L34 -> -2267.664427 | K101: =+'INPUT DATA'!M34 -> -1949.723703 | L101: =+'INPUT DATA'!N34 -> -1982.055983 | M101: =+'INPUT DATA'!O34 -> -1564.951586 | N101: =+'INPUT DATA'!P34 -> -2498.566683 | O101: =+'INPUT DATA'!Q34 -> -2546.260477 | P101: =+'INPUT DATA'!R34 -> -2902.018657 | Q101: =+'INPUT DATA'!S34 -> -3160.026563 | R101: =+'INPUT DATA'!T34 -> -3407.624004 | S101: =+'INPUT DATA'!U34 -> -3623.524508 | T101: =+'INPUT DATA'!V34 -> -4039.678419 | U101: =+'INPUT DATA'!W34 -> -4195.195034 | V101: =+'INPUT DATA'!X34 -> -6652.291716 | W101: =+'INPUT DATA'!Y34 -> -4596.429697 | X101: =+'INPUT DATA'!Z34 -> -4677.062195 | Y101: =+'INPUT DATA'!AA34 -> -4876.048473 | Z101: =+'INPUT DATA'!AB34 -> -4936.283908 | AA101: =+'INPUT DATA'!AC34 -> -5994.582594 | AB101: =+'INPUT DATA'!AD34 -> -3726.620119 | AC101: =+'INPUT DATA'!AE34 -> -3791.676784 | AD101: =+'INPUT DATA'!AF34 -> -2705.794973 | AE101: =+'INPUT DATA'!AG34 -> -2809.32882 | AF101: =+'INPUT DATA'!AH34 -> -2902.037904 | AG101: =+'INPUT DATA'!AI34 -> -2988.737188 | AH101: =+'INPUT DATA'!AJ34 -> -3121.882505 | AI101: =+'INPUT DATA'!AK34 -> -2571.642427 | AJ101: =+'INPUT DATA'!AL34 -> -2503.503893 | AK101: =+'INPUT DATA'!AM34 -> -898.965244 | AL101: =+'INPUT DATA'!AN34 -> -129.1292578 | AM101: =+'INPUT DATA'!AO34 -> -134.8994451 | AN101: =+'INPUT DATA'!AP34 -> -140.7716584 | AO101: =+'INPUT DATA'!AQ34 -> -146.8381634 | AP101: =+'INPUT DATA'!AR34 -> -39.29994103 | AQ101: =+'INPUT DATA'!AS34 -> 0 | AR101: =+'INPUT DATA'!AT34 -> 0 | AS101: =+'INPUT DATA'!AU34 -> 0 | AT101: =+'INPUT DATA'!AV34 -> 0 | AU101: =+'INPUT DATA'!AW34 -> 0 | AV101: =+'INPUT DATA'!AX34 -> 0 | AW101: =+'INPUT DATA'!AY34 -> 0 | AX101: =+'INPUT DATA'!AZ34 -> 0 | AY101: =+'INPUT DATA'!BA34 -> 0
C102: Operating Cash Flow After Tax | H102: =+H100+H101 -> 30666.49514 | I102: 35158.26831 | J102: 43061.29428 | K102: 42321.2613 | L102: 53662.83655 | M102: 54027.34371 | N102: 42044.88288 | O102: 47556.35535 | P102: 44682.6254 | Q102: 47418.67587 | R102: 50252.89131 | S102: 53417.80154 | T102: 54050.83083 | U102: 90895.43925 | V102: 38194.29238 | W102: 33208.36577 | X102: 34226.10802 | Y102: 43447.088 | Z102: 35561.28029 | AA102: 40357.34218 | AB102: 42070.35748 | AC102: 19692.3397 | AD102: 23277.95702 | AE102: 10890.96279 | AF102: 11101.70237 | AG102: 11359.32753 | AH102: 8712.558822 | AI102: 8212.134591 | AJ102: 8337.766175 | AK102: 3024.264857 | AL102: 610.7950984 | AM102: 630.9768018 | AN102: 651.3968049 | AO102: 672.6544934 | AP102: 113.5140168 | AQ102: 0 | AR102: 0 | AS102: 0 | AT102: 0 | AU102: 0 | AV102: 0 | AW102: 0 | AX102: 0 | AY102: 0
C103: Debt Service | H103: =+'INPUT DATA'!J36 -> -22642.98195 | I103: =+'INPUT DATA'!K36 -> -16329.74707 | J103: =+'INPUT DATA'!L36 -> -36226.11107 | K103: =+'INPUT DATA'!M36 -> 16381.72547 | L103: =+'INPUT DATA'!N36 -> -39196.54592 | M103: =+'INPUT DATA'!O36 -> -43425.92736 | N103: =+'INPUT DATA'!P36 -> -32937.10321 | O103: =+'INPUT DATA'!Q36 -> -33332.23058 | P103: =+'INPUT DATA'!R36 -> -32241.64198 | Q103: =+'INPUT DATA'!S36 -> -32387.43632 | R103: =+'INPUT DATA'!T36 -> -27729.66003 | S103: =+'INPUT DATA'!U36 -> 14091.51154 | T103: =+'INPUT DATA'!V36 -> -17741.68445 | U103: =+'INPUT DATA'!W36 -> -20683.52577 | V103: =+'INPUT DATA'!X36 -> -14149.68347 | W103: =+'INPUT DATA'!Y36 -> -14627.8094 | X103: =+'INPUT DATA'!Z36 -> -15496.93538 | Y103: =+'INPUT DATA'!AA36 -> -25216.78998 | Z103: =+'INPUT DATA'!AB36 -> -13143.49478 | AA103: =+'INPUT DATA'!AC36 -> -108.2036271 | AB103: =+'INPUT DATA'!AD36 -> 11.04612458 | AC103: =+'INPUT DATA'!AE36 -> 10.61374328 | AD103: =+'INPUT DATA'!AF36 -> 10.17750957 | AE103: =+'INPUT DATA'!AG36 -> 9.684307146 | AF103: =+'INPUT DATA'!AH36 -> 9.185120135 | AG103: =+'INPUT DATA'!AI36 -> 8.661444679 | AH103: =+'INPUT DATA'!AJ36 -> 8.129438003 | AI103: =+'INPUT DATA'!AK36 -> 2.675889157 | AJ103: =+'INPUT DATA'!AL36 -> 0.6740270503 | AK103: =+'INPUT DATA'!AM36 -> 0.2215851365 | AL103: =+'INPUT DATA'!AN36 -> 0 | AM103: =+'INPUT DATA'!AO36 -> 0 | AN103: =+'INPUT DATA'!AP36 -> 0 | AO103: =+'INPUT DATA'!AQ36 -> 0 | AP103: =+'INPUT DATA'!AR36 -> 0 | AQ103: =+'INPUT DATA'!AS36 -> 0 | AR103: =+'INPUT DATA'!AT36 -> 0 | AS103: =+'INPUT DATA'!AU36 -> 0 | AT103: =+'INPUT DATA'!AV36 -> 0 | AU103: =+'INPUT DATA'!AW36 -> 0 | AV103: =+'INPUT DATA'!AX36 -> 0 | AW103: =+'INPUT DATA'!AY36 -> 0 | AX103: =+'INPUT DATA'!AZ36 -> 0 | AY103: =+'INPUT DATA'!BA36 -> 0
C104: Interest income | H104: =+'INPUT DATA'!J37 -> 0 | I104: =+'INPUT DATA'!K37 -> 0 | J104: =+'INPUT DATA'!L37 -> 0 | K104: =+'INPUT DATA'!M37 -> 0 | L104: =+'INPUT DATA'!N37 -> 0 | M104: =+'INPUT DATA'!O37 -> 0 | N104: =+'INPUT DATA'!P37 -> 0 | O104: =+'INPUT DATA'!Q37 -> 0 | P104: =+'INPUT DATA'!R37 -> 0 | Q104: =+'INPUT DATA'!S37 -> 0 | R104: =+'INPUT DATA'!T37 -> 0 | S104: =+'INPUT DATA'!U37 -> 0 | T104: =+'INPUT DATA'!V37 -> 0 | U104: =+'INPUT DATA'!W37 -> 0 | V104: =+'INPUT DATA'!X37 -> 0 | W104: =+'INPUT DATA'!Y37 -> 0 | X104: =+'INPUT DATA'!Z37 -> 0 | Y104: =+'INPUT DATA'!AA37 -> 0 | Z104: =+'INPUT DATA'!AB37 -> 0 | AA104: =+'INPUT DATA'!AC37 -> 0 | AB104: =+'INPUT DATA'!AD37 -> 0 | AC104: =+'INPUT DATA'!AE37 -> 0 | AD104: =+'INPUT DATA'!AF37 -> 0 | AE104: =+'INPUT DATA'!AG37 -> 0 | AF104: =+'INPUT DATA'!AH37 -> 0 | AG104: =+'INPUT DATA'!AI37 -> 0 | AH104: =+'INPUT DATA'!AJ37 -> 0 | AI104: =+'INPUT DATA'!AK37 -> 0 | AJ104: =+'INPUT DATA'!AL37 -> 0 | AK104: =+'INPUT DATA'!AM37 -> 0 | AL104: =+'INPUT DATA'!AN37 -> 0 | AM104: =+'INPUT DATA'!AO37 -> 0 | AN104: =+'INPUT DATA'!AP37 -> 0 | AO104: =+'INPUT DATA'!AQ37 -> 0 | AP104: =+'INPUT DATA'!AR37 -> 0 | AQ104: =+'INPUT DATA'!AS37 -> 0 | AR104: =+'INPUT DATA'!AT37 -> 0 | AS104: =+'INPUT DATA'!AU37 -> 0 | AT104: =+'INPUT DATA'!AV37 -> 0 | AU104: =+'INPUT DATA'!AW37 -> 0 | AV104: =+'INPUT DATA'!AX37 -> 0 | AW104: =+'INPUT DATA'!AY37 -> 0 | AX104: =+'INPUT DATA'!AZ37 -> 0 | AY104: =+'INPUT DATA'!BA37 -> 0
C105: Free Cash Flow To Equity | H105: =+H102+H103+H104 -> 8023.513193 | I105: 18828.52124 | J105: 6835.183212 | K105: 58702.98677 | L105: 14466.29063 | M105: 10601.41636 | N105: 9107.779664 | O105: 14224.12477 | P105: 12440.98343 | Q105: 15031.23955 | R105: 22523.23129 | S105: 67509.31308 | T105: 36309.14638 | U105: 70211.91348 | V105: 24044.6089 | W105: 18580.55637 | X105: 18729.17264 | Y105: 18230.29802 | Z105: 22417.78551 | AA105: 40249.13855 | AB105: 42081.40361 | AC105: 19702.95344 | AD105: 23288.13453 | AE105: 10900.64709 | AF105: 11110.88749 | AG105: 11367.98897 | AH105: 8720.68826 | AI105: 8214.81048 | AJ105: 8338.440202 | AK105: 3024.486442 | AL105: 610.7950984 | AM105: 630.9768018 | AN105: 651.3968049 | AO105: 672.6544934 | AP105: 113.5140168 | AQ105: 0 | AR105: 0 | AS105: 0 | AT105: 0 | AU105: 0 | AV105: 0 | AW105: 0 | AX105: 0 | AY105: 0
C106: Distributions to Shareholders | H106: =+'INPUT DATA'!J39 -> -8051.483818 | I106: =+'INPUT DATA'!K39 -> -19363.17028 | J106: =+'INPUT DATA'!L39 -> -7412.837501 | K106: =+'INPUT DATA'!M39 -> -52474.27714 | L106: =+'INPUT DATA'!N39 -> -13754.59432 | M106: =+'INPUT DATA'!O39 -> -15209.74355 | N106: =+'INPUT DATA'!P39 -> -14002.61582 | O106: =+'INPUT DATA'!Q39 -> -11012.38471 | P106: =+'INPUT DATA'!R39 -> -17429.41613 | Q106: =+'INPUT DATA'!S39 -> -15504.2182 | R106: =+'INPUT DATA'!T39 -> -23033.52211 | S106: =+'INPUT DATA'!U39 -> -67512.08656 | T106: =+'INPUT DATA'!V39 -> -27042.67668 | U106: =+'INPUT DATA'!W39 -> -36486.5736 | V106: =+'INPUT DATA'!X39 -> -41353.088 | W106: =+'INPUT DATA'!Y39 -> -46183.44299 | X106: =+'INPUT DATA'!Z39 -> -18729.17242 | Y106: =+'INPUT DATA'!AA39 -> -18230.90538 | Z106: =+'INPUT DATA'!AB39 -> -22417.78543 | AA106: =+'INPUT DATA'!AC39 -> -42249.13842 | AB106: =+'INPUT DATA'!AD39 -> -42361.59351 | AC106: =+'INPUT DATA'!AE39 -> -19702.95296 | AD106: =+'INPUT DATA'!AF39 -> -23288.13458 | AE106: =+'INPUT DATA'!AG39 -> -10900.64709 | AF106: =+'INPUT DATA'!AH39 -> -11110.88749 | AG106: =+'INPUT DATA'!AI39 -> -11367.98897 | AH106: =+'INPUT DATA'!AJ39 -> -3052.257664 | AI106: =+'INPUT DATA'!AK39 -> -7149.012248 | AJ106: =+'INPUT DATA'!AL39 -> -10493.02214 | AK106: =+'INPUT DATA'!AM39 -> -5553.362787 | AL106: =+'INPUT DATA'!AN39 -> -2936.548598 | AM106: =+'INPUT DATA'!AO39 -> -630.9768018 | AN106: =+'INPUT DATA'!AP39 -> -651.3968049 | AO106: =+'INPUT DATA'!AQ39 -> -672.6544934 | AP106: =+'INPUT DATA'!AR39 -> -113.5140168 | AQ106: =+'INPUT DATA'!AS39 -> 0 | AR106: =+'INPUT DATA'!AT39 -> 0 | AS106: =+'INPUT DATA'!AU39 -> 0 | AT106: =+'INPUT DATA'!AV39 -> 0 | AU106: =+'INPUT DATA'!AW39 -> 0 | AV106: =+'INPUT DATA'!AX39 -> 0 | AW106: =+'INPUT DATA'!AY39 -> 0 | AX106: =+'INPUT DATA'!AZ39 -> 0 | AY106: =+'INPUT DATA'!BA39 -> 0
C107: Equity | H107: =+'INPUT DATA'!J40 -> 0 | I107: =+'INPUT DATA'!K40 -> 0 | J107: =+'INPUT DATA'!L40 -> 0 | K107: =+'INPUT DATA'!M40 -> 0 | L107: =+'INPUT DATA'!N40 -> 0 | M107: =+'INPUT DATA'!O40 -> 0 | N107: =+'INPUT DATA'!P40 -> 0 | O107: =+'INPUT DATA'!Q40 -> 0 | P107: =+'INPUT DATA'!R40 -> 0 | Q107: =+'INPUT DATA'!S40 -> 0 | R107: =+'INPUT DATA'!T40 -> 0 | S107: =+'INPUT DATA'!U40 -> 0 | T107: =+'INPUT DATA'!V40 -> 0 | U107: =+'INPUT DATA'!W40 -> 0 | V107: =+'INPUT DATA'!X40 -> 0 | W107: =+'INPUT DATA'!Y40 -> 0 | X107: =+'INPUT DATA'!Z40 -> 0 | Y107: =+'INPUT DATA'!AA40 -> 0 | Z107: =+'INPUT DATA'!AB40 -> 0 | AA107: =+'INPUT DATA'!AC40 -> 0 | AB107: =+'INPUT DATA'!AD40 -> 0 | AC107: =+'INPUT DATA'!AE40 -> 0 | AD107: =+'INPUT DATA'!AF40 -> 0 | AE107: =+'INPUT DATA'!AG40 -> 0 | AF107: =+'INPUT DATA'!AH40 -> 0 | AG107: =+'INPUT DATA'!AI40 -> 0 | AH107: =+'INPUT DATA'!AJ40 -> 0 | AI107: =+'INPUT DATA'!AK40 -> 0 | AJ107: =+'INPUT DATA'!AL40 -> 0 | AK107: =+'INPUT DATA'!AM40 -> 0 | AL107: =+'INPUT DATA'!AN40 -> 0 | AM107: =+'INPUT DATA'!AO40 -> 0 | AN107: =+'INPUT DATA'!AP40 -> 0 | AO107: =+'INPUT DATA'!AQ40 -> 0 | AP107: =+'INPUT DATA'!AR40 -> 0 | AQ107: =+'INPUT DATA'!AS40 -> 0 | AR107: =+'INPUT DATA'!AT40 -> 0 | AS107: =+'INPUT DATA'!AU40 -> 0 | AT107: =+'INPUT DATA'!AV40 -> 0 | AU107: =+'INPUT DATA'!AW40 -> 0 | AV107: =+'INPUT DATA'!AX40 -> 0 | AW107: =+'INPUT DATA'!AY40 -> 0 | AX107: =+'INPUT DATA'!AZ40 -> 0 | AY107: =+'INPUT DATA'!BA40 -> 0
C108: Net Cash Flow | H108: =+H105+H106+H107 -> -27.97062517 | I108: -534.6490347 | J108: -577.6542888 | K108: 6228.709631 | L108: 711.6963027 | M108: -4608.327196 | N108: -4894.836152 | O108: 3211.740056 | P108: -4988.432698 | Q108: -472.9786533 | R108: -510.2908183 | S108: -2.773486746 | T108: 9266.4697 | U108: 33725.33988 | V108: -17308.4791 | W108: -27602.88662 | X108: 0.0002181504533 | Y108: -0.6073556845 | Z108: 8.123436419e-05 | AA108: -1999.999864 | AB108: -280.1899007 | AC108: 0.0004891090248 | AD108: -4.701591752e-05 | AE108: -3.637978807e-12 | AF108: 3.637978807e-12 | AG108: -1.091393642e-11 | AH108: 5668.430595 | AI108: 1065.798232 | AJ108: -2154.581939 | AK108: -2528.876345 | AL108: -2325.7535 | AM108: 0 | AN108: 1.136868377e-13 | AO108: 1.136868377e-13 | AP108: -1.136868377e-13 | AQ108: 0 | AR108: 0 | AS108: 0 | AT108: 0 | AU108: 0 | AV108: 0 | AW108: 0 | AX108: 0 | AY108: 0
C109: Cash EoP | G109: =+'INPUT DATA'!I42 -> 10943.35866 | H109: =+H108+G109 -> 10915.38803 | I109: 10380.739 | J109: 9803.084709 | K109: 16031.79434 | L109: 16743.49064 | M109: 12135.16345 | N109: 7240.327294 | O109: 10452.06735 | P109: 5463.634652 | Q109: 4990.655999 | R109: 4480.365181 | S109: 4477.591694 | T109: 13744.06139 | U109: 47469.40128 | V109: 30160.92218 | W109: 2558.035563 | X109: 2558.035781 | Y109: 2557.428425 | Z109: 2557.428506 | AA109: 557.4286428 | AB109: 277.238742 | AC109: 277.2392311 | AD109: 277.2391841 | AE109: 277.2391841 | AF109: 277.2391841 | AG109: 277.2391841 | AH109: 5945.66978 | AI109: 7011.468012 | AJ109: 4856.886073 | AK109: 2328.009728 | AL109: 2.256228439 | AM109: 2.256228439 | AN109: 2.256228439 | AO109: 2.256228439 | AP109: 2.256228439 | AQ109: 2.256228439 | AR109: 2.256228439 | AS109: 2.256228439 | AT109: 2.256228439 | AU109: 2.256228439 | AV109: 2.256228439 | AW109: 2.256228439 | AX109: 2.256228439 | AY109: 2.256228439
A114: 1 | C114: Colombia
C116: =+"Cash Flow "&C114&" - [000' EUR]" -> Cash Flow Colombia - [000' EUR]
C117: Year | G117: 2021 | H117: =+H$12 -> 2022 | I117: 2023 | J117: 2024 | K117: 2025 | L117: 2026 | M117: 2027 | N117: 2028 | O117: 2029 | P117: 2030 | Q117: 2031 | R117: 2032 | S117: 2033 | T117: 2034 | U117: 2035 | V117: 2036 | W117: 2037 | X117: 2038 | Y117: 2039 | Z117: 2040 | AA117: 2041 | AB117: 2042 | AC117: 2043 | AD117: 2044 | AE117: 2045 | AF117: 2046 | AG117: 2047 | AH117: 2048 | AI117: 2049 | AJ117: 2050 | AK117: 2051 | AL117: 2052 | AM117: 2053 | AN117: 2054 | AO117: 2055 | AP117: 2056 | AQ117: 2057 | AR117: 2058 | AS117: 2059 | AT117: 2060 | AU117: 2061 | AV117: 2062 | AW117: 2063 | AX117: 2064 | AY117: 2065
C118: Income | H118: =+H119+H120+H121 -> 221897.5513 | I118: 271468.9406 | J118: 239118.5355 | K118: 261034.7626 | L118: 241315.9093 | M118: 254418.9858 | N118: 323687.376 | O118: 295898.4976 | P118: 288689.7613 | Q118: 271027.8891 | R118: 273216.2966 | S118: 376236.5043 | T118: 351791.4917 | U118: 345483.6965 | V118: 327644.8479 | W118: 374865.8222 | X118: 296833.0536 | Y118: 324398.7344 | Z118: 302444.8613 | AA118: 283562.2274 | AB118: 126850.3357 | AC118: 132515.0116 | AD118: 257350.2924 | AE118: 103128.9476 | AF118: 0 | AG118: 0 | AH118: 0 | AI118: 0 | AJ118: 0 | AK118: 0 | AL118: 0 | AM118: 0 | AN118: 0 | AO118: 0 | AP118: 0 | AQ118: 0 | AR118: 0 | AS118: 0 | AT118: 0 | AU118: 0 | AV118: 0 | AW118: 0 | AX118: 0 | AY118: 0
C119: Income with mitigated demand risk | H119: =+'INPUT DATA'!J52 -> 221897.5513 | I119: =+'INPUT DATA'!K52 -> 271468.9406 | J119: =+'INPUT DATA'!L52 -> 239118.5355 | K119: =+'INPUT DATA'!M52 -> 261034.7626 | L119: =+'INPUT DATA'!N52 -> 241315.9093 | M119: =+'INPUT DATA'!O52 -> 254418.9858 | N119: =+'INPUT DATA'!P52 -> 323687.376 | O119: =+'INPUT DATA'!Q52 -> 295898.4976 | P119: =+'INPUT DATA'!R52 -> 288689.7613 | Q119: =+'INPUT DATA'!S52 -> 271027.8891 | R119: =+'INPUT DATA'!T52 -> 273216.2966 | S119: =+'INPUT DATA'!U52 -> 376236.5043 | T119: =+'INPUT DATA'!V52 -> 351791.4917 | U119: =+'INPUT DATA'!W52 -> 345483.6965 | V119: =+'INPUT DATA'!X52 -> 327644.8479 | W119: =+'INPUT DATA'!Y52 -> 374865.8222 | X119: =+'INPUT DATA'!Z52 -> 296833.0536 | Y119: =+'INPUT DATA'!AA52 -> 324398.7344 | Z119: =+'INPUT DATA'!AB52 -> 302444.8613 | AA119: =+'INPUT DATA'!AC52 -> 283562.2274 | AB119: =+'INPUT DATA'!AD52 -> 126850.3357 | AC119: =+'INPUT DATA'!AE52 -> 132515.0116 | AD119: =+'INPUT DATA'!AF52 -> 257350.2924 | AE119: =+'INPUT DATA'!AG52 -> 103128.9476 | AF119: =+'INPUT DATA'!AH52 -> 0 | AG119: =+'INPUT DATA'!AI52 -> 0 | AH119: =+'INPUT DATA'!AJ52 -> 0 | AI119: =+'INPUT DATA'!AK52 -> 0 | AJ119: =+'INPUT DATA'!AL52 -> 0 | AK119: =+'INPUT DATA'!AM52 -> 0 | AL119: =+'INPUT DATA'!AN52 -> 0 | AM119: =+'INPUT DATA'!AO52 -> 0 | AN119: =+'INPUT DATA'!AP52 -> 0 | AO119: =+'INPUT DATA'!AQ52 -> 0 | AP119: =+'INPUT DATA'!AR52 -> 0 | AQ119: =+'INPUT DATA'!AS52 -> 0 | AR119: =+'INPUT DATA'!AT52 -> 0 | AS119: =+'INPUT DATA'!AU52 -> 0 | AT119: =+'INPUT DATA'!AV52 -> 0 | AU119: =+'INPUT DATA'!AW52 -> 0 | AV119: =+'INPUT DATA'!AX52 -> 0 | AW119: =+'INPUT DATA'!AY52 -> 0 | AX119: =+'INPUT DATA'!AZ52 -> 0 | AY119: =+'INPUT DATA'!BA52 -> 0
C120: Income with low demand risk | H120: =+'INPUT DATA'!J53 -> 0 | I120: =+'INPUT DATA'!K53 -> 0 | J120: =+'INPUT DATA'!L53 -> 0 | K120: =+'INPUT DATA'!M53 -> 0 | L120: =+'INPUT DATA'!N53 -> 0 | M120: =+'INPUT DATA'!O53 -> 0 | N120: =+'INPUT DATA'!P53 -> 0 | O120: =+'INPUT DATA'!Q53 -> 0 | P120: =+'INPUT DATA'!R53 -> 0 | Q120: =+'INPUT DATA'!S53 -> 0 | R120: =+'INPUT DATA'!T53 -> 0 | S120: =+'INPUT DATA'!U53 -> 0 | T120: =+'INPUT DATA'!V53 -> 0 | U120: =+'INPUT DATA'!W53 -> 0 | V120: =+'INPUT DATA'!X53 -> 0 | W120: =+'INPUT DATA'!Y53 -> 0 | X120: =+'INPUT DATA'!Z53 -> 0 | Y120: =+'INPUT DATA'!AA53 -> 0 | Z120: =+'INPUT DATA'!AB53 -> 0 | AA120: =+'INPUT DATA'!AC53 -> 0 | AB120: =+'INPUT DATA'!AD53 -> 0 | AC120: =+'INPUT DATA'!AE53 -> 0 | AD120: =+'INPUT DATA'!AF53 -> 0 | AE120: =+'INPUT DATA'!AG53 -> 0 | AF120: =+'INPUT DATA'!AH53 -> 0 | AG120: =+'INPUT DATA'!AI53 -> 0 | AH120: =+'INPUT DATA'!AJ53 -> 0 | AI120: =+'INPUT DATA'!AK53 -> 0 | AJ120: =+'INPUT DATA'!AL53 -> 0 | AK120: =+'INPUT DATA'!AM53 -> 0 | AL120: =+'INPUT DATA'!AN53 -> 0 | AM120: =+'INPUT DATA'!AO53 -> 0 | AN120: =+'INPUT DATA'!AP53 -> 0 | AO120: =+'INPUT DATA'!AQ53 -> 0 | AP120: =+'INPUT DATA'!AR53 -> 0 | AQ120: =+'INPUT DATA'!AS53 -> 0 | AR120: =+'INPUT DATA'!AT53 -> 0 | AS120: =+'INPUT DATA'!AU53 -> 0 | AT120: =+'INPUT DATA'!AV53 -> 0 | AU120: =+'INPUT DATA'!AW53 -> 0 | AV120: =+'INPUT DATA'!AX53 -> 0 | AW120: =+'INPUT DATA'!AY53 -> 0 | AX120: =+'INPUT DATA'!AZ53 -> 0 | AY120: =+'INPUT DATA'!BA53 -> 0
C121: Income with demand risk | H121: =+'INPUT DATA'!J54 -> 0 | I121: =+'INPUT DATA'!K54 -> 0 | J121: =+'INPUT DATA'!L54 -> 0 | K121: =+'INPUT DATA'!M54 -> 0 | L121: =+'INPUT DATA'!N54 -> 0 | M121: =+'INPUT DATA'!O54 -> 0 | N121: =+'INPUT DATA'!P54 -> 0 | O121: =+'INPUT DATA'!Q54 -> 0 | P121: =+'INPUT DATA'!R54 -> 0 | Q121: =+'INPUT DATA'!S54 -> 0 | R121: =+'INPUT DATA'!T54 -> 0 | S121: =+'INPUT DATA'!U54 -> 0 | T121: =+'INPUT DATA'!V54 -> 0 | U121: =+'INPUT DATA'!W54 -> 0 | V121: =+'INPUT DATA'!X54 -> 0 | W121: =+'INPUT DATA'!Y54 -> 0 | X121: =+'INPUT DATA'!Z54 -> 0 | Y121: =+'INPUT DATA'!AA54 -> 0 | Z121: =+'INPUT DATA'!AB54 -> 0 | AA121: =+'INPUT DATA'!AC54 -> 0 | AB121: =+'INPUT DATA'!AD54 -> 0 | AC121: =+'INPUT DATA'!AE54 -> 0 | AD121: =+'INPUT DATA'!AF54 -> 0 | AE121: =+'INPUT DATA'!AG54 -> 0 | AF121: =+'INPUT DATA'!AH54 -> 0 | AG121: =+'INPUT DATA'!AI54 -> 0 | AH121: =+'INPUT DATA'!AJ54 -> 0 | AI121: =+'INPUT DATA'!AK54 -> 0 | AJ121: =+'INPUT DATA'!AL54 -> 0 | AK121: =+'INPUT DATA'!AM54 -> 0 | AL121: =+'INPUT DATA'!AN54 -> 0 | AM121: =+'INPUT DATA'!AO54 -> 0 | AN121: =+'INPUT DATA'!AP54 -> 0 | AO121: =+'INPUT DATA'!AQ54 -> 0 | AP121: =+'INPUT DATA'!AR54 -> 0 | AQ121: =+'INPUT DATA'!AS54 -> 0 | AR121: =+'INPUT DATA'!AT54 -> 0 | AS121: =+'INPUT DATA'!AU54 -> 0 | AT121: =+'INPUT DATA'!AV54 -> 0 | AU121: =+'INPUT DATA'!AW54 -> 0 | AV121: =+'INPUT DATA'!AX54 -> 0 | AW121: =+'INPUT DATA'!AY54 -> 0 | AX121: =+'INPUT DATA'!AZ54 -> 0 | AY121: =+'INPUT DATA'!BA54 -> 0
C122: Operating Costs | H122: =+'INPUT DATA'!J55 -> -38273.26743 | I122: =+'INPUT DATA'!K55 -> -25762.41482 | J122: =+'INPUT DATA'!L55 -> -25986.34537 | K122: =+'INPUT DATA'!M55 -> -26701.78221 | L122: =+'INPUT DATA'!N55 -> -27192.10264 | M122: =+'INPUT DATA'!O55 -> -27864.93414 | N122: =+'INPUT DATA'!P55 -> -31385.11493 | O122: =+'INPUT DATA'!Q55 -> -30794.67169 | P122: =+'INPUT DATA'!R55 -> -32256.90689 | Q122: =+'INPUT DATA'!S55 -> -35881.44845 | R122: =+'INPUT DATA'!T55 -> -36914.86185 | S122: =+'INPUT DATA'!U55 -> -38163.2078 | T122: =+'INPUT DATA'!V55 -> -39490.13508 | U122: =+'INPUT DATA'!W55 -> -38993.365 | V122: =+'INPUT DATA'!X55 -> -43385.75363 | W122: =+'INPUT DATA'!Y55 -> -44008.23321 | X122: =+'INPUT DATA'!Z55 -> -44372.09625 | Y122: =+'INPUT DATA'!AA55 -> -44047.34989 | Z122: =+'INPUT DATA'!AB55 -> -47644.90779 | AA122: =+'INPUT DATA'!AC55 -> -39592.01499 | AB122: =+'INPUT DATA'!AD55 -> -38430.89079 | AC122: =+'INPUT DATA'!AE55 -> -38355.62621 | AD122: =+'INPUT DATA'!AF55 -> -32962.58926 | AE122: =+'INPUT DATA'!AG55 -> -8269.21859 | AF122: =+'INPUT DATA'!AH55 -> -86.61120677 | AG122: =+'INPUT DATA'!AI55 -> 0 | AH122: =+'INPUT DATA'!AJ55 -> 0 | AI122: =+'INPUT DATA'!AK55 -> 0 | AJ122: =+'INPUT DATA'!AL55 -> 0 | AK122: =+'INPUT DATA'!AM55 -> 0 | AL122: =+'INPUT DATA'!AN55 -> 0 | AM122: =+'INPUT DATA'!AO55 -> 0 | AN122: =+'INPUT DATA'!AP55 -> 0 | AO122: =+'INPUT DATA'!AQ55 -> 0 | AP122: =+'INPUT DATA'!AR55 -> 0 | AQ122: =+'INPUT DATA'!AS55 -> 0 | AR122: =+'INPUT DATA'!AT55 -> 0 | AS122: =+'INPUT DATA'!AU55 -> 0 | AT122: =+'INPUT DATA'!AV55 -> 0 | AU122: =+'INPUT DATA'!AW55 -> 0 | AV122: =+'INPUT DATA'!AX55 -> 0 | AW122: =+'INPUT DATA'!AY55 -> 0 | AX122: =+'INPUT DATA'!AZ55 -> 0 | AY122: =+'INPUT DATA'!BA55 -> 0
C123: Investment & Capex | H123: =+'INPUT DATA'!J56 -> -175503.693 | I123: =+'INPUT DATA'!K56 -> -13890.14509 | J123: =+'INPUT DATA'!L56 -> 7409.923966 | K123: =+'INPUT DATA'!M56 -> -7267.424189 | L123: =+'INPUT DATA'!N56 -> -7437.404009 | M123: =+'INPUT DATA'!O56 -> -13833.82099 | N123: =+'INPUT DATA'!P56 -> -7443.058496 | O123: =+'INPUT DATA'!Q56 -> -28720.8296 | P123: =+'INPUT DATA'!R56 -> -9837.631094 | Q123: =+'INPUT DATA'!S56 -> -17902.5061 | R123: =+'INPUT DATA'!T56 -> -3023.249103 | S123: =+'INPUT DATA'!U56 -> -6005.078328 | T123: =+'INPUT DATA'!V56 -> -17384.81097 | U123: =+'INPUT DATA'!W56 -> -2960.720014 | V123: =+'INPUT DATA'!X56 -> -19735.67069 | W123: =+'INPUT DATA'!Y56 -> -18418.52403 | X123: =+'INPUT DATA'!Z56 -> -13573.6714 | Y123: =+'INPUT DATA'!AA56 -> -12537.38413 | Z123: =+'INPUT DATA'!AB56 -> 7887.613269 | AA123: =+'INPUT DATA'!AC56 -> -14449.49948 | AB123: =+'INPUT DATA'!AD56 -> -7681.113107 | AC123: =+'INPUT DATA'!AE56 -> -6468.77691 | AD123: =+'INPUT DATA'!AF56 -> -3393.730706 | AE123: =+'INPUT DATA'!AG56 -> -3950.802581 | AF123: =+'INPUT DATA'!AH56 -> 0 | AG123: =+'INPUT DATA'!AI56 -> 0 | AH123: =+'INPUT DATA'!AJ56 -> 0 | AI123: =+'INPUT DATA'!AK56 -> 0 | AJ123: =+'INPUT DATA'!AL56 -> 0 | AK123: =+'INPUT DATA'!AM56 -> 0 | AL123: =+'INPUT DATA'!AN56 -> 0 | AM123: =+'INPUT DATA'!AO56 -> 0 | AN123: =+'INPUT DATA'!AP56 -> 0 | AO123: =+'INPUT DATA'!AQ56 -> 0 | AP123: =+'INPUT DATA'!AR56 -> 0 | AQ123: =+'INPUT DATA'!AS56 -> 0 | AR123: =+'INPUT DATA'!AT56 -> 0 | AS123: =+'INPUT DATA'!AU56 -> 0 | AT123: =+'INPUT DATA'!AV56 -> 0 | AU123: =+'INPUT DATA'!AW56 -> 0 | AV123: =+'INPUT DATA'!AX56 -> 0 | AW123: =+'INPUT DATA'!AY56 -> 0 | AX123: =+'INPUT DATA'!AZ56 -> 0 | AY123: =+'INPUT DATA'!BA56 -> 0
C124: Into / Out Operating Reserve Accounts | H124: =+'INPUT DATA'!J57 -> 0 | I124: =+'INPUT DATA'!K57 -> 0 | J124: =+'INPUT DATA'!L57 -> 0 | K124: =+'INPUT DATA'!M57 -> 0 | L124: =+'INPUT DATA'!N57 -> 0 | M124: =+'INPUT DATA'!O57 -> 0 | N124: =+'INPUT DATA'!P57 -> 0 | O124: =+'INPUT DATA'!Q57 -> 0 | P124: =+'INPUT DATA'!R57 -> 0 | Q124: =+'INPUT DATA'!S57 -> 0 | R124: =+'INPUT DATA'!T57 -> 0 | S124: =+'INPUT DATA'!U57 -> 0 | T124: =+'INPUT DATA'!V57 -> 0 | U124: =+'INPUT DATA'!W57 -> 0 | V124: =+'INPUT DATA'!X57 -> 0 | W124: =+'INPUT DATA'!Y57 -> 0 | X124: =+'INPUT DATA'!Z57 -> 0 | Y124: =+'INPUT DATA'!AA57 -> 0 | Z124: =+'INPUT DATA'!AB57 -> 0 | AA124: =+'INPUT DATA'!AC57 -> 0 | AB124: =+'INPUT DATA'!AD57 -> 0 | AC124: =+'INPUT DATA'!AE57 -> 0 | AD124: =+'INPUT DATA'!AF57 -> 0 | AE124: =+'INPUT DATA'!AG57 -> 0 | AF124: =+'INPUT DATA'!AH57 -> 0 | AG124: =+'INPUT DATA'!AI57 -> 0 | AH124: =+'INPUT DATA'!AJ57 -> 0 | AI124: =+'INPUT DATA'!AK57 -> 0 | AJ124: =+'INPUT DATA'!AL57 -> 0 | AK124: =+'INPUT DATA'!AM57 -> 0 | AL124: =+'INPUT DATA'!AN57 -> 0 | AM124: =+'INPUT DATA'!AO57 -> 0 | AN124: =+'INPUT DATA'!AP57 -> 0 | AO124: =+'INPUT DATA'!AQ57 -> 0 | AP124: =+'INPUT DATA'!AR57 -> 0 | AQ124: =+'INPUT DATA'!AS57 -> 0 | AR124: =+'INPUT DATA'!AT57 -> 0 | AS124: =+'INPUT DATA'!AU57 -> 0 | AT124: =+'INPUT DATA'!AV57 -> 0 | AU124: =+'INPUT DATA'!AW57 -> 0 | AV124: =+'INPUT DATA'!AX57 -> 0 | AW124: =+'INPUT DATA'!AY57 -> 0 | AX124: =+'INPUT DATA'!AZ57 -> 0 | AY124: =+'INPUT DATA'!BA57 -> 0
C125: Operating Cash Flow | H125: =+H118+H122+H123+H124 -> 8120.590903 | I125: 231816.3807 | J125: 220542.1141 | K125: 227065.5562 | L125: 206686.4027 | M125: 212720.2306 | N125: 284859.2026 | O125: 236382.9964 | P125: 246595.2233 | Q125: 217243.9345 | R125: 233278.1856 | S125: 332068.2181 | T125: 294916.5457 | U125: 303529.6115 | V125: 264523.4236 | W125: 312439.0649 | X125: 238887.286 | Y125: 267814.0004 | Z125: 262687.5668 | AA125: 229520.713 | AB125: 80738.33179 | AC125: 87690.60849 | AD125: 220993.9724 | AE125: 90908.92641 | AF125: -86.61120677 | AG125: 0 | AH125: 0 | AI125: 0 | AJ125: 0 | AK125: 0 | AL125: 0 | AM125: 0 | AN125: 0 | AO125: 0 | AP125: 0 | AQ125: 0 | AR125: 0 | AS125: 0 | AT125: 0 | AU125: 0 | AV125: 0 | AW125: 0 | AX125: 0 | AY125: 0
C126: Taxes | H126: =+'INPUT DATA'!J59 -> -439.6628935 | I126: =+'INPUT DATA'!K59 -> -642.7193445 | J126: =+'INPUT DATA'!L59 -> -680.6380522 | K126: =+'INPUT DATA'!M59 -> -776.7086022 | L126: =+'INPUT DATA'!N59 -> -1027.186631 | M126: =+'INPUT DATA'!O59 -> -1558.880307 | N126: =+'INPUT DATA'!P59 -> -2204.045339 | O126: =+'INPUT DATA'!Q59 -> -2235.519277 | P126: =+'INPUT DATA'!R59 -> -2497.084553 | Q126: =+'INPUT DATA'!S59 -> -2640.910325 | R126: =+'INPUT DATA'!T59 -> -39910.78844 | S126: =+'INPUT DATA'!U59 -> -11470.2633 | T126: =+'INPUT DATA'!V59 -> -17526.46197 | U126: =+'INPUT DATA'!W59 -> -47120.06959 | V126: =+'INPUT DATA'!X59 -> -59882.11352 | W126: =+'INPUT DATA'!Y59 -> -57354.18457 | X126: =+'INPUT DATA'!Z59 -> -52485.99667 | Y126: =+'INPUT DATA'!AA59 -> -57836.9233 | Z126: =+'INPUT DATA'!AB59 -> -49676.33073 | AA126: =+'INPUT DATA'!AC59 -> -53081.18619 | AB126: =+'INPUT DATA'!AD59 -> -37987.11121 | AC126: =+'INPUT DATA'!AE59 -> -14842.48712 | AD126: =+'INPUT DATA'!AF59 -> -48705.63363 | AE126: =+'INPUT DATA'!AG59 -> -26680.0801 | AF126: =+'INPUT DATA'!AH59 -> 86.61119946 | AG126: =+'INPUT DATA'!AI59 -> 0 | AH126: =+'INPUT DATA'!AJ59 -> 0 | AI126: =+'INPUT DATA'!AK59 -> 0 | AJ126: =+'INPUT DATA'!AL59 -> 0 | AK126: =+'INPUT DATA'!AM59 -> 0 | AL126: =+'INPUT DATA'!AN59 -> 0 | AM126: =+'INPUT DATA'!AO59 -> 0 | AN126: =+'INPUT DATA'!AP59 -> 0 | AO126: =+'INPUT DATA'!AQ59 -> 0 | AP126: =+'INPUT DATA'!AR59 -> 0 | AQ126: =+'INPUT DATA'!AS59 -> 0 | AR126: =+'INPUT DATA'!AT59 -> 0 | AS126: =+'INPUT DATA'!AU59 -> 0 | AT126: =+'INPUT DATA'!AV59 -> 0 | AU126: =+'INPUT DATA'!AW59 -> 0 | AV126: =+'INPUT DATA'!AX59 -> 0 | AW126: =+'INPUT DATA'!AY59 -> 0 | AX126: =+'INPUT DATA'!AZ59 -> 0 | AY126: =+'INPUT DATA'!BA59 -> 0
C127: Operating Cash Flow After Tax | H127: =+H125+H126 -> 7680.928009 | I127: 231173.6614 | J127: 219861.476 | K127: 226288.8476 | L127: 205659.216 | M127: 211161.3503 | N127: 282655.1572 | O127: 234147.4771 | P127: 244098.1388 | Q127: 214603.0242 | R127: 193367.3972 | S127: 320597.9548 | T127: 277390.0837 | U127: 256409.5419 | V127: 204641.3101 | W127: 255084.8804 | X127: 186401.2893 | Y127: 209977.0771 | Z127: 213011.2361 | AA127: 176439.5268 | AB127: 42751.22058 | AC127: 72848.12137 | AD127: 172288.3388 | AE127: 64228.84631 | AF127: -7.312279351e-06 | AG127: 0 | AH127: 0 | AI127: 0 | AJ127: 0 | AK127: 0 | AL127: 0 | AM127: 0 | AN127: 0 | AO127: 0 | AP127: 0 | AQ127: 0 | AR127: 0 | AS127: 0 | AT127: 0 | AU127: 0 | AV127: 0 | AW127: 0 | AX127: 0 | AY127: 0
C128: Debt Service | H128: =+'INPUT DATA'!J61 -> 46313.56867 | I128: =+'INPUT DATA'!K61 -> -169671.1502 | J128: =+'INPUT DATA'!L61 -> -228128.2018 | K128: =+'INPUT DATA'!M61 -> -113712.3617 | L128: =+'INPUT DATA'!N61 -> -159739.3404 | M128: =+'INPUT DATA'!O61 -> -181570.0542 | N128: =+'INPUT DATA'!P61 -> -196625.4178 | O128: =+'INPUT DATA'!Q61 -> -198605.7659 | P128: =+'INPUT DATA'!R61 -> -163484.4184 | Q128: =+'INPUT DATA'!S61 -> -180692.0906 | R128: =+'INPUT DATA'!T61 -> -164508.014 | S128: =+'INPUT DATA'!U61 -> -252706.742 | T128: =+'INPUT DATA'!V61 -> -239448.0184 | U128: =+'INPUT DATA'!W61 -> -154540.5666 | V128: =+'INPUT DATA'!X61 -> -208140.9845 | W128: =+'INPUT DATA'!Y61 -> -183833.528 | X128: =+'INPUT DATA'!Z61 -> -119270.7744 | Y128: =+'INPUT DATA'!AA61 -> -117790.1735 | Z128: =+'INPUT DATA'!AB61 -> -13248.08362 | AA128: =+'INPUT DATA'!AC61 -> -2.008193276e-11 | AB128: =+'INPUT DATA'!AD61 -> -2.113376366e-11 | AC128: =+'INPUT DATA'!AE61 -> -2.224046323e-11 | AD128: =+'INPUT DATA'!AF61 -> -2.335020345e-11 | AE128: =+'INPUT DATA'!AG61 -> -2.340330845e-11 | AF128: =+'INPUT DATA'!AH61 -> -2.473292563e-11 | AG128: =+'INPUT DATA'!AI61 -> 0 | AH128: =+'INPUT DATA'!AJ61 -> 0 | AI128: =+'INPUT DATA'!AK61 -> 0 | AJ128: =+'INPUT DATA'!AL61 -> 0 | AK128: =+'INPUT DATA'!AM61 -> 0 | AL128: =+'INPUT DATA'!AN61 -> 0 | AM128: =+'INPUT DATA'!AO61 -> 0 | AN128: =+'INPUT DATA'!AP61 -> 0 | AO128: =+'INPUT DATA'!AQ61 -> 0 | AP128: =+'INPUT DATA'!AR61 -> 0 | AQ128: =+'INPUT DATA'!AS61 -> 0 | AR128: =+'INPUT DATA'!AT61 -> 0 | AS128: =+'INPUT DATA'!AU61 -> 0 | AT128: =+'INPUT DATA'!AV61 -> 0 | AU128: =+'INPUT DATA'!AW61 -> 0 | AV128: =+'INPUT DATA'!AX61 -> 0 | AW128: =+'INPUT DATA'!AY61 -> 0 | AX128: =+'INPUT DATA'!AZ61 -> 0 | AY128: =+'INPUT DATA'!BA61 -> 0
C129: Interest income | H129: =+'INPUT DATA'!J62 -> 569.59765 | I129: =+'INPUT DATA'!K62 -> 573.8126034 | J129: =+'INPUT DATA'!L62 -> 2239.04879 | K129: =+'INPUT DATA'!M62 -> 722.0404582 | L129: =+'INPUT DATA'!N62 -> 628.874506 | M129: =+'INPUT DATA'!O62 -> 708.6628335 | N129: =+'INPUT DATA'!P62 -> 699.5254646 | O129: =+'INPUT DATA'!Q62 -> 715.8609989 | P129: =+'INPUT DATA'!R62 -> 635.9691954 | Q129: =+'INPUT DATA'!S62 -> 628.2603986 | R129: =+'INPUT DATA'!T62 -> 807.9412055 | S129: =+'INPUT DATA'!U62 -> 895.3344826 | T129: =+'INPUT DATA'!V62 -> 1114.841413 | U129: =+'INPUT DATA'!W62 -> 1131.32877 | V129: =+'INPUT DATA'!X62 -> 1182.940559 | W129: =+'INPUT DATA'!Y62 -> 1324.976989 | X129: =+'INPUT DATA'!Z62 -> 1337.40565 | Y129: =+'INPUT DATA'!AA62 -> 1294.984294 | Z129: =+'INPUT DATA'!AB62 -> 476.4085935 | AA129: =+'INPUT DATA'!AC62 -> 0 | AB129: =+'INPUT DATA'!AD62 -> 0 | AC129: =+'INPUT DATA'!AE62 -> 0 | AD129: =+'INPUT DATA'!AF62 -> 0 | AE129: =+'INPUT DATA'!AG62 -> 0 | AF129: =+'INPUT DATA'!AH62 -> 0 | AG129: =+'INPUT DATA'!AI62 -> 0 | AH129: =+'INPUT DATA'!AJ62 -> 0 | AI129: =+'INPUT DATA'!AK62 -> 0 | AJ129: =+'INPUT DATA'!AL62 -> 0 | AK129: =+'INPUT DATA'!AM62 -> 0 | AL129: =+'INPUT DATA'!AN62 -> 0 | AM129: =+'INPUT DATA'!AO62 -> 0 | AN129: =+'INPUT DATA'!AP62 -> 0 | AO129: =+'INPUT DATA'!AQ62 -> 0 | AP129: =+'INPUT DATA'!AR62 -> 0 | AQ129: =+'INPUT DATA'!AS62 -> 0 | AR129: =+'INPUT DATA'!AT62 -> 0 | AS129: =+'INPUT DATA'!AU62 -> 0 | AT129: =+'INPUT DATA'!AV62 -> 0 | AU129: =+'INPUT DATA'!AW62 -> 0 | AV129: =+'INPUT DATA'!AX62 -> 0 | AW129: =+'INPUT DATA'!AY62 -> 0 | AX129: =+'INPUT DATA'!AZ62 -> 0 | AY129: =+'INPUT DATA'!BA62 -> 0
C130: Free Cash Flow To Equity | H130: =+H127+H128+H129 -> 54564.09433 | I130: 62076.32375 | J130: -6027.676994 | K130: 113298.5263 | L130: 46548.75014 | M130: 30299.95899 | N130: 86729.26488 | O130: 36257.57218 | P130: 81249.68959 | Q130: 34539.19403 | R130: 29667.32434 | S130: 68786.54732 | T130: 39056.9067 | U130: 103000.3041 | V130: -2316.733863 | W130: 72576.3294 | X130: 68467.92052 | Y130: 93481.88782 | Z130: 200239.561 | AA130: 176439.5268 | AB130: 42751.22058 | AC130: 72848.12137 | AD130: 172288.3388 | AE130: 64228.84631 | AF130: -7.312304084e-06 | AG130: 0 | AH130: 0 | AI130: 0 | AJ130: 0 | AK130: 0 | AL130: 0 | AM130: 0 | AN130: 0 | AO130: 0 | AP130: 0 | AQ130: 0 | AR130: 0 | AS130: 0 | AT130: 0 | AU130: 0 | AV130: 0 | AW130: 0 | AX130: 0 | AY130: 0
C131: Distributions to Shareholders | H131: =+'INPUT DATA'!J64 -> -72910.18592 | I131: =+'INPUT DATA'!K64 -> -46450.31921 | J131: =+'INPUT DATA'!L64 -> -21460.50029 | K131: =+'INPUT DATA'!M64 -> -96685.54336 | L131: =+'INPUT DATA'!N64 -> -62034.04176 | M131: =+'INPUT DATA'!O64 -> -31088.99028 | N131: =+'INPUT DATA'!P64 -> -82899.26513 | O131: =+'INPUT DATA'!Q64 -> -41814.98419 | P131: =+'INPUT DATA'!R64 -> -50854.51857 | Q131: =+'INPUT DATA'!S64 -> -53839.18011 | R131: =+'INPUT DATA'!T64 -> -29477.9008 | S131: =+'INPUT DATA'!U64 -> -65419.45778 | T131: =+'INPUT DATA'!V64 -> -41856.46919 | U131: =+'INPUT DATA'!W64 -> -70794.90337 | V131: =+'INPUT DATA'!X64 -> -33308.02476 | W131: =+'INPUT DATA'!Y64 -> -61177.47956 | X131: =+'INPUT DATA'!Z64 -> -58525.91145 | Y131: =+'INPUT DATA'!AA64 -> -106984.2315 | Z131: =+'INPUT DATA'!AB64 -> -205271.2033 | AA131: =+'INPUT DATA'!AC64 -> -134750.516 | AB131: =+'INPUT DATA'!AD64 -> -62946.4954 | AC131: =+'INPUT DATA'!AE64 -> -92863.75608 | AD131: =+'INPUT DATA'!AF64 -> -120206.6418 | AE131: =+'INPUT DATA'!AG64 -> -136408.8599 | AF131: =+'INPUT DATA'!AH64 -> 0 | AG131: =+'INPUT DATA'!AI64 -> 0 | AH131: =+'INPUT DATA'!AJ64 -> 0 | AI131: =+'INPUT DATA'!AK64 -> 0 | AJ131: =+'INPUT DATA'!AL64 -> 0 | AK131: =+'INPUT DATA'!AM64 -> 0 | AL131: =+'INPUT DATA'!AN64 -> 0 | AM131: =+'INPUT DATA'!AO64 -> 0 | AN131: =+'INPUT DATA'!AP64 -> 0 | AO131: =+'INPUT DATA'!AQ64 -> 0 | AP131: =+'INPUT DATA'!AR64 -> 0 | AQ131: =+'INPUT DATA'!AS64 -> 0 | AR131: =+'INPUT DATA'!AT64 -> 0 | AS131: =+'INPUT DATA'!AU64 -> 0 | AT131: =+'INPUT DATA'!AV64 -> 0 | AU131: =+'INPUT DATA'!AW64 -> 0 | AV131: =+'INPUT DATA'!AX64 -> 0 | AW131: =+'INPUT DATA'!AY64 -> 0 | AX131: =+'INPUT DATA'!AZ64 -> 0 | AY131: =+'INPUT DATA'!BA64 -> 0
C132: Equity | H132: =+'INPUT DATA'!J65 -> 24682.61421 | I132: =+'INPUT DATA'!K65 -> 3008.622515 | J132: =+'INPUT DATA'!L65 -> 0 | K132: =+'INPUT DATA'!M65 -> 0 | L132: =+'INPUT DATA'!N65 -> 0 | M132: =+'INPUT DATA'!O65 -> 0 | N132: =+'INPUT DATA'!P65 -> 0 | O132: =+'INPUT DATA'!Q65 -> 0 | P132: =+'INPUT DATA'!R65 -> 0 | Q132: =+'INPUT DATA'!S65 -> 0 | R132: =+'INPUT DATA'!T65 -> 0 | S132: =+'INPUT DATA'!U65 -> 0 | T132: =+'INPUT DATA'!V65 -> 0 | U132: =+'INPUT DATA'!W65 -> 0 | V132: =+'INPUT DATA'!X65 -> 0 | W132: =+'INPUT DATA'!Y65 -> 0 | X132: =+'INPUT DATA'!Z65 -> 0 | Y132: =+'INPUT DATA'!AA65 -> 0 | Z132: =+'INPUT DATA'!AB65 -> 0 | AA132: =+'INPUT DATA'!AC65 -> 0 | AB132: =+'INPUT DATA'!AD65 -> 0 | AC132: =+'INPUT DATA'!AE65 -> 0 | AD132: =+'INPUT DATA'!AF65 -> 0 | AE132: =+'INPUT DATA'!AG65 -> 0 | AF132: =+'INPUT DATA'!AH65 -> 0 | AG132: =+'INPUT DATA'!AI65 -> 0 | AH132: =+'INPUT DATA'!AJ65 -> 0 | AI132: =+'INPUT DATA'!AK65 -> 0 | AJ132: =+'INPUT DATA'!AL65 -> 0 | AK132: =+'INPUT DATA'!AM65 -> 0 | AL132: =+'INPUT DATA'!AN65 -> 0 | AM132: =+'INPUT DATA'!AO65 -> 0 | AN132: =+'INPUT DATA'!AP65 -> 0 | AO132: =+'INPUT DATA'!AQ65 -> 0 | AP132: =+'INPUT DATA'!AR65 -> 0 | AQ132: =+'INPUT DATA'!AS65 -> 0 | AR132: =+'INPUT DATA'!AT65 -> 0 | AS132: =+'INPUT DATA'!AU65 -> 0 | AT132: =+'INPUT DATA'!AV65 -> 0 | AU132: =+'INPUT DATA'!AW65 -> 0 | AV132: =+'INPUT DATA'!AX65 -> 0 | AW132: =+'INPUT DATA'!AY65 -> 0 | AX132: =+'INPUT DATA'!AZ65 -> 0 | AY132: =+'INPUT DATA'!BA65 -> 0
C133: Net Cash Flow | H133: =+H130+H131+H132 -> 6336.522626 | I133: 18634.62705 | J133: -27488.17728 | K133: 16612.98296 | L133: -15485.29163 | M133: -789.0312881 | N133: 3829.999755 | O133: -5557.412014 | P133: 30395.17102 | Q133: -19299.98609 | R133: 189.423539 | S133: 3367.089548 | T133: -2799.562494 | U133: 32205.40074 | V133: -35624.75862 | W133: 11398.84984 | X133: 9942.009076 | Y133: -13502.34372 | Z133: -5031.64231 | AA133: 41689.01078 | AB133: -20195.27481 | AC133: -20015.63471 | AD133: 52081.69702 | AE133: -72180.01363 | AF133: -7.312304084e-06 | AG133: 0 | AH133: 0 | AI133: 0 | AJ133: 0 | AK133: 0 | AL133: 0 | AM133: 0 | AN133: 0 | AO133: 0 | AP133: 0 | AQ133: 0 | AR133: 0 | AS133: 0 | AT133: 0 | AU133: 0 | AV133: 0 | AW133: 0 | AX133: 0 | AY133: 0
C134: Cash EoP | G134: =+'INPUT DATA'!I67 -> 11286.3157 | H134: =+H133+G134 -> 17622.83833 | I134: 36257.46538 | J134: 8769.288102 | K134: 25382.27106 | L134: 9896.979438 | M134: 9107.948149 | N134: 12937.9479 | O134: 7380.53589 | P134: 37775.70691 | Q134: 18475.72083 | R134: 18665.14436 | S134: 22032.23391 | T134: 19232.67142 | U134: 51438.07216 | V134: 15813.31354 | W134: 27212.16338 | X134: 37154.17245 | Y134: 23651.82873 | Z134: 18620.18642 | AA134: 60309.19721 | AB134: 40113.92239 | AC134: 20098.28768 | AD134: 72179.9847 | AE134: -0.02893370023 | AF134: -0.02894101254 | AG134: -0.02894101254 | AH134: -0.02894101254 | AI134: -0.02894101254 | AJ134: -0.02894101254 | AK134: -0.02894101254 | AL134: -0.02894101254 | AM134: -0.02894101254 | AN134: -0.02894101254 | AO134: -0.02894101254 | AP134: -0.02894101254 | AQ134: -0.02894101254 | AR134: -0.02894101254 | AS134: -0.02894101254 | AT134: -0.02894101254 | AU134: -0.02894101254 | AV134: -0.02894101254 | AW134: -0.02894101254 | AX134: -0.02894101254 | AY134: -0.02894101254
A139: 1 | C139: Chile
C141: =+"Cash Flow "&C139&" - [000' EUR]" -> Cash Flow Chile - [000' EUR]
C142: Year | G142: 2021 | H142: =+H$12 -> 2022 | I142: 2023 | J142: 2024 | K142: 2025 | L142: 2026 | M142: 2027 | N142: 2028 | O142: 2029 | P142: 2030 | Q142: 2031 | R142: 2032 | S142: 2033 | T142: 2034 | U142: 2035 | V142: 2036 | W142: 2037 | X142: 2038 | Y142: 2039 | Z142: 2040 | AA142: 2041 | AB142: 2042 | AC142: 2043 | AD142: 2044 | AE142: 2045 | AF142: 2046 | AG142: 2047 | AH142: 2048 | AI142: 2049 | AJ142: 2050 | AK142: 2051 | AL142: 2052 | AM142: 2053 | AN142: 2054 | AO142: 2055 | AP142: 2056 | AQ142: 2057 | AR142: 2058 | AS142: 2059 | AT142: 2060 | AU142: 2061 | AV142: 2062 | AW142: 2063 | AX142: 2064 | AY142: 2065
C143: Income | H143: =+H144+H145+H146 -> 110144.7364 | I143: 165439.1333 | J143: 175142.3694 | K143: 262087.2539 | L143: 295054.0711 | M143: 288103.6047 | N143: 297326.9563 | O143: 316997.3999 | P143: 331895.2835 | Q143: 354427.1997 | R143: 368017.8856 | S143: 233415.4283 | T143: 223793.565 | U143: 186677.0634 | V143: 198841.5302 | W143: 210662.8461 | X143: 223715.1626 | Y143: 234875.7562 | Z143: 240359.7135 | AA143: 249721.917 | AB143: 263226.5557 | AC143: 273703.3402 | AD143: 277338.2593 | AE143: 330538.8778 | AF143: 274786.051 | AG143: 268541.0711 | AH143: 281912.3885 | AI143: 295718.4102 | AJ143: 301227.5947 | AK143: 305726.6556 | AL143: 320009.6054 | AM143: 266697.9991 | AN143: 137994.2508 | AO143: 145269.9547 | AP143: 153370.5788 | AQ143: 160145.8154 | AR143: 167923.7841 | AS143: 176348.6867 | AT143: 185721.6161 | AU143: 194068.4495 | AV143: 203669.342 | AW143: 214160.371 | AX143: 187517.137 | AY143: 0
C144: Income with mitigated demand risk | H144: =+'INPUT DATA'!J77 -> 107697.461 | I144: =+'INPUT DATA'!K77 -> 161787.4672 | J144: =+'INPUT DATA'!L77 -> 170948.9413 | K144: =+'INPUT DATA'!M77 -> 257328.4295 | L144: =+'INPUT DATA'!N77 -> 289663.8889 | M144: =+'INPUT DATA'!O77 -> 282152.0999 | N144: =+'INPUT DATA'!P77 -> 290757.4037 | O144: =+'INPUT DATA'!Q77 -> 309754.3319 | P144: =+'INPUT DATA'!R77 -> 323927.7071 | Q144: =+'INPUT DATA'!S77 -> 345683.4136 | R144: =+'INPUT DATA'!T77 -> 358480.9862 | S144: =+'INPUT DATA'!U77 -> 223026.2508 | T144: =+'INPUT DATA'!V77 -> 220768.8127 | U144: =+'INPUT DATA'!W77 -> 186677.0634 | V144: =+'INPUT DATA'!X77 -> 198841.5302 | W144: =+'INPUT DATA'!Y77 -> 210662.8461 | X144: =+'INPUT DATA'!Z77 -> 223715.1626 | Y144: =+'INPUT DATA'!AA77 -> 234875.7562 | Z144: =+'INPUT DATA'!AB77 -> 240359.7135 | AA144: =+'INPUT DATA'!AC77 -> 249721.917 | AB144: =+'INPUT DATA'!AD77 -> 263226.5557 | AC144: =+'INPUT DATA'!AE77 -> 273703.3402 | AD144: =+'INPUT DATA'!AF77 -> 277338.2593 | AE144: =+'INPUT DATA'!AG77 -> 330538.8778 | AF144: =+'INPUT DATA'!AH77 -> 274786.051 | AG144: =+'INPUT DATA'!AI77 -> 268541.0711 | AH144: =+'INPUT DATA'!AJ77 -> 281912.3885 | AI144: =+'INPUT DATA'!AK77 -> 295718.4102 | AJ144: =+'INPUT DATA'!AL77 -> 301227.5947 | AK144: =+'INPUT DATA'!AM77 -> 305726.6556 | AL144: =+'INPUT DATA'!AN77 -> 320009.6054 | AM144: =+'INPUT DATA'!AO77 -> 266697.9991 | AN144: =+'INPUT DATA'!AP77 -> 137994.2508 | AO144: =+'INPUT DATA'!AQ77 -> 145269.9547 | AP144: =+'INPUT DATA'!AR77 -> 153370.5788 | AQ144: =+'INPUT DATA'!AS77 -> 160145.8154 | AR144: =+'INPUT DATA'!AT77 -> 167923.7841 | AS144: =+'INPUT DATA'!AU77 -> 176348.6867 | AT144: =+'INPUT DATA'!AV77 -> 185721.6161 | AU144: =+'INPUT DATA'!AW77 -> 194068.4495 | AV144: =+'INPUT DATA'!AX77 -> 203669.342 | AW144: =+'INPUT DATA'!AY77 -> 214160.371 | AX144: =+'INPUT DATA'!AZ77 -> 187517.137 | AY144: =+'INPUT DATA'!BA77 -> 0
C145: Income with low demand risk | H145: =+'INPUT DATA'!J78 -> 0 | I145: =+'INPUT DATA'!K78 -> 0 | J145: =+'INPUT DATA'!L78 -> 0 | K145: =+'INPUT DATA'!M78 -> 0 | L145: =+'INPUT DATA'!N78 -> 0 | M145: =+'INPUT DATA'!O78 -> 0 | N145: =+'INPUT DATA'!P78 -> 0 | O145: =+'INPUT DATA'!Q78 -> 0 | P145: =+'INPUT DATA'!R78 -> 0 | Q145: =+'INPUT DATA'!S78 -> 0 | R145: =+'INPUT DATA'!T78 -> 0 | S145: =+'INPUT DATA'!U78 -> 0 | T145: =+'INPUT DATA'!V78 -> 0 | U145: =+'INPUT DATA'!W78 -> 0 | V145: =+'INPUT DATA'!X78 -> 0 | W145: =+'INPUT DATA'!Y78 -> 0 | X145: =+'INPUT DATA'!Z78 -> 0 | Y145: =+'INPUT DATA'!AA78 -> 0 | Z145: =+'INPUT DATA'!AB78 -> 0 | AA145: =+'INPUT DATA'!AC78 -> 0 | AB145: =+'INPUT DATA'!AD78 -> 0 | AC145: =+'INPUT DATA'!AE78 -> 0 | AD145: =+'INPUT DATA'!AF78 -> 0 | AE145: =+'INPUT DATA'!AG78 -> 0 | AF145: =+'INPUT DATA'!AH78 -> 0 | AG145: =+'INPUT DATA'!AI78 -> 0 | AH145: =+'INPUT DATA'!AJ78 -> 0 | AI145: =+'INPUT DATA'!AK78 -> 0 | AJ145: =+'INPUT DATA'!AL78 -> 0 | AK145: =+'INPUT DATA'!AM78 -> 0 | AL145: =+'INPUT DATA'!AN78 -> 0 | AM145: =+'INPUT DATA'!AO78 -> 0 | AN145: =+'INPUT DATA'!AP78 -> 0 | AO145: =+'INPUT DATA'!AQ78 -> 0 | AP145: =+'INPUT DATA'!AR78 -> 0 | AQ145: =+'INPUT DATA'!AS78 -> 0 | AR145: =+'INPUT DATA'!AT78 -> 0 | AS145: =+'INPUT DATA'!AU78 -> 0 | AT145: =+'INPUT DATA'!AV78 -> 0 | AU145: =+'INPUT DATA'!AW78 -> 0 | AV145: =+'INPUT DATA'!AX78 -> 0 | AW145: =+'INPUT DATA'!AY78 -> 0 | AX145: =+'INPUT DATA'!AZ78 -> 0 | AY145: =+'INPUT DATA'!BA78 -> 0
C146: Income with demand risk | H146: =+'INPUT DATA'!J79 -> 2447.275367 | I146: =+'INPUT DATA'!K79 -> 3651.666068 | J146: =+'INPUT DATA'!L79 -> 4193.428093 | K146: =+'INPUT DATA'!M79 -> 4758.824474 | L146: =+'INPUT DATA'!N79 -> 5390.182212 | M146: =+'INPUT DATA'!O79 -> 5951.504845 | N146: =+'INPUT DATA'!P79 -> 6569.552622 | O146: =+'INPUT DATA'!Q79 -> 7243.067987 | P146: =+'INPUT DATA'!R79 -> 7967.576404 | Q146: =+'INPUT DATA'!S79 -> 8743.786099 | R146: =+'INPUT DATA'!T79 -> 9536.899465 | S146: =+'INPUT DATA'!U79 -> 10389.17749 | T146: =+'INPUT DATA'!V79 -> 3024.752272 | U146: =+'INPUT DATA'!W79 -> 0 | V146: =+'INPUT DATA'!X79 -> 0 | W146: =+'INPUT DATA'!Y79 -> 0 | X146: =+'INPUT DATA'!Z79 -> 0 | Y146: =+'INPUT DATA'!AA79 -> 0 | Z146: =+'INPUT DATA'!AB79 -> 0 | AA146: =+'INPUT DATA'!AC79 -> 0 | AB146: =+'INPUT DATA'!AD79 -> 0 | AC146: =+'INPUT DATA'!AE79 -> 0 | AD146: =+'INPUT DATA'!AF79 -> 0 | AE146: =+'INPUT DATA'!AG79 -> 0 | AF146: =+'INPUT DATA'!AH79 -> 0 | AG146: =+'INPUT DATA'!AI79 -> 0 | AH146: =+'INPUT DATA'!AJ79 -> 0 | AI146: =+'INPUT DATA'!AK79 -> 0 | AJ146: =+'INPUT DATA'!AL79 -> 0 | AK146: =+'INPUT DATA'!AM79 -> 0 | AL146: =+'INPUT DATA'!AN79 -> 0 | AM146: =+'INPUT DATA'!AO79 -> 0 | AN146: =+'INPUT DATA'!AP79 -> 0 | AO146: =+'INPUT DATA'!AQ79 -> 0 | AP146: =+'INPUT DATA'!AR79 -> 0 | AQ146: =+'INPUT DATA'!AS79 -> 0 | AR146: =+'INPUT DATA'!AT79 -> 0 | AS146: =+'INPUT DATA'!AU79 -> 0 | AT146: =+'INPUT DATA'!AV79 -> 0 | AU146: =+'INPUT DATA'!AW79 -> 0 | AV146: =+'INPUT DATA'!AX79 -> 0 | AW146: =+'INPUT DATA'!AY79 -> 0 | AX146: =+'INPUT DATA'!AZ79 -> 0 | AY146: =+'INPUT DATA'!BA79 -> 0
C147: Operating Costs | H147: =+'INPUT DATA'!J80 -> -19830.77917 | I147: =+'INPUT DATA'!K80 -> -32389.5188 | J147: =+'INPUT DATA'!L80 -> -37983.32661 | K147: =+'INPUT DATA'!M80 -> -42297.10104 | L147: =+'INPUT DATA'!N80 -> -47638.76847 | M147: =+'INPUT DATA'!O80 -> -48384.1874 | N147: =+'INPUT DATA'!P80 -> -52434.48544 | O147: =+'INPUT DATA'!Q80 -> -53008.37663 | P147: =+'INPUT DATA'!R80 -> -55273.63012 | Q147: =+'INPUT DATA'!S80 -> -57580.09687 | R147: =+'INPUT DATA'!T80 -> -58232.38032 | S147: =+'INPUT DATA'!U80 -> -44368.97126 | T147: =+'INPUT DATA'!V80 -> -41919.05917 | U147: =+'INPUT DATA'!W80 -> -40670.95393 | V147: =+'INPUT DATA'!X80 -> -41989.15453 | W147: =+'INPUT DATA'!Y80 -> -43374.00515 | X147: =+'INPUT DATA'!Z80 -> -45401.89066 | Y147: =+'INPUT DATA'!AA80 -> -45169.0261 | Z147: =+'INPUT DATA'!AB80 -> -39407.53454 | AA147: =+'INPUT DATA'!AC80 -> -41057.26152 | AB147: =+'INPUT DATA'!AD80 -> -42660.65786 | AC147: =+'INPUT DATA'!AE80 -> -43766.36671 | AD147: =+'INPUT DATA'!AF80 -> -44210.83782 | AE147: =+'INPUT DATA'!AG80 -> -45503.59496 | AF147: =+'INPUT DATA'!AH80 -> -44199.6174 | AG147: =+'INPUT DATA'!AI80 -> -43315.77467 | AH147: =+'INPUT DATA'!AJ80 -> -45001.1647 | AI147: =+'INPUT DATA'!AK80 -> -46758.41274 | AJ147: =+'INPUT DATA'!AL80 -> -47210.94527 | AK147: =+'INPUT DATA'!AM80 -> -47300.81109 | AL147: =+'INPUT DATA'!AN80 -> -44701.25282 | AM147: =+'INPUT DATA'!AO80 -> -37081.1891 | AN147: =+'INPUT DATA'!AP80 -> -21248.63903 | AO147: =+'INPUT DATA'!AQ80 -> -21701.72287 | AP147: =+'INPUT DATA'!AR80 -> -22529.83638 | AQ147: =+'INPUT DATA'!AS80 -> -23390.63034 | AR147: =+'INPUT DATA'!AT80 -> -24285.80841 | AS147: =+'INPUT DATA'!AU80 -> -25216.70468 | AT147: =+'INPUT DATA'!AV80 -> -26184.74416 | AU147: =+'INPUT DATA'!AW80 -> -27190.96105 | AV147: =+'INPUT DATA'!AX80 -> -28237.89838 | AW147: =+'INPUT DATA'!AY80 -> -29844.34834 | AX147: =+'INPUT DATA'!AZ80 -> -27749.82253 | AY147: =+'INPUT DATA'!BA80 -> 0
C148: Investment & Capex | H148: =+'INPUT DATA'!J81 -> -182756.6072 | I148: =+'INPUT DATA'!K81 -> -167927.7947 | J148: =+'INPUT DATA'!L81 -> -260004.1975 | K148: =+'INPUT DATA'!M81 -> -329344.1046 | L148: =+'INPUT DATA'!N81 -> -259585.6177 | M148: =+'INPUT DATA'!O81 -> -36617.8162 | N148: =+'INPUT DATA'!P81 -> -13238.76843 | O148: =+'INPUT DATA'!Q81 -> -18765.90964 | P148: =+'INPUT DATA'!R81 -> -24057.60728 | Q148: =+'INPUT DATA'!S81 -> -12529.82128 | R148: =+'INPUT DATA'!T81 -> -28768.35047 | S148: =+'INPUT DATA'!U81 -> -16630.29449 | T148: =+'INPUT DATA'!V81 -> -12803.69319 | U148: =+'INPUT DATA'!W81 -> -9117.496165 | V148: =+'INPUT DATA'!X81 -> -12003.13719 | W148: =+'INPUT DATA'!Y81 -> -9173.613713 | X148: =+'INPUT DATA'!Z81 -> -11692.23315 | Y148: =+'INPUT DATA'!AA81 -> -13075.79172 | Z148: =+'INPUT DATA'!AB81 -> -11046.55979 | AA148: =+'INPUT DATA'!AC81 -> -10153.07641 | AB148: =+'INPUT DATA'!AD81 -> -9497.746224 | AC148: =+'INPUT DATA'!AE81 -> -13013.5824 | AD148: =+'INPUT DATA'!AF81 -> -14154.04184 | AE148: =+'INPUT DATA'!AG81 -> -16514.54406 | AF148: =+'INPUT DATA'!AH81 -> -19503.34702 | AG148: =+'INPUT DATA'!AI81 -> -21344.54732 | AH148: =+'INPUT DATA'!AJ81 -> -16441.17521 | AI148: =+'INPUT DATA'!AK81 -> -13066.45626 | AJ148: =+'INPUT DATA'!AL81 -> -12547.11484 | AK148: =+'INPUT DATA'!AM81 -> 10927.56284 | AL148: =+'INPUT DATA'!AN81 -> -6223.313511 | AM148: =+'INPUT DATA'!AO81 -> 27030.22884 | AN148: =+'INPUT DATA'!AP81 -> -6712.67117 | AO148: =+'INPUT DATA'!AQ81 -> -8367.238752 | AP148: =+'INPUT DATA'!AR81 -> -17458.62102 | AQ148: =+'INPUT DATA'!AS81 -> -6487.641931 | AR148: =+'INPUT DATA'!AT81 -> -5586.096651 | AS148: =+'INPUT DATA'!AU81 -> -7261.944388 | AT148: =+'INPUT DATA'!AV81 -> -24349.16582 | AU148: =+'INPUT DATA'!AW81 -> -26572.40289 | AV148: =+'INPUT DATA'!AX81 -> -4153.433485 | AW148: =+'INPUT DATA'!AY81 -> -2263.749479 | AX148: =+'INPUT DATA'!AZ81 -> -2135.215945 | AY148: =+'INPUT DATA'!BA81 -> 0
C149: Into / Out Operating Reserve Accounts | H149: =+'INPUT DATA'!J82 -> 0 | I149: =+'INPUT DATA'!K82 -> 0 | J149: =+'INPUT DATA'!L82 -> 0 | K149: =+'INPUT DATA'!M82 -> 0 | L149: =+'INPUT DATA'!N82 -> 0 | M149: =+'INPUT DATA'!O82 -> 0 | N149: =+'INPUT DATA'!P82 -> 0 | O149: =+'INPUT DATA'!Q82 -> 0 | P149: =+'INPUT DATA'!R82 -> 0 | Q149: =+'INPUT DATA'!S82 -> 0 | R149: =+'INPUT DATA'!T82 -> 0 | S149: =+'INPUT DATA'!U82 -> 0 | T149: =+'INPUT DATA'!V82 -> 0 | U149: =+'INPUT DATA'!W82 -> 0 | V149: =+'INPUT DATA'!X82 -> 0 | W149: =+'INPUT DATA'!Y82 -> 0 | X149: =+'INPUT DATA'!Z82 -> 0 | Y149: =+'INPUT DATA'!AA82 -> 0 | Z149: =+'INPUT DATA'!AB82 -> 0 | AA149: =+'INPUT DATA'!AC82 -> 0 | AB149: =+'INPUT DATA'!AD82 -> 0 | AC149: =+'INPUT DATA'!AE82 -> 0 | AD149: =+'INPUT DATA'!AF82 -> 0 | AE149: =+'INPUT DATA'!AG82 -> 0 | AF149: =+'INPUT DATA'!AH82 -> 0 | AG149: =+'INPUT DATA'!AI82 -> 0 | AH149: =+'INPUT DATA'!AJ82 -> 0 | AI149: =+'INPUT DATA'!AK82 -> 0 | AJ149: =+'INPUT DATA'!AL82 -> 0 | AK149: =+'INPUT DATA'!AM82 -> 0 | AL149: =+'INPUT DATA'!AN82 -> 0 | AM149: =+'INPUT DATA'!AO82 -> 0 | AN149: =+'INPUT DATA'!AP82 -> 0 | AO149: =+'INPUT DATA'!AQ82 -> 0 | AP149: =+'INPUT DATA'!AR82 -> 0 | AQ149: =+'INPUT DATA'!AS82 -> 0 | AR149: =+'INPUT DATA'!AT82 -> 0 | AS149: =+'INPUT DATA'!AU82 -> 0 | AT149: =+'INPUT DATA'!AV82 -> 0 | AU149: =+'INPUT DATA'!AW82 -> 0 | AV149: =+'INPUT DATA'!AX82 -> 0 | AW149: =+'INPUT DATA'!AY82 -> 0 | AX149: =+'INPUT DATA'!AZ82 -> 0 | AY149: =+'INPUT DATA'!BA82 -> 0
C150: Operating Cash Flow | H150: =+H143+H147+H148+H149 -> -92442.65001 | I150: -34878.18025 | J150: -122845.1548 | K150: -109553.9517 | L150: -12170.31509 | M150: 203101.6011 | N150: 231653.7024 | O150: 245223.1136 | P150: 252564.0461 | Q150: 284317.2816 | R150: 281017.1548 | S150: 172416.1626 | T150: 169070.8127 | U150: 136888.6133 | V150: 144849.2385 | W150: 158115.2272 | X150: 166621.0388 | Y150: 176630.9384 | Z150: 189905.6191 | AA150: 198511.5791 | AB150: 211068.1516 | AC150: 216923.391 | AD150: 218973.3796 | AE150: 268520.7388 | AF150: 211083.0866 | AG150: 203880.7491 | AH150: 220470.0486 | AI150: 235893.5412 | AJ150: 241469.5346 | AK150: 269353.4073 | AL150: 269085.039 | AM150: 256647.0388 | AN150: 110032.9406 | AO150: 115200.9931 | AP150: 113382.1214 | AQ150: 130267.5431 | AR150: 138051.879 | AS150: 143870.0376 | AT150: 135187.7061 | AU150: 140305.0856 | AV150: 171278.0101 | AW150: 182052.2732 | AX150: 157632.0986 | AY150: 0
C151: Taxes | H151: =+'INPUT DATA'!J84 -> 0 | I151: =+'INPUT DATA'!K84 -> 0 | J151: =+'INPUT DATA'!L84 -> -7771.904169 | K151: =+'INPUT DATA'!M84 -> -7349.678111 | L151: =+'INPUT DATA'!N84 -> 0 | M151: =+'INPUT DATA'!O84 -> 0 | N151: =+'INPUT DATA'!P84 -> 0 | O151: =+'INPUT DATA'!Q84 -> 0 | P151: =+'INPUT DATA'!R84 -> 0 | Q151: =+'INPUT DATA'!S84 -> -401.1562543 | R151: =+'INPUT DATA'!T84 -> -1755.649224 | S151: =+'INPUT DATA'!U84 -> -22526.84175 | T151: =+'INPUT DATA'!V84 -> -13326.19852 | U151: =+'INPUT DATA'!W84 -> -12455.96664 | V151: =+'INPUT DATA'!X84 -> -12725.5473 | W151: =+'INPUT DATA'!Y84 -> -15987.16951 | X151: =+'INPUT DATA'!Z84 -> -17185.31441 | Y151: =+'INPUT DATA'!AA84 -> -16660.3979 | Z151: =+'INPUT DATA'!AB84 -> -20018.01629 | AA151: =+'INPUT DATA'!AC84 -> -19907.27221 | AB151: =+'INPUT DATA'!AD84 -> -21601.23154 | AC151: =+'INPUT DATA'!AE84 -> -28674.55386 | AD151: =+'INPUT DATA'!AF84 -> -29628.4866 | AE151: =+'INPUT DATA'!AG84 -> -31790.56074 | AF151: =+'INPUT DATA'!AH84 -> -50893.4707 | AG151: =+'INPUT DATA'!AI84 -> -35551.28167 | AH151: =+'INPUT DATA'!AJ84 -> -35832.21693 | AI151: =+'INPUT DATA'!AK84 -> -47338.66505 | AJ151: =+'INPUT DATA'!AL84 -> -54205.19562 | AK151: =+'INPUT DATA'!AM84 -> -57535.89287 | AL151: =+'INPUT DATA'!AN84 -> -56980.21269 | AM151: =+'INPUT DATA'!AO84 -> -55357.05687 | AN151: =+'INPUT DATA'!AP84 -> -53230.18477 | AO151: =+'INPUT DATA'!AQ84 -> -30930.53237 | AP151: =+'INPUT DATA'!AR84 -> -30919.11852 | AQ151: =+'INPUT DATA'!AS84 -> -31937.70749 | AR151: =+'INPUT DATA'!AT84 -> -36254.44909 | AS151: =+'INPUT DATA'!AU84 -> -37220.6325 | AT151: =+'INPUT DATA'!AV84 -> -35166.19387 | AU151: =+'INPUT DATA'!AW84 -> -36154.46092 | AV151: =+'INPUT DATA'!AX84 -> -39842.32029 | AW151: =+'INPUT DATA'!AY84 -> -46150.42641 | AX151: =+'INPUT DATA'!AZ84 -> -88634.10823 | AY151: =+'INPUT DATA'!BA84 -> 0
C152: Operating Cash Flow After Tax | H152: =+H150+H151 -> -92442.65001 | I152: -34878.18025 | J152: -130617.0589 | K152: -116903.6298 | L152: -12170.31509 | M152: 203101.6011 | N152: 231653.7024 | O152: 245223.1136 | P152: 252564.0461 | Q152: 283916.1253 | R152: 279261.5056 | S152: 149889.3208 | T152: 155744.6141 | U152: 124432.6467 | V152: 132123.6912 | W152: 142128.0577 | X152: 149435.7244 | Y152: 159970.5405 | Z152: 169887.6028 | AA152: 178604.3068 | AB152: 189466.9201 | AC152: 188248.8372 | AD152: 189344.893 | AE152: 236730.1781 | AF152: 160189.6159 | AG152: 168329.4674 | AH152: 184637.8317 | AI152: 188554.8761 | AJ152: 187264.339 | AK152: 211817.5145 | AL152: 212104.8263 | AM152: 201289.982 | AN152: 56802.75578 | AO152: 84270.46069 | AP152: 82463.0029 | AQ152: 98329.83563 | AR152: 101797.4299 | AS152: 106649.4051 | AT152: 100021.5122 | AU152: 104150.6246 | AV152: 131435.6898 | AW152: 135901.8468 | AX152: 68997.99033 | AY152: 0
C153: Debt Service | H153: =+'INPUT DATA'!J86 -> 80146.27265 | I153: =+'INPUT DATA'!K86 -> 344812.3559 | J153: =+'INPUT DATA'!L86 -> 72241.66097 | K153: =+'INPUT DATA'!M86 -> 124192.5398 | L153: =+'INPUT DATA'!N86 -> 24664.264 | M153: =+'INPUT DATA'!O86 -> -166576.287 | N153: =+'INPUT DATA'!P86 -> -103676.8299 | O153: =+'INPUT DATA'!Q86 -> -210559.5443 | P153: =+'INPUT DATA'!R86 -> -218394.3685 | Q153: =+'INPUT DATA'!S86 -> -194873.94 | R153: =+'INPUT DATA'!T86 -> -165710.2692 | S153: =+'INPUT DATA'!U86 -> -134119.485 | T153: =+'INPUT DATA'!V86 -> -121806.2305 | U153: =+'INPUT DATA'!W86 -> -103648.0356 | V153: =+'INPUT DATA'!X86 -> -111035.0908 | W153: =+'INPUT DATA'!Y86 -> -118024.2673 | X153: =+'INPUT DATA'!Z86 -> -122420.0399 | Y153: =+'INPUT DATA'!AA86 -> -131017.8019 | Z153: =+'INPUT DATA'!AB86 -> -139778.5406 | AA153: =+'INPUT DATA'!AC86 -> -144995.3718 | AB153: =+'INPUT DATA'!AD86 -> -142859.4056 | AC153: =+'INPUT DATA'!AE86 -> -134025.6726 | AD153: =+'INPUT DATA'!AF86 -> -126430.6439 | AE153: =+'INPUT DATA'!AG86 -> -126047.1143 | AF153: =+'INPUT DATA'!AH86 -> -130141.2786 | AG153: =+'INPUT DATA'!AI86 -> -137272.0465 | AH153: =+'INPUT DATA'!AJ86 -> -142616.3634 | AI153: =+'INPUT DATA'!AK86 -> -118431.0014 | AJ153: =+'INPUT DATA'!AL86 -> -68529.56441 | AK153: =+'INPUT DATA'!AM86 -> -11612.2414 | AL153: =+'INPUT DATA'!AN86 -> 1.977588761e-13 | AM153: =+'INPUT DATA'!AO86 -> 2.034184165e-13 | AN153: =+'INPUT DATA'!AP86 -> 2.098147876e-13 | AO153: =+'INPUT DATA'!AQ86 -> 0 | AP153: =+'INPUT DATA'!AR86 -> 0 | AQ153: =+'INPUT DATA'!AS86 -> 0 | AR153: =+'INPUT DATA'!AT86 -> 0 | AS153: =+'INPUT DATA'!AU86 -> 0 | AT153: =+'INPUT DATA'!AV86 -> 0 | AU153: =+'INPUT DATA'!AW86 -> 0 | AV153: =+'INPUT DATA'!AX86 -> 0 | AW153: =+'INPUT DATA'!AY86 -> 0 | AX153: =+'INPUT DATA'!AZ86 -> 0 | AY153: =+'INPUT DATA'!BA86 -> 0
C154: Interest income | H154: =+'INPUT DATA'!J87 -> 0 | I154: =+'INPUT DATA'!K87 -> 0 | J154: =+'INPUT DATA'!L87 -> 0 | K154: =+'INPUT DATA'!M87 -> 0 | L154: =+'INPUT DATA'!N87 -> 0 | M154: =+'INPUT DATA'!O87 -> 0 | N154: =+'INPUT DATA'!P87 -> 0 | O154: =+'INPUT DATA'!Q87 -> 0 | P154: =+'INPUT DATA'!R87 -> 0 | Q154: =+'INPUT DATA'!S87 -> 0 | R154: =+'INPUT DATA'!T87 -> 0 | S154: =+'INPUT DATA'!U87 -> 0 | T154: =+'INPUT DATA'!V87 -> 0 | U154: =+'INPUT DATA'!W87 -> 0 | V154: =+'INPUT DATA'!X87 -> 0 | W154: =+'INPUT DATA'!Y87 -> 0 | X154: =+'INPUT DATA'!Z87 -> 0 | Y154: =+'INPUT DATA'!AA87 -> 0 | Z154: =+'INPUT DATA'!AB87 -> 0 | AA154: =+'INPUT DATA'!AC87 -> 0 | AB154: =+'INPUT DATA'!AD87 -> 0 | AC154: =+'INPUT DATA'!AE87 -> 0 | AD154: =+'INPUT DATA'!AF87 -> 0 | AE154: =+'INPUT DATA'!AG87 -> 0 | AF154: =+'INPUT DATA'!AH87 -> 0 | AG154: =+'INPUT DATA'!AI87 -> 0 | AH154: =+'INPUT DATA'!AJ87 -> 0 | AI154: =+'INPUT DATA'!AK87 -> 0 | AJ154: =+'INPUT DATA'!AL87 -> 0 | AK154: =+'INPUT DATA'!AM87 -> 0 | AL154: =+'INPUT DATA'!AN87 -> 0 | AM154: =+'INPUT DATA'!AO87 -> 0 | AN154: =+'INPUT DATA'!AP87 -> 0 | AO154: =+'INPUT DATA'!AQ87 -> 0 | AP154: =+'INPUT DATA'!AR87 -> 0 | AQ154: =+'INPUT DATA'!AS87 -> 0 | AR154: =+'INPUT DATA'!AT87 -> 0 | AS154: =+'INPUT DATA'!AU87 -> 0 | AT154: =+'INPUT DATA'!AV87 -> 0 | AU154: =+'INPUT DATA'!AW87 -> 0 | AV154: =+'INPUT DATA'!AX87 -> 0 | AW154: =+'INPUT DATA'!AY87 -> 0 | AX154: =+'INPUT DATA'!AZ87 -> 0 | AY154: =+'INPUT DATA'!BA87 -> 0
C155: Free Cash Flow To Equity | H155: =+H152+H153+H154 -> -12296.37735 | I155: 309934.1757 | J155: -58375.39797 | K155: 7288.910056 | L155: 12493.94891 | M155: 36525.31415 | N155: 127976.8726 | O155: 34663.56933 | P155: 34169.67759 | Q155: 89042.18529 | R155: 113551.2364 | S155: 15769.83577 | T155: 33938.38367 | U155: 20784.61113 | V155: 21088.60045 | W155: 24103.79043 | X155: 27015.68454 | Y155: 28952.73856 | Z155: 30109.06227 | AA155: 33608.93505 | AB155: 46607.5145 | AC155: 54223.1646 | AD155: 62914.24909 | AE155: 110683.0637 | AF155: 30048.33729 | AG155: 31057.42091 | AH155: 42021.46835 | AI155: 70123.87473 | AJ155: 118734.7746 | AK155: 200205.2731 | AL155: 212104.8263 | AM155: 201289.982 | AN155: 56802.75578 | AO155: 84270.46069 | AP155: 82463.0029 | AQ155: 98329.83563 | AR155: 101797.4299 | AS155: 106649.4051 | AT155: 100021.5122 | AU155: 104150.6246 | AV155: 131435.6898 | AW155: 135901.8468 | AX155: 68997.99033 | AY155: 0
C156: Distributions to Shareholders | H156: =+'INPUT DATA'!J89 -> -31846.32862 | I156: =+'INPUT DATA'!K89 -> -146444.6207 | J156: =+'INPUT DATA'!L89 -> -176644.4692 | K156: =+'INPUT DATA'!M89 -> -24486.67887 | L156: =+'INPUT DATA'!N89 -> -13333.94367 | M156: =+'INPUT DATA'!O89 -> -37290.76365 | N156: =+'INPUT DATA'!P89 -> -127968.8533 | O156: =+'INPUT DATA'!Q89 -> -34652.77215 | P156: =+'INPUT DATA'!R89 -> -34010.8824 | Q156: =+'INPUT DATA'!S89 -> -88882.14424 | R156: =+'INPUT DATA'!T89 -> -109443.1814 | S156: =+'INPUT DATA'!U89 -> -20957.51005 | T156: =+'INPUT DATA'!V89 -> -31700.27582 | U156: =+'INPUT DATA'!W89 -> -23189.44837 | V156: =+'INPUT DATA'!X89 -> -21058.97601 | W156: =+'INPUT DATA'!Y89 -> -24063.94142 | X156: =+'INPUT DATA'!Z89 -> -26852.0019 | Y156: =+'INPUT DATA'!AA89 -> -29233.83789 | Z156: =+'INPUT DATA'!AB89 -> -31813.2741 | AA156: =+'INPUT DATA'!AC89 -> -33577.61246 | AB156: =+'INPUT DATA'!AD89 -> -46575.2123 | AC156: =+'INPUT DATA'!AE89 -> -54189.85202 | AD156: =+'INPUT DATA'!AF89 -> -62973.89697 | AE156: =+'INPUT DATA'!AG89 -> -79641.72086 | AF156: =+'INPUT DATA'!AH89 -> -16071.53439 | AG156: =+'INPUT DATA'!AI89 -> -76185.96346 | AH156: =+'INPUT DATA'!AJ89 -> -41992.27055 | AI156: =+'INPUT DATA'!AK89 -> -70093.75913 | AJ156: =+'INPUT DATA'!AL89 -> -118703.7119 | AK156: =+'INPUT DATA'!AM89 -> -200294.1825 | AL156: =+'INPUT DATA'!AN89 -> -212075.5825 | AM156: =+'INPUT DATA'!AO89 -> -201259.8187 | AN156: =+'INPUT DATA'!AP89 -> -56771.64392 | AO156: =+'INPUT DATA'!AQ89 -> -84238.37034 | AP156: =+'INPUT DATA'!AR89 -> -82429.90378 | AQ156: =+'INPUT DATA'!AS89 -> -98295.69582 | AR156: =+'INPUT DATA'!AT89 -> -101762.2167 | AS156: =+'INPUT DATA'!AU89 -> -106613.0844 | AT156: =+'INPUT DATA'!AV89 -> -99984.04953 | AU156: =+'INPUT DATA'!AW89 -> -104111.9839 | AV156: =+'INPUT DATA'!AX89 -> -131395.8341 | AW156: =+'INPUT DATA'!AY89 -> -135860.7377 | AX156: =+'INPUT DATA'!AZ89 -> -70346.46074 | AY156: =+'INPUT DATA'!BA89 -> 0
C157: Equity | H157: =+'INPUT DATA'!J90 -> 63727.21271 | I157: =+'INPUT DATA'!K90 -> 29415.62116 | J157: =+'INPUT DATA'!L90 -> 41270.18456 | K157: =+'INPUT DATA'!M90 -> 2.923340288e-06 | L157: =+'INPUT DATA'!N90 -> 2.334455649e-06 | M157: =+'INPUT DATA'!O90 -> 0 | N157: =+'INPUT DATA'!P90 -> 0 | O157: =+'INPUT DATA'!Q90 -> 0 | P157: =+'INPUT DATA'!R90 -> 0 | Q157: =+'INPUT DATA'!S90 -> 0 | R157: =+'INPUT DATA'!T90 -> 0 | S157: =+'INPUT DATA'!U90 -> 0 | T157: =+'INPUT DATA'!V90 -> 0 | U157: =+'INPUT DATA'!W90 -> 0 | V157: =+'INPUT DATA'!X90 -> 0 | W157: =+'INPUT DATA'!Y90 -> 0 | X157: =+'INPUT DATA'!Z90 -> 0 | Y157: =+'INPUT DATA'!AA90 -> 0 | Z157: =+'INPUT DATA'!AB90 -> 0 | AA157: =+'INPUT DATA'!AC90 -> 0 | AB157: =+'INPUT DATA'!AD90 -> 0 | AC157: =+'INPUT DATA'!AE90 -> 0 | AD157: =+'INPUT DATA'!AF90 -> 0 | AE157: =+'INPUT DATA'!AG90 -> 0 | AF157: =+'INPUT DATA'!AH90 -> 0 | AG157: =+'INPUT DATA'!AI90 -> 0 | AH157: =+'INPUT DATA'!AJ90 -> 0 | AI157: =+'INPUT DATA'!AK90 -> 0 | AJ157: =+'INPUT DATA'!AL90 -> 0 | AK157: =+'INPUT DATA'!AM90 -> 0 | AL157: =+'INPUT DATA'!AN90 -> 0 | AM157: =+'INPUT DATA'!AO90 -> 0 | AN157: =+'INPUT DATA'!AP90 -> 0 | AO157: =+'INPUT DATA'!AQ90 -> 0 | AP157: =+'INPUT DATA'!AR90 -> 0 | AQ157: =+'INPUT DATA'!AS90 -> 0 | AR157: =+'INPUT DATA'!AT90 -> 0 | AS157: =+'INPUT DATA'!AU90 -> 0 | AT157: =+'INPUT DATA'!AV90 -> 0 | AU157: =+'INPUT DATA'!AW90 -> 0 | AV157: =+'INPUT DATA'!AX90 -> 0 | AW157: =+'INPUT DATA'!AY90 -> 0 | AX157: =+'INPUT DATA'!AZ90 -> 0 | AY157: =+'INPUT DATA'!BA90 -> 0
C158: Net Cash Flow | H158: =+H155+H156+H157 -> 19584.50674 | I158: 192905.1762 | J158: -193749.6827 | K158: -17197.76881 | L158: -839.9947622 | M158: -765.4494938 | N158: 8.019216022 | O158: 10.7971758 | P158: 158.7951903 | Q158: 160.041042 | R158: 4108.05499 | S158: -5187.674286 | T158: 2238.107851 | U158: -2404.837247 | V158: 29.62444527 | W158: 39.84900697 | X158: 163.6826394 | Y158: -281.0993236 | Z158: -1704.211825 | AA158: 31.32258737 | AB158: 32.30220052 | AC158: 33.31258331 | AD158: -59.64788146 | AE158: 31041.34285 | AF158: 13976.8029 | AG158: -45128.54254 | AH158: 29.19779884 | AI158: 30.11559607 | AJ158: 31.06267762 | AK158: -88.90947919 | AL158: 29.24380035 | AM158: 30.16328262 | AN158: 31.11185949 | AO158: 32.09035538 | AP158: 33.09912379 | AQ158: 34.13981376 | AR158: 35.21324983 | AS158: 36.32072771 | AT158: 37.46271856 | AU158: 38.64075369 | AV158: 39.85577543 | AW158: 41.10907947 | AX158: -1348.470407 | AY158: 0
C159: Cash EoP | G159: =+'INPUT DATA'!I92 -> 3695.060857 | H159: =+H158+G159 -> 23279.56759 | I159: 216184.7438 | J159: 22435.06114 | K159: 5237.292329 | L159: 4397.297567 | M159: 3631.848073 | N159: 3639.867289 | O159: 3650.664465 | P159: 3809.459655 | Q159: 3969.500697 | R159: 8077.555687 | S159: 2889.881401 | T159: 5127.989251 | U159: 2723.152004 | V159: 2752.77645 | W159: 2792.625457 | X159: 2956.308096 | Y159: 2675.208772 | Z159: 970.9969475 | AA159: 1002.319535 | AB159: 1034.621735 | AC159: 1067.934319 | AD159: 1008.286437 | AE159: 32049.62929 | AF159: 46026.43219 | AG159: 897.889652 | AH159: 927.0874508 | AI159: 957.2030469 | AJ159: 988.2657245 | AK159: 899.3562453 | AL159: 928.6000456 | AM159: 958.7633283 | AN159: 989.8751877 | AO159: 1021.965543 | AP159: 1055.064667 | AQ159: 1089.204481 | AR159: 1124.41773 | AS159: 1160.738458 | AT159: 1198.201177 | AU159: 1236.84193 | AV159: 1276.697706 | AW159: 1317.806785 | AX159: -30.66362121 | AY159: -30.66362121
A164: 1 | C164: Italy
C166: =+"Cash Flow "&C164&" - [000' EUR]" -> Cash Flow Italy - [000' EUR]
C167: Year | G167: 2021 | H167: =+H$12 -> 2022 | I167: 2023 | J167: 2024 | K167: 2025 | L167: 2026 | M167: 2027 | N167: 2028 | O167: 2029 | P167: 2030 | Q167: 2031 | R167: 2032 | S167: 2033 | T167: 2034 | U167: 2035 | V167: 2036 | W167: 2037 | X167: 2038 | Y167: 2039 | Z167: 2040 | AA167: 2041 | AB167: 2042 | AC167: 2043 | AD167: 2044 | AE167: 2045 | AF167: 2046 | AG167: 2047 | AH167: 2048 | AI167: 2049 | AJ167: 2050 | AK167: 2051 | AL167: 2052 | AM167: 2053 | AN167: 2054 | AO167: 2055 | AP167: 2056 | AQ167: 2057 | AR167: 2058 | AS167: 2059 | AT167: 2060 | AU167: 2061 | AV167: 2062 | AW167: 2063 | AX167: 2064 | AY167: 2065
C168: Income | H168: =+H169+H170+H171 -> 196257.0275 | I168: 275960.6306 | J168: 274732.4284 | K168: 276111.3117 | L168: 278937.4036 | M168: 284649.2709 | N168: 288067.9024 | O168: 292014.7499 | P168: 296482.5891 | Q168: 298698.6993 | R168: 300660.2241 | S168: 303012.797 | T168: 198680.2674 | U168: 203847.2817 | V168: 209137.2801 | W168: 214556.4192 | X168: 220103.4715 | Y168: 225781.4961 | Z168: 231595.1239 | AA168: 236052.2096 | AB168: 240567.1989 | AC168: 245160.5278 | AD168: 249822.8324 | AE168: 253612.0946 | AF168: 239284.4824 | AG168: 189415.4252 | AH168: 193103.7757 | AI168: 196876.4707 | AJ168: 200720.1281 | AK168: 204643.1097 | AL168: 208648.637 | AM168: 212750.337 | AN168: 216925.3811 | AO168: 221191.3762 | AP168: 225540.9043 | AQ168: 230002.0267 | AR168: 234541.1652 | AS168: 239177.2742 | AT168: 243899.7974 | AU168: 122378.9162 | AV168: 0 | AW168: 0 | AX168: 0 | AY168: 0
C169: Income with mitigated demand risk | H169: =+'INPUT DATA'!J102 -> 196257.0275 | I169: =+'INPUT DATA'!K102 -> 275960.6306 | J169: =+'INPUT DATA'!L102 -> 274732.4284 | K169: =+'INPUT DATA'!M102 -> 276111.3117 | L169: =+'INPUT DATA'!N102 -> 278937.4036 | M169: =+'INPUT DATA'!O102 -> 284649.2709 | N169: =+'INPUT DATA'!P102 -> 288067.9024 | O169: =+'INPUT DATA'!Q102 -> 292014.7499 | P169: =+'INPUT DATA'!R102 -> 296482.5891 | Q169: =+'INPUT DATA'!S102 -> 298698.6993 | R169: =+'INPUT DATA'!T102 -> 300660.2241 | S169: =+'INPUT DATA'!U102 -> 303012.797 | T169: =+'INPUT DATA'!V102 -> 198680.2674 | U169: =+'INPUT DATA'!W102 -> 203847.2817 | V169: =+'INPUT DATA'!X102 -> 209137.2801 | W169: =+'INPUT DATA'!Y102 -> 214556.4192 | X169: =+'INPUT DATA'!Z102 -> 220103.4715 | Y169: =+'INPUT DATA'!AA102 -> 225781.4961 | Z169: =+'INPUT DATA'!AB102 -> 231595.1239 | AA169: =+'INPUT DATA'!AC102 -> 236052.2096 | AB169: =+'INPUT DATA'!AD102 -> 240567.1989 | AC169: =+'INPUT DATA'!AE102 -> 245160.5278 | AD169: =+'INPUT DATA'!AF102 -> 249822.8324 | AE169: =+'INPUT DATA'!AG102 -> 253612.0946 | AF169: =+'INPUT DATA'!AH102 -> 239284.4824 | AG169: =+'INPUT DATA'!AI102 -> 189415.4252 | AH169: =+'INPUT DATA'!AJ102 -> 193103.7757 | AI169: =+'INPUT DATA'!AK102 -> 196876.4707 | AJ169: =+'INPUT DATA'!AL102 -> 200720.1281 | AK169: =+'INPUT DATA'!AM102 -> 204643.1097 | AL169: =+'INPUT DATA'!AN102 -> 208648.637 | AM169: =+'INPUT DATA'!AO102 -> 212750.337 | AN169: =+'INPUT DATA'!AP102 -> 216925.3811 | AO169: =+'INPUT DATA'!AQ102 -> 221191.3762 | AP169: =+'INPUT DATA'!AR102 -> 225540.9043 | AQ169: =+'INPUT DATA'!AS102 -> 230002.0267 | AR169: =+'INPUT DATA'!AT102 -> 234541.1652 | AS169: =+'INPUT DATA'!AU102 -> 239177.2742 | AT169: =+'INPUT DATA'!AV102 -> 243899.7974 | AU169: =+'INPUT DATA'!AW102 -> 122378.9162 | AV169: =+'INPUT DATA'!AX102 -> 0 | AW169: =+'INPUT DATA'!AY102 -> 0 | AX169: =+'INPUT DATA'!AZ102 -> 0 | AY169: =+'INPUT DATA'!BA102 -> 0
C170: Income with low demand risk | H170: =+'INPUT DATA'!J103 -> 0 | I170: =+'INPUT DATA'!K103 -> 0 | J170: =+'INPUT DATA'!L103 -> 0 | K170: =+'INPUT DATA'!M103 -> 0 | L170: =+'INPUT DATA'!N103 -> 0 | M170: =+'INPUT DATA'!O103 -> 0 | N170: =+'INPUT DATA'!P103 -> 0 | O170: =+'INPUT DATA'!Q103 -> 0 | P170: =+'INPUT DATA'!R103 -> 0 | Q170: =+'INPUT DATA'!S103 -> 0 | R170: =+'INPUT DATA'!T103 -> 0 | S170: =+'INPUT DATA'!U103 -> 0 | T170: =+'INPUT DATA'!V103 -> 0 | U170: =+'INPUT DATA'!W103 -> 0 | V170: =+'INPUT DATA'!X103 -> 0 | W170: =+'INPUT DATA'!Y103 -> 0 | X170: =+'INPUT DATA'!Z103 -> 0 | Y170: =+'INPUT DATA'!AA103 -> 0 | Z170: =+'INPUT DATA'!AB103 -> 0 | AA170: =+'INPUT DATA'!AC103 -> 0 | AB170: =+'INPUT DATA'!AD103 -> 0 | AC170: =+'INPUT DATA'!AE103 -> 0 | AD170: =+'INPUT DATA'!AF103 -> 0 | AE170: =+'INPUT DATA'!AG103 -> 0 | AF170: =+'INPUT DATA'!AH103 -> 0 | AG170: =+'INPUT DATA'!AI103 -> 0 | AH170: =+'INPUT DATA'!AJ103 -> 0 | AI170: =+'INPUT DATA'!AK103 -> 0 | AJ170: =+'INPUT DATA'!AL103 -> 0 | AK170: =+'INPUT DATA'!AM103 -> 0 | AL170: =+'INPUT DATA'!AN103 -> 0 | AM170: =+'INPUT DATA'!AO103 -> 0 | AN170: =+'INPUT DATA'!AP103 -> 0 | AO170: =+'INPUT DATA'!AQ103 -> 0 | AP170: =+'INPUT DATA'!AR103 -> 0 | AQ170: =+'INPUT DATA'!AS103 -> 0 | AR170: =+'INPUT DATA'!AT103 -> 0 | AS170: =+'INPUT DATA'!AU103 -> 0 | AT170: =+'INPUT DATA'!AV103 -> 0 | AU170: =+'INPUT DATA'!AW103 -> 0 | AV170: =+'INPUT DATA'!AX103 -> 0 | AW170: =+'INPUT DATA'!AY103 -> 0 | AX170: =+'INPUT DATA'!AZ103 -> 0 | AY170: =+'INPUT DATA'!BA103 -> 0
C171: Income with demand risk | H171: =+'INPUT DATA'!J104 -> 0 | I171: =+'INPUT DATA'!K104 -> 0 | J171: =+'INPUT DATA'!L104 -> 0 | K171: =+'INPUT DATA'!M104 -> 0 | L171: =+'INPUT DATA'!N104 -> 0 | M171: =+'INPUT DATA'!O104 -> 0 | N171: =+'INPUT DATA'!P104 -> 0 | O171: =+'INPUT DATA'!Q104 -> 0 | P171: =+'INPUT DATA'!R104 -> 0 | Q171: =+'INPUT DATA'!S104 -> 0 | R171: =+'INPUT DATA'!T104 -> 0 | S171: =+'INPUT DATA'!U104 -> 0 | T171: =+'INPUT DATA'!V104 -> 0 | U171: =+'INPUT DATA'!W104 -> 0 | V171: =+'INPUT DATA'!X104 -> 0 | W171: =+'INPUT DATA'!Y104 -> 0 | X171: =+'INPUT DATA'!Z104 -> 0 | Y171: =+'INPUT DATA'!AA104 -> 0 | Z171: =+'INPUT DATA'!AB104 -> 0 | AA171: =+'INPUT DATA'!AC104 -> 0 | AB171: =+'INPUT DATA'!AD104 -> 0 | AC171: =+'INPUT DATA'!AE104 -> 0 | AD171: =+'INPUT DATA'!AF104 -> 0 | AE171: =+'INPUT DATA'!AG104 -> 0 | AF171: =+'INPUT DATA'!AH104 -> 0 | AG171: =+'INPUT DATA'!AI104 -> 0 | AH171: =+'INPUT DATA'!AJ104 -> 0 | AI171: =+'INPUT DATA'!AK104 -> 0 | AJ171: =+'INPUT DATA'!AL104 -> 0 | AK171: =+'INPUT DATA'!AM104 -> 0 | AL171: =+'INPUT DATA'!AN104 -> 0 | AM171: =+'INPUT DATA'!AO104 -> 0 | AN171: =+'INPUT DATA'!AP104 -> 0 | AO171: =+'INPUT DATA'!AQ104 -> 0 | AP171: =+'INPUT DATA'!AR104 -> 0 | AQ171: =+'INPUT DATA'!AS104 -> 0 | AR171: =+'INPUT DATA'!AT104 -> 0 | AS171: =+'INPUT DATA'!AU104 -> 0 | AT171: =+'INPUT DATA'!AV104 -> 0 | AU171: =+'INPUT DATA'!AW104 -> 0 | AV171: =+'INPUT DATA'!AX104 -> 0 | AW171: =+'INPUT DATA'!AY104 -> 0 | AX171: =+'INPUT DATA'!AZ104 -> 0 | AY171: =+'INPUT DATA'!BA104 -> 0
C172: Operating Costs | H172: =+'INPUT DATA'!J105 -> -85437.27613 | I172: =+'INPUT DATA'!K105 -> -88370.23313 | J172: =+'INPUT DATA'!L105 -> -88254.80778 | K172: =+'INPUT DATA'!M105 -> -88176.51021 | L172: =+'INPUT DATA'!N105 -> -89066.54344 | M172: =+'INPUT DATA'!O105 -> -88456.36842 | N172: =+'INPUT DATA'!P105 -> -89863.96554 | O172: =+'INPUT DATA'!Q105 -> -91327.21595 | P172: =+'INPUT DATA'!R105 -> -92770.72604 | Q172: =+'INPUT DATA'!S105 -> -91910.78532 | R172: =+'INPUT DATA'!T105 -> -93396.47038 | S172: =+'INPUT DATA'!U105 -> -95209.66539 | T172: =+'INPUT DATA'!V105 -> -36233.19787 | U172: =+'INPUT DATA'!W105 -> -36984.18038 | V172: =+'INPUT DATA'!X105 -> -37692.84971 | W172: =+'INPUT DATA'!Y105 -> -38412.67476 | X172: =+'INPUT DATA'!Z105 -> -39199.00123 | Y172: =+'INPUT DATA'!AA105 -> -40025.54347 | Z172: =+'INPUT DATA'!AB105 -> -40837.6432 | AA172: =+'INPUT DATA'!AC105 -> -41607.13224 | AB172: =+'INPUT DATA'!AD105 -> -42416.5337 | AC172: =+'INPUT DATA'!AE105 -> -43267.72896 | AD172: =+'INPUT DATA'!AF105 -> -44132.13453 | AE172: =+'INPUT DATA'!AG105 -> -45015.93841 | AF172: =+'INPUT DATA'!AH105 -> -39253.51412 | AG172: =+'INPUT DATA'!AI105 -> -19786.95133 | AH172: =+'INPUT DATA'!AJ105 -> -20175.83036 | AI172: =+'INPUT DATA'!AK105 -> -20572.48697 | AJ172: =+'INPUT DATA'!AL105 -> -20977.0767 | AK172: =+'INPUT DATA'!AM105 -> -21389.75824 | AL172: =+'INPUT DATA'!AN105 -> -21810.6934 | AM172: =+'INPUT DATA'!AO105 -> -22240.04727 | AN172: =+'INPUT DATA'!AP105 -> -22677.98822 | AO172: =+'INPUT DATA'!AQ105 -> -23124.68798 | AP172: =+'INPUT DATA'!AR105 -> -23580.32174 | AQ172: =+'INPUT DATA'!AS105 -> -24045.06818 | AR172: =+'INPUT DATA'!AT105 -> -24519.10954 | AS172: =+'INPUT DATA'!AU105 -> -25002.63173 | AT172: =+'INPUT DATA'!AV105 -> -25495.82436 | AU172: =+'INPUT DATA'!AW105 -> -12892.59571 | AV172: =+'INPUT DATA'!AX105 -> 0 | AW172: =+'INPUT DATA'!AY105 -> 0 | AX172: =+'INPUT DATA'!AZ105 -> 0 | AY172: =+'INPUT DATA'!BA105 -> 0
C173: Investment & Capex | H173: =+'INPUT DATA'!J106 -> -246354.2347 | I173: =+'INPUT DATA'!K106 -> -67611.15268 | J173: =+'INPUT DATA'!L106 -> -62049.54731 | K173: =+'INPUT DATA'!M106 -> -110119.1987 | L173: =+'INPUT DATA'!N106 -> -99676.56098 | M173: =+'INPUT DATA'!O106 -> -60817.04683 | N173: =+'INPUT DATA'!P106 -> -16255.00558 | O173: =+'INPUT DATA'!Q106 -> -18782.11979 | P173: =+'INPUT DATA'!R106 -> -18333.83652 | Q173: =+'INPUT DATA'!S106 -> -16575.44945 | R173: =+'INPUT DATA'!T106 -> -16589.02799 | S173: =+'INPUT DATA'!U106 -> -16820.13431 | T173: =+'INPUT DATA'!V106 -> -14205.3473 | U173: =+'INPUT DATA'!W106 -> -11467.2893 | V173: =+'INPUT DATA'!X106 -> -10351.58509 | W173: =+'INPUT DATA'!Y106 -> -10601.04974 | X173: =+'INPUT DATA'!Z106 -> -10985.50535 | Y173: =+'INPUT DATA'!AA106 -> -10892.39842 | Z173: =+'INPUT DATA'!AB106 -> -10306.64638 | AA173: =+'INPUT DATA'!AC106 -> -8253.879311 | AB173: =+'INPUT DATA'!AD106 -> -7774.064215 | AC173: =+'INPUT DATA'!AE106 -> -6974.444372 | AD173: =+'INPUT DATA'!AF106 -> -4166.573423 | AE173: =+'INPUT DATA'!AG106 -> -879.6636429 | AF173: =+'INPUT DATA'!AH106 -> 1355.413805 | AG173: =+'INPUT DATA'!AI106 -> -3162.63412 | AH173: =+'INPUT DATA'!AJ106 -> -6399.177623 | AI173: =+'INPUT DATA'!AK106 -> -6527.161176 | AJ173: =+'INPUT DATA'!AL106 -> -9016.559414 | AK173: =+'INPUT DATA'!AM106 -> -9196.890602 | AL173: =+'INPUT DATA'!AN106 -> -9380.828414 | AM173: =+'INPUT DATA'!AO106 -> -9568.444982 | AN173: =+'INPUT DATA'!AP106 -> -9759.813882 | AO173: =+'INPUT DATA'!AQ106 -> -7350.643621 | AP173: =+'INPUT DATA'!AR106 -> -7497.656493 | AQ173: =+'INPUT DATA'!AS106 -> -7647.609623 | AR173: =+'INPUT DATA'!AT106 -> -7800.561815 | AS173: =+'INPUT DATA'!AU106 -> -7956.573052 | AT173: =+'INPUT DATA'!AV106 -> -8115.704513 | AU173: =+'INPUT DATA'!AW106 -> -4104.990047 | AV173: =+'INPUT DATA'!AX106 -> 0 | AW173: =+'INPUT DATA'!AY106 -> 0 | AX173: =+'INPUT DATA'!AZ106 -> 0 | AY173: =+'INPUT DATA'!BA106 -> 0
C174: Into / Out Operating Reserve Accounts | H174: =+'INPUT DATA'!J107 -> 0 | I174: =+'INPUT DATA'!K107 -> 0 | J174: =+'INPUT DATA'!L107 -> 0 | K174: =+'INPUT DATA'!M107 -> 0 | L174: =+'INPUT DATA'!N107 -> 0 | M174: =+'INPUT DATA'!O107 -> 0 | N174: =+'INPUT DATA'!P107 -> 0 | O174: =+'INPUT DATA'!Q107 -> 0 | P174: =+'INPUT DATA'!R107 -> 0 | Q174: =+'INPUT DATA'!S107 -> 0 | R174: =+'INPUT DATA'!T107 -> 0 | S174: =+'INPUT DATA'!U107 -> 0 | T174: =+'INPUT DATA'!V107 -> 0 | U174: =+'INPUT DATA'!W107 -> 0 | V174: =+'INPUT DATA'!X107 -> 0 | W174: =+'INPUT DATA'!Y107 -> 0 | X174: =+'INPUT DATA'!Z107 -> 0 | Y174: =+'INPUT DATA'!AA107 -> 0 | Z174: =+'INPUT DATA'!AB107 -> 0 | AA174: =+'INPUT DATA'!AC107 -> 0 | AB174: =+'INPUT DATA'!AD107 -> 0 | AC174: =+'INPUT DATA'!AE107 -> 0 | AD174: =+'INPUT DATA'!AF107 -> 0 | AE174: =+'INPUT DATA'!AG107 -> 0 | AF174: =+'INPUT DATA'!AH107 -> 0 | AG174: =+'INPUT DATA'!AI107 -> 0 | AH174: =+'INPUT DATA'!AJ107 -> 0 | AI174: =+'INPUT DATA'!AK107 -> 0 | AJ174: =+'INPUT DATA'!AL107 -> 0 | AK174: =+'INPUT DATA'!AM107 -> 0 | AL174: =+'INPUT DATA'!AN107 -> 0 | AM174: =+'INPUT DATA'!AO107 -> 0 | AN174: =+'INPUT DATA'!AP107 -> 0 | AO174: =+'INPUT DATA'!AQ107 -> 0 | AP174: =+'INPUT DATA'!AR107 -> 0 | AQ174: =+'INPUT DATA'!AS107 -> 0 | AR174: =+'INPUT DATA'!AT107 -> 0 | AS174: =+'INPUT DATA'!AU107 -> 0 | AT174: =+'INPUT DATA'!AV107 -> 0 | AU174: =+'INPUT DATA'!AW107 -> 0 | AV174: =+'INPUT DATA'!AX107 -> 0 | AW174: =+'INPUT DATA'!AY107 -> 0 | AX174: =+'INPUT DATA'!AZ107 -> 0 | AY174: =+'INPUT DATA'!BA107 -> 0
C175: Operating Cash Flow | H175: =+H168+H172+H173+H174 -> -135534.4834 | I175: 119979.2447 | J175: 124428.0733 | K175: 77815.60277 | L175: 90194.29916 | M175: 135375.8556 | N175: 181948.9313 | O175: 181905.4142 | P175: 185378.0265 | Q175: 190212.4646 | R175: 190674.7258 | S175: 190982.9973 | T175: 148241.7222 | U175: 155395.812 | V175: 161092.8453 | W175: 165542.6947 | X175: 169918.9649 | Y175: 174863.5542 | Z175: 180450.8343 | AA175: 186191.198 | AB175: 190376.601 | AC175: 194918.3544 | AD175: 201524.1244 | AE175: 207716.4926 | AF175: 201386.3821 | AG175: 166465.8397 | AH175: 166528.7677 | AI175: 169776.8226 | AJ175: 170726.492 | AK175: 174056.4609 | AL175: 177457.1152 | AM175: 180941.8448 | AN175: 184487.579 | AO175: 190716.0446 | AP175: 194462.9261 | AQ175: 198309.3489 | AR175: 202221.4938 | AS175: 206218.0694 | AT175: 210288.2685 | AU175: 105381.3304 | AV175: 0 | AW175: 0 | AX175: 0 | AY175: 0
C176: Taxes | H176: =+'INPUT DATA'!J109 -> 56.09463191 | I176: =+'INPUT DATA'!K109 -> -11424.58919 | J176: =+'INPUT DATA'!L109 -> -25236.45115 | K176: =+'INPUT DATA'!M109 -> -18642.93172 | L176: =+'INPUT DATA'!N109 -> -17210.37895 | M176: =+'INPUT DATA'!O109 -> -15670.4808 | N176: =+'INPUT DATA'!P109 -> -16220.24091 | O176: =+'INPUT DATA'!Q109 -> -19412.24194 | P176: =+'INPUT DATA'!R109 -> -21928.17721 | Q176: =+'INPUT DATA'!S109 -> -23885.73456 | R176: =+'INPUT DATA'!T109 -> -24328.56655 | S176: =+'INPUT DATA'!U109 -> -24472.59551 | T176: =+'INPUT DATA'!V109 -> -24809.89529 | U176: =+'INPUT DATA'!W109 -> -26053.13233 | V176: =+'INPUT DATA'!X109 -> -27454.78529 | W176: =+'INPUT DATA'!Y109 -> -28976.20811 | X176: =+'INPUT DATA'!Z109 -> -30513.36052 | Y176: =+'INPUT DATA'!AA109 -> -32071.2809 | Z176: =+'INPUT DATA'!AB109 -> -33710.54746 | AA176: =+'INPUT DATA'!AC109 -> -35455.61472 | AB176: =+'INPUT DATA'!AD109 -> -36574.73088 | AC176: =+'INPUT DATA'!AE109 -> -38097.11616 | AD176: =+'INPUT DATA'!AF109 -> -39612.69313 | AE176: =+'INPUT DATA'!AG109 -> -41172.55385 | AF176: =+'INPUT DATA'!AH109 -> -40743.17481 | AG176: =+'INPUT DATA'!AI109 -> -39482.04372 | AH176: =+'INPUT DATA'!AJ109 -> -41084.85603 | AI176: =+'INPUT DATA'!AK109 -> -41510.89546 | AJ176: =+'INPUT DATA'!AL109 -> -42139.26396 | AK176: =+'INPUT DATA'!AM109 -> -42913.43205 | AL176: =+'INPUT DATA'!AN109 -> -43600.87414 | AM176: =+'INPUT DATA'!AO109 -> -44319.01113 | AN176: =+'INPUT DATA'!AP109 -> -45011.65088 | AO176: =+'INPUT DATA'!AQ109 -> -45667.59677 | AP176: =+'INPUT DATA'!AR109 -> -46326.55077 | AQ176: =+'INPUT DATA'!AS109 -> -47073.02997 | AR176: =+'INPUT DATA'!AT109 -> -47643.75726 | AS176: =+'INPUT DATA'!AU109 -> -48032.12397 | AT176: =+'INPUT DATA'!AV109 -> -48171.61471 | AU176: =+'INPUT DATA'!AW109 -> -19134.42262 | AV176: =+'INPUT DATA'!AX109 -> 0 | AW176: =+'INPUT DATA'!AY109 -> 0 | AX176: =+'INPUT DATA'!AZ109 -> 0 | AY176: =+'INPUT DATA'!BA109 -> 0
C177: Operating Cash Flow After Tax | H177: =+H175+H176 -> -135478.3888 | I177: 108554.6556 | J177: 99191.62211 | K177: 59172.67104 | L177: 72983.92021 | M177: 119705.3748 | N177: 165728.6904 | O177: 162493.1722 | P177: 163449.8493 | Q177: 166326.73 | R177: 166346.1592 | S177: 166510.4018 | T177: 123431.827 | U177: 129342.6797 | V177: 133638.06 | W177: 136566.4866 | X177: 139405.6044 | Y177: 142792.2733 | Z177: 146740.2869 | AA177: 150735.5833 | AB177: 153801.8701 | AC177: 156821.2383 | AD177: 161911.4313 | AE177: 166543.9387 | AF177: 160643.2073 | AG177: 126983.796 | AH177: 125443.9117 | AI177: 128265.9271 | AJ177: 128587.2281 | AK177: 131143.0288 | AL177: 133856.2411 | AM177: 136622.8336 | AN177: 139475.9281 | AO177: 145048.4478 | AP177: 148136.3753 | AQ177: 151236.3189 | AR177: 154577.7365 | AS177: 158185.9455 | AT177: 162116.6538 | AU177: 86246.9078 | AV177: 0 | AW177: 0 | AX177: 0 | AY177: 0
C178: Debt Service | H178: =+'INPUT DATA'!J111 -> 19092.32415 | I178: =+'INPUT DATA'!K111 -> -109560.5106 | J178: =+'INPUT DATA'!L111 -> -118926.3911 | K178: =+'INPUT DATA'!M111 -> -40893.13972 | L178: =+'INPUT DATA'!N111 -> -20059.33692 | M178: =+'INPUT DATA'!O111 -> -63118.91326 | N178: =+'INPUT DATA'!P111 -> -76741.46313 | O178: =+'INPUT DATA'!Q111 -> -83485.6252 | P178: =+'INPUT DATA'!R111 -> -88794.83884 | Q178: =+'INPUT DATA'!S111 -> -90281.28169 | R178: =+'INPUT DATA'!T111 -> -88166.42557 | S178: =+'INPUT DATA'!U111 -> -74168.4201 | T178: =+'INPUT DATA'!V111 -> -63359.92231 | U178: =+'INPUT DATA'!W111 -> -65633.25637 | V178: =+'INPUT DATA'!X111 -> -66923.63071 | W178: =+'INPUT DATA'!Y111 -> -68260.44457 | X178: =+'INPUT DATA'!Z111 -> -70286.05443 | Y178: =+'INPUT DATA'!AA111 -> -71907.93613 | Z178: =+'INPUT DATA'!AB111 -> -75150.44281 | AA178: =+'INPUT DATA'!AC111 -> -76367.22646 | AB178: =+'INPUT DATA'!AD111 -> -77323.50067 | AC178: =+'INPUT DATA'!AE111 -> -79064.73991 | AD178: =+'INPUT DATA'!AF111 -> -62913.03133 | AE178: =+'INPUT DATA'!AG111 -> -56524.07585 | AF178: =+'INPUT DATA'!AH111 -> -58087.65115 | AG178: =+'INPUT DATA'!AI111 -> 30.23308943 | AH178: =+'INPUT DATA'!AJ111 -> 0 | AI178: =+'INPUT DATA'!AK111 -> 0 | AJ178: =+'INPUT DATA'!AL111 -> 0 | AK178: =+'INPUT DATA'!AM111 -> 0 | AL178: =+'INPUT DATA'!AN111 -> 0 | AM178: =+'INPUT DATA'!AO111 -> 0 | AN178: =+'INPUT DATA'!AP111 -> 0 | AO178: =+'INPUT DATA'!AQ111 -> 0 | AP178: =+'INPUT DATA'!AR111 -> 0 | AQ178: =+'INPUT DATA'!AS111 -> 0 | AR178: =+'INPUT DATA'!AT111 -> 0 | AS178: =+'INPUT DATA'!AU111 -> 0 | AT178: =+'INPUT DATA'!AV111 -> 0 | AU178: =+'INPUT DATA'!AW111 -> 0 | AV178: =+'INPUT DATA'!AX111 -> 0 | AW178: =+'INPUT DATA'!AY111 -> 0 | AX178: =+'INPUT DATA'!AZ111 -> 0 | AY178: =+'INPUT DATA'!BA111 -> 0
C179: Interest income | H179: =+'INPUT DATA'!J112 -> 0 | I179: =+'INPUT DATA'!K112 -> 0 | J179: =+'INPUT DATA'!L112 -> 0 | K179: =+'INPUT DATA'!M112 -> 0 | L179: =+'INPUT DATA'!N112 -> 0 | M179: =+'INPUT DATA'!O112 -> 0 | N179: =+'INPUT DATA'!P112 -> 0 | O179: =+'INPUT DATA'!Q112 -> 0 | P179: =+'INPUT DATA'!R112 -> 0 | Q179: =+'INPUT DATA'!S112 -> 0 | R179: =+'INPUT DATA'!T112 -> 0 | S179: =+'INPUT DATA'!U112 -> 0 | T179: =+'INPUT DATA'!V112 -> 0 | U179: =+'INPUT DATA'!W112 -> 0 | V179: =+'INPUT DATA'!X112 -> 0 | W179: =+'INPUT DATA'!Y112 -> 0 | X179: =+'INPUT DATA'!Z112 -> 0 | Y179: =+'INPUT DATA'!AA112 -> 0 | Z179: =+'INPUT DATA'!AB112 -> 0 | AA179: =+'INPUT DATA'!AC112 -> 0 | AB179: =+'INPUT DATA'!AD112 -> 0 | AC179: =+'INPUT DATA'!AE112 -> 0 | AD179: =+'INPUT DATA'!AF112 -> 0 | AE179: =+'INPUT DATA'!AG112 -> 0 | AF179: =+'INPUT DATA'!AH112 -> 0 | AG179: =+'INPUT DATA'!AI112 -> 0 | AH179: =+'INPUT DATA'!AJ112 -> 0 | AI179: =+'INPUT DATA'!AK112 -> 0 | AJ179: =+'INPUT DATA'!AL112 -> 0 | AK179: =+'INPUT DATA'!AM112 -> 0 | AL179: =+'INPUT DATA'!AN112 -> 0 | AM179: =+'INPUT DATA'!AO112 -> 0 | AN179: =+'INPUT DATA'!AP112 -> 0 | AO179: =+'INPUT DATA'!AQ112 -> 0 | AP179: =+'INPUT DATA'!AR112 -> 0 | AQ179: =+'INPUT DATA'!AS112 -> 0 | AR179: =+'INPUT DATA'!AT112 -> 0 | AS179: =+'INPUT DATA'!AU112 -> 0 | AT179: =+'INPUT DATA'!AV112 -> 0 | AU179: =+'INPUT DATA'!AW112 -> 0 | AV179: =+'INPUT DATA'!AX112 -> 0 | AW179: =+'INPUT DATA'!AY112 -> 0 | AX179: =+'INPUT DATA'!AZ112 -> 0 | AY179: =+'INPUT DATA'!BA112 -> 0
C180: Free Cash Flow To Equity | H180: =+H177+H178+H179 -> -116386.0646 | I180: -1005.855071 | J180: -19734.76899 | K180: 18279.53132 | L180: 52924.58329 | M180: 56586.46156 | N180: 88987.22725 | O180: 79007.54703 | P180: 74655.01045 | Q180: 76045.44831 | R180: 78179.73365 | S180: 92341.98172 | T180: 60071.90464 | U180: 63709.42331 | V180: 66714.42933 | W180: 68306.04201 | X180: 69119.54996 | Y180: 70884.33719 | Z180: 71589.84404 | AA180: 74368.35684 | AB180: 76478.36941 | AC180: 77756.49834 | AD180: 98998.39995 | AE180: 110019.8629 | AF180: 102555.5561 | AG180: 127014.0291 | AH180: 125443.9117 | AI180: 128265.9271 | AJ180: 128587.2281 | AK180: 131143.0288 | AL180: 133856.2411 | AM180: 136622.8336 | AN180: 139475.9281 | AO180: 145048.4478 | AP180: 148136.3753 | AQ180: 151236.3189 | AR180: 154577.7365 | AS180: 158185.9455 | AT180: 162116.6538 | AU180: 86246.9078 | AV180: 0 | AW180: 0 | AX180: 0 | AY180: 0
C181: Distributions to Shareholders | H181: =+'INPUT DATA'!J114 -> -10464.26755 | I181: =+'INPUT DATA'!K114 -> -5075.964684 | J181: =+'INPUT DATA'!L114 -> -5063.598571 | K181: =+'INPUT DATA'!M114 -> -23894.58656 | L181: =+'INPUT DATA'!N114 -> -54240.45295 | M181: =+'INPUT DATA'!O114 -> -89095.25206 | N181: =+'INPUT DATA'!P114 -> -70319.75908 | O181: =+'INPUT DATA'!Q114 -> -81337.49397 | P181: =+'INPUT DATA'!R114 -> -64382.91949 | Q181: =+'INPUT DATA'!S114 -> -67570.40652 | R181: =+'INPUT DATA'!T114 -> -68608.92971 | S181: =+'INPUT DATA'!U114 -> -127335.0081 | T181: =+'INPUT DATA'!V114 -> -59472.15186 | U181: =+'INPUT DATA'!W114 -> -63203.71508 | V181: =+'INPUT DATA'!X114 -> -66139.78088 | W181: =+'INPUT DATA'!Y114 -> -67772.48729 | X181: =+'INPUT DATA'!Z114 -> -68808.37149 | Y181: =+'INPUT DATA'!AA114 -> -70729.12313 | Z181: =+'INPUT DATA'!AB114 -> -70996.52139 | AA181: =+'INPUT DATA'!AC114 -> -74320.91319 | AB181: =+'INPUT DATA'!AD114 -> -75758.79163 | AC181: =+'INPUT DATA'!AE114 -> -77138.58893 | AD181: =+'INPUT DATA'!AF114 -> -97823.41323 | AE181: =+'INPUT DATA'!AG114 -> -87161.62021 | AF181: =+'INPUT DATA'!AH114 -> -123124.0081 | AG181: =+'INPUT DATA'!AI114 -> -98915.28299 | AH181: =+'INPUT DATA'!AJ114 -> -124969.3869 | AI181: =+'INPUT DATA'!AK114 -> -126974.0127 | AJ181: =+'INPUT DATA'!AL114 -> -128582.2776 | AK181: =+'INPUT DATA'!AM114 -> -129934.4908 | AL181: =+'INPUT DATA'!AN114 -> -132829.8311 | AM181: =+'INPUT DATA'!AO114 -> -135057.7605 | AN181: =+'INPUT DATA'!AP114 -> -138111.9834 | AO181: =+'INPUT DATA'!AQ114 -> -142318.218 | AP181: =+'INPUT DATA'!AR114 -> -146920.2187 | AQ181: =+'INPUT DATA'!AS114 -> -149454.5816 | AR181: =+'INPUT DATA'!AT114 -> -152986.862 | AS181: =+'INPUT DATA'!AU114 -> -156479.5378 | AT181: =+'INPUT DATA'!AV114 -> -160553.0143 | AU181: =+'INPUT DATA'!AW114 -> -163262.2299 | AV181: =+'INPUT DATA'!AX114 -> 0 | AW181: =+'INPUT DATA'!AY114 -> 0 | AX181: =+'INPUT DATA'!AZ114 -> 0 | AY181: =+'INPUT DATA'!BA114 -> 0
C182: Equity | H182: =+'INPUT DATA'!J115 -> 35161.63927 | I182: =+'INPUT DATA'!K115 -> 48138.36073 | J182: =+'INPUT DATA'!L115 -> 0 | K182: =+'INPUT DATA'!M115 -> 0 | L182: =+'INPUT DATA'!N115 -> 0 | M182: =+'INPUT DATA'!O115 -> 0 | N182: =+'INPUT DATA'!P115 -> 0 | O182: =+'INPUT DATA'!Q115 -> 0 | P182: =+'INPUT DATA'!R115 -> 0 | Q182: =+'INPUT DATA'!S115 -> 0 | R182: =+'INPUT DATA'!T115 -> 0 | S182: =+'INPUT DATA'!U115 -> 0 | T182: =+'INPUT DATA'!V115 -> 0 | U182: =+'INPUT DATA'!W115 -> 0 | V182: =+'INPUT DATA'!X115 -> 0 | W182: =+'INPUT DATA'!Y115 -> 0 | X182: =+'INPUT DATA'!Z115 -> 0 | Y182: =+'INPUT DATA'!AA115 -> 0 | Z182: =+'INPUT DATA'!AB115 -> 0 | AA182: =+'INPUT DATA'!AC115 -> 0 | AB182: =+'INPUT DATA'!AD115 -> 0 | AC182: =+'INPUT DATA'!AE115 -> 0 | AD182: =+'INPUT DATA'!AF115 -> 0 | AE182: =+'INPUT DATA'!AG115 -> 0 | AF182: =+'INPUT DATA'!AH115 -> 0 | AG182: =+'INPUT DATA'!AI115 -> 0 | AH182: =+'INPUT DATA'!AJ115 -> 0 | AI182: =+'INPUT DATA'!AK115 -> 0 | AJ182: =+'INPUT DATA'!AL115 -> 0 | AK182: =+'INPUT DATA'!AM115 -> 0 | AL182: =+'INPUT DATA'!AN115 -> 0 | AM182: =+'INPUT DATA'!AO115 -> 0 | AN182: =+'INPUT DATA'!AP115 -> 0 | AO182: =+'INPUT DATA'!AQ115 -> 0 | AP182: =+'INPUT DATA'!AR115 -> 0 | AQ182: =+'INPUT DATA'!AS115 -> 0 | AR182: =+'INPUT DATA'!AT115 -> 0 | AS182: =+'INPUT DATA'!AU115 -> 0 | AT182: =+'INPUT DATA'!AV115 -> 0 | AU182: =+'INPUT DATA'!AW115 -> 0 | AV182: =+'INPUT DATA'!AX115 -> 0 | AW182: =+'INPUT DATA'!AY115 -> 0 | AX182: =+'INPUT DATA'!AZ115 -> 0 | AY182: =+'INPUT DATA'!BA115 -> 0
C183: Net Cash Flow | H183: =+H180+H181+H182 -> -91688.69289 | I183: 42056.54097 | J183: -24798.36756 | K183: -5615.055235 | L183: -1315.869658 | M183: -32508.79049 | N183: 18667.46818 | O183: -2329.946946 | P183: 10272.09096 | Q183: 8475.041791 | R183: 9570.803943 | S183: -34993.02634 | T183: 599.7527818 | U183: 505.7082331 | V183: 574.6484447 | W183: 533.5547156 | X183: 311.1784753 | Y183: 155.2140589 | Z183: 593.3226508 | AA183: 47.44365737 | AB183: 719.5777769 | AC183: 617.909417 | AD183: 1174.986726 | AE183: 22858.24267 | AF183: -20568.45195 | AG183: 28098.74609 | AH183: 474.5247898 | AI183: 1291.914407 | AJ183: 4.950450399 | AK183: 1208.537973 | AL183: 1026.409917 | AM183: 1565.073119 | AN183: 1363.944783 | AO183: 2730.229809 | AP183: 1216.156581 | AQ183: 1781.737339 | AR183: 1590.87454 | AS183: 1706.407691 | AT183: 1563.639551 | AU183: -77015.32213 | AV183: 0 | AW183: 0 | AX183: 0 | AY183: 0
C184: Cash EoP | G184: =+'INPUT DATA'!I117 -> 127476.8191 | H184: =+H183+G184 -> 35788.12625 | I184: 77844.66722 | J184: 53046.29966 | K184: 47431.24442 | L184: 46115.37477 | M184: 13606.58427 | N184: 32274.05245 | O184: 29944.1055 | P184: 40216.19646 | Q184: 48691.23825 | R184: 58262.04219 | S184: 23269.01586 | T184: 23868.76864 | U184: 24374.47687 | V184: 24949.12532 | W184: 25482.68003 | X184: 25793.85851 | Y184: 25949.07257 | Z184: 26542.39522 | AA184: 26589.83887 | AB184: 27309.41665 | AC184: 27927.32607 | AD184: 29102.3128 | AE184: 51960.55547 | AF184: 31392.10352 | AG184: 59490.84961 | AH184: 59965.3744 | AI184: 61257.28881 | AJ184: 61262.23926 | AK184: 62470.77723 | AL184: 63497.18715 | AM184: 65062.26027 | AN184: 66426.20505 | AO184: 69156.43486 | AP184: 70372.59144 | AQ184: 72154.32878 | AR184: 73745.20332 | AS184: 75451.61101 | AT184: 77015.25056 | AU184: -0.07156740477 | AV184: -0.07156740477 | AW184: -0.07156740477 | AX184: -0.07156740477 | AY184: -0.07156740477
A189: 1 | C189: Uruguay
C191: =+"Cash Flow "&C189&" - [000' EUR]" -> Cash Flow Uruguay - [000' EUR]
C192: Year | G192: 2021 | H192: =+H$12 -> 2022 | I192: 2023 | J192: 2024 | K192: 2025 | L192: 2026 | M192: 2027 | N192: 2028 | O192: 2029 | P192: 2030 | Q192: 2031 | R192: 2032 | S192: 2033 | T192: 2034 | U192: 2035 | V192: 2036 | W192: 2037 | X192: 2038 | Y192: 2039 | Z192: 2040 | AA192: 2041 | AB192: 2042 | AC192: 2043 | AD192: 2044 | AE192: 2045 | AF192: 2046 | AG192: 2047 | AH192: 2048 | AI192: 2049 | AJ192: 2050 | AK192: 2051 | AL192: 2052 | AM192: 2053 | AN192: 2054 | AO192: 2055 | AP192: 2056 | AQ192: 2057 | AR192: 2058 | AS192: 2059 | AT192: 2060 | AU192: 2061 | AV192: 2062 | AW192: 2063 | AX192: 2064 | AY192: 2065
C193: Income | H193: =+H194+H195+H196 -> 9346.078241 | I193: 58153.6593 | J193: 58081.41334 | K193: 59014.30208 | L193: 60151.53032 | M193: 61354.57339 | N193: 62763.36369 | O193: 63977.80079 | P193: 65407.12065 | Q193: 66922.66707 | R193: 68670.19261 | S193: 70238.44319 | T193: 72051.18396 | U193: 73977.49392 | V193: 76169.93427 | W193: 78205.51388 | X193: 77332.19887 | Y193: 28969.54586 | Z193: 31370.67721 | AA193: 19498.5728 | AB193: 0 | AC193: 0 | AD193: 0 | AE193: 0 | AF193: 0 | AG193: 0 | AH193: 0 | AI193: 0 | AJ193: 0 | AK193: 0 | AL193: 0 | AM193: 0 | AN193: 0 | AO193: 0 | AP193: 0 | AQ193: 0 | AR193: 0 | AS193: 0 | AT193: 0 | AU193: 0 | AV193: 0 | AW193: 0 | AX193: 0 | AY193: 0
C194: Income with mitigated demand risk | H194: =+'INPUT DATA'!J127 -> 8161.604458 | I194: =+'INPUT DATA'!K127 -> 56863.95508 | J194: =+'INPUT DATA'!L127 -> 56686.5728 | K194: =+'INPUT DATA'!M127 -> 57507.32146 | L194: =+'INPUT DATA'!N127 -> 58508.61281 | M194: =+'INPUT DATA'!O127 -> 59563.11493 | N194: =+'INPUT DATA'!P127 -> 60809.52323 | O194: =+'INPUT DATA'!Q127 -> 61846.41464 | P194: =+'INPUT DATA'!R127 -> 63081.57344 | Q194: =+'INPUT DATA'!S127 -> 64384.75008 | R194: =+'INPUT DATA'!T127 -> 65899.94793 | S194: =+'INPUT DATA'!U127 -> 67213.9925 | T194: =+'INPUT DATA'!V127 -> 68748.54027 | U194: =+'INPUT DATA'!W127 -> 70370.35457 | V194: =+'INPUT DATA'!X127 -> 72229.45339 | W194: =+'INPUT DATA'!Y127 -> 73900.05213 | X194: =+'INPUT DATA'!Z127 -> 72627.04823 | Y194: =+'INPUT DATA'!AA127 -> 23826.62704 | Z194: =+'INPUT DATA'!AB127 -> 25748.20668 | AA194: =+'INPUT DATA'!AC127 -> 15910.90811 | AB194: =+'INPUT DATA'!AD127 -> 0 | AC194: =+'INPUT DATA'!AE127 -> 0 | AD194: =+'INPUT DATA'!AF127 -> 0 | AE194: =+'INPUT DATA'!AG127 -> 0 | AF194: =+'INPUT DATA'!AH127 -> 0 | AG194: =+'INPUT DATA'!AI127 -> 0 | AH194: =+'INPUT DATA'!AJ127 -> 0 | AI194: =+'INPUT DATA'!AK127 -> 0 | AJ194: =+'INPUT DATA'!AL127 -> 0 | AK194: =+'INPUT DATA'!AM127 -> 0 | AL194: =+'INPUT DATA'!AN127 -> 0 | AM194: =+'INPUT DATA'!AO127 -> 0 | AN194: =+'INPUT DATA'!AP127 -> 0 | AO194: =+'INPUT DATA'!AQ127 -> 0 | AP194: =+'INPUT DATA'!AR127 -> 0 | AQ194: =+'INPUT DATA'!AS127 -> 0 | AR194: =+'INPUT DATA'!AT127 -> 0 | AS194: =+'INPUT DATA'!AU127 -> 0 | AT194: =+'INPUT DATA'!AV127 -> 0 | AU194: =+'INPUT DATA'!AW127 -> 0 | AV194: =+'INPUT DATA'!AX127 -> 0 | AW194: =+'INPUT DATA'!AY127 -> 0 | AX194: =+'INPUT DATA'!AZ127 -> 0 | AY194: =+'INPUT DATA'!BA127 -> 0
C195: Income with low demand risk | H195: =+'INPUT DATA'!J128 -> 0 | I195: =+'INPUT DATA'!K128 -> 0 | J195: =+'INPUT DATA'!L128 -> 0 | K195: =+'INPUT DATA'!M128 -> 0 | L195: =+'INPUT DATA'!N128 -> 0 | M195: =+'INPUT DATA'!O128 -> 0 | N195: =+'INPUT DATA'!P128 -> 0 | O195: =+'INPUT DATA'!Q128 -> 0 | P195: =+'INPUT DATA'!R128 -> 0 | Q195: =+'INPUT DATA'!S128 -> 0 | R195: =+'INPUT DATA'!T128 -> 0 | S195: =+'INPUT DATA'!U128 -> 0 | T195: =+'INPUT DATA'!V128 -> 0 | U195: =+'INPUT DATA'!W128 -> 0 | V195: =+'INPUT DATA'!X128 -> 0 | W195: =+'INPUT DATA'!Y128 -> 0 | X195: =+'INPUT DATA'!Z128 -> 0 | Y195: =+'INPUT DATA'!AA128 -> 0 | Z195: =+'INPUT DATA'!AB128 -> 0 | AA195: =+'INPUT DATA'!AC128 -> 0 | AB195: =+'INPUT DATA'!AD128 -> 0 | AC195: =+'INPUT DATA'!AE128 -> 0 | AD195: =+'INPUT DATA'!AF128 -> 0 | AE195: =+'INPUT DATA'!AG128 -> 0 | AF195: =+'INPUT DATA'!AH128 -> 0 | AG195: =+'INPUT DATA'!AI128 -> 0 | AH195: =+'INPUT DATA'!AJ128 -> 0 | AI195: =+'INPUT DATA'!AK128 -> 0 | AJ195: =+'INPUT DATA'!AL128 -> 0 | AK195: =+'INPUT DATA'!AM128 -> 0 | AL195: =+'INPUT DATA'!AN128 -> 0 | AM195: =+'INPUT DATA'!AO128 -> 0 | AN195: =+'INPUT DATA'!AP128 -> 0 | AO195: =+'INPUT DATA'!AQ128 -> 0 | AP195: =+'INPUT DATA'!AR128 -> 0 | AQ195: =+'INPUT DATA'!AS128 -> 0 | AR195: =+'INPUT DATA'!AT128 -> 0 | AS195: =+'INPUT DATA'!AU128 -> 0 | AT195: =+'INPUT DATA'!AV128 -> 0 | AU195: =+'INPUT DATA'!AW128 -> 0 | AV195: =+'INPUT DATA'!AX128 -> 0 | AW195: =+'INPUT DATA'!AY128 -> 0 | AX195: =+'INPUT DATA'!AZ128 -> 0 | AY195: =+'INPUT DATA'!BA128 -> 0
C196: Income with demand risk | H196: =+'INPUT DATA'!J129 -> 1184.473783 | I196: =+'INPUT DATA'!K129 -> 1289.704217 | J196: =+'INPUT DATA'!L129 -> 1394.840536 | K196: =+'INPUT DATA'!M129 -> 1506.980622 | L196: =+'INPUT DATA'!N129 -> 1642.917511 | M196: =+'INPUT DATA'!O129 -> 1791.458466 | N196: =+'INPUT DATA'!P129 -> 1953.840457 | O196: =+'INPUT DATA'!Q129 -> 2131.386157 | P196: =+'INPUT DATA'!R129 -> 2325.547209 | Q196: =+'INPUT DATA'!S129 -> 2537.916993 | R196: =+'INPUT DATA'!T129 -> 2770.244681 | S196: =+'INPUT DATA'!U129 -> 3024.450689 | T196: =+'INPUT DATA'!V129 -> 3302.643696 | U196: =+'INPUT DATA'!W129 -> 3607.139351 | V196: =+'INPUT DATA'!X129 -> 3940.480882 | W196: =+'INPUT DATA'!Y129 -> 4305.461755 | X196: =+'INPUT DATA'!Z129 -> 4705.150632 | Y196: =+'INPUT DATA'!AA129 -> 5142.918826 | Z196: =+'INPUT DATA'!AB129 -> 5622.470536 | AA196: =+'INPUT DATA'!AC129 -> 3587.664692 | AB196: =+'INPUT DATA'!AD129 -> 0 | AC196: =+'INPUT DATA'!AE129 -> 0 | AD196: =+'INPUT DATA'!AF129 -> 0 | AE196: =+'INPUT DATA'!AG129 -> 0 | AF196: =+'INPUT DATA'!AH129 -> 0 | AG196: =+'INPUT DATA'!AI129 -> 0 | AH196: =+'INPUT DATA'!AJ129 -> 0 | AI196: =+'INPUT DATA'!AK129 -> 0 | AJ196: =+'INPUT DATA'!AL129 -> 0 | AK196: =+'INPUT DATA'!AM129 -> 0 | AL196: =+'INPUT DATA'!AN129 -> 0 | AM196: =+'INPUT DATA'!AO129 -> 0 | AN196: =+'INPUT DATA'!AP129 -> 0 | AO196: =+'INPUT DATA'!AQ129 -> 0 | AP196: =+'INPUT DATA'!AR129 -> 0 | AQ196: =+'INPUT DATA'!AS129 -> 0 | AR196: =+'INPUT DATA'!AT129 -> 0 | AS196: =+'INPUT DATA'!AU129 -> 0 | AT196: =+'INPUT DATA'!AV129 -> 0 | AU196: =+'INPUT DATA'!AW129 -> 0 | AV196: =+'INPUT DATA'!AX129 -> 0 | AW196: =+'INPUT DATA'!AY129 -> 0 | AX196: =+'INPUT DATA'!AZ129 -> 0 | AY196: =+'INPUT DATA'!BA129 -> 0
C197: Operating Costs | H197: =+'INPUT DATA'!J130 -> -1586.726261 | I197: =+'INPUT DATA'!K130 -> -5484.591611 | J197: =+'INPUT DATA'!L130 -> -6610.754837 | K197: =+'INPUT DATA'!M130 -> -7016.637716 | L197: =+'INPUT DATA'!N130 -> -7378.602486 | M197: =+'INPUT DATA'!O130 -> -7670.457344 | N197: =+'INPUT DATA'!P130 -> -7968.841406 | O197: =+'INPUT DATA'!Q130 -> -8318.190272 | P197: =+'INPUT DATA'!R130 -> -8635.00401 | Q197: =+'INPUT DATA'!S130 -> -8987.101363 | R197: =+'INPUT DATA'!T130 -> -9388.963116 | S197: =+'INPUT DATA'!U130 -> -9829.332599 | T197: =+'INPUT DATA'!V130 -> -10874.10544 | U197: =+'INPUT DATA'!W130 -> -11665.95551 | V197: =+'INPUT DATA'!X130 -> -12163.67295 | W197: =+'INPUT DATA'!Y130 -> -12099.09738 | X197: =+'INPUT DATA'!Z130 -> -8771.758774 | Y197: =+'INPUT DATA'!AA130 -> -5330.43618 | Z197: =+'INPUT DATA'!AB130 -> -6825.378545 | AA197: =+'INPUT DATA'!AC130 -> -3483.135271 | AB197: =+'INPUT DATA'!AD130 -> 0 | AC197: =+'INPUT DATA'!AE130 -> 0 | AD197: =+'INPUT DATA'!AF130 -> 0 | AE197: =+'INPUT DATA'!AG130 -> 0 | AF197: =+'INPUT DATA'!AH130 -> 0 | AG197: =+'INPUT DATA'!AI130 -> 0 | AH197: =+'INPUT DATA'!AJ130 -> 0 | AI197: =+'INPUT DATA'!AK130 -> 0 | AJ197: =+'INPUT DATA'!AL130 -> 0 | AK197: =+'INPUT DATA'!AM130 -> 0 | AL197: =+'INPUT DATA'!AN130 -> 0 | AM197: =+'INPUT DATA'!AO130 -> 0 | AN197: =+'INPUT DATA'!AP130 -> 0 | AO197: =+'INPUT DATA'!AQ130 -> 0 | AP197: =+'INPUT DATA'!AR130 -> 0 | AQ197: =+'INPUT DATA'!AS130 -> 0 | AR197: =+'INPUT DATA'!AT130 -> 0 | AS197: =+'INPUT DATA'!AU130 -> 0 | AT197: =+'INPUT DATA'!AV130 -> 0 | AU197: =+'INPUT DATA'!AW130 -> 0 | AV197: =+'INPUT DATA'!AX130 -> 0 | AW197: =+'INPUT DATA'!AY130 -> 0 | AX197: =+'INPUT DATA'!AZ130 -> 0 | AY197: =+'INPUT DATA'!BA130 -> 0
C198: Investment & Capex | H198: =+'INPUT DATA'!J131 -> -100856.5503 | I198: =+'INPUT DATA'!K131 -> -19907.46524 | J198: =+'INPUT DATA'!L131 -> -2547.034253 | K198: =+'INPUT DATA'!M131 -> -2590.114193 | L198: =+'INPUT DATA'!N131 -> -3648.3511 | M198: =+'INPUT DATA'!O131 -> -3367.019132 | N198: =+'INPUT DATA'!P131 -> -2214.155779 | O198: =+'INPUT DATA'!Q131 -> -3050.532393 | P198: =+'INPUT DATA'!R131 -> -2690.919239 | Q198: =+'INPUT DATA'!S131 -> -2361.802127 | R198: =+'INPUT DATA'!T131 -> -1649.249161 | S198: =+'INPUT DATA'!U131 -> -1514.644341 | T198: =+'INPUT DATA'!V131 -> -3355.843331 | U198: =+'INPUT DATA'!W131 -> -5828.237797 | V198: =+'INPUT DATA'!X131 -> -6409.480765 | W198: =+'INPUT DATA'!Y131 -> -4574.06317 | X198: =+'INPUT DATA'!Z131 -> -4083.5571 | Y198: =+'INPUT DATA'!AA131 -> -3453.08837 | Z198: =+'INPUT DATA'!AB131 -> 497.1295206 | AA198: =+'INPUT DATA'!AC131 -> 39208.22203 | AB198: =+'INPUT DATA'!AD131 -> 0 | AC198: =+'INPUT DATA'!AE131 -> 0 | AD198: =+'INPUT DATA'!AF131 -> 0 | AE198: =+'INPUT DATA'!AG131 -> 0 | AF198: =+'INPUT DATA'!AH131 -> 0 | AG198: =+'INPUT DATA'!AI131 -> 0 | AH198: =+'INPUT DATA'!AJ131 -> 0 | AI198: =+'INPUT DATA'!AK131 -> 0 | AJ198: =+'INPUT DATA'!AL131 -> 0 | AK198: =+'INPUT DATA'!AM131 -> 0 | AL198: =+'INPUT DATA'!AN131 -> 0 | AM198: =+'INPUT DATA'!AO131 -> 0 | AN198: =+'INPUT DATA'!AP131 -> 0 | AO198: =+'INPUT DATA'!AQ131 -> 0 | AP198: =+'INPUT DATA'!AR131 -> 0 | AQ198: =+'INPUT DATA'!AS131 -> 0 | AR198: =+'INPUT DATA'!AT131 -> 0 | AS198: =+'INPUT DATA'!AU131 -> 0 | AT198: =+'INPUT DATA'!AV131 -> 0 | AU198: =+'INPUT DATA'!AW131 -> 0 | AV198: =+'INPUT DATA'!AX131 -> 0 | AW198: =+'INPUT DATA'!AY131 -> 0 | AX198: =+'INPUT DATA'!AZ131 -> 0 | AY198: =+'INPUT DATA'!BA131 -> 0
C199: Into / Out Operating Reserve Accounts | H199: =+'INPUT DATA'!J132 -> 0 | I199: =+'INPUT DATA'!K132 -> 0 | J199: =+'INPUT DATA'!L132 -> 0 | K199: =+'INPUT DATA'!M132 -> 0 | L199: =+'INPUT DATA'!N132 -> 0 | M199: =+'INPUT DATA'!O132 -> 0 | N199: =+'INPUT DATA'!P132 -> 0 | O199: =+'INPUT DATA'!Q132 -> 0 | P199: =+'INPUT DATA'!R132 -> 0 | Q199: =+'INPUT DATA'!S132 -> 0 | R199: =+'INPUT DATA'!T132 -> 0 | S199: =+'INPUT DATA'!U132 -> 0 | T199: =+'INPUT DATA'!V132 -> 0 | U199: =+'INPUT DATA'!W132 -> 0 | V199: =+'INPUT DATA'!X132 -> 0 | W199: =+'INPUT DATA'!Y132 -> 0 | X199: =+'INPUT DATA'!Z132 -> 0 | Y199: =+'INPUT DATA'!AA132 -> 0 | Z199: =+'INPUT DATA'!AB132 -> 0 | AA199: =+'INPUT DATA'!AC132 -> 0 | AB199: =+'INPUT DATA'!AD132 -> 0 | AC199: =+'INPUT DATA'!AE132 -> 0 | AD199: =+'INPUT DATA'!AF132 -> 0 | AE199: =+'INPUT DATA'!AG132 -> 0 | AF199: =+'INPUT DATA'!AH132 -> 0 | AG199: =+'INPUT DATA'!AI132 -> 0 | AH199: =+'INPUT DATA'!AJ132 -> 0 | AI199: =+'INPUT DATA'!AK132 -> 0 | AJ199: =+'INPUT DATA'!AL132 -> 0 | AK199: =+'INPUT DATA'!AM132 -> 0 | AL199: =+'INPUT DATA'!AN132 -> 0 | AM199: =+'INPUT DATA'!AO132 -> 0 | AN199: =+'INPUT DATA'!AP132 -> 0 | AO199: =+'INPUT DATA'!AQ132 -> 0 | AP199: =+'INPUT DATA'!AR132 -> 0 | AQ199: =+'INPUT DATA'!AS132 -> 0 | AR199: =+'INPUT DATA'!AT132 -> 0 | AS199: =+'INPUT DATA'!AU132 -> 0 | AT199: =+'INPUT DATA'!AV132 -> 0 | AU199: =+'INPUT DATA'!AW132 -> 0 | AV199: =+'INPUT DATA'!AX132 -> 0 | AW199: =+'INPUT DATA'!AY132 -> 0 | AX199: =+'INPUT DATA'!AZ132 -> 0 | AY199: =+'INPUT DATA'!BA132 -> 0
C200: Operating Cash Flow | H200: =+H193+H197+H198+H199 -> -93097.19837 | I200: 32761.60245 | J200: 48923.62425 | K200: 49407.55018 | L200: 49124.57673 | M200: 50317.09692 | N200: 52580.3665 | O200: 52609.07813 | P200: 54081.19741 | Q200: 55573.76358 | R200: 57631.98034 | S200: 58894.46625 | T200: 57821.23519 | U200: 56483.30061 | V200: 57596.78056 | W200: 61532.35333 | X200: 64476.88299 | Y200: 20186.02131 | Z200: 25042.42819 | AA200: 55223.65956 | AB200: 0 | AC200: 0 | AD200: 0 | AE200: 0 | AF200: 0 | AG200: 0 | AH200: 0 | AI200: 0 | AJ200: 0 | AK200: 0 | AL200: 0 | AM200: 0 | AN200: 0 | AO200: 0 | AP200: 0 | AQ200: 0 | AR200: 0 | AS200: 0 | AT200: 0 | AU200: 0 | AV200: 0 | AW200: 0 | AX200: 0 | AY200: 0
C201: Taxes | H201: =+'INPUT DATA'!J134 -> -1064.035565 | I201: =+'INPUT DATA'!K134 -> -411.733987 | J201: =+'INPUT DATA'!L134 -> 19.99232347 | K201: =+'INPUT DATA'!M134 -> 33.24052551 | L201: =+'INPUT DATA'!N134 -> 21.0654787 | M201: =+'INPUT DATA'!O134 -> -308.4581705 | N201: =+'INPUT DATA'!P134 -> -651.5365522 | O201: =+'INPUT DATA'!Q134 -> -938.9689124 | P201: =+'INPUT DATA'!R134 -> -1187.693798 | Q201: =+'INPUT DATA'!S134 -> -2773.879846 | R201: =+'INPUT DATA'!T134 -> -5436.196109 | S201: =+'INPUT DATA'!U134 -> -9456.026588 | T201: =+'INPUT DATA'!V134 -> -11866.63632 | U201: =+'INPUT DATA'!W134 -> -12800.45876 | V201: =+'INPUT DATA'!X134 -> -13538.59326 | W201: =+'INPUT DATA'!Y134 -> -15439.63852 | X201: =+'INPUT DATA'!Z134 -> -8872.097971 | Y201: =+'INPUT DATA'!AA134 -> -4283.524688 | Z201: =+'INPUT DATA'!AB134 -> -4621.967318 | AA201: =+'INPUT DATA'!AC134 -> -2708.235436 | AB201: =+'INPUT DATA'!AD134 -> -413.733901 | AC201: =+'INPUT DATA'!AE134 -> 0 | AD201: =+'INPUT DATA'!AF134 -> 0 | AE201: =+'INPUT DATA'!AG134 -> 0 | AF201: =+'INPUT DATA'!AH134 -> 0 | AG201: =+'INPUT DATA'!AI134 -> 0 | AH201: =+'INPUT DATA'!AJ134 -> 0 | AI201: =+'INPUT DATA'!AK134 -> 0 | AJ201: =+'INPUT DATA'!AL134 -> 0 | AK201: =+'INPUT DATA'!AM134 -> 0 | AL201: =+'INPUT DATA'!AN134 -> 0 | AM201: =+'INPUT DATA'!AO134 -> 0 | AN201: =+'INPUT DATA'!AP134 -> 0 | AO201: =+'INPUT DATA'!AQ134 -> 0 | AP201: =+'INPUT DATA'!AR134 -> 0 | AQ201: =+'INPUT DATA'!AS134 -> 0 | AR201: =+'INPUT DATA'!AT134 -> 0 | AS201: =+'INPUT DATA'!AU134 -> 0 | AT201: =+'INPUT DATA'!AV134 -> 0 | AU201: =+'INPUT DATA'!AW134 -> 0 | AV201: =+'INPUT DATA'!AX134 -> 0 | AW201: =+'INPUT DATA'!AY134 -> 0 | AX201: =+'INPUT DATA'!AZ134 -> 0 | AY201: =+'INPUT DATA'!BA134 -> 0
C202: Operating Cash Flow After Tax | H202: =+H200+H201 -> -94161.23393 | I202: 32349.86846 | J202: 48943.61657 | K202: 49440.7907 | L202: 49145.64221 | M202: 50008.63875 | N202: 51928.82995 | O202: 51670.10922 | P202: 52893.50361 | Q202: 52799.88374 | R202: 52195.78423 | S202: 49438.43966 | T202: 45954.59887 | U202: 43682.84186 | V202: 44058.1873 | W202: 46092.71481 | X202: 55604.78502 | Y202: 15902.49663 | Z202: 20420.46087 | AA202: 52515.42412 | AB202: -413.733901 | AC202: 0 | AD202: 0 | AE202: 0 | AF202: 0 | AG202: 0 | AH202: 0 | AI202: 0 | AJ202: 0 | AK202: 0 | AL202: 0 | AM202: 0 | AN202: 0 | AO202: 0 | AP202: 0 | AQ202: 0 | AR202: 0 | AS202: 0 | AT202: 0 | AU202: 0 | AV202: 0 | AW202: 0 | AX202: 0 | AY202: 0
C203: Debt Service | H203: =+'INPUT DATA'!J136 -> 70395.13548 | I203: =+'INPUT DATA'!K136 -> -34963.49739 | J203: =+'INPUT DATA'!L136 -> -40421.79699 | K203: =+'INPUT DATA'!M136 -> -39881.28648 | L203: =+'INPUT DATA'!N136 -> -41907.48844 | M203: =+'INPUT DATA'!O136 -> -43573.47797 | N203: =+'INPUT DATA'!P136 -> -43241.47297 | O203: =+'INPUT DATA'!Q136 -> -44249.96998 | P203: =+'INPUT DATA'!R136 -> -44699.48171 | Q203: =+'INPUT DATA'!S136 -> -42916.78831 | R203: =+'INPUT DATA'!T136 -> -42640.69291 | S203: =+'INPUT DATA'!U136 -> -36764.00914 | T203: =+'INPUT DATA'!V136 -> -34771.18914 | U203: =+'INPUT DATA'!W136 -> -35632.99584 | V203: =+'INPUT DATA'!X136 -> -35819.87442 | W203: =+'INPUT DATA'!Y136 -> -14117.29016 | X203: =+'INPUT DATA'!Z136 -> -11347.61172 | Y203: =+'INPUT DATA'!AA136 -> -14763.92889 | Z203: =+'INPUT DATA'!AB136 -> 444.6913794 | AA203: =+'INPUT DATA'!AC136 -> 12.17192507 | AB203: =+'INPUT DATA'!AD136 -> 0 | AC203: =+'INPUT DATA'!AE136 -> 0 | AD203: =+'INPUT DATA'!AF136 -> 0 | AE203: =+'INPUT DATA'!AG136 -> 0 | AF203: =+'INPUT DATA'!AH136 -> 0 | AG203: =+'INPUT DATA'!AI136 -> 0 | AH203: =+'INPUT DATA'!AJ136 -> 0 | AI203: =+'INPUT DATA'!AK136 -> 0 | AJ203: =+'INPUT DATA'!AL136 -> 0 | AK203: =+'INPUT DATA'!AM136 -> 0 | AL203: =+'INPUT DATA'!AN136 -> 0 | AM203: =+'INPUT DATA'!AO136 -> 0 | AN203: =+'INPUT DATA'!AP136 -> 0 | AO203: =+'INPUT DATA'!AQ136 -> 0 | AP203: =+'INPUT DATA'!AR136 -> 0 | AQ203: =+'INPUT DATA'!AS136 -> 0 | AR203: =+'INPUT DATA'!AT136 -> 0 | AS203: =+'INPUT DATA'!AU136 -> 0 | AT203: =+'INPUT DATA'!AV136 -> 0 | AU203: =+'INPUT DATA'!AW136 -> 0 | AV203: =+'INPUT DATA'!AX136 -> 0 | AW203: =+'INPUT DATA'!AY136 -> 0 | AX203: =+'INPUT DATA'!AZ136 -> 0 | AY203: =+'INPUT DATA'!BA136 -> 0
C204: Interest income | H204: =+'INPUT DATA'!J137 -> 0 | I204: =+'INPUT DATA'!K137 -> 0 | J204: =+'INPUT DATA'!L137 -> 0 | K204: =+'INPUT DATA'!M137 -> 0 | L204: =+'INPUT DATA'!N137 -> 0 | M204: =+'INPUT DATA'!O137 -> 0 | N204: =+'INPUT DATA'!P137 -> 0 | O204: =+'INPUT DATA'!Q137 -> 0 | P204: =+'INPUT DATA'!R137 -> 0 | Q204: =+'INPUT DATA'!S137 -> 0 | R204: =+'INPUT DATA'!T137 -> 0 | S204: =+'INPUT DATA'!U137 -> 0 | T204: =+'INPUT DATA'!V137 -> 0 | U204: =+'INPUT DATA'!W137 -> 0 | V204: =+'INPUT DATA'!X137 -> 0 | W204: =+'INPUT DATA'!Y137 -> 0 | X204: =+'INPUT DATA'!Z137 -> 0 | Y204: =+'INPUT DATA'!AA137 -> 0 | Z204: =+'INPUT DATA'!AB137 -> 0 | AA204: =+'INPUT DATA'!AC137 -> 0 | AB204: =+'INPUT DATA'!AD137 -> 0 | AC204: =+'INPUT DATA'!AE137 -> 0 | AD204: =+'INPUT DATA'!AF137 -> 0 | AE204: =+'INPUT DATA'!AG137 -> 0 | AF204: =+'INPUT DATA'!AH137 -> 0 | AG204: =+'INPUT DATA'!AI137 -> 0 | AH204: =+'INPUT DATA'!AJ137 -> 0 | AI204: =+'INPUT DATA'!AK137 -> 0 | AJ204: =+'INPUT DATA'!AL137 -> 0 | AK204: =+'INPUT DATA'!AM137 -> 0 | AL204: =+'INPUT DATA'!AN137 -> 0 | AM204: =+'INPUT DATA'!AO137 -> 0 | AN204: =+'INPUT DATA'!AP137 -> 0 | AO204: =+'INPUT DATA'!AQ137 -> 0 | AP204: =+'INPUT DATA'!AR137 -> 0 | AQ204: =+'INPUT DATA'!AS137 -> 0 | AR204: =+'INPUT DATA'!AT137 -> 0 | AS204: =+'INPUT DATA'!AU137 -> 0 | AT204: =+'INPUT DATA'!AV137 -> 0 | AU204: =+'INPUT DATA'!AW137 -> 0 | AV204: =+'INPUT DATA'!AX137 -> 0 | AW204: =+'INPUT DATA'!AY137 -> 0 | AX204: =+'INPUT DATA'!AZ137 -> 0 | AY204: =+'INPUT DATA'!BA137 -> 0
C205: Free Cash Flow To Equity | H205: =+H202+H203+H204 -> -23766.09845 | I205: -2613.628932 | J205: 8521.819582 | K205: 9559.504225 | L205: 7238.153773 | M205: 6435.160774 | N205: 8687.356979 | O205: 7420.139239 | P205: 8194.021899 | Q205: 9883.095431 | R205: 9555.091317 | S205: 12674.43052 | T205: 11183.40973 | U205: 8049.846012 | V205: 8238.312882 | W205: 31975.42465 | X205: 44257.17331 | Y205: 1138.567736 | Z205: 20865.15225 | AA205: 52527.59605 | AB205: -413.733901 | AC205: 0 | AD205: 0 | AE205: 0 | AF205: 0 | AG205: 0 | AH205: 0 | AI205: 0 | AJ205: 0 | AK205: 0 | AL205: 0 | AM205: 0 | AN205: 0 | AO205: 0 | AP205: 0 | AQ205: 0 | AR205: 0 | AS205: 0 | AT205: 0 | AU205: 0 | AV205: 0 | AW205: 0 | AX205: 0 | AY205: 0
C206: Distributions to Shareholders | H206: =+'INPUT DATA'!J139 -> -122.0586796 | I206: =+'INPUT DATA'!K139 -> -1179.598825 | J206: =+'INPUT DATA'!L139 -> -13460.63592 | K206: =+'INPUT DATA'!M139 -> -9648.048055 | L206: =+'INPUT DATA'!N139 -> -7559.689577 | M206: =+'INPUT DATA'!O139 -> -6600.77403 | N206: =+'INPUT DATA'!P139 -> -8676.144267 | O206: =+'INPUT DATA'!Q139 -> -7382.4208 | P206: =+'INPUT DATA'!R139 -> -7651.233529 | Q206: =+'INPUT DATA'!S139 -> -9059.839868 | R206: =+'INPUT DATA'!T139 -> -10489.22828 | S206: =+'INPUT DATA'!U139 -> -12414.6502 | T206: =+'INPUT DATA'!V139 -> -11872.16045 | U206: =+'INPUT DATA'!W139 -> -8752.772897 | V206: =+'INPUT DATA'!X139 -> -7168.411359 | W206: =+'INPUT DATA'!Y139 -> -29904.84103 | X206: =+'INPUT DATA'!Z139 -> -50542.54021 | Y206: =+'INPUT DATA'!AA139 -> -1136.944643 | Z206: =+'INPUT DATA'!AB139 -> -20771.66798 | AA206: =+'INPUT DATA'!AC139 -> -27358.37915 | AB206: =+'INPUT DATA'!AD139 -> -24820.32 | AC206: =+'INPUT DATA'!AE139 -> 0 | AD206: =+'INPUT DATA'!AF139 -> 0 | AE206: =+'INPUT DATA'!AG139 -> 0 | AF206: =+'INPUT DATA'!AH139 -> 0 | AG206: =+'INPUT DATA'!AI139 -> 0 | AH206: =+'INPUT DATA'!AJ139 -> 0 | AI206: =+'INPUT DATA'!AK139 -> 0 | AJ206: =+'INPUT DATA'!AL139 -> 0 | AK206: =+'INPUT DATA'!AM139 -> 0 | AL206: =+'INPUT DATA'!AN139 -> 0 | AM206: =+'INPUT DATA'!AO139 -> 0 | AN206: =+'INPUT DATA'!AP139 -> 0 | AO206: =+'INPUT DATA'!AQ139 -> 0 | AP206: =+'INPUT DATA'!AR139 -> 0 | AQ206: =+'INPUT DATA'!AS139 -> 0 | AR206: =+'INPUT DATA'!AT139 -> 0 | AS206: =+'INPUT DATA'!AU139 -> 0 | AT206: =+'INPUT DATA'!AV139 -> 0 | AU206: =+'INPUT DATA'!AW139 -> 0 | AV206: =+'INPUT DATA'!AX139 -> 0 | AW206: =+'INPUT DATA'!AY139 -> 0 | AX206: =+'INPUT DATA'!AZ139 -> 0 | AY206: =+'INPUT DATA'!BA139 -> 0
C207: Equity | H207: =+'INPUT DATA'!J140 -> 17900.68179 | I207: =+'INPUT DATA'!K140 -> 10882.22802 | J207: =+'INPUT DATA'!L140 -> 0 | K207: =+'INPUT DATA'!M140 -> 0 | L207: =+'INPUT DATA'!N140 -> 0 | M207: =+'INPUT DATA'!O140 -> 0 | N207: =+'INPUT DATA'!P140 -> 0 | O207: =+'INPUT DATA'!Q140 -> 0 | P207: =+'INPUT DATA'!R140 -> 0 | Q207: =+'INPUT DATA'!S140 -> 0 | R207: =+'INPUT DATA'!T140 -> 0 | S207: =+'INPUT DATA'!U140 -> 0 | T207: =+'INPUT DATA'!V140 -> 0 | U207: =+'INPUT DATA'!W140 -> 0 | V207: =+'INPUT DATA'!X140 -> 0 | W207: =+'INPUT DATA'!Y140 -> 0 | X207: =+'INPUT DATA'!Z140 -> 0 | Y207: =+'INPUT DATA'!AA140 -> 0 | Z207: =+'INPUT DATA'!AB140 -> 0 | AA207: =+'INPUT DATA'!AC140 -> 0 | AB207: =+'INPUT DATA'!AD140 -> 0 | AC207: =+'INPUT DATA'!AE140 -> 0 | AD207: =+'INPUT DATA'!AF140 -> 0 | AE207: =+'INPUT DATA'!AG140 -> 0 | AF207: =+'INPUT DATA'!AH140 -> 0 | AG207: =+'INPUT DATA'!AI140 -> 0 | AH207: =+'INPUT DATA'!AJ140 -> 0 | AI207: =+'INPUT DATA'!AK140 -> 0 | AJ207: =+'INPUT DATA'!AL140 -> 0 | AK207: =+'INPUT DATA'!AM140 -> 0 | AL207: =+'INPUT DATA'!AN140 -> 0 | AM207: =+'INPUT DATA'!AO140 -> 0 | AN207: =+'INPUT DATA'!AP140 -> 0 | AO207: =+'INPUT DATA'!AQ140 -> 0 | AP207: =+'INPUT DATA'!AR140 -> 0 | AQ207: =+'INPUT DATA'!AS140 -> 0 | AR207: =+'INPUT DATA'!AT140 -> 0 | AS207: =+'INPUT DATA'!AU140 -> 0 | AT207: =+'INPUT DATA'!AV140 -> 0 | AU207: =+'INPUT DATA'!AW140 -> 0 | AV207: =+'INPUT DATA'!AX140 -> 0 | AW207: =+'INPUT DATA'!AY140 -> 0 | AX207: =+'INPUT DATA'!AZ140 -> 0 | AY207: =+'INPUT DATA'!BA140 -> 0
C208: Net Cash Flow | H208: =+H205+H206+H207 -> -5987.47534 | I208: 7089.000261 | J208: -4938.81634 | K208: -88.54382982 | L208: -321.5358042 | M208: -165.6132566 | N208: 11.21271126 | O208: 37.71843987 | P208: 542.7883698 | Q208: 823.255563 | R208: -934.1369663 | S208: 259.7803182 | T208: -688.7507147 | U208: -702.9268856 | V208: 1069.901523 | W208: 2070.583621 | X208: -6285.366908 | Y208: 1.623093531 | Z208: 93.48426753 | AA208: 25169.21689 | AB208: -25234.0539 | AC208: 0 | AD208: 0 | AE208: 0 | AF208: 0 | AG208: 0 | AH208: 0 | AI208: 0 | AJ208: 0 | AK208: 0 | AL208: 0 | AM208: 0 | AN208: 0 | AO208: 0 | AP208: 0 | AQ208: 0 | AR208: 0 | AS208: 0 | AT208: 0 | AU208: 0 | AV208: 0 | AW208: 0 | AX208: 0 | AY208: 0
C209: Cash EoP | G209: =+'INPUT DATA'!I142 -> 8178.654886 | H209: =+H208+G209 -> 2191.179546 | I209: 9280.179807 | J209: 4341.363467 | K209: 4252.819637 | L209: 3931.283833 | M209: 3765.670576 | N209: 3776.883287 | O209: 3814.601727 | P209: 4357.390097 | Q209: 5180.64566 | R209: 4246.508694 | S209: 4506.289012 | T209: 3817.538297 | U209: 3114.611412 | V209: 4184.512935 | W209: 6255.096556 | X209: -30.27035244 | Y209: -28.64725891 | Z209: 64.83700862 | AA209: 25234.0539 | AB209: 4.729372449e-11 | AC209: 4.729372449e-11 | AD209: 4.729372449e-11 | AE209: 4.729372449e-11 | AF209: 4.729372449e-11 | AG209: 4.729372449e-11 | AH209: 4.729372449e-11 | AI209: 4.729372449e-11 | AJ209: 4.729372449e-11 | AK209: 4.729372449e-11 | AL209: 4.729372449e-11 | AM209: 4.729372449e-11 | AN209: 4.729372449e-11 | AO209: 4.729372449e-11 | AP209: 4.729372449e-11 | AQ209: 4.729372449e-11 | AR209: 4.729372449e-11 | AS209: 4.729372449e-11 | AT209: 4.729372449e-11 | AU209: 4.729372449e-11 | AV209: 4.729372449e-11 | AW209: 4.729372449e-11 | AX209: 4.729372449e-11 | AY209: 4.729372449e-11
A214: 1 | C214: Paraguay
C216: =+"Cash Flow "&C214&" - [000' EUR]" -> Cash Flow Paraguay - [000' EUR]
C217: Year | G217: 2021 | H217: =+H$12 -> 2022 | I217: 2023 | J217: 2024 | K217: 2025 | L217: 2026 | M217: 2027 | N217: 2028 | O217: 2029 | P217: 2030 | Q217: 2031 | R217: 2032 | S217: 2033 | T217: 2034 | U217: 2035 | V217: 2036 | W217: 2037 | X217: 2038 | Y217: 2039 | Z217: 2040 | AA217: 2041 | AB217: 2042 | AC217: 2043 | AD217: 2044 | AE217: 2045 | AF217: 2046 | AG217: 2047 | AH217: 2048 | AI217: 2049 | AJ217: 2050 | AK217: 2051 | AL217: 2052 | AM217: 2053 | AN217: 2054 | AO217: 2055 | AP217: 2056 | AQ217: 2057 | AR217: 2058 | AS217: 2059 | AT217: 2060 | AU217: 2061 | AV217: 2062 | AW217: 2063 | AX217: 2064 | AY217: 2065
C218: Income | H218: =+H219+H220+H221 -> 7822.815076 | I218: 17395.30845 | J218: 15564.35567 | K218: 16162.40446 | L218: 16851.96572 | M218: 17639.62609 | N218: 18421.03501 | O218: 19231.40532 | P218: 20062.26233 | Q218: 20760.692 | R218: 21280.37347 | S218: 22138.05628 | T218: 22975.94034 | U218: 23875.54847 | V218: 24628.17246 | W218: 25617.64491 | X218: 26682.6651 | Y218: 27710.50126 | Z218: 28847.09235 | AA218: 30029.22324 | AB218: 31332.80339 | AC218: 32704.25821 | AD218: 34054.68465 | AE218: 35155.21912 | AF218: 35739.40447 | AG218: 14358.72988 | AH218: 0 | AI218: 0 | AJ218: 0 | AK218: 0 | AL218: 0 | AM218: 0 | AN218: 0 | AO218: 0 | AP218: 0 | AQ218: 0 | AR218: 0 | AS218: 0 | AT218: 0 | AU218: 0 | AV218: 0 | AW218: 0 | AX218: 0 | AY218: 0
C219: Income with mitigated demand risk | H219: =+'INPUT DATA'!J152 -> 6059.77896 | I219: =+'INPUT DATA'!K152 -> 12447.39554 | J219: =+'INPUT DATA'!L152 -> 13484.54231 | K219: =+'INPUT DATA'!M152 -> 13895.82085 | L219: =+'INPUT DATA'!N152 -> 14319.64338 | M219: =+'INPUT DATA'!O152 -> 14756.39251 | N219: =+'INPUT DATA'!P152 -> 15206.46248 | O219: =+'INPUT DATA'!Q152 -> 15670.25958 | P219: =+'INPUT DATA'!R152 -> 16148.2025 | Q219: =+'INPUT DATA'!S152 -> 16640.72268 | R219: =+'INPUT DATA'!T152 -> 17148.26472 | S219: =+'INPUT DATA'!U152 -> 17671.28679 | T219: =+'INPUT DATA'!V152 -> 18210.26104 | U219: =+'INPUT DATA'!W152 -> 18765.674 | V219: =+'INPUT DATA'!X152 -> 19338.02706 | W219: =+'INPUT DATA'!Y152 -> 19927.83689 | X219: =+'INPUT DATA'!Z152 -> 20535.63591 | Y219: =+'INPUT DATA'!AA152 -> 21161.97281 | Z219: =+'INPUT DATA'!AB152 -> 21807.41298 | AA219: =+'INPUT DATA'!AC152 -> 22472.53907 | AB219: =+'INPUT DATA'!AD152 -> 23157.95151 | AC219: =+'INPUT DATA'!AE152 -> 23864.26904 | AD219: =+'INPUT DATA'!AF152 -> 24592.12924 | AE219: =+'INPUT DATA'!AG152 -> 25342.18918 | AF219: =+'INPUT DATA'!AH152 -> 26115.12595 | AG219: =+'INPUT DATA'!AI152 -> 11096.15841 | AH219: =+'INPUT DATA'!AJ152 -> 0 | AI219: =+'INPUT DATA'!AK152 -> 0 | AJ219: =+'INPUT DATA'!AL152 -> 0 | AK219: =+'INPUT DATA'!AM152 -> 0 | AL219: =+'INPUT DATA'!AN152 -> 0 | AM219: =+'INPUT DATA'!AO152 -> 0 | AN219: =+'INPUT DATA'!AP152 -> 0 | AO219: =+'INPUT DATA'!AQ152 -> 0 | AP219: =+'INPUT DATA'!AR152 -> 0 | AQ219: =+'INPUT DATA'!AS152 -> 0 | AR219: =+'INPUT DATA'!AT152 -> 0 | AS219: =+'INPUT DATA'!AU152 -> 0 | AT219: =+'INPUT DATA'!AV152 -> 0 | AU219: =+'INPUT DATA'!AW152 -> 0 | AV219: =+'INPUT DATA'!AX152 -> 0 | AW219: =+'INPUT DATA'!AY152 -> 0 | AX219: =+'INPUT DATA'!AZ152 -> 0 | AY219: =+'INPUT DATA'!BA152 -> 0
C220: Income with low demand risk | H220: =+'INPUT DATA'!J153 -> 0 | I220: =+'INPUT DATA'!K153 -> 0 | J220: =+'INPUT DATA'!L153 -> 0 | K220: =+'INPUT DATA'!M153 -> 0 | L220: =+'INPUT DATA'!N153 -> 0 | M220: =+'INPUT DATA'!O153 -> 0 | N220: =+'INPUT DATA'!P153 -> 0 | O220: =+'INPUT DATA'!Q153 -> 0 | P220: =+'INPUT DATA'!R153 -> 0 | Q220: =+'INPUT DATA'!S153 -> 0 | R220: =+'INPUT DATA'!T153 -> 0 | S220: =+'INPUT DATA'!U153 -> 0 | T220: =+'INPUT DATA'!V153 -> 0 | U220: =+'INPUT DATA'!W153 -> 0 | V220: =+'INPUT DATA'!X153 -> 0 | W220: =+'INPUT DATA'!Y153 -> 0 | X220: =+'INPUT DATA'!Z153 -> 0 | Y220: =+'INPUT DATA'!AA153 -> 0 | Z220: =+'INPUT DATA'!AB153 -> 0 | AA220: =+'INPUT DATA'!AC153 -> 0 | AB220: =+'INPUT DATA'!AD153 -> 0 | AC220: =+'INPUT DATA'!AE153 -> 0 | AD220: =+'INPUT DATA'!AF153 -> 0 | AE220: =+'INPUT DATA'!AG153 -> 0 | AF220: =+'INPUT DATA'!AH153 -> 0 | AG220: =+'INPUT DATA'!AI153 -> 0 | AH220: =+'INPUT DATA'!AJ153 -> 0 | AI220: =+'INPUT DATA'!AK153 -> 0 | AJ220: =+'INPUT DATA'!AL153 -> 0 | AK220: =+'INPUT DATA'!AM153 -> 0 | AL220: =+'INPUT DATA'!AN153 -> 0 | AM220: =+'INPUT DATA'!AO153 -> 0 | AN220: =+'INPUT DATA'!AP153 -> 0 | AO220: =+'INPUT DATA'!AQ153 -> 0 | AP220: =+'INPUT DATA'!AR153 -> 0 | AQ220: =+'INPUT DATA'!AS153 -> 0 | AR220: =+'INPUT DATA'!AT153 -> 0 | AS220: =+'INPUT DATA'!AU153 -> 0 | AT220: =+'INPUT DATA'!AV153 -> 0 | AU220: =+'INPUT DATA'!AW153 -> 0 | AV220: =+'INPUT DATA'!AX153 -> 0 | AW220: =+'INPUT DATA'!AY153 -> 0 | AX220: =+'INPUT DATA'!AZ153 -> 0 | AY220: =+'INPUT DATA'!BA153 -> 0
C221: Income with demand risk | H221: =+'INPUT DATA'!J154 -> 1763.036116 | I221: =+'INPUT DATA'!K154 -> 4947.912909 | J221: =+'INPUT DATA'!L154 -> 2079.813361 | K221: =+'INPUT DATA'!M154 -> 2266.583609 | L221: =+'INPUT DATA'!N154 -> 2532.322333 | M221: =+'INPUT DATA'!O154 -> 2883.233581 | N221: =+'INPUT DATA'!P154 -> 3214.572534 | O221: =+'INPUT DATA'!Q154 -> 3561.145733 | P221: =+'INPUT DATA'!R154 -> 3914.059826 | Q221: =+'INPUT DATA'!S154 -> 4119.969321 | R221: =+'INPUT DATA'!T154 -> 4132.108746 | S221: =+'INPUT DATA'!U154 -> 4466.769486 | T221: =+'INPUT DATA'!V154 -> 4765.679298 | U221: =+'INPUT DATA'!W154 -> 5109.874472 | V221: =+'INPUT DATA'!X154 -> 5290.145395 | W221: =+'INPUT DATA'!Y154 -> 5689.808028 | X221: =+'INPUT DATA'!Z154 -> 6147.029188 | Y221: =+'INPUT DATA'!AA154 -> 6548.528452 | Z221: =+'INPUT DATA'!AB154 -> 7039.679371 | AA221: =+'INPUT DATA'!AC154 -> 7556.684166 | AB221: =+'INPUT DATA'!AD154 -> 8174.851875 | AC221: =+'INPUT DATA'!AE154 -> 8839.989179 | AD221: =+'INPUT DATA'!AF154 -> 9462.555406 | AE221: =+'INPUT DATA'!AG154 -> 9813.029933 | AF221: =+'INPUT DATA'!AH154 -> 9624.278515 | AG221: =+'INPUT DATA'!AI154 -> 3262.571473 | AH221: =+'INPUT DATA'!AJ154 -> 0 | AI221: =+'INPUT DATA'!AK154 -> 0 | AJ221: =+'INPUT DATA'!AL154 -> 0 | AK221: =+'INPUT DATA'!AM154 -> 0 | AL221: =+'INPUT DATA'!AN154 -> 0 | AM221: =+'INPUT DATA'!AO154 -> 0 | AN221: =+'INPUT DATA'!AP154 -> 0 | AO221: =+'INPUT DATA'!AQ154 -> 0 | AP221: =+'INPUT DATA'!AR154 -> 0 | AQ221: =+'INPUT DATA'!AS154 -> 0 | AR221: =+'INPUT DATA'!AT154 -> 0 | AS221: =+'INPUT DATA'!AU154 -> 0 | AT221: =+'INPUT DATA'!AV154 -> 0 | AU221: =+'INPUT DATA'!AW154 -> 0 | AV221: =+'INPUT DATA'!AX154 -> 0 | AW221: =+'INPUT DATA'!AY154 -> 0 | AX221: =+'INPUT DATA'!AZ154 -> 0 | AY221: =+'INPUT DATA'!BA154 -> 0
C222: Operating Costs | H222: =+'INPUT DATA'!J155 -> 0 | I222: =+'INPUT DATA'!K155 -> -3298.431929 | J222: =+'INPUT DATA'!L155 -> -4543.156484 | K222: =+'INPUT DATA'!M155 -> -4715.99397 | L222: =+'INPUT DATA'!N155 -> -4905.646907 | M222: =+'INPUT DATA'!O155 -> -5099.789434 | N222: =+'INPUT DATA'!P155 -> -5305.578515 | O222: =+'INPUT DATA'!Q155 -> -5508.593662 | P222: =+'INPUT DATA'!R155 -> -5731.294872 | Q222: =+'INPUT DATA'!S155 -> -5959.288965 | R222: =+'INPUT DATA'!T155 -> -6200.939889 | S222: =+'INPUT DATA'!U155 -> -6439.394612 | T222: =+'INPUT DATA'!V155 -> -6700.906539 | U222: =+'INPUT DATA'!W155 -> -6968.654711 | V222: =+'INPUT DATA'!X155 -> -7252.42051 | W222: =+'INPUT DATA'!Y155 -> -7532.494213 | X222: =+'INPUT DATA'!Z155 -> -7839.58407 | Y222: =+'INPUT DATA'!AA155 -> -8154.01802 | Z222: =+'INPUT DATA'!AB155 -> -8487.242035 | AA222: =+'INPUT DATA'!AC155 -> -8816.19159 | AB222: =+'INPUT DATA'!AD155 -> -9176.806549 | AC222: =+'INPUT DATA'!AE155 -> -10739.28007 | AD222: =+'INPUT DATA'!AF155 -> -11166.97907 | AE222: =+'INPUT DATA'!AG155 -> -11590.82969 | AF222: =+'INPUT DATA'!AH155 -> -12052.94947 | AG222: =+'INPUT DATA'!AI155 -> -5146.513852 | AH222: =+'INPUT DATA'!AJ155 -> 0 | AI222: =+'INPUT DATA'!AK155 -> 0 | AJ222: =+'INPUT DATA'!AL155 -> 0 | AK222: =+'INPUT DATA'!AM155 -> 0 | AL222: =+'INPUT DATA'!AN155 -> 0 | AM222: =+'INPUT DATA'!AO155 -> 0 | AN222: =+'INPUT DATA'!AP155 -> 0 | AO222: =+'INPUT DATA'!AQ155 -> 0 | AP222: =+'INPUT DATA'!AR155 -> 0 | AQ222: =+'INPUT DATA'!AS155 -> 0 | AR222: =+'INPUT DATA'!AT155 -> 0 | AS222: =+'INPUT DATA'!AU155 -> 0 | AT222: =+'INPUT DATA'!AV155 -> 0 | AU222: =+'INPUT DATA'!AW155 -> 0 | AV222: =+'INPUT DATA'!AX155 -> 0 | AW222: =+'INPUT DATA'!AY155 -> 0 | AX222: =+'INPUT DATA'!AZ155 -> 0 | AY222: =+'INPUT DATA'!BA155 -> 0
C223: Investment & Capex | H223: =+'INPUT DATA'!J156 -> -54829.19818 | I223: =+'INPUT DATA'!K156 -> -995.1120399 | J223: =+'INPUT DATA'!L156 -> -1237.550051 | K223: =+'INPUT DATA'!M156 -> -4145.24595 | L223: =+'INPUT DATA'!N156 -> -7720.551622 | M223: =+'INPUT DATA'!O156 -> -5473.951866 | N223: =+'INPUT DATA'!P156 -> -7190.036098 | O223: =+'INPUT DATA'!Q156 -> -7899.101661 | P223: =+'INPUT DATA'!R156 -> -8841.675679 | Q223: =+'INPUT DATA'!S156 -> -4266.723629 | R223: =+'INPUT DATA'!T156 -> -4338.12322 | S223: =+'INPUT DATA'!U156 -> -5396.020715 | T223: =+'INPUT DATA'!V156 -> -5482.21875 | U223: =+'INPUT DATA'!W156 -> -4043.150437 | V223: =+'INPUT DATA'!X156 -> -4699.369797 | W223: =+'INPUT DATA'!Y156 -> -5463.272609 | X223: =+'INPUT DATA'!Z156 -> -6149.539318 | Y223: =+'INPUT DATA'!AA156 -> -9318.204911 | Z223: =+'INPUT DATA'!AB156 -> -11704.00813 | AA223: =+'INPUT DATA'!AC156 -> -13785.11224 | AB223: =+'INPUT DATA'!AD156 -> -14657.89437 | AC223: =+'INPUT DATA'!AE156 -> -11511.92724 | AD223: =+'INPUT DATA'!AF156 -> -8098.462748 | AE223: =+'INPUT DATA'!AG156 -> -229.0785014 | AF223: =+'INPUT DATA'!AH156 -> -1.364242053e-12 | AG223: =+'INPUT DATA'!AI156 -> 0 | AH223: =+'INPUT DATA'!AJ156 -> 0 | AI223: =+'INPUT DATA'!AK156 -> 0 | AJ223: =+'INPUT DATA'!AL156 -> 0 | AK223: =+'INPUT DATA'!AM156 -> 0 | AL223: =+'INPUT DATA'!AN156 -> 0 | AM223: =+'INPUT DATA'!AO156 -> 0 | AN223: =+'INPUT DATA'!AP156 -> 0 | AO223: =+'INPUT DATA'!AQ156 -> 0 | AP223: =+'INPUT DATA'!AR156 -> 0 | AQ223: =+'INPUT DATA'!AS156 -> 0 | AR223: =+'INPUT DATA'!AT156 -> 0 | AS223: =+'INPUT DATA'!AU156 -> 0 | AT223: =+'INPUT DATA'!AV156 -> 0 | AU223: =+'INPUT DATA'!AW156 -> 0 | AV223: =+'INPUT DATA'!AX156 -> 0 | AW223: =+'INPUT DATA'!AY156 -> 0 | AX223: =+'INPUT DATA'!AZ156 -> 0 | AY223: =+'INPUT DATA'!BA156 -> 0
C224: Into / Out Operating Reserve Accounts | H224: =+'INPUT DATA'!J157 -> 0 | I224: =+'INPUT DATA'!K157 -> 0 | J224: =+'INPUT DATA'!L157 -> 0 | K224: =+'INPUT DATA'!M157 -> 0 | L224: =+'INPUT DATA'!N157 -> 0 | M224: =+'INPUT DATA'!O157 -> 0 | N224: =+'INPUT DATA'!P157 -> 0 | O224: =+'INPUT DATA'!Q157 -> 0 | P224: =+'INPUT DATA'!R157 -> 0 | Q224: =+'INPUT DATA'!S157 -> 0 | R224: =+'INPUT DATA'!T157 -> 0 | S224: =+'INPUT DATA'!U157 -> 0 | T224: =+'INPUT DATA'!V157 -> 0 | U224: =+'INPUT DATA'!W157 -> 0 | V224: =+'INPUT DATA'!X157 -> 0 | W224: =+'INPUT DATA'!Y157 -> 0 | X224: =+'INPUT DATA'!Z157 -> 0 | Y224: =+'INPUT DATA'!AA157 -> 0 | Z224: =+'INPUT DATA'!AB157 -> 0 | AA224: =+'INPUT DATA'!AC157 -> 0 | AB224: =+'INPUT DATA'!AD157 -> 0 | AC224: =+'INPUT DATA'!AE157 -> 0 | AD224: =+'INPUT DATA'!AF157 -> 0 | AE224: =+'INPUT DATA'!AG157 -> 0 | AF224: =+'INPUT DATA'!AH157 -> 0 | AG224: =+'INPUT DATA'!AI157 -> 0 | AH224: =+'INPUT DATA'!AJ157 -> 0 | AI224: =+'INPUT DATA'!AK157 -> 0 | AJ224: =+'INPUT DATA'!AL157 -> 0 | AK224: =+'INPUT DATA'!AM157 -> 0 | AL224: =+'INPUT DATA'!AN157 -> 0 | AM224: =+'INPUT DATA'!AO157 -> 0 | AN224: =+'INPUT DATA'!AP157 -> 0 | AO224: =+'INPUT DATA'!AQ157 -> 0 | AP224: =+'INPUT DATA'!AR157 -> 0 | AQ224: =+'INPUT DATA'!AS157 -> 0 | AR224: =+'INPUT DATA'!AT157 -> 0 | AS224: =+'INPUT DATA'!AU157 -> 0 | AT224: =+'INPUT DATA'!AV157 -> 0 | AU224: =+'INPUT DATA'!AW157 -> 0 | AV224: =+'INPUT DATA'!AX157 -> 0 | AW224: =+'INPUT DATA'!AY157 -> 0 | AX224: =+'INPUT DATA'!AZ157 -> 0 | AY224: =+'INPUT DATA'!BA157 -> 0
C225: Operating Cash Flow | H225: =+H218+H222+H223+H224 -> -47006.3831 | I225: 13101.76448 | J225: 9783.649134 | K225: 7301.164538 | L225: 4225.767189 | M225: 7065.884789 | N225: 5925.420401 | O225: 5823.709994 | P225: 5489.291777 | Q225: 10534.67941 | R225: 10741.31036 | S225: 10302.64095 | T225: 10792.81505 | U225: 12863.74333 | V225: 12676.38215 | W225: 12621.87809 | X225: 12693.54171 | Y225: 10238.27833 | Z225: 8655.842187 | AA225: 7427.919409 | AB225: 7498.102465 | AC225: 10453.0509 | AD225: 14789.24283 | AE225: 23335.31092 | AF225: 23686.455 | AG225: 9212.216026 | AH225: 0 | AI225: 0 | AJ225: 0 | AK225: 0 | AL225: 0 | AM225: 0 | AN225: 0 | AO225: 0 | AP225: 0 | AQ225: 0 | AR225: 0 | AS225: 0 | AT225: 0 | AU225: 0 | AV225: 0 | AW225: 0 | AX225: 0 | AY225: 0
C226: Taxes | H226: =+'INPUT DATA'!J159 -> -2509.381726 | I226: =+'INPUT DATA'!K159 -> -739.8767944 | J226: =+'INPUT DATA'!L159 -> -908.8720161 | K226: =+'INPUT DATA'!M159 -> -920.9815244 | L226: =+'INPUT DATA'!N159 -> -833.3299327 | M226: =+'INPUT DATA'!O159 -> -695.1474843 | N226: =+'INPUT DATA'!P159 -> -661.8773439 | O226: =+'INPUT DATA'!Q159 -> -519.3710885 | P226: =+'INPUT DATA'!R159 -> -1095.187608 | Q226: =+'INPUT DATA'!S159 -> -1869.679199 | R226: =+'INPUT DATA'!T159 -> -248.2121962 | S226: =+'INPUT DATA'!U159 -> -500.9394745 | T226: =+'INPUT DATA'!V159 -> -156.6759331 | U226: =+'INPUT DATA'!W159 -> -898.7061923 | V226: =+'INPUT DATA'!X159 -> -1002.259145 | W226: =+'INPUT DATA'!Y159 -> -1136.04521 | X226: =+'INPUT DATA'!Z159 -> -1093.524411 | Y226: =+'INPUT DATA'!AA159 -> -859.2402917 | Z226: =+'INPUT DATA'!AB159 -> -1151.692073 | AA226: =+'INPUT DATA'!AC159 -> -625.9168487 | AB226: =+'INPUT DATA'!AD159 -> -532.763193 | AC226: =+'INPUT DATA'!AE159 -> -617.6073613 | AD226: =+'INPUT DATA'!AF159 -> -1051.343042 | AE226: =+'INPUT DATA'!AG159 -> -3103.393297 | AF226: =+'INPUT DATA'!AH159 -> 914.2455037 | AG226: =+'INPUT DATA'!AI159 -> 116.7884317 | AH226: =+'INPUT DATA'!AJ159 -> 0 | AI226: =+'INPUT DATA'!AK159 -> 0 | AJ226: =+'INPUT DATA'!AL159 -> 0 | AK226: =+'INPUT DATA'!AM159 -> 0 | AL226: =+'INPUT DATA'!AN159 -> 0 | AM226: =+'INPUT DATA'!AO159 -> 0 | AN226: =+'INPUT DATA'!AP159 -> 0 | AO226: =+'INPUT DATA'!AQ159 -> 0 | AP226: =+'INPUT DATA'!AR159 -> 0 | AQ226: =+'INPUT DATA'!AS159 -> 0 | AR226: =+'INPUT DATA'!AT159 -> 0 | AS226: =+'INPUT DATA'!AU159 -> 0 | AT226: =+'INPUT DATA'!AV159 -> 0 | AU226: =+'INPUT DATA'!AW159 -> 0 | AV226: =+'INPUT DATA'!AX159 -> 0 | AW226: =+'INPUT DATA'!AY159 -> 0 | AX226: =+'INPUT DATA'!AZ159 -> 0 | AY226: =+'INPUT DATA'!BA159 -> 0
C227: Operating Cash Flow After Tax | H227: =+H225+H226 -> -49515.76483 | I227: 12361.88768 | J227: 8874.777118 | K227: 6380.183013 | L227: 3392.437256 | M227: 6370.737305 | N227: 5263.543057 | O227: 5304.338906 | P227: 4394.104168 | Q227: 8665.000207 | R227: 10493.09816 | S227: 9801.701479 | T227: 10636.13912 | U227: 11965.03713 | V227: 11674.123 | W227: 11485.83288 | X227: 11600.0173 | Y227: 9379.038034 | Z227: 7504.150114 | AA227: 6802.00256 | AB227: 6965.339272 | AC227: 9835.443543 | AD227: 13737.89979 | AE227: 20231.91763 | AF227: 24600.7005 | AG227: 9329.004458 | AH227: 0 | AI227: 0 | AJ227: 0 | AK227: 0 | AL227: 0 | AM227: 0 | AN227: 0 | AO227: 0 | AP227: 0 | AQ227: 0 | AR227: 0 | AS227: 0 | AT227: 0 | AU227: 0 | AV227: 0 | AW227: 0 | AX227: 0 | AY227: 0
C228: Debt Service | H228: =+'INPUT DATA'!J161 -> 76414.45952 | I228: =+'INPUT DATA'!K161 -> -3125.910173 | J228: =+'INPUT DATA'!L161 -> -2920.260576 | K228: =+'INPUT DATA'!M161 -> -3009.328523 | L228: =+'INPUT DATA'!N161 -> -3101.113043 | M228: =+'INPUT DATA'!O161 -> -3195.696991 | N228: =+'INPUT DATA'!P161 -> -3293.165749 | O228: =+'INPUT DATA'!Q161 -> -3393.607305 | P228: =+'INPUT DATA'!R161 -> -3497.112327 | Q228: =+'INPUT DATA'!S161 -> -3603.774253 | R228: =+'INPUT DATA'!T161 -> -3713.689368 | S228: =+'INPUT DATA'!U161 -> -3826.956894 | T228: =+'INPUT DATA'!V161 -> -3943.679079 | U228: =+'INPUT DATA'!W161 -> -4063.961291 | V228: =+'INPUT DATA'!X161 -> -4187.91211 | W228: =+'INPUT DATA'!Y161 -> -4315.64343 | X228: =+'INPUT DATA'!Z161 -> -4447.270554 | Y228: =+'INPUT DATA'!AA161 -> -2919.549932 | Z228: =+'INPUT DATA'!AB161 -> -1325.027166 | AA228: =+'INPUT DATA'!AC161 -> -5777.72879 | AB228: =+'INPUT DATA'!AD161 -> -5838.474586 | AC228: =+'INPUT DATA'!AE161 -> -5162.950916 | AD228: =+'INPUT DATA'!AF161 -> -2617.700379 | AE228: =+'INPUT DATA'!AG161 -> 0 | AF228: =+'INPUT DATA'!AH161 -> 0 | AG228: =+'INPUT DATA'!AI161 -> 0 | AH228: =+'INPUT DATA'!AJ161 -> 0 | AI228: =+'INPUT DATA'!AK161 -> 0 | AJ228: =+'INPUT DATA'!AL161 -> 0 | AK228: =+'INPUT DATA'!AM161 -> 0 | AL228: =+'INPUT DATA'!AN161 -> 0 | AM228: =+'INPUT DATA'!AO161 -> 0 | AN228: =+'INPUT DATA'!AP161 -> 0 | AO228: =+'INPUT DATA'!AQ161 -> 0 | AP228: =+'INPUT DATA'!AR161 -> 0 | AQ228: =+'INPUT DATA'!AS161 -> 0 | AR228: =+'INPUT DATA'!AT161 -> 0 | AS228: =+'INPUT DATA'!AU161 -> 0 | AT228: =+'INPUT DATA'!AV161 -> 0 | AU228: =+'INPUT DATA'!AW161 -> 0 | AV228: =+'INPUT DATA'!AX161 -> 0 | AW228: =+'INPUT DATA'!AY161 -> 0 | AX228: =+'INPUT DATA'!AZ161 -> 0 | AY228: =+'INPUT DATA'!BA161 -> 0
C229: Interest income | H229: =+'INPUT DATA'!J162 -> 0 | I229: =+'INPUT DATA'!K162 -> 0 | J229: =+'INPUT DATA'!L162 -> 0 | K229: =+'INPUT DATA'!M162 -> 0 | L229: =+'INPUT DATA'!N162 -> 0 | M229: =+'INPUT DATA'!O162 -> 0 | N229: =+'INPUT DATA'!P162 -> 0 | O229: =+'INPUT DATA'!Q162 -> 0 | P229: =+'INPUT DATA'!R162 -> 0 | Q229: =+'INPUT DATA'!S162 -> 0 | R229: =+'INPUT DATA'!T162 -> 0 | S229: =+'INPUT DATA'!U162 -> 0 | T229: =+'INPUT DATA'!V162 -> 0 | U229: =+'INPUT DATA'!W162 -> 0 | V229: =+'INPUT DATA'!X162 -> 0 | W229: =+'INPUT DATA'!Y162 -> 0 | X229: =+'INPUT DATA'!Z162 -> 0 | Y229: =+'INPUT DATA'!AA162 -> 0 | Z229: =+'INPUT DATA'!AB162 -> 0 | AA229: =+'INPUT DATA'!AC162 -> 0 | AB229: =+'INPUT DATA'!AD162 -> 0 | AC229: =+'INPUT DATA'!AE162 -> 0 | AD229: =+'INPUT DATA'!AF162 -> 0 | AE229: =+'INPUT DATA'!AG162 -> 0 | AF229: =+'INPUT DATA'!AH162 -> 0 | AG229: =+'INPUT DATA'!AI162 -> 0 | AH229: =+'INPUT DATA'!AJ162 -> 0 | AI229: =+'INPUT DATA'!AK162 -> 0 | AJ229: =+'INPUT DATA'!AL162 -> 0 | AK229: =+'INPUT DATA'!AM162 -> 0 | AL229: =+'INPUT DATA'!AN162 -> 0 | AM229: =+'INPUT DATA'!AO162 -> 0 | AN229: =+'INPUT DATA'!AP162 -> 0 | AO229: =+'INPUT DATA'!AQ162 -> 0 | AP229: =+'INPUT DATA'!AR162 -> 0 | AQ229: =+'INPUT DATA'!AS162 -> 0 | AR229: =+'INPUT DATA'!AT162 -> 0 | AS229: =+'INPUT DATA'!AU162 -> 0 | AT229: =+'INPUT DATA'!AV162 -> 0 | AU229: =+'INPUT DATA'!AW162 -> 0 | AV229: =+'INPUT DATA'!AX162 -> 0 | AW229: =+'INPUT DATA'!AY162 -> 0 | AX229: =+'INPUT DATA'!AZ162 -> 0 | AY229: =+'INPUT DATA'!BA162 -> 0
C230: Free Cash Flow To Equity | H230: =+H227+H228+H229 -> 26898.69469 | I230: 9235.977509 | J230: 5954.516542 | K230: 3370.85449 | L230: 291.324213 | M230: 3175.040314 | N230: 1970.377307 | O230: 1910.731601 | P230: 896.9918409 | Q230: 5061.225954 | R230: 6779.408793 | S230: 5974.744585 | T230: 6692.460038 | U230: 7901.075844 | V230: 7486.210894 | W230: 7170.189452 | X230: 7152.746746 | Y230: 6459.488103 | Z230: 6179.122948 | AA230: 1024.273771 | AB230: 1126.864685 | AC230: 4672.492627 | AD230: 11120.19941 | AE230: 20231.91763 | AF230: 24600.7005 | AG230: 9329.004458 | AH230: 0 | AI230: 0 | AJ230: 0 | AK230: 0 | AL230: 0 | AM230: 0 | AN230: 0 | AO230: 0 | AP230: 0 | AQ230: 0 | AR230: 0 | AS230: 0 | AT230: 0 | AU230: 0 | AV230: 0 | AW230: 0 | AX230: 0 | AY230: 0
C231: Distributions to Shareholders | H231: =+'INPUT DATA'!J164 -> -45532.79017 | I231: =+'INPUT DATA'!K164 -> -9235.977509 | J231: =+'INPUT DATA'!L164 -> -5954.516542 | K231: =+'INPUT DATA'!M164 -> -3370.85449 | L231: =+'INPUT DATA'!N164 -> -291.324213 | M231: =+'INPUT DATA'!O164 -> -3175.040314 | N231: =+'INPUT DATA'!P164 -> -1970.377307 | O231: =+'INPUT DATA'!Q164 -> -1910.731601 | P231: =+'INPUT DATA'!R164 -> -896.9918409 | Q231: =+'INPUT DATA'!S164 -> -5061.225954 | R231: =+'INPUT DATA'!T164 -> -6779.408793 | S231: =+'INPUT DATA'!U164 -> -5974.744585 | T231: =+'INPUT DATA'!V164 -> -6692.460038 | U231: =+'INPUT DATA'!W164 -> -7901.075844 | V231: =+'INPUT DATA'!X164 -> -7486.210894 | W231: =+'INPUT DATA'!Y164 -> -7170.189452 | X231: =+'INPUT DATA'!Z164 -> -7152.746746 | Y231: =+'INPUT DATA'!AA164 -> -6459.488103 | Z231: =+'INPUT DATA'!AB164 -> -6179.122948 | AA231: =+'INPUT DATA'!AC164 -> -1024.273771 | AB231: =+'INPUT DATA'!AD164 -> -1126.864685 | AC231: =+'INPUT DATA'!AE164 -> -4672.492627 | AD231: =+'INPUT DATA'!AF164 -> -11120.19941 | AE231: =+'INPUT DATA'!AG164 -> -20231.91763 | AF231: =+'INPUT DATA'!AH164 -> -24600.7005 | AG231: =+'INPUT DATA'!AI164 -> -9410.15812 | AH231: =+'INPUT DATA'!AJ164 -> 0 | AI231: =+'INPUT DATA'!AK164 -> 0 | AJ231: =+'INPUT DATA'!AL164 -> 0 | AK231: =+'INPUT DATA'!AM164 -> 0 | AL231: =+'INPUT DATA'!AN164 -> 0 | AM231: =+'INPUT DATA'!AO164 -> 0 | AN231: =+'INPUT DATA'!AP164 -> 0 | AO231: =+'INPUT DATA'!AQ164 -> 0 | AP231: =+'INPUT DATA'!AR164 -> 0 | AQ231: =+'INPUT DATA'!AS164 -> 0 | AR231: =+'INPUT DATA'!AT164 -> 0 | AS231: =+'INPUT DATA'!AU164 -> 0 | AT231: =+'INPUT DATA'!AV164 -> 0 | AU231: =+'INPUT DATA'!AW164 -> 0 | AV231: =+'INPUT DATA'!AX164 -> 0 | AW231: =+'INPUT DATA'!AY164 -> 0 | AX231: =+'INPUT DATA'!AZ164 -> 0 | AY231: =+'INPUT DATA'!BA164 -> 0
C232: Equity | H232: =+'INPUT DATA'!J165 -> 18574.05503 | I232: =+'INPUT DATA'!K165 -> 0 | J232: =+'INPUT DATA'!L165 -> 0 | K232: =+'INPUT DATA'!M165 -> 0 | L232: =+'INPUT DATA'!N165 -> 0 | M232: =+'INPUT DATA'!O165 -> 0 | N232: =+'INPUT DATA'!P165 -> 0 | O232: =+'INPUT DATA'!Q165 -> 0 | P232: =+'INPUT DATA'!R165 -> 0 | Q232: =+'INPUT DATA'!S165 -> 0 | R232: =+'INPUT DATA'!T165 -> 0 | S232: =+'INPUT DATA'!U165 -> 0 | T232: =+'INPUT DATA'!V165 -> 0 | U232: =+'INPUT DATA'!W165 -> 0 | V232: =+'INPUT DATA'!X165 -> 0 | W232: =+'INPUT DATA'!Y165 -> 0 | X232: =+'INPUT DATA'!Z165 -> 0 | Y232: =+'INPUT DATA'!AA165 -> 0 | Z232: =+'INPUT DATA'!AB165 -> 0 | AA232: =+'INPUT DATA'!AC165 -> 0 | AB232: =+'INPUT DATA'!AD165 -> 0 | AC232: =+'INPUT DATA'!AE165 -> 0 | AD232: =+'INPUT DATA'!AF165 -> 0 | AE232: =+'INPUT DATA'!AG165 -> 0 | AF232: =+'INPUT DATA'!AH165 -> 0 | AG232: =+'INPUT DATA'!AI165 -> 0 | AH232: =+'INPUT DATA'!AJ165 -> 0 | AI232: =+'INPUT DATA'!AK165 -> 0 | AJ232: =+'INPUT DATA'!AL165 -> 0 | AK232: =+'INPUT DATA'!AM165 -> 0 | AL232: =+'INPUT DATA'!AN165 -> 0 | AM232: =+'INPUT DATA'!AO165 -> 0 | AN232: =+'INPUT DATA'!AP165 -> 0 | AO232: =+'INPUT DATA'!AQ165 -> 0 | AP232: =+'INPUT DATA'!AR165 -> 0 | AQ232: =+'INPUT DATA'!AS165 -> 0 | AR232: =+'INPUT DATA'!AT165 -> 0 | AS232: =+'INPUT DATA'!AU165 -> 0 | AT232: =+'INPUT DATA'!AV165 -> 0 | AU232: =+'INPUT DATA'!AW165 -> 0 | AV232: =+'INPUT DATA'!AX165 -> 0 | AW232: =+'INPUT DATA'!AY165 -> 0 | AX232: =+'INPUT DATA'!AZ165 -> 0 | AY232: =+'INPUT DATA'!BA165 -> 0
C233: Net Cash Flow | H233: =+H230+H231+H232 -> -60.04044712 | I233: -3.637978807e-12 | J233: 1.182343112e-11 | K233: -9.094947018e-13 | L233: 7.730704965e-12 | M233: 7.275957614e-12 | N233: -5.456968211e-12 | O233: -4.547473509e-13 | P233: -4.320099833e-12 | Q233: 7.275957614e-12 | R233: 1.818989404e-12 | S233: -3.637978807e-12 | T233: 1.818989404e-12 | U233: -9.094947018e-13 | V233: 7.275957614e-12 | W233: -3.637978807e-12 | X233: -4.547473509e-12 | Y233: 1.818989404e-12 | Z233: -1.818989404e-12 | AA233: 3.183231456e-12 | AB233: 2.50111043e-12 | AC233: -5.456968211e-12 | AD233: -5.456968211e-12 | AE233: -3.637978807e-12 | AF233: -1.091393642e-11 | AG233: -81.15366234 | AH233: 0 | AI233: 0 | AJ233: 0 | AK233: 0 | AL233: 0 | AM233: 0 | AN233: 0 | AO233: 0 | AP233: 0 | AQ233: 0 | AR233: 0 | AS233: 0 | AT233: 0 | AU233: 0 | AV233: 0 | AW233: 0 | AX233: 0 | AY233: 0
C234: Cash EoP | G234: =+'INPUT DATA'!I167 -> 141.194026 | H234: =+H233+G234 -> 81.15357888 | I234: 81.15357888 | J234: 81.15357888 | K234: 81.15357888 | L234: 81.15357888 | M234: 81.15357888 | N234: 81.15357888 | O234: 81.15357888 | P234: 81.15357888 | Q234: 81.15357888 | R234: 81.15357888 | S234: 81.15357888 | T234: 81.15357888 | U234: 81.15357888 | V234: 81.15357888 | W234: 81.15357888 | X234: 81.15357888 | Y234: 81.15357888 | Z234: 81.15357888 | AA234: 81.15357888 | AB234: 81.15357888 | AC234: 81.15357888 | AD234: 81.15357888 | AE234: 81.15357888 | AF234: 81.15357888 | AG234: -8.34641819e-05 | AH234: -8.34641819e-05 | AI234: -8.34641819e-05 | AJ234: -8.34641819e-05 | AK234: -8.34641819e-05 | AL234: -8.34641819e-05 | AM234: -8.34641819e-05 | AN234: -8.34641819e-05 | AO234: -8.34641819e-05 | AP234: -8.34641819e-05 | AQ234: -8.34641819e-05 | AR234: -8.34641819e-05 | AS234: -8.34641819e-05 | AT234: -8.34641819e-05 | AU234: -8.34641819e-05 | AV234: -8.34641819e-05 | AW234: -8.34641819e-05 | AX234: -8.34641819e-05 | AY234: -8.34641819e-05
A239: 1 | C239: Brazil
C241: =+"Cash Flow "&C239&" - [000' EUR]" -> Cash Flow Brazil - [000' EUR]
C242: Year | G242: 2021 | H242: =+H$12 -> 2022 | I242: 2023 | J242: 2024 | K242: 2025 | L242: 2026 | M242: 2027 | N242: 2028 | O242: 2029 | P242: 2030 | Q242: 2031 | R242: 2032 | S242: 2033 | T242: 2034 | U242: 2035 | V242: 2036 | W242: 2037 | X242: 2038 | Y242: 2039 | Z242: 2040 | AA242: 2041 | AB242: 2042 | AC242: 2043 | AD242: 2044 | AE242: 2045 | AF242: 2046 | AG242: 2047 | AH242: 2048 | AI242: 2049 | AJ242: 2050 | AK242: 2051 | AL242: 2052 | AM242: 2053 | AN242: 2054 | AO242: 2055 | AP242: 2056 | AQ242: 2057 | AR242: 2058 | AS242: 2059 | AT242: 2060 | AU242: 2061 | AV242: 2062 | AW242: 2063 | AX242: 2064 | AY242: 2065
C243: Income | H243: =+H244+H245+H246 -> 10412.31503 | I243: 15754.22272 | J243: 17826.79895 | K243: 26624.62966 | L243: 32553.62207 | M243: 37200.13632 | N243: 41588.84584 | O243: 46027.51067 | P243: 49255.64524 | Q243: 54413.296 | R243: 60266.97836 | S243: 65973.22681 | T243: 72498.19396 | U243: 79018.85294 | V243: 86628.66885 | W243: 96593.85516 | X243: 105753.6703 | Y243: 115535.8476 | Z243: 125982.4994 | AA243: 136288.89 | AB243: 148396.6436 | AC243: 162821.3102 | AD243: 179140.4238 | AE243: 196019.9283 | AF243: 214839.2327 | AG243: 235568.585 | AH243: 259213.1631 | AI243: 284564.6148 | AJ243: 313701.5728 | AK243: 157691.9362 | AL243: 0 | AM243: 0 | AN243: 0 | AO243: 0 | AP243: 0 | AQ243: 0 | AR243: 0 | AS243: 0 | AT243: 0 | AU243: 0 | AV243: 0 | AW243: 0 | AX243: 0 | AY243: 0
C244: Income with mitigated demand risk | H244: =+'INPUT DATA'!J177 -> 0 | I244: =+'INPUT DATA'!K177 -> 0 | J244: =+'INPUT DATA'!L177 -> 0 | K244: =+'INPUT DATA'!M177 -> 0 | L244: =+'INPUT DATA'!N177 -> 0 | M244: =+'INPUT DATA'!O177 -> 0 | N244: =+'INPUT DATA'!P177 -> 0 | O244: =+'INPUT DATA'!Q177 -> 0 | P244: =+'INPUT DATA'!R177 -> 0 | Q244: =+'INPUT DATA'!S177 -> 0 | R244: =+'INPUT DATA'!T177 -> 0 | S244: =+'INPUT DATA'!U177 -> 0 | T244: =+'INPUT DATA'!V177 -> 0 | U244: =+'INPUT DATA'!W177 -> 0 | V244: =+'INPUT DATA'!X177 -> 0 | W244: =+'INPUT DATA'!Y177 -> 0 | X244: =+'INPUT DATA'!Z177 -> 0 | Y244: =+'INPUT DATA'!AA177 -> 0 | Z244: =+'INPUT DATA'!AB177 -> 0 | AA244: =+'INPUT DATA'!AC177 -> 0 | AB244: =+'INPUT DATA'!AD177 -> 0 | AC244: =+'INPUT DATA'!AE177 -> 0 | AD244: =+'INPUT DATA'!AF177 -> 0 | AE244: =+'INPUT DATA'!AG177 -> 0 | AF244: =+'INPUT DATA'!AH177 -> 0 | AG244: =+'INPUT DATA'!AI177 -> 0 | AH244: =+'INPUT DATA'!AJ177 -> 0 | AI244: =+'INPUT DATA'!AK177 -> 0 | AJ244: =+'INPUT DATA'!AL177 -> 0 | AK244: =+'INPUT DATA'!AM177 -> 0 | AL244: =+'INPUT DATA'!AN177 -> 0 | AM244: =+'INPUT DATA'!AO177 -> 0 | AN244: =+'INPUT DATA'!AP177 -> 0 | AO244: =+'INPUT DATA'!AQ177 -> 0 | AP244: =+'INPUT DATA'!AR177 -> 0 | AQ244: =+'INPUT DATA'!AS177 -> 0 | AR244: =+'INPUT DATA'!AT177 -> 0 | AS244: =+'INPUT DATA'!AU177 -> 0 | AT244: =+'INPUT DATA'!AV177 -> 0 | AU244: =+'INPUT DATA'!AW177 -> 0 | AV244: =+'INPUT DATA'!AX177 -> 0 | AW244: =+'INPUT DATA'!AY177 -> 0 | AX244: =+'INPUT DATA'!AZ177 -> 0 | AY244: =+'INPUT DATA'!BA177 -> 0
C245: Income with low demand risk | H245: =+'INPUT DATA'!J178 -> 10412.31503 | I245: =+'INPUT DATA'!K178 -> 15754.22272 | J245: =+'INPUT DATA'!L178 -> 17826.79895 | K245: =+'INPUT DATA'!M178 -> 26624.62966 | L245: =+'INPUT DATA'!N178 -> 32553.62207 | M245: =+'INPUT DATA'!O178 -> 37200.13632 | N245: =+'INPUT DATA'!P178 -> 41588.84584 | O245: =+'INPUT DATA'!Q178 -> 46027.51067 | P245: =+'INPUT DATA'!R178 -> 49255.64524 | Q245: =+'INPUT DATA'!S178 -> 54413.296 | R245: =+'INPUT DATA'!T178 -> 60266.97836 | S245: =+'INPUT DATA'!U178 -> 65973.22681 | T245: =+'INPUT DATA'!V178 -> 72498.19396 | U245: =+'INPUT DATA'!W178 -> 79018.85294 | V245: =+'INPUT DATA'!X178 -> 86628.66885 | W245: =+'INPUT DATA'!Y178 -> 96593.85516 | X245: =+'INPUT DATA'!Z178 -> 105753.6703 | Y245: =+'INPUT DATA'!AA178 -> 115535.8476 | Z245: =+'INPUT DATA'!AB178 -> 125982.4994 | AA245: =+'INPUT DATA'!AC178 -> 136288.89 | AB245: =+'INPUT DATA'!AD178 -> 148396.6436 | AC245: =+'INPUT DATA'!AE178 -> 162821.3102 | AD245: =+'INPUT DATA'!AF178 -> 179140.4238 | AE245: =+'INPUT DATA'!AG178 -> 196019.9283 | AF245: =+'INPUT DATA'!AH178 -> 214839.2327 | AG245: =+'INPUT DATA'!AI178 -> 235568.585 | AH245: =+'INPUT DATA'!AJ178 -> 259213.1631 | AI245: =+'INPUT DATA'!AK178 -> 284564.6148 | AJ245: =+'INPUT DATA'!AL178 -> 313701.5728 | AK245: =+'INPUT DATA'!AM178 -> 157691.9362 | AL245: =+'INPUT DATA'!AN178 -> 0 | AM245: =+'INPUT DATA'!AO178 -> 0 | AN245: =+'INPUT DATA'!AP178 -> 0 | AO245: =+'INPUT DATA'!AQ178 -> 0 | AP245: =+'INPUT DATA'!AR178 -> 0 | AQ245: =+'INPUT DATA'!AS178 -> 0 | AR245: =+'INPUT DATA'!AT178 -> 0 | AS245: =+'INPUT DATA'!AU178 -> 0 | AT245: =+'INPUT DATA'!AV178 -> 0 | AU245: =+'INPUT DATA'!AW178 -> 0 | AV245: =+'INPUT DATA'!AX178 -> 0 | AW245: =+'INPUT DATA'!AY178 -> 0 | AX245: =+'INPUT DATA'!AZ178 -> 0 | AY245: =+'INPUT DATA'!BA178 -> 0
C246: Income with demand risk | H246: =+'INPUT DATA'!J179 -> 0 | I246: =+'INPUT DATA'!K179 -> 0 | J246: =+'INPUT DATA'!L179 -> 0 | K246: =+'INPUT DATA'!M179 -> 0 | L246: =+'INPUT DATA'!N179 -> 0 | M246: =+'INPUT DATA'!O179 -> 0 | N246: =+'INPUT DATA'!P179 -> 0 | O246: =+'INPUT DATA'!Q179 -> 0 | P246: =+'INPUT DATA'!R179 -> 0 | Q246: =+'INPUT DATA'!S179 -> 0 | R246: =+'INPUT DATA'!T179 -> 0 | S246: =+'INPUT DATA'!U179 -> 0 | T246: =+'INPUT DATA'!V179 -> 0 | U246: =+'INPUT DATA'!W179 -> 0 | V246: =+'INPUT DATA'!X179 -> 0 | W246: =+'INPUT DATA'!Y179 -> 0 | X246: =+'INPUT DATA'!Z179 -> 0 | Y246: =+'INPUT DATA'!AA179 -> 0 | Z246: =+'INPUT DATA'!AB179 -> 0 | AA246: =+'INPUT DATA'!AC179 -> 0 | AB246: =+'INPUT DATA'!AD179 -> 0 | AC246: =+'INPUT DATA'!AE179 -> 0 | AD246: =+'INPUT DATA'!AF179 -> 0 | AE246: =+'INPUT DATA'!AG179 -> 0 | AF246: =+'INPUT DATA'!AH179 -> 0 | AG246: =+'INPUT DATA'!AI179 -> 0 | AH246: =+'INPUT DATA'!AJ179 -> 0 | AI246: =+'INPUT DATA'!AK179 -> 0 | AJ246: =+'INPUT DATA'!AL179 -> 0 | AK246: =+'INPUT DATA'!AM179 -> 0 | AL246: =+'INPUT DATA'!AN179 -> 0 | AM246: =+'INPUT DATA'!AO179 -> 0 | AN246: =+'INPUT DATA'!AP179 -> 0 | AO246: =+'INPUT DATA'!AQ179 -> 0 | AP246: =+'INPUT DATA'!AR179 -> 0 | AQ246: =+'INPUT DATA'!AS179 -> 0 | AR246: =+'INPUT DATA'!AT179 -> 0 | AS246: =+'INPUT DATA'!AU179 -> 0 | AT246: =+'INPUT DATA'!AV179 -> 0 | AU246: =+'INPUT DATA'!AW179 -> 0 | AV246: =+'INPUT DATA'!AX179 -> 0 | AW246: =+'INPUT DATA'!AY179 -> 0 | AX246: =+'INPUT DATA'!AZ179 -> 0 | AY246: =+'INPUT DATA'!BA179 -> 0
C247: Operating Costs | H247: =+'INPUT DATA'!J180 -> -9037.12127 | I247: =+'INPUT DATA'!K180 -> -11890.1551 | J247: =+'INPUT DATA'!L180 -> -14423.12314 | K247: =+'INPUT DATA'!M180 -> -15013.05451 | L247: =+'INPUT DATA'!N180 -> -13563.65157 | M247: =+'INPUT DATA'!O180 -> -13669.354 | N247: =+'INPUT DATA'!P180 -> -14182.08798 | O247: =+'INPUT DATA'!Q180 -> -14931.28408 | P247: =+'INPUT DATA'!R180 -> -15483.81747 | Q247: =+'INPUT DATA'!S180 -> -16534.88332 | R247: =+'INPUT DATA'!T180 -> -17387.80077 | S247: =+'INPUT DATA'!U180 -> -18598.50712 | T247: =+'INPUT DATA'!V180 -> -19567.94608 | U247: =+'INPUT DATA'!W180 -> -20885.41813 | V247: =+'INPUT DATA'!X180 -> -21853.05717 | W247: =+'INPUT DATA'!Y180 -> -23358.67162 | X247: =+'INPUT DATA'!Z180 -> -24653.01701 | Y247: =+'INPUT DATA'!AA180 -> -26679.18177 | Z247: =+'INPUT DATA'!AB180 -> -28770.39337 | AA247: =+'INPUT DATA'!AC180 -> -31459.65353 | AB247: =+'INPUT DATA'!AD180 -> -32955.25058 | AC247: =+'INPUT DATA'!AE180 -> -34753.71851 | AD247: =+'INPUT DATA'!AF180 -> -36830.6201 | AE247: =+'INPUT DATA'!AG180 -> -39445.69414 | AF247: =+'INPUT DATA'!AH180 -> -41850.50959 | AG247: =+'INPUT DATA'!AI180 -> -44994.55898 | AH247: =+'INPUT DATA'!AJ180 -> -47908.8404 | AI247: =+'INPUT DATA'!AK180 -> -51481.53047 | AJ247: =+'INPUT DATA'!AL180 -> -54840.43386 | AK247: =+'INPUT DATA'!AM180 -> -28714.70417 | AL247: =+'INPUT DATA'!AN180 -> 0 | AM247: =+'INPUT DATA'!AO180 -> 0 | AN247: =+'INPUT DATA'!AP180 -> 0 | AO247: =+'INPUT DATA'!AQ180 -> 0 | AP247: =+'INPUT DATA'!AR180 -> 0 | AQ247: =+'INPUT DATA'!AS180 -> 0 | AR247: =+'INPUT DATA'!AT180 -> 0 | AS247: =+'INPUT DATA'!AU180 -> 0 | AT247: =+'INPUT DATA'!AV180 -> 0 | AU247: =+'INPUT DATA'!AW180 -> 0 | AV247: =+'INPUT DATA'!AX180 -> 0 | AW247: =+'INPUT DATA'!AY180 -> 0 | AX247: =+'INPUT DATA'!AZ180 -> 0 | AY247: =+'INPUT DATA'!BA180 -> 0
C248: Investment & Capex | H248: =+'INPUT DATA'!J181 -> -23499.07064 | I248: =+'INPUT DATA'!K181 -> -32324.55434 | J248: =+'INPUT DATA'!L181 -> -72265.70766 | K248: =+'INPUT DATA'!M181 -> -51790.46283 | L248: =+'INPUT DATA'!N181 -> -27769.28355 | M248: =+'INPUT DATA'!O181 -> -1431.584867 | N248: =+'INPUT DATA'!P181 -> -608.7955953 | O248: =+'INPUT DATA'!Q181 -> -490.485187 | P248: =+'INPUT DATA'!R181 -> -1513.727175 | Q248: =+'INPUT DATA'!S181 -> -3283.092565 | R248: =+'INPUT DATA'!T181 -> -16995.51533 | S248: =+'INPUT DATA'!U181 -> -14227.7283 | T248: =+'INPUT DATA'!V181 -> -12920.84321 | U248: =+'INPUT DATA'!W181 -> -5021.910182 | V248: =+'INPUT DATA'!X181 -> -2311.939585 | W248: =+'INPUT DATA'!Y181 -> -1073.808161 | X248: =+'INPUT DATA'!Z181 -> -3784.973961 | Y248: =+'INPUT DATA'!AA181 -> -13106.72966 | Z248: =+'INPUT DATA'!AB181 -> -29719.65565 | AA248: =+'INPUT DATA'!AC181 -> -31401.86828 | AB248: =+'INPUT DATA'!AD181 -> -32031.06958 | AC248: =+'INPUT DATA'!AE181 -> -25011.99196 | AD248: =+'INPUT DATA'!AF181 -> -4978.794565 | AE248: =+'INPUT DATA'!AG181 -> -7254.965011 | AF248: =+'INPUT DATA'!AH181 -> -20452.17451 | AG248: =+'INPUT DATA'!AI181 -> -21555.5142 | AH248: =+'INPUT DATA'!AJ181 -> -29135.59409 | AI248: =+'INPUT DATA'!AK181 -> -19194.52401 | AJ248: =+'INPUT DATA'!AL181 -> -38145.09493 | AK248: =+'INPUT DATA'!AM181 -> -3893.459145 | AL248: =+'INPUT DATA'!AN181 -> 0 | AM248: =+'INPUT DATA'!AO181 -> 0 | AN248: =+'INPUT DATA'!AP181 -> 0 | AO248: =+'INPUT DATA'!AQ181 -> 0 | AP248: =+'INPUT DATA'!AR181 -> 0 | AQ248: =+'INPUT DATA'!AS181 -> 0 | AR248: =+'INPUT DATA'!AT181 -> 0 | AS248: =+'INPUT DATA'!AU181 -> 0 | AT248: =+'INPUT DATA'!AV181 -> 0 | AU248: =+'INPUT DATA'!AW181 -> 0 | AV248: =+'INPUT DATA'!AX181 -> 0 | AW248: =+'INPUT DATA'!AY181 -> 0 | AX248: =+'INPUT DATA'!AZ181 -> 0 | AY248: =+'INPUT DATA'!BA181 -> 0
C249: Into / Out Operating Reserve Accounts | H249: =+'INPUT DATA'!J182 -> 0 | I249: =+'INPUT DATA'!K182 -> 0 | J249: =+'INPUT DATA'!L182 -> 0 | K249: =+'INPUT DATA'!M182 -> 0 | L249: =+'INPUT DATA'!N182 -> 0 | M249: =+'INPUT DATA'!O182 -> 0 | N249: =+'INPUT DATA'!P182 -> 0 | O249: =+'INPUT DATA'!Q182 -> 0 | P249: =+'INPUT DATA'!R182 -> 0 | Q249: =+'INPUT DATA'!S182 -> 0 | R249: =+'INPUT DATA'!T182 -> 0 | S249: =+'INPUT DATA'!U182 -> 0 | T249: =+'INPUT DATA'!V182 -> 0 | U249: =+'INPUT DATA'!W182 -> 0 | V249: =+'INPUT DATA'!X182 -> 0 | W249: =+'INPUT DATA'!Y182 -> 0 | X249: =+'INPUT DATA'!Z182 -> 0 | Y249: =+'INPUT DATA'!AA182 -> 0 | Z249: =+'INPUT DATA'!AB182 -> 0 | AA249: =+'INPUT DATA'!AC182 -> 0 | AB249: =+'INPUT DATA'!AD182 -> 0 | AC249: =+'INPUT DATA'!AE182 -> 0 | AD249: =+'INPUT DATA'!AF182 -> 0 | AE249: =+'INPUT DATA'!AG182 -> 0 | AF249: =+'INPUT DATA'!AH182 -> 0 | AG249: =+'INPUT DATA'!AI182 -> 0 | AH249: =+'INPUT DATA'!AJ182 -> 0 | AI249: =+'INPUT DATA'!AK182 -> 0 | AJ249: =+'INPUT DATA'!AL182 -> 0 | AK249: =+'INPUT DATA'!AM182 -> 0 | AL249: =+'INPUT DATA'!AN182 -> 0 | AM249: =+'INPUT DATA'!AO182 -> 0 | AN249: =+'INPUT DATA'!AP182 -> 0 | AO249: =+'INPUT DATA'!AQ182 -> 0 | AP249: =+'INPUT DATA'!AR182 -> 0 | AQ249: =+'INPUT DATA'!AS182 -> 0 | AR249: =+'INPUT DATA'!AT182 -> 0 | AS249: =+'INPUT DATA'!AU182 -> 0 | AT249: =+'INPUT DATA'!AV182 -> 0 | AU249: =+'INPUT DATA'!AW182 -> 0 | AV249: =+'INPUT DATA'!AX182 -> 0 | AW249: =+'INPUT DATA'!AY182 -> 0 | AX249: =+'INPUT DATA'!AZ182 -> 0 | AY249: =+'INPUT DATA'!BA182 -> 0
C250: Operating Cash Flow | H250: =+H243+H247+H248+H249 -> -22123.87688 | I250: -28460.48672 | J250: -68862.03186 | K250: -40178.88768 | L250: -8779.31305 | M250: 22099.19745 | N250: 26797.96227 | O250: 30605.7414 | P250: 32258.1006 | Q250: 34595.32012 | R250: 25883.66226 | S250: 33146.99139 | T250: 40009.40467 | U250: 53111.52463 | V250: 62463.6721 | W250: 72161.37537 | X250: 77315.6793 | Y250: 75749.93618 | Z250: 67492.45034 | AA250: 73427.3682 | AB250: 83410.32341 | AC250: 103055.5997 | AD250: 137331.0091 | AE250: 149319.2692 | AF250: 152536.5486 | AG250: 169018.5118 | AH250: 182168.7286 | AI250: 213888.5603 | AJ250: 220716.044 | AK250: 125083.7729 | AL250: 0 | AM250: 0 | AN250: 0 | AO250: 0 | AP250: 0 | AQ250: 0 | AR250: 0 | AS250: 0 | AT250: 0 | AU250: 0 | AV250: 0 | AW250: 0 | AX250: 0 | AY250: 0
C251: Taxes | H251: =+'INPUT DATA'!J184 -> 0 | I251: =+'INPUT DATA'!K184 -> -85.58749035 | J251: =+'INPUT DATA'!L184 -> -4.961593644 | K251: =+'INPUT DATA'!M184 -> 0 | L251: =+'INPUT DATA'!N184 -> 0 | M251: =+'INPUT DATA'!O184 -> 0 | N251: =+'INPUT DATA'!P184 -> -838.4489689 | O251: =+'INPUT DATA'!Q184 -> -1639.498537 | P251: =+'INPUT DATA'!R184 -> -2125.149434 | Q251: =+'INPUT DATA'!S184 -> -2458.893322 | R251: =+'INPUT DATA'!T184 -> -287.3916901 | S251: =+'INPUT DATA'!U184 -> -2077.587505 | T251: =+'INPUT DATA'!V184 -> -3784.564591 | U251: =+'INPUT DATA'!W184 -> -7113.447704 | V251: =+'INPUT DATA'!X184 -> -12694.72771 | W251: =+'INPUT DATA'!Y184 -> -15837.86825 | X251: =+'INPUT DATA'!Z184 -> -17905.74545 | Y251: =+'INPUT DATA'!AA184 -> -21064.69364 | Z251: =+'INPUT DATA'!AB184 -> -22640.22089 | AA251: =+'INPUT DATA'!AC184 -> -24459.91416 | AB251: =+'INPUT DATA'!AD184 -> -27042.73767 | AC251: =+'INPUT DATA'!AE184 -> -29238.27498 | AD251: =+'INPUT DATA'!AF184 -> -36926.33058 | AE251: =+'INPUT DATA'!AG184 -> -42241.47376 | AF251: =+'INPUT DATA'!AH184 -> -44304.3013 | AG251: =+'INPUT DATA'!AI184 -> -48519.7591 | AH251: =+'INPUT DATA'!AJ184 -> -51611.91359 | AI251: =+'INPUT DATA'!AK184 -> -61436.69022 | AJ251: =+'INPUT DATA'!AL184 -> -63527.21742 | AK251: =+'INPUT DATA'!AM184 -> -34880.06934 | AL251: =+'INPUT DATA'!AN184 -> -7.691327874e-12 | AM251: =+'INPUT DATA'!AO184 -> -8.483984222e-12 | AN251: =+'INPUT DATA'!AP184 -> -8.870457868e-12 | AO251: =+'INPUT DATA'!AQ184 -> -9.273049974e-12 | AP251: =+'INPUT DATA'!AR184 -> 0 | AQ251: =+'INPUT DATA'!AS184 -> 0 | AR251: =+'INPUT DATA'!AT184 -> 0 | AS251: =+'INPUT DATA'!AU184 -> 0 | AT251: =+'INPUT DATA'!AV184 -> 0 | AU251: =+'INPUT DATA'!AW184 -> 0 | AV251: =+'INPUT DATA'!AX184 -> 0 | AW251: =+'INPUT DATA'!AY184 -> 0 | AX251: =+'INPUT DATA'!AZ184 -> 0 | AY251: =+'INPUT DATA'!BA184 -> 0
C252: Operating Cash Flow After Tax | H252: =+H250+H251 -> -22123.87688 | I252: -28546.07421 | J252: -68866.99345 | K252: -40178.88768 | L252: -8779.31305 | M252: 22099.19745 | N252: 25959.5133 | O252: 28966.24287 | P252: 30132.95116 | Q252: 32136.4268 | R252: 25596.27057 | S252: 31069.40389 | T252: 36224.84007 | U252: 45998.07692 | V252: 49768.94438 | W252: 56323.50712 | X252: 59409.93385 | Y252: 54685.24254 | Z252: 44852.22945 | AA252: 48967.45403 | AB252: 56367.58573 | AC252: 73817.32473 | AD252: 100404.6786 | AE252: 107077.7954 | AF252: 108232.2473 | AG252: 120498.7527 | AH252: 130556.815 | AI252: 152451.8701 | AJ252: 157188.8266 | AK252: 90203.70352 | AL252: -7.691327874e-12 | AM252: -8.483984222e-12 | AN252: -8.870457868e-12 | AO252: -9.273049974e-12 | AP252: 0 | AQ252: 0 | AR252: 0 | AS252: 0 | AT252: 0 | AU252: 0 | AV252: 0 | AW252: 0 | AX252: 0 | AY252: 0
C253: Debt Service | H253: =+'INPUT DATA'!J186 -> 5168.741723 | I253: =+'INPUT DATA'!K186 -> 19800.34971 | J253: =+'INPUT DATA'!L186 -> 44374.81709 | K253: =+'INPUT DATA'!M186 -> 43762.97187 | L253: =+'INPUT DATA'!N186 -> -8671.555306 | M253: =+'INPUT DATA'!O186 -> -13422.22869 | N253: =+'INPUT DATA'!P186 -> -16108.10261 | O253: =+'INPUT DATA'!Q186 -> -16894.33067 | P253: =+'INPUT DATA'!R186 -> -17293.79186 | Q253: =+'INPUT DATA'!S186 -> -18074.24119 | R253: =+'INPUT DATA'!T186 -> -16186.92467 | S253: =+'INPUT DATA'!U186 -> -16865.72654 | T253: =+'INPUT DATA'!V186 -> -19252.13814 | U253: =+'INPUT DATA'!W186 -> -21272.10744 | V253: =+'INPUT DATA'!X186 -> -22433.05232 | W253: =+'INPUT DATA'!Y186 -> -23146.737 | X253: =+'INPUT DATA'!Z186 -> -23879.22638 | Y253: =+'INPUT DATA'!AA186 -> -24630.76766 | Z253: =+'INPUT DATA'!AB186 -> -24989.13575 | AA253: =+'INPUT DATA'!AC186 -> -20496.32635 | AB253: =+'INPUT DATA'!AD186 -> -21418.66103 | AC253: =+'INPUT DATA'!AE186 -> -22382.50078 | AD253: =+'INPUT DATA'!AF186 -> -23389.71331 | AE253: =+'INPUT DATA'!AG186 -> -24442.25041 | AF253: =+'INPUT DATA'!AH186 -> -6280.525904 | AG253: =+'INPUT DATA'!AI186 -> 0 | AH253: =+'INPUT DATA'!AJ186 -> 0 | AI253: =+'INPUT DATA'!AK186 -> 0 | AJ253: =+'INPUT DATA'!AL186 -> 0 | AK253: =+'INPUT DATA'!AM186 -> 0 | AL253: =+'INPUT DATA'!AN186 -> 0 | AM253: =+'INPUT DATA'!AO186 -> 0 | AN253: =+'INPUT DATA'!AP186 -> 0 | AO253: =+'INPUT DATA'!AQ186 -> 0 | AP253: =+'INPUT DATA'!AR186 -> 0 | AQ253: =+'INPUT DATA'!AS186 -> 0 | AR253: =+'INPUT DATA'!AT186 -> 0 | AS253: =+'INPUT DATA'!AU186 -> 0 | AT253: =+'INPUT DATA'!AV186 -> 0 | AU253: =+'INPUT DATA'!AW186 -> 0 | AV253: =+'INPUT DATA'!AX186 -> 0 | AW253: =+'INPUT DATA'!AY186 -> 0 | AX253: =+'INPUT DATA'!AZ186 -> 0 | AY253: =+'INPUT DATA'!BA186 -> 0
C254: Interest income | H254: =+'INPUT DATA'!J187 -> 0 | I254: =+'INPUT DATA'!K187 -> 0 | J254: =+'INPUT DATA'!L187 -> 0 | K254: =+'INPUT DATA'!M187 -> 0 | L254: =+'INPUT DATA'!N187 -> 0 | M254: =+'INPUT DATA'!O187 -> 0 | N254: =+'INPUT DATA'!P187 -> 0 | O254: =+'INPUT DATA'!Q187 -> 0 | P254: =+'INPUT DATA'!R187 -> 0 | Q254: =+'INPUT DATA'!S187 -> 0 | R254: =+'INPUT DATA'!T187 -> 0 | S254: =+'INPUT DATA'!U187 -> 0 | T254: =+'INPUT DATA'!V187 -> 0 | U254: =+'INPUT DATA'!W187 -> 0 | V254: =+'INPUT DATA'!X187 -> 0 | W254: =+'INPUT DATA'!Y187 -> 0 | X254: =+'INPUT DATA'!Z187 -> 0 | Y254: =+'INPUT DATA'!AA187 -> 0 | Z254: =+'INPUT DATA'!AB187 -> 0 | AA254: =+'INPUT DATA'!AC187 -> 0 | AB254: =+'INPUT DATA'!AD187 -> 0 | AC254: =+'INPUT DATA'!AE187 -> 0 | AD254: =+'INPUT DATA'!AF187 -> 0 | AE254: =+'INPUT DATA'!AG187 -> 0 | AF254: =+'INPUT DATA'!AH187 -> 0 | AG254: =+'INPUT DATA'!AI187 -> 0 | AH254: =+'INPUT DATA'!AJ187 -> 0 | AI254: =+'INPUT DATA'!AK187 -> 0 | AJ254: =+'INPUT DATA'!AL187 -> 0 | AK254: =+'INPUT DATA'!AM187 -> 0 | AL254: =+'INPUT DATA'!AN187 -> 0 | AM254: =+'INPUT DATA'!AO187 -> 0 | AN254: =+'INPUT DATA'!AP187 -> 0 | AO254: =+'INPUT DATA'!AQ187 -> 0 | AP254: =+'INPUT DATA'!AR187 -> 0 | AQ254: =+'INPUT DATA'!AS187 -> 0 | AR254: =+'INPUT DATA'!AT187 -> 0 | AS254: =+'INPUT DATA'!AU187 -> 0 | AT254: =+'INPUT DATA'!AV187 -> 0 | AU254: =+'INPUT DATA'!AW187 -> 0 | AV254: =+'INPUT DATA'!AX187 -> 0 | AW254: =+'INPUT DATA'!AY187 -> 0 | AX254: =+'INPUT DATA'!AZ187 -> 0 | AY254: =+'INPUT DATA'!BA187 -> 0
C255: Free Cash Flow To Equity | H255: =+H252+H253+H254 -> -16955.13516 | I255: -8745.724506 | J255: -24492.17636 | K255: 3584.084196 | L255: -17450.86836 | M255: 8676.968764 | N255: 9851.410691 | O255: 12071.9122 | P255: 12839.1593 | Q255: 14062.18561 | R255: 9409.345906 | S255: 14203.67735 | T255: 16972.70194 | U255: 24725.96948 | V255: 27335.89206 | W255: 33176.77012 | X255: 35530.70747 | Y255: 30054.47488 | Z255: 19863.0937 | AA255: 28471.12769 | AB255: 34948.9247 | AC255: 51434.82395 | AD255: 77014.96525 | AE255: 82635.54498 | AF255: 101951.7214 | AG255: 120498.7527 | AH255: 130556.815 | AI255: 152451.8701 | AJ255: 157188.8266 | AK255: 90203.70352 | AL255: -7.691327874e-12 | AM255: -8.483984222e-12 | AN255: -8.870457868e-12 | AO255: -9.273049974e-12 | AP255: 0 | AQ255: 0 | AR255: 0 | AS255: 0 | AT255: 0 | AU255: 0 | AV255: 0 | AW255: 0 | AX255: 0 | AY255: 0
... 84 more rows

Sheet Future Investments Valuation
C4: Future Investments - Integrated approach to maximize value creation
C6: Investment [000' EUR]
C7: Total Investment | D7: =+D43 -> 600000 | H7: Stage | J7: EqV (€m) | K7: Multiple | L7: Increase (€m)
C8: Equity | D8: =+D44 -> 150000 | I8: Bidding | J8: =+D38/1000 -> 150.0424122
C9: Debt - Pre refinancing | D9: =+D45 -> 450000 | I9: Financial Close | J9: =+D63/1000 -> 194.995916 | K9: =+J9/J8 -> 1.299605313 | L9: =+J9-J8 -> 44.95350381
C10: Leverage | D10: =+D9/SUM(D8:D9) -> 0.75 | H10: Asset Management | I10: Comissioning | J10: =+$D$88/1000 -> 349.7307897 | K10: =+(J10-L9)/J8 -> 2.031274234 | L10: =+J10-J9 -> 154.7348737
I11: Refinancing
C12: Operating Free cash flow [000' EUR]
C13: Operating FCF | D13: 55540 | J13: Initial Eq | L13: Return o Value
C14: Optimized Operating FCF | D14: 58840 | I14: Optimized | J14: =(+J8) -> 150.0424122 | K14: =L14/J14 -> 2.330879547 | L14: =+J10 -> 349.7307897
C15: FCF Growth | D15: 0.02
I16: Rotation
C17: Debt | D17: Pre - Refinancing | E17: Post- Refinancing
C18: All in cost | D18: 0.06 | E18: 0.0475
C19: DSCR | D19: 1.5 | E19: 1.35
C20: New debt [000' EUR] | D20: 0 | E20: 110000
B34: Stage
B35: A | C35: Valuation at Bidding
C37: Valuation
C38: EqV | D38: =+NPV(10%,I51:AG51)+$D$8 -> 150042.4122
C41: Simplified Projections - Future Project
C42: Year | I42: -5 | J42: -4 | K42: -3 | L42: -2 | M42: -1 | N42: 1 | O42: 2 | P42: 3 | Q42: 4 | R42: 5 | S42: 6 | T42: 7 | U42: 8 | V42: 9 | W42: 10 | X42: 11 | Y42: 12 | Z42: 13 | AA42: 14 | AB42: 15 | AC42: 16 | AD42: 17 | AE42: 18 | AF42: 19 | AG42: 20
C43: Investment | D43: 600000 | I43: 50000 | J43: 50000 | K43: 100000 | L43: 200000 | M43: 200000
C44: Equity | D44: 150000 | I44: 50000 | J44: 50000 | K44: 50000 | L44: 0 | M44: 0
C45: Debt | D45: 450000 | I45: 0 | J45: 0 | K45: 50000 | L45: 200000 | M45: 200000 | N45: 0
C46: Operating FCF | N46: =+$D$13 -> 55540 | O46: =+N46*(1+$D$15) -> 56650.8 | P46: =+O46*(1+$D15) -> 57783.816 | Q46: 58939.49232 | R46: 60118.28217 | S46: 61320.64781 | T46: 62547.06077 | U46: 63798.00198 | V46: 65073.96202 | W46: 66375.44126 | X46: 67702.95009 | Y46: 69057.00909 | Z46: 70438.14927 | AA46: 71846.91226 | AB46: 73283.8505 | AC46: 74749.52751 | AD46: 76244.51806 | AE46: 77769.40842 | AF46: 79324.79659 | AG46: 80911.29252
C47: FCSD | N47: =+N46/$D$19 -> 37026.66667 | O47: 37767.2 | P47: 38522.544 | Q47: 39292.99488 | R47: 40078.85478 | S47: 40880.43187 | T47: 41698.04051 | U47: 42532.00132 | V47: 43382.64135 | W47: 44250.29417 | X47: 45135.30006 | Y47: 46038.00606 | Z47: 46958.76618 | AA47: 47897.9415 | AB47: 48855.90033 | AC47: 49833.01834 | AD47: 50829.67871 | AE47: 51846.27228 | AF47: 52883.19773 | AG47: 53940.86168
C48: Interest | N48: =-M53*$D$18 -> -27000 | O48: -27000 | P48: -26353.968 | Q48: -25623.85344 | R48: -24803.70495 | S48: -23887.19596 | T48: -22867.60181 | U48: -21737.77549 | V48: -20490.12194 | W48: -19116.57077 | X48: -17608.54737 | Y48: -15956.94221 | Z48: -14152.07838 | AA48: -12183.67711 | AB48: -10040.82124 | AC48: -7711.916499 | AD48: -5184.650389 | AE48: -2445.94869 | AF48: 0 | AG48: 0
C49: Principal | O49: =IF(SUM(O47:O48)<N53,-SUM(O47:O48),-N53) -> -10767.2 | P49: -12168.576 | Q49: -13669.14144 | R49: -15275.14982 | S49: -16993.23591 | T49: -18830.4387 | U49: -20794.22583 | V49: -22892.51941 | W49: -25133.7234 | X49: -27526.75269 | Y49: -30081.06385 | Z49: -32806.6878 | AA49: -35714.2644 | AB49: -38815.07909 | AC49: -42121.10184 | AD49: -45645.02832 | AE49: -40765.81149 | AF49: 0 | AG49: 0
C50: Cash + DSRA | N50: =IF(SUM(N47:N48)<N53,-SUM(N47:N48),-N53) -> -10026.66667 | O50: =IF(SUM($N55:O$55)=1,-$N$50,0) -> 0 | P50: =IF(SUM($N55:P$55)=1,-$N$50,0) -> 0 | Q50: =IF(SUM($N55:Q$55)=1,-$N$50,0) -> 0 | R50: =IF(SUM($N55:R$55)=1,-$N$50,0) -> 0 | S50: =IF(SUM($N55:S$55)=1,-$N$50,0) -> 0 | T50: =IF(SUM($N55:T$55)=1,-$N$50,0) -> 0 | U50: =IF(SUM($N55:U$55)=1,-$N$50,0) -> 0 | V50: =IF(SUM($N55:V$55)=1,-$N$50,0) -> 0 | W50: =IF(SUM($N55:W$55)=1,-$N$50,0) -> 0 | X50: =IF(SUM($N55:X$55)=1,-$N$50,0) -> 0 | Y50: =IF(SUM($N55:Y$55)=1,-$N$50,0) -> 0 | Z50: =IF(SUM($N55:Z$55)=1,-$N$50,0) -> 0 | AA50: =IF(SUM($N55:AA$55)=1,-$N$50,0) -> 0 | AB50: =IF(SUM($N55:AB$55)=1,-$N$50,0) -> 0 | AC50: =IF(SUM($N55:AC$55)=1,-$N$50,0) -> 0 | AD50: =IF(SUM($N55:AD$55)=1,-$N$50,0) -> 0 | AE50: =IF(SUM($N55:AE$55)=1,-$N$50,0) -> 10026.66667 | AF50: =IF(SUM($N55:AF$55)=1,-$N$50,0) -> 0 | AG50: =IF(SUM($N55:AG$55)=1,-$N$50,0) -> 0
C51: CF Equity | I51: =-I44 -> -50000 | J51: =-J44 -> -50000 | K51: =-K44 -> -50000 | L51: =-L44 -> 0 | M51: =-M44 -> 0 | N51: =N45+N46+N48+N49+N50 -> 18513.33333 | O51: 18883.6 | P51: 19261.272 | Q51: 19646.49744 | R51: 20039.42739 | S51: 20440.21594 | T51: 20849.02026 | U51: 21266.00066 | V51: 21691.32067 | W51: 22125.14709 | X51: 22567.65003 | Y51: 23019.00303 | Z51: 23479.38309 | AA51: 23948.97075 | AB51: 24427.95017 | AC51: 24916.50917 | AD51: 25414.83935 | AE51: 44584.3149 | AF51: 79324.79659 | AG51: 80911.29252
C52: DSCR | O52: =IFERROR(-O46/SUM(O48:O49),0) -> 1.5 | P52: 1.5 | Q52: 1.5 | R52: 1.5 | S52: 1.5 | T52: 1.5 | U52: 1.5 | V52: 1.5 | W52: 1.5 | X52: 1.5 | Y52: 1.5 | Z52: 1.5 | AA52: 1.5 | AB52: 1.5 | AC52: 1.5 | AD52: 1.5 | AE52: 1.799727854 | AF52: 0 | AG52: 0
C53: Outstanding Debt | I53: =I45+I49 -> 0 | J53: 0 | K53: 50000 | L53: =L45+L49+K53 -> 250000 | M53: 450000 | N53: 450000 | O53: 439232.8 | P53: 427064.224 | Q53: 413395.0826 | R53: 398119.9327 | S53: 381126.6968 | T53: 362296.2581 | U53: 341502.0323 | V53: 318609.5129 | W53: 293475.7895 | X53: 265949.0368 | Y53: 235867.9729 | Z53: 203061.2851 | AA53: 167347.0207 | AB53: 128531.9417 | AC53: 86410.83981 | AD53: 40765.81149 | AE53: 0 | AF53: 0 | AG53: 0
C55: Debt repayment flag | N55: =+IF(ROUND(N53,2)=0,1,0) -> 0 | O55: 0 | P55: 0 | Q55: 0 | R55: 0 | S55: 0 | T55: 0 | U55: 0 | V55: 0 | W55: 0 | X55: 0 | Y55: 0 | Z55: 0 | AA55: 0 | AB55: 0 | AC55: 0 | AD55: 0 | AE55: 1 | AF55: 1 | AG55: 1
B59: Stage
B60: B | C60: Valuation at Financial Closing
C62: Valuation
C63: EqV | D63: =+NPV(9%,K76:AG76)+$D$8+SUM(I76:J76) -> 194995.916
C66: Simplified Projections - Future Project
C67: Year | I67: -5 | J67: -4 | K67: -3 | L67: -2 | M67: -1 | N67: 1 | O67: 2 | P67: 3 | Q67: 4 | R67: 5 | S67: 6 | T67: 7 | U67: 8 | V67: 9 | W67: 10 | X67: 11 | Y67: 12 | Z67: 13 | AA67: 14 | AB67: 15 | AC67: 16 | AD67: 17 | AE67: 18 | AF67: 19 | AG67: 20
C68: Investment | D68: 600000 | I68: 50000 | J68: 50000 | K68: 100000 | L68: 200000 | M68: 200000
C69: Equity | D69: 150000 | I69: 50000 | J69: 50000 | K69: 50000 | L69: 0 | M69: 0
C70: Debt | D70: 450000 | I70: 0 | J70: 0 | K70: 50000 | L70: 200000 | M70: 200000 | N70: 0
C71: Operating FCF | N71: =+$D$14 -> 58840 | O71: =+N71*(1+$D$15) -> 60016.8 | P71: 61217.136 | Q71: 62441.47872 | R71: 63690.30829 | S71: 64964.11446 | T71: 66263.39675 | U71: 67588.66468 | V71: 68940.43798 | W71: 70319.24674 | X71: 71725.63167 | Y71: 73160.14431 | Z71: 74623.34719 | AA71: 76115.81414 | AB71: 77638.13042 | AC71: 79190.89303 | AD71: 80774.71089 | AE71: 82390.20511 | AF71: 84038.00921 | AG71: 85718.76939
C72: FCSD | N72: =+N71/$D$19 -> 39226.66667 | O72: 40011.2 | P72: 40811.424 | Q72: 41627.65248 | R72: 42460.20553 | S72: 43309.40964 | T72: 44175.59783 | U72: 45059.10979 | V72: 45960.29199 | W72: 46879.49783 | X72: 47817.08778 | Y72: 48773.42954 | Z72: 49748.89813 | AA72: 50743.87609 | AB72: 51758.75361 | AC72: 52793.92868 | AD72: 53849.80726 | AE72: 54926.8034 | AF72: 56025.33947 | AG72: 57145.84626
C73: Interest | N73: =-M78*$D$18 -> -27000 | O73: -27000 | P73: -26219.328 | Q73: -25343.80224 | R73: -24366.77123 | S73: -23281.16517 | T73: -22079.4705 | U73: -20753.70286 | V73: -19295.37844 | W73: -17695.48363 | X73: -15944.44278 | Y73: -14032.08408 | Z73: -11947.60335 | AA73: -9679.525665 | AB73: -7215.664639 | AC73: -4543.079301 | AD73: -1648.028338 | AE73: 0 | AF73: 0 | AG73: 0
C74: Principal | O74: =IF(SUM(O72:O73)<N78,-SUM(O72:O73),-N78) -> -13011.2 | P74: =IF(SUM(P72:P73)<O78,-SUM(P72:P73),-O78) -> -14592.096 | Q74: -16283.85024 | R74: -18093.4343 | S74: -20028.24447 | T74: -22096.12733 | U74: -24305.40693 | V74: -26664.91354 | W74: -29184.01419 | X74: -31872.645 | Y74: -34741.34546 | Z74: -37801.29478 | AA74: -41064.35043 | AB74: -44543.08897 | AC74: -48250.84938 | AD74: -27467.13896 | AE74: 0 | AF74: 0 | AG74: 0
C75: Cash + DSRA | N75: =IF(SUM(N72:N73)<N78,-SUM(N72:N73),-N78) -> -12226.66667 | O75: =IF(SUM($N$80:O80)=1,-$N$75,0) -> 0 | P75: =IF(SUM($N$80:P80)=1,-$N$75,0) -> 0 | Q75: =IF(SUM($N$80:Q80)=1,-$N$75,0) -> 0 | R75: =IF(SUM($N$80:R80)=1,-$N$75,0) -> 0 | S75: =IF(SUM($N$80:S80)=1,-$N$75,0) -> 0 | T75: =IF(SUM($N$80:T80)=1,-$N$75,0) -> 0 | U75: =IF(SUM($N$80:U80)=1,-$N$75,0) -> 0 | V75: =IF(SUM($N$80:V80)=1,-$N$75,0) -> 0 | W75: =IF(SUM($N$80:W80)=1,-$N$75,0) -> 0 | X75: =IF(SUM($N$80:X80)=1,-$N$75,0) -> 0 | Y75: =IF(SUM($N$80:Y80)=1,-$N$75,0) -> 0 | Z75: =IF(SUM($N$80:Z80)=1,-$N$75,0) -> 0 | AA75: =IF(SUM($N$80:AA80)=1,-$N$75,0) -> 0 | AB75: =IF(SUM($N$80:AB80)=1,-$N$75,0) -> 0 | AC75: =IF(SUM($N$80:AC80)=1,-$N$75,0) -> 0 | AD75: =IF(SUM($N$80:AD80)=1,-$N$75,0) -> 12226.66667 | AE75: =IF(SUM($N$80:AE80)=1,-$N$75,0) -> 0 | AF75: =IF(SUM($N$80:AF80)=1,-$N$75,0) -> 0 | AG75: =IF(SUM($N$80:AG80)=1,-$N$75,0) -> 0
C76: CF Equity | I76: =-I69 -> -50000 | J76: =-J69 -> -50000 | K76: =-K69 -> -50000 | L76: =-L69 -> 0 | M76: =-M69 -> 0 | N76: =N70+N71+N73+N74+N75 -> 19613.33333 | O76: 20005.6 | P76: 20405.712 | Q76: 20813.82624 | R76: 21230.10276 | S76: 21654.70482 | T76: 22087.79892 | U76: 22529.55489 | V76: 22980.14599 | W76: 23439.74891 | X76: 23908.54389 | Y76: 24386.71477 | Z76: 24874.44906 | AA76: 25371.93805 | AB76: 25879.37681 | AC76: 26396.96434 | AD76: 63886.21026 | AE76: 82390.20511 | AF76: 84038.00921 | AG76: 85718.76939
C77: DSCR | O77: =IFERROR(-O71/SUM(O73:O74),0) -> 1.5 | P77: 1.5 | Q77: 1.5 | R77: 1.5 | S77: 1.5 | T77: 1.5 | U77: 1.5 | V77: 1.5 | W77: 1.5 | X77: 1.5 | Y77: 1.5 | Z77: 1.5 | AA77: 1.5 | AB77: 1.5 | AC77: 1.5 | AD77: 2.774317251 | AE77: 0 | AF77: 0 | AG77: 0
C78: Outstanding Debt | I78: =I70+I74 -> 0 | J78: 0 | K78: 50000 | L78: =L70+L74+K78 -> 250000 | M78: 450000 | N78: 450000 | O78: 436988.8 | P78: 422396.704 | Q78: 406112.8538 | R78: 388019.4195 | S78: 367991.175 | T78: 345895.0476 | U78: 321589.6407 | V78: 294924.7272 | W78: 265740.713 | X78: 233868.068 | Y78: 199126.7225 | Z78: 161325.4277 | AA78: 120261.0773 | AB78: 75717.98834 | AC78: 27467.13896 | AD78: 0 | AE78: 0 | AF78: 0 | AG78: 0
C80: Debt repayment flag | N80: =+IF(ROUND(N78,2)=0,1,0) -> 0 | O80: 0 | P80: 0 | Q80: 0 | R80: 0 | S80: 0 | T80: 0 | U80: 0 | V80: 0 | W80: 0 | X80: 0 | Y80: 0 | Z80: 0 | AA80: 0 | AB80: 0 | AC80: 0 | AD80: 1 | AE80: 1 | AF80: 1 | AG80: 1
B84: Stage
B85: C | C85: Valuation after Refinancing
C87: Valuation
C88: EqV | D88: =+NPV(7%,N101:AG101)+$D$8+SUM(I101:M101) -> 349730.7897
C91: Simplified Projections - Future Project
C92: Year | I92: -5 | J92: -4 | K92: -3 | L92: -2 | M92: -1 | N92: 1 | O92: 2 | P92: 3 | Q92: 4 | R92: 5 | S92: 6 | T92: 7 | U92: 8 | V92: 9 | W92: 10 | X92: 11 | Y92: 12 | Z92: 13 | AA92: 14 | AB92: 15 | AC92: 16 | AD92: 17 | AE92: 18 | AF92: 19 | AG92: 20
C93: Investment | D93: 600000 | I93: 50000 | J93: 50000 | K93: 100000 | L93: 200000 | M93: 200000
C94: Equity | D94: 150000 | I94: 50000 | J94: 50000 | K94: 50000 | L94: 0 | M94: 0
C95: Debt | D95: 450000 | I95: 0 | J95: 0 | K95: 50000 | L95: 200000 | M95: 200000 | N95: =+E20 -> 110000
C96: Operating FCF | N96: =+$D$14 -> 58840 | O96: =+N96*(1+$D$15) -> 60016.8 | P96: 61217.136 | Q96: 62441.47872 | R96: 63690.30829 | S96: 64964.11446 | T96: 66263.39675 | U96: 67588.66468 | V96: 68940.43798 | W96: 70319.24674 | X96: 71725.63167 | Y96: 73160.14431 | Z96: 74623.34719 | AA96: 76115.81414 | AB96: 77638.13042 | AC96: 79190.89303 | AD96: 80774.71089 | AE96: 82390.20511 | AF96: 84038.00921 | AG96: 85718.76939
C97: FCSD | N97: =+N96/$E$19 -> 43585.18519 | O97: 44456.88889 | P97: 45346.02667 | Q97: 46252.9472 | R97: 47178.00614 | S97: 48121.56627 | T97: 49083.99759 | U97: 50065.67754 | V97: 51066.99109 | W97: 52088.33092 | X97: 53130.09754 | Y97: 54192.69949 | Z97: 55276.55348 | AA97: 56382.08455 | AB97: 57509.72624 | AC97: 58659.92076 | AD97: 59833.11918 | AE97: 61029.78156 | AF97: 62250.37719 | AG97: 63495.38473
C98: Interest | N98: =-M103*$E$18 -> -21375 | O98: -26600 | P98: -25751.79778 | Q98: -24821.07191 | R98: -23803.05783 | S98: -22692.74778 | T98: -21484.87891 | U98: -20173.92077 | V98: -18754.06232 | W98: -17219.19821 | X98: -15562.9144 | Y98: -13778.4732 | Z98: -11858.79745 | AA98: -9796.454043 | AB98: -7583.636594 | AC98: -5212.147336 | AD98: -2673.378098 | AE98: 0 | AF98: 0 | AG98: 0
C99: Principal | O99: =IF(SUM(O97:O98)<N103,-SUM(O97:O98),-N103) -> -17856.88889 | P99: =IF(SUM(P97:P98)<O103,-SUM(P97:P98),-O103) -> -19594.22889 | Q99: -21431.87529 | R99: -23374.94831 | S99: -25428.81848 | T99: -27599.11869 | U99: -29891.75678 | V99: -32312.92877 | W99: -34869.13271 | X99: -37567.18313 | Y99: -40414.22628 | Z99: -43417.75602 | AA99: -46585.6305 | AB99: -49926.08964 | AC99: -53447.77342 | AD99: -56281.64418 | AE99: 0 | AF99: 0 | AG99: 0
C100: Cash + DSRA | N100: =IF(SUM(N97:N98)<N103,-SUM(N97:N98),-N103) -> -22210.18519 | O100: =IF(SUM($N$105:O105)=1,-$N$100,0) -> 0 | P100: =IF(SUM($N$105:P105)=1,-$N$100,0) -> 0 | Q100: =IF(SUM($N$105:Q105)=1,-$N$100,0) -> 0 | R100: =IF(SUM($N$105:R105)=1,-$N$100,0) -> 0 | S100: =IF(SUM($N$105:S105)=1,-$N$100,0) -> 0 | T100: =IF(SUM($N$105:T105)=1,-$N$100,0) -> 0 | U100: =IF(SUM($N$105:U105)=1,-$N$100,0) -> 0 | V100: =IF(SUM($N$105:V105)=1,-$N$100,0) -> 0 | W100: =IF(SUM($N$105:W105)=1,-$N$100,0) -> 0 | X100: =IF(SUM($N$105:X105)=1,-$N$100,0) -> 0 | Y100: =IF(SUM($N$105:Y105)=1,-$N$100,0) -> 0 | Z100: =IF(SUM($N$105:Z105)=1,-$N$100,0) -> 0 | AA100: =IF(SUM($N$105:AA105)=1,-$N$100,0) -> 0 | AB100: =IF(SUM($N$105:AB105)=1,-$N$100,0) -> 0 | AC100: =IF(SUM($N$105:AC105)=1,-$N$100,0) -> 0 | AD100: =IF(SUM($N$105:AD105)=1,-$N$100,0) -> 22210.18519 | AE100: =IF(SUM($N$105:AE105)=1,-$N$100,0) -> 0 | AF100: =IF(SUM($N$105:AF105)=1,-$N$100,0) -> 0 | AG100: =IF(SUM($N$105:AG105)=1,-$N$100,0) -> 0
C101: CF Equity | I101: =-I94 -> -50000 | J101: =-J94 -> -50000 | K101: =-K94 -> -50000 | L101: =-L94 -> 0 | M101: =-M94 -> 0 | N101: =N95+N96+N98+N99+N100 -> 125254.8148 | O101: 15559.91111 | P101: 15871.10933 | Q101: 16188.53152 | R101: 16512.30215 | S101: 16842.54819 | T101: 17179.39916 | U101: 17522.98714 | V101: 17873.44688 | W101: 18230.91582 | X101: 18595.53414 | Y101: 18967.44482 | Z101: 19346.79372 | AA101: 19733.72959 | AB101: 20128.40418 | AC101: 20530.97227 | AD101: 44029.8738 | AE101: 82390.20511 | AF101: 84038.00921 | AG101: 85718.76939
C102: DSCR | O102: =IFERROR(-O96/SUM(O98:O99),0) -> 1.35 | P102: 1.35 | Q102: 1.35 | R102: 1.35 | S102: 1.35 | T102: 1.35 | U102: 1.35 | V102: 1.35 | W102: 1.35 | X102: 1.35 | Y102: 1.35 | Z102: 1.35 | AA102: 1.35 | AB102: 1.35 | AC102: 1.35 | AD102: 1.370107376 | AE102: 0 | AF102: 0 | AG102: 0
C103: Outstanding Debt | I103: =I95+I99 -> 0 | J103: 0 | K103: 50000 | L103: =L95+L99+K103 -> 250000 | M103: 450000 | N103: 560000 | O103: 542143.1111 | P103: 522548.8822 | Q103: 501117.0069 | R103: 477742.0586 | S103: 452313.2401 | T103: 424714.1214 | U103: 394822.3647 | V103: 362509.4359 | W103: 327640.3032 | X103: 290073.12 | Y103: 249658.8938 | Z103: 206241.1377 | AA103: 159655.5072 | AB103: 109729.4176 | AC103: 56281.64418 | AD103: 0 | AE103: 0 | AF103: 0 | AG103: 0
C105: Debt repayment flag | N105: =+IF(ROUND(N103,2)=0,1,0) -> 0 | O105: 0 | P105: 0 | Q105: 0 | R105: 0 | S105: 0 | T105: 0 | U105: 0 | V105: 0 | W105: 0 | X105: 0 | Y105: 0 | Z105: 0 | AA105: 0 | AB105: 0 | AC105: 0 | AD105: 1 | AE105: 1 | AF105: 1 | AG105: 1
C109: Future investments Cash Flows - Assuming New Awards for the 2021-25 period
C113: Future investments Cash Flows - [2021-2025 awards]
G114: 2021 | H114: =G114+1 -> 2022 | I114: 2023 | J114: 2024 | K114: 2025 | L114: 2026 | M114: 2027 | N114: 2028 | O114: 2029 | P114: 2030 | Q114: 2031 | R114: 2032 | S114: 2033 | T114: 2034 | U114: 2035 | V114: 2036 | W114: 2037 | X114: 2038 | Y114: 2039 | Z114: 2040 | AA114: 2041 | AB114: 2042 | AC114: 2043 | AD114: 2044 | AE114: 2045 | AF114: 2046 | AG114: 2047 | AH114: 2048 | AI114: 2049 | AJ114: 2050 | AK114: 2051 | AL114: 2052 | AM114: 2053 | AN114: 2054 | AO114: 2055 | AP114: 2056 | AQ114: 2057 | AR114: 2058 | AS114: 2059 | AT114: 2060 | AU114: 2061 | AV114: 2062 | AW114: 2063 | AX114: 2064 | AY114: 2065
C115: 2023 | I115: =+I101 -> -50000 | J115: -50000 | K115: -50000 | L115: 0 | M115: 0 | N115: 125254.8148 | O115: 15559.91111 | P115: 15871.10933 | Q115: 16188.53152 | R115: 16512.30215 | S115: 16842.54819 | T115: 17179.39916 | U115: 17522.98714 | V115: 17873.44688 | W115: 18230.91582 | X115: 18595.53414 | Y115: 18967.44482 | Z115: 19346.79372 | AA115: 19733.72959 | AB115: 20128.40418 | AC115: 20530.97227 | AD115: 44029.8738 | AE115: 82390.20511 | AF115: 84038.00921 | AG115: 85718.76939
C116: =C115+1 -> 2024 | J116: =I115 -> -50000 | K116: -50000 | L116: -50000 | M116: 0 | N116: 0 | O116: 125254.8148 | P116: 15559.91111 | Q116: 15871.10933 | R116: 16188.53152 | S116: 16512.30215 | T116: 16842.54819 | U116: 17179.39916 | V116: 17522.98714 | W116: 17873.44688 | X116: 18230.91582 | Y116: 18595.53414 | Z116: 18967.44482 | AA116: 19346.79372 | AB116: 19733.72959 | AC116: 20128.40418 | AD116: 20530.97227 | AE116: 44029.8738 | AF116: 82390.20511 | AG116: 84038.00921 | AH116: 85718.76939 | AI116: 0 | AJ116: 0
C117: =C116+1 -> 2025 | K117: =J116 -> -50000 | L117: -50000 | M117: -50000 | N117: 0 | O117: 0 | P117: 125254.8148 | Q117: 15559.91111 | R117: 15871.10933 | S117: 16188.53152 | T117: 16512.30215 | U117: 16842.54819 | V117: 17179.39916 | W117: 17522.98714 | X117: 17873.44688 | Y117: 18230.91582 | Z117: 18595.53414 | AA117: 18967.44482 | AB117: 19346.79372 | AC117: 19733.72959 | AD117: 20128.40418 | AE117: 20530.97227 | AF117: 44029.8738 | AG117: 82390.20511 | AH117: 84038.00921 | AI117: 85718.76939 | AJ117: 0 | AK117: 0
C118: =C117+1 -> 2026 | L118: =K117 -> -50000 | M118: -50000 | N118: -50000 | O118: 0 | P118: 0 | Q118: 125254.8148 | R118: 15559.91111 | S118: 15871.10933 | T118: 16188.53152 | U118: 16512.30215 | V118: 16842.54819 | W118: 17179.39916 | X118: 17522.98714 | Y118: 17873.44688 | Z118: 18230.91582 | AA118: 18595.53414 | AB118: 18967.44482 | AC118: 19346.79372 | AD118: 19733.72959 | AE118: 20128.40418 | AF118: 20530.97227 | AG118: 44029.8738 | AH118: 82390.20511 | AI118: 84038.00921 | AJ118: 85718.76939 | AK118: 0 | AL118: 0
C119: =C118+1 -> 2027 | M119: =L118 -> -50000 | N119: -50000 | O119: -50000 | P119: 0 | Q119: 0 | R119: 125254.8148 | S119: 15559.91111 | T119: 15871.10933 | U119: 16188.53152 | V119: 16512.30215 | W119: 16842.54819 | X119: 17179.39916 | Y119: 17522.98714 | Z119: 17873.44688 | AA119: 18230.91582 | AB119: 18595.53414 | AC119: 18967.44482 | AD119: 19346.79372 | AE119: 19733.72959 | AF119: 20128.40418 | AG119: 20530.97227 | AH119: 44029.8738 | AI119: 82390.20511 | AJ119: 84038.00921 | AK119: 85718.76939 | AL119: 0 | AM119: 0
C120: Total Cash Flows | H120: =SUM(H115:H119) -> 0 | I120: -50000 | J120: -100000 | K120: -150000 | L120: -150000 | M120: -150000 | N120: 25254.81481 | O120: 90814.72593 | P120: 156685.8353 | Q120: 172874.3668 | R120: 189386.6689 | S120: 80974.40231 | T120: 82593.89035 | U120: 84245.76816 | V120: 85930.68352 | W120: 87649.2972 | X120: 89402.28314 | Y120: 91190.3288 | Z120: 93014.13538 | AA120: 94874.41809 | AB120: 96771.90645 | AC120: 98707.34458 | AD120: 123769.7736 | AE120: 186813.1849 | AF120: 251117.4646 | AG120: 316707.8298 | AH120: 296176.8575 | AI120: 252146.9837 | AJ120: 169756.7786 | AK120: 85718.76939 | AL120: 0 | AM120: 0 | AN120: 0 | AO120: 0 | AP120: 0 | AQ120: 0 | AR120: 0 | AS120: 0 | AT120: 0 | AU120: 0 | AV120: 0 | AW120: 0 | AX120: 0 | AY120: 0

Sheet INPUT DATA (hidden)
D2: Incluir | E2: Country | F2: Incluir | G2: CPI | H2: Ke
D3: TRUE | E3: Spain | F3: =+IF(D3=TRUE,1,0) -> 1 | G3: 1 | H3: =+IF(ROUND(Dashboard!D28,4)=ROUND('INPUT DATA'!I452,4),1,2) -> 1
D4: TRUE | E4: Colombia | F4: 1 | G4: 1 | H4: =+IF(ROUND(Dashboard!D29,4)=ROUND('INPUT DATA'!I454,4),1,2) -> 1
D5: TRUE | E5: Chile | F5: 1 | G5: 1 | H5: =+IF(ROUND(Dashboard!D30,4)=ROUND('INPUT DATA'!I453,4),1,2) -> 1
D6: TRUE | E6: Italia | F6: 1 | G6: 1 | H6: =+IF(ROUND(Dashboard!D31,4)=ROUND('INPUT DATA'!I455,4),1,2) -> 1
D7: TRUE | E7: Uruguay | F7: 1 | G7: 1 | H7: =+IF(ROUND(Dashboard!D32,4)=ROUND('INPUT DATA'!I456,4),1,2) -> 1
D8: TRUE | E8: Paraguay | F8: 1 | G8: 1 | H8: =+IF(ROUND(Dashboard!D33,4)=ROUND('INPUT DATA'!I458,4),1,2) -> 1
D9: TRUE | E9: Brazil | F9: 1 | G9: 1 | H9: =+IF(ROUND(Dashboard!D34,4)=ROUND('INPUT DATA'!I460,4),1,2) -> 1
D10: TRUE | E10: Mexico | F10: 1 | G10: 1 | H10: =+IF(ROUND(Dashboard!D35,4)=ROUND('INPUT DATA'!I457,4),1,2) -> 1
D11: TRUE | E11: Peru | F11: 1 | G11: 1 | H11: =+IF(ROUND(Dashboard!D36,4)=ROUND('INPUT DATA'!I459,4),1,2) -> 1
D12: TRUE | E12: USA | F12: 1 | G12: 1 | H12: =+IF(ROUND(Dashboard!D37,4)=ROUND('INPUT DATA'!I461,4),1,2) -> 1
D13: TRUE | E13: Water | F13: 1 | H13: =+IF(ROUND(Dashboard!D38,4)=ROUND('INPUT DATA'!I462,4),1,2) -> 1
D14: TRUE | E14: Future investments | F14: 1 | H14: =+IF(ROUND(Dashboard!D39,4)=ROUND('INPUT DATA'!I463,4),1,2) -> 1
C17: SELECTED SCENARIO | BC17: BASE CASE | DC17: UPSIDE + 0.5% CPI | FC17: DOWNSIDE -0.5% CPI
C22: Spain | BC22: Spain | DC22: Spain | FC22: Spain
C24: Cash Flow Spain - [000' EUR] | BC24: Cash Flow Spain - [000' EUR] | DC24: Cash Flow Spain - [000' EUR] | FC24: Cash Flow Spain - [000' EUR]
C25: Year | J25: 2022 | K25: 2023 | L25: 2024 | M25: 2025 | N25: 2026 | O25: 2027 | P25: 2028 | Q25: 2029 | R25: 2030 | S25: 2031 | T25: 2032 | U25: 2033 | V25: 2034 | W25: 2035 | X25: 2036 | Y25: 2037 | Z25: 2038 | AA25: 2039 | AB25: 2040 | AC25: 2041 | AD25: 2042 | AE25: 2043 | AF25: 2044 | AG25: 2045 | AH25: 2046 | AI25: 2047 | AJ25: 2048 | AK25: 2049 | AL25: 2050 | AM25: 2051 | AN25: 2052 | AO25: 2053 | AP25: 2054 | AQ25: 2055 | AR25: 2056 | AS25: 2057 | AT25: 2058 | AU25: 2059 | AV25: 2060 | AW25: 2061 | AX25: 2062 | AY25: 2063 | AZ25: 2064 | BA25: 2065 | BC25: Year | BJ25: 2022 | BK25: 2023 | BL25: 2024 | BM25: 2025 | BN25: 2026 | BO25: 2027 | BP25: 2028 | BQ25: 2029 | BR25: 2030 | BS25: 2031 | BT25: 2032 | BU25: 2033 | BV25: 2034 | BW25: 2035 | BX25: 2036 | BY25: 2037 | BZ25: 2038 | CA25: 2039 | CB25: 2040 | CC25: 2041 | CD25: 2042 | CE25: 2043 | CF25: 2044 | CG25: 2045 | CH25: 2046 | CI25: 2047 | CJ25: 2048 | CK25: 2049 | CL25: 2050 | CM25: 2051 | CN25: 2052 | CO25: 2053 | CP25: 2054 | CQ25: 2055 | CR25: 2056 | CS25: 2057 | CT25: 2058 | CU25: 2059 | CV25: 2060 | CW25: 2061 | CX25: 2062 | CY25: 2063 | CZ25: 2064 | DA25: 2065 | DC25: Year | DJ25: 2022 | DK25: 2023 | DL25: 2024 | DM25: 2025 | DN25: 2026 | DO25: 2027 | DP25: 2028 | DQ25: 2029 | DR25: 2030 | DS25: 2031 | DT25: 2032 | DU25: 2033 | DV25: 2034 | DW25: 2035 | DX25: 2036 | DY25: 2037 | DZ25: 2038 | EA25: 2039 | EB25: 2040 | EC25: 2041 | ED25: 2042 | EE25: 2043 | EF25: 2044 | EG25: 2045 | EH25: 2046 | EI25: 2047 | EJ25: 2048 | EK25: 2049 | EL25: 2050 | EM25: 2051 | EN25: 2052 | EO25: 2053 | EP25: 2054 | EQ25: 2055 | ER25: 2056 | ES25: 2057 | ET25: 2058 | EU25: 2059 | EV25: 2060 | EW25: 2061 | EX25: 2062 | EY25: 2063 | EZ25: 2064 | FA25: 2065 | FC25: Year | FJ25: 2022 | FK25: 2023 | FL25: 2024 | FM25: 2025 | FN25: 2026 | FO25: 2027 | FP25: 2028 | FQ25: 2029 | FR25: 2030 | FS25: 2031 | FT25: 2032 | FU25: 2033 | FV25: 2034 | FW25: 2035 | FX25: 2036 | FY25: 2037 | FZ25: 2038 | GA25: 2039 | GB25: 2040 | GC25: 2041 | GD25: 2042 | GE25: 2043 | GF25: 2044 | GG25: 2045 | GH25: 2046 | GI25: 2047 | GJ25: 2048 | GK25: 2049 | GL25: 2050 | GM25: 2051 | GN25: 2052 | GO25: 2053 | GP25: 2054 | GQ25: 2055 | GR25: 2056 | GS25: 2057 | GT25: 2058 | GU25: 2059 | GV25: 2060 | GW25: 2061 | GX25: 2062 | GY25: 2063 | GZ25: 2064 | HA25: 2065
A26: =+C22 -> Spain | B26: =+C26 -> Income | C26: Income | J26: =+CHOOSE($G$3,BJ26,DJ26,FJ26)*$F$3 -> 43884.54231 | K26: =+CHOOSE($G$3,BK26,DK26,FK26)*$F$3 -> 50840.55411 | L26: =+CHOOSE($G$3,BL26,DL26,FL26)*$F$3 -> 58084.48722 | M26: =+CHOOSE($G$3,BM26,DM26,FM26)*$F$3 -> 58695.99818 | N26: =+CHOOSE($G$3,BN26,DN26,FN26)*$F$3 -> 68746.88053 | O26: =+CHOOSE($G$3,BO26,DO26,FO26)*$F$3 -> 67854.56971 | P26: =+CHOOSE($G$3,BP26,DP26,FP26)*$F$3 -> 55605.9966 | Q26: =+CHOOSE($G$3,BQ26,DQ26,FQ26)*$F$3 -> 61269.3455 | R26: =+CHOOSE($G$3,BR26,DR26,FR26)*$F$3 -> 58553.52835 | S26: =+CHOOSE($G$3,BS26,DS26,FS26)*$F$3 -> 62135.07699 | T26: =+CHOOSE($G$3,BT26,DT26,FT26)*$F$3 -> 65648.67815 | U26: =+CHOOSE($G$3,BU26,DU26,FU26)*$F$3 -> 69666.22642 | V26: =+CHOOSE($G$3,BV26,DV26,FV26)*$F$3 -> 70805.8852 | W26: =+CHOOSE($G$3,BW26,DW26,FW26)*$F$3 -> 105129.5654 | X26: =+CHOOSE($G$3,BX26,DX26,FX26)*$F$3 -> 54226.95144 | Y26: =+CHOOSE($G$3,BY26,DY26,FY26)*$F$3 -> 49111.07821 | Z26: =+CHOOSE($G$3,BZ26,DZ26,FZ26)*$F$3 -> 50272.54761 | AA26: =+CHOOSE($G$3,CA26,EA26,GA26)*$F$3 -> 60328.52723 | AB26: =+CHOOSE($G$3,CB26,EB26,GB26)*$F$3 -> 50191.98757 | AC26: =+CHOOSE($G$3,CC26,EC26,GC26)*$F$3 -> 56340.25635 | AD26: =+CHOOSE($G$3,CD26,ED26,GD26)*$F$3 -> 56139.72212 | AE26: =+CHOOSE($G$3,CE26,EE26,GE26)*$F$3 -> 29030.87997 | AF26: =+CHOOSE($G$3,CF26,EF26,GF26)*$F$3 -> 31101.90531 | AG26: =+CHOOSE($G$3,CG26,EG26,GG26)*$F$3 -> 19191.84344 | AH26: =+CHOOSE($G$3,CH26,EH26,GH26)*$F$3 -> 19741.96192 | AI26: =+CHOOSE($G$3,CI26,EI26,GI26)*$F$3 -> 20309.06934 | AJ26: =+CHOOSE($G$3,CJ26,EJ26,GJ26)*$F$3 -> 17124.02687 | AK26: =+CHOOSE($G$3,CK26,EK26,GK26)*$F$3 -> 16343.19088 | AL26: =+CHOOSE($G$3,CL26,EL26,GL26)*$F$3 -> 16176.34322 | AM26: =+CHOOSE($G$3,CM26,EM26,GM26)*$F$3 -> 7147.535379 | AN26: =+CHOOSE($G$3,CN26,EN26,GN26)*$F$3 -> 1110.08221 | AO26: =+CHOOSE($G$3,CO26,EO26,GO26)*$F$3 -> 1143.437258 | AP26: =+CHOOSE($G$3,CP26,EP26,GP26)*$F$3 -> 1177.280695 | AQ26: =+CHOOSE($G$3,CQ26,EQ26,GQ26)*$F$3 -> 1212.307133 | AR26: =+CHOOSE($G$3,CR26,ER26,GR26)*$F$3 -> 320.290714 | AS26: =+CHOOSE($G$3,CS26,ES26,GS26)*$F$3 -> 0 | AT26: =+CHOOSE($G$3,CT26,ET26,GT26)*$F$3 -> 0 | AU26: =+CHOOSE($G$3,CU26,EU26,GU26)*$F$3 -> 0 | AV26: =+CHOOSE($G$3,CV26,EV26,GV26)*$F$3 -> 0 | AW26: =+CHOOSE($G$3,CW26,EW26,GW26)*$F$3 -> 0 | AX26: =+CHOOSE($G$3,CX26,EX26,GX26)*$F$3 -> 0 | AY26: =+CHOOSE($G$3,CY26,EY26,GY26)*$F$3 -> 0 | AZ26: =+CHOOSE($G$3,CZ26,EZ26,GZ26)*$F$3 -> 0 | BA26: =+CHOOSE($G$3,DA26,FA26,HA26)*$F$3 -> 0 | BC26: Income | BJ26: 43884.54231 | BK26: 50840.55411 | BL26: 58084.48722 | BM26: 58695.99818 | BN26: 68746.88053 | BO26: 67854.56971 | BP26: 55605.9966 | BQ26: 61269.3455 | BR26: 58553.52835 | BS26: 62135.07699 | BT26: 65648.67815 | BU26: 69666.22642 | BV26: 70805.8852 | BW26: 105129.5654 | BX26: 54226.95144 | BY26: 49111.07821 | BZ26: 50272.54761 | CA26: 60328.52723 | CB26: 50191.98757 | CC26: 56340.25635 | CD26: 56139.72212 | CE26: 29030.87997 | CF26: 31101.90531 | CG26: 19191.84344 | CH26: 19741.96192 | CI26: 20309.06934 | CJ26: 17124.02687 | CK26: 16343.19088 | CL26: 16176.34322 | CM26: 7147.535379 | CN26: 1110.08221 | CO26: 1143.437258 | CP26: 1177.280695 | CQ26: 1212.307133 | CR26: 320.290714 | CS26: 0 | CT26: 0 | CU26: 0 | CV26: 0 | CW26: 0 | CX26: 0 | CY26: 0 | CZ26: 0 | DA26: 0 | DC26: Income | DJ26: 43873.87947 | DK26: 51029.24966 | DL26: 58667.50476 | DM26: 60292.8827 | DN26: 70423.89358 | DO26: 69703.42527 | DP26: 57983.65729 | DQ26: 63739.33269 | DR26: 61760.36854 | DS26: 65621.83407 | DT26: 71223.90405 | DU26: 74994.91918 | DV26: 75322.95224 | DW26: 110625.3631 | DX26: 58770.06361 | DY26: 53517.1831 | DZ26: 54717.12243 | EA26: 66070.53562 | EB26: 55482.71566 | EC26: 62992.4393 | ED26: 61254.06326 | EE26: 33245.29157 | EF26: 34060.30739 | EG26: 21570.22301 | EH26: 22297.32306 | EI26: 23050.31696 | EJ26: 19539.84278 | EK26: 18721.68644 | EL26: 18626.84379 | EM26: 8267.631264 | EN26: 1292.12187 | EO26: 1337.466612 | EP26: 1383.800819 | EQ26: 1431.953309 | ER26: 380.0787811 | ES26: 0 | ET26: 0 | EU26: 0 | EV26: 0 | EW26: 0 | EX26: 0 | EY26: 0 | EZ26: 0 | FA26: 0 | FC26: Income | FJ26: 43884.86466 | FK26: 50628.48185 | FL26: 57479.03702 | FM26: 57110.34006 | FN26: 67135.86326 | FO26: 66100.49584 | FP26: 53595.25354 | FQ26: 58475.70987 | FR26: 54060.64876 | FS26: 58711.82296 | FT26: 62819.88718 | FU26: 65356.92233 | FV26: 65610.02085 | FW26: 99933.58877 | FX26: 50053.32042 | FY26: 44898.94984 | FZ26: 45949.66166 | GA26: 54997.1172 | GB26: 45243.26364 | GC26: 50481.5928 | GD26: 51203.07805 | GE26: 25167.22483 | GF26: 28653.96305 | GG26: 17065.29541 | GH26: 17468.37088 | GI26: 17882.04212 | GJ26: 14995.97653 | GK26: 14258.09298 | GL26: 14038.53972 | GM26: 6174.802321 | GN26: 952.9763973 | GO26: 976.8022341 | GP26: 1000.785371 | GQ26: 1025.511477 | GR26: 269.6806677 | GS26: 0 | GT26: 0 | GU26: 0 | GV26: 0 | GW26: 0 | GX26: 0 | GY26: 0 | GZ26: 0 | HA26: 0
A27: =+A26 -> Spain | B27: Income with mitigated demand risk | C27: Income with mitigated demand risk | J27: 9837.627297 | K27: 13923.18566 | L27: 17648.50238 | M27: 16115.97199 | N27: 23791.79185 | O27: 20484.31658 | P27: 5905.045456 | Q27: 9753.28939 | R27: 5030.285865 | S27: 6305.199496 | T27: 8549.783812 | U27: 10620.34967 | V27: 9664.295785 | W27: 45916.3771 | X27: 9061.562503 | Y27: 9535.696806 | Z27: 9716.117359 | AA27: 19153.70571 | AB27: 7808.742327 | AC27: 13824.66288 | AD27: 32193.01878 | AE27: 10716.71686 | AF27: 14191.07658 | AG27: 1809.567335 | AH27: 1845.758682 | AI27: 1882.673855 | AJ27: 1920.327332 | AK27: 1958.733879 | AL27: 1997.908557 | AM27: 675.5667782 | AN27: 0 | AO27: 0 | AP27: 0 | AQ27: 0 | AR27: 0 | AS27: 0 | AT27: 0 | AU27: 0 | AV27: 0 | AW27: 0 | AX27: 0 | AY27: 0 | AZ27: 0 | BA27: 0 | BC27: Income with mitigated demand risk | BJ27: 9837.627297 | BK27: 13923.18566 | BL27: 17648.50238 | BM27: 16115.97199 | BN27: 23791.79185 | BO27: 20484.31658 | BP27: 5905.045456 | BQ27: 9753.28939 | BR27: 5030.285865 | BS27: 6305.199496 | BT27: 8549.783812 | BU27: 10620.34967 | BV27: 9664.295785 | BW27: 45916.3771 | BX27: 9061.562503 | BY27: 9535.696806 | BZ27: 9716.117359 | CA27: 19153.70571 | CB27: 7808.742327 | CC27: 13824.66288 | CD27: 32193.01878 | CE27: 10716.71686 | CF27: 14191.07658 | CG27: 1809.567335 | CH27: 1845.758682 | CI27: 1882.673855 | CJ27: 1920.327332 | CK27: 1958.733879 | CL27: 1997.908557 | CM27: 675.5667782 | CN27: 0 | CO27: 0 | CP27: 0 | CQ27: 0 | CR27: 0 | CS27: 0 | CT27: 0 | CU27: 0 | CV27: 0 | CW27: 0 | CX27: 0 | CY27: 0 | CZ27: 0 | DA27: 0 | DC27: Income with mitigated demand risk | DJ27: 9691.2768 | DK27: 13791.00639 | DL27: 17686.22944 | DM27: 16895.59497 | DN27: 24365.25082 | DO27: 20921.65977 | DP27: 6584.966187 | DQ27: 10227.63339 | DR27: 5866.833719 | DS27: 7016.625321 | DT27: 10964.16472 | DU27: 12389.6946 | DV27: 10162.49463 | DW27: 47175.73196 | DX27: 10181.48162 | DY27: 10743.45271 | DZ27: 11137.18649 | EA27: 21168.52826 | EB27: 9014.802593 | EC27: 16135.57095 | ED27: 34732.53701 | EE27: 12872.22105 | EF27: 15147.57859 | EG27: 2034.901515 | EH27: 2085.774053 | EI27: 2137.918405 | EJ27: 2191.366365 | EK27: 2246.150524 | EL27: 2302.304287 | EM27: 782.3103813 | EN27: 0 | EO27: 0 | EP27: 0 | EQ27: 0 | ER27: 0 | ES27: 0 | ET27: 0 | EU27: 0 | EV27: 0 | EW27: 0 | EX27: 0 | EY27: 0 | EZ27: 0 | FA27: 0 | FC27: Income with mitigated demand risk | FJ27: 9986.545665 | FK27: 14057.639 | FL27: 17611.39728 | FM27: 15333.76267 | FN27: 23234.54625 | FO27: 20054.32967 | FP27: 5521.606696 | FQ27: 8906.546544 | FR27: 2817.012281 | FS27: 5801.567074 | FT27: 7798.702374 | FU27: 9671.585604 | FV27: 8240.450724 | FW27: 44689.47026 | FX27: 8107.536424 | FY27: 8333.320582 | FZ27: 8536.60061 | GA27: 17116.70746 | GB27: 6653.815723 | GC27: 11955.36162 | GD27: 29593.4379 | GE27: 8713.060245 | GF27: 13542.0406 | GG27: 1608.257701 | GH27: 1632.381567 | GI27: 1656.86729 | GJ27: 1681.7203 | GK27: 1706.946104 | GL27: 1732.550296 | GM27: 582.9675742 | GN27: 0 | GO27: 0 | GP27: 0 | GQ27: 0 | GR27: 0 | GS27: 0 | GT27: 0 | GU27: 0 | GV27: 0 | GW27: 0 | GX27: 0 | GY27: 0 | GZ27: 0 | HA27: 0
A28: Spain | B28: Income with low demand risk | C28: Income with low demand risk | J28: 23289.59436 | K28: 24183.49268 | L28: 25658.5058 | M28: 27252.41604 | N28: 28959.09424 | O28: 30768.51519 | P28: 32347.55644 | Q28: 33423.62246 | R28: 34714.67622 | S28: 36015.27513 | T28: 37403.25311 | U28: 38725.71945 | V28: 40136.2898 | W28: 37501.14318 | X28: 22695.73208 | Y28: 16409.4227 | Z28: 16760.80209 | AA28: 17115.29246 | AB28: 17513.73124 | AC28: 16901.30415 | AD28: 0 | AE28: 0 | AF28: 0 | AG28: 0 | AH28: 0 | AI28: 0 | AJ28: 0 | AK28: 0 | AL28: 0 | AM28: 0 | AN28: 0 | AO28: 0 | AP28: 0 | AQ28: 0 | AR28: 0 | AS28: 0 | AT28: 0 | AU28: 0 | AV28: 0 | AW28: 0 | AX28: 0 | AY28: 0 | AZ28: 0 | BA28: 0 | BC28: Income with low demand risk | BJ28: 23289.59436 | BK28: 24183.49268 | BL28: 25658.5058 | BM28: 27252.41604 | BN28: 28959.09424 | BO28: 30768.51519 | BP28: 32347.55644 | BQ28: 33423.62246 | BR28: 34714.67622 | BS28: 36015.27513 | BT28: 37403.25311 | BU28: 38725.71945 | BV28: 40136.2898 | BW28: 37501.14318 | BX28: 22695.73208 | BY28: 16409.4227 | BZ28: 16760.80209 | CA28: 17115.29246 | CB28: 17513.73124 | CC28: 16901.30415 | CD28: 0 | CE28: 0 | CF28: 0 | CG28: 0 | CH28: 0 | CI28: 0 | CJ28: 0 | CK28: 0 | CL28: 0 | CM28: 0 | CN28: 0 | CO28: 0 | CP28: 0 | CQ28: 0 | CR28: 0 | CS28: 0 | CT28: 0 | CU28: 0 | CV28: 0 | CW28: 0 | CX28: 0 | CY28: 0 | CZ28: 0 | DA28: 0 | DC28: Income with low demand risk | DJ28: 23385.24742 | DK28: 24386.35161 | DL28: 26001.8268 | DM28: 27775.30699 | DN28: 29675.35705 | DO28: 31692.53115 | DP28: 33448.07123 | DQ28: 34704.76654 | DR28: 36246.282 | DS28: 37805.36904 | DT28: 39483.65505 | DU28: 41065.21478 | DV28: 42784.93516 | DW28: 40207.79015 | DX28: 24417.73607 | DY28: 17731.62871 | DZ28: 18179.08934 | EA28: 18639.94765 | EB28: 19186.97529 | EC28: 18621.13453 | ED28: 0 | EE28: 0 | EF28: 0 | EG28: 0 | EH28: 0 | EI28: 0 | EJ28: 0 | EK28: 0 | EL28: 0 | EM28: 0 | EN28: 0 | EO28: 0 | EP28: 0 | EQ28: 0 | ER28: 0 | ES28: 0 | ET28: 0 | EU28: 0 | EV28: 0 | EW28: 0 | EX28: 0 | EY28: 0 | EZ28: 0 | FA28: 0 | FC28: Income with low demand risk | FJ28: 23181.02479 | FK28: 23954.41701 | FL28: 25290.27364 | FM28: 26739.112 | FN28: 28285.19571 | FO28: 29920.25513 | FP28: 31300.33554 | FQ28: 32167.33089 | FR28: 33241.74487 | FS28: 34316.26377 | FT28: 35470.25704 | FU28: 36521.94519 | FV28: 37657.23354 | FW28: 34968.51126 | FX28: 21065.64353 | FY28: 15144.04605 | FZ28: 15392.17129 | GA28: 15640.70207 | GB28: 15929.03647 | GC28: 15301.67069 | GD28: 0 | GE28: 0 | GF28: 0 | GG28: 0 | GH28: 0 | GI28: 0 | GJ28: 0 | GK28: 0 | GL28: 0 | GM28: 0 | GN28: 0 | GO28: 0 | GP28: 0 | GQ28: 0 | GR28: 0 | GS28: 0 | GT28: 0 | GU28: 0 | GV28: 0 | GW28: 0 | GX28: 0 | GY28: 0 | GZ28: 0 | HA28: 0
A29: Spain | B29: Income with demand risk | C29: Income with demand risk | J29: 10757.32066 | K29: 12733.87576 | L29: 14777.47904 | M29: 15327.61014 | N29: 15995.99443 | O29: 16601.73795 | P29: 17353.39471 | Q29: 18092.43365 | R29: 18808.56627 | S29: 19814.60236 | T29: 19695.64123 | U29: 20320.1573 | V29: 21005.29962 | W29: 21712.04515 | X29: 22469.65686 | Y29: 23165.9587 | Z29: 23795.62816 | AA29: 24059.52906 | AB29: 24869.514 | AC29: 25614.28931 | AD29: 23946.70334 | AE29: 18314.16311 | AF29: 16910.82874 | AG29: 17382.27611 | AH29: 17896.20324 | AI29: 18426.39548 | AJ29: 15203.69954 | AK29: 14384.457 | AL29: 14178.43467 | AM29: 6471.968601 | AN29: 1110.08221 | AO29: 1143.437258 | AP29: 1177.280695 | AQ29: 1212.307133 | AR29: 320.290714 | AS29: 0 | AT29: 0 | AU29: 0 | AV29: 0 | AW29: 0 | AX29: 0 | AY29: 0 | AZ29: 0 | BA29: 0 | BC29: Income with demand risk | BJ29: 10757.32066 | BK29: 12733.87576 | BL29: 14777.47904 | BM29: 15327.61014 | BN29: 15995.99443 | BO29: 16601.73795 | BP29: 17353.39471 | BQ29: 18092.43365 | BR29: 18808.56627 | BS29: 19814.60236 | BT29: 19695.64123 | BU29: 20320.1573 | BV29: 21005.29962 | BW29: 21712.04515 | BX29: 22469.65686 | BY29: 23165.9587 | BZ29: 23795.62816 | CA29: 24059.52906 | CB29: 24869.514 | CC29: 25614.28931 | CD29: 23946.70334 | CE29: 18314.16311 | CF29: 16910.82874 | CG29: 17382.27611 | CH29: 17896.20324 | CI29: 18426.39548 | CJ29: 15203.69954 | CK29: 14384.457 | CL29: 14178.43467 | CM29: 6471.968601 | CN29: 1110.08221 | CO29: 1143.437258 | CP29: 1177.280695 | CQ29: 1212.307133 | CR29: 320.290714 | CS29: 0 | CT29: 0 | CU29: 0 | CV29: 0 | CW29: 0 | CX29: 0 | CY29: 0 | CZ29: 0 | DA29: 0 | DC29: Income with demand risk | DJ29: 10797.35526 | DK29: 12851.89166 | DL29: 14979.44851 | DM29: 15621.98074 | DN29: 16383.28572 | DO29: 17089.23435 | DP29: 17950.61987 | DQ29: 18806.93276 | DR29: 19647.25283 | DS29: 20799.83971 | DT29: 20776.08428 | DU29: 21540.0098 | DV29: 22375.52245 | DW29: 23241.84096 | DX29: 24170.84591 | DY29: 25042.10167 | DZ29: 25400.8466 | EA29: 26262.05972 | EB29: 27280.93778 | EC29: 28235.73382 | ED29: 26521.52625 | EE29: 20373.07052 | EF29: 18912.7288 | EG29: 19535.32149 | EH29: 20211.54901 | EI29: 20912.39855 | EJ29: 17348.47642 | EK29: 16475.53591 | EL29: 16324.5395 | EM29: 7485.320883 | EN29: 1292.12187 | EO29: 1337.466612 | EP29: 1383.800819 | EQ29: 1431.953309 | ER29: 380.0787811 | ES29: 0 | ET29: 0 | EU29: 0 | EV29: 0 | EW29: 0 | EX29: 0 | EY29: 0 | EZ29: 0 | FA29: 0 | FC29: Income with demand risk | FJ29: 10717.29421 | FK29: 12616.42585 | FL29: 14577.3661 | FM29: 15037.46538 | FN29: 15616.1213 | FO29: 16125.91103 | FP29: 16773.31131 | FQ29: 17401.83244 | FR29: 18001.8916 | FS29: 18593.99212 | FT29: 19550.92777 | FU29: 19163.39154 | FV29: 19712.33658 | FW29: 20275.60725 | FX29: 20880.14046 | FY29: 21421.5832 | FZ29: 22020.88976 | GA29: 22239.70767 | GB29: 22660.41145 | GC29: 23224.5605 | GD29: 21609.64015 | GE29: 16454.16458 | GF29: 15111.92245 | GG29: 15457.03771 | GH29: 15835.98931 | GI29: 16225.17483 | GJ29: 13314.25623 | GK29: 12551.14687 | GL29: 12305.98942 | GM29: 5591.834747 | GN29: 952.9763973 | GO29: 976.8022341 | GP29: 1000.785371 | GQ29: 1025.511477 | GR29: 269.6806677 | GS29: 0 | GT29: 0 | GU29: 0 | GV29: 0 | GW29: 0 | GX29: 0 | GY29: 0 | GZ29: 0 | HA29: 0
A30: Spain | B30: Operating Costs | C30: Operating Costs | J30: -9440.091175 | K30: -9096.423802 | L30: -9979.263701 | M30: -10562.09926 | N30: -9994.828407 | O30: -9436.845714 | P30: -9375.60622 | Q30: -9824.31442 | R30: -9779.987292 | S30: -9931.957976 | T30: -10108.86912 | U30: -10226.43656 | V30: -10398.23332 | W30: -10409.8544 | X30: -7617.549839 | Y30: -7271.361146 | Z30: -7393.540843 | AA30: -7494.11748 | AB30: -7629.87136 | AC30: -8250.851381 | AD30: -5720.144218 | AE30: -4785.450821 | AF30: -4882.146387 | AG30: -4975.981995 | AH30: -5076.627809 | AI30: -5177.707529 | AJ30: -4966.451049 | AK30: -4714.107212 | AL30: -4537.006763 | AM30: -2464.517332 | AN30: -370.1578542 | AO30: -377.5610112 | AP30: -385.1122315 | AQ30: -392.8144761 | AR30: -167.4767562 | AS30: 0 | AT30: 0 | AU30: 0 | AV30: 0 | AW30: 0 | AX30: 0 | AY30: 0 | AZ30: 0 | BA30: 0 | BC30: Operating Costs | BJ30: -9440.091175 | BK30: -9096.423802 | BL30: -9979.263701 | BM30: -10562.09926 | BN30: -9994.828407 | BO30: -9436.845714 | BP30: -9375.60622 | BQ30: -9824.31442 | BR30: -9779.987292 | BS30: -9931.957976 | BT30: -10108.86912 | BU30: -10226.43656 | BV30: -10398.23332 | BW30: -10409.8544 | BX30: -7617.549839 | BY30: -7271.361146 | BZ30: -7393.540843 | CA30: -7494.11748 | CB30: -7629.87136 | CC30: -8250.851381 | CD30: -5720.144218 | CE30: -4785.450821 | CF30: -4882.146387 | CG30: -4975.981995 | CH30: -5076.627809 | CI30: -5177.707529 | CJ30: -4966.451049 | CK30: -4714.107212 | CL30: -4537.006763 | CM30: -2464.517332 | CN30: -370.1578542 | CO30: -377.5610112 | CP30: -385.1122315 | CQ30: -392.8144761 | CR30: -167.4767562 | CS30: 0 | CT30: 0 | CU30: 0 | CV30: 0 | CW30: 0 | CX30: 0 | CY30: 0 | CZ30: 0 | DA30: 0 | DC30: Operating Costs | DJ30: -9463.338306 | DK30: -9160.592847 | DL30: -10082.18538 | DM30: -10711.47758 | DN30: -10182.55951 | DO30: -9658.007284 | DP30: -9621.968964 | DQ30: -10132.90644 | DR30: -10127.74299 | DS30: -10325.78684 | DT30: -10547.8749 | DU30: -10713.33789 | DV30: -10940.51174 | DW30: -10982.16771 | DX30: -8091.100189 | DY30: -7727.58209 | DZ30: -7880.951931 | EA30: -8028.166568 | EB30: -8206.89239 | EC30: -8867.650107 | ED30: -6261.524607 | EE30: -5296.277177 | EF30: -5429.420089 | EG30: -5560.554176 | EH30: -5700.473272 | EI30: -5842.129141 | EJ30: -5634.12776 | EK30: -5373.216024 | EL30: -5197.669482 | EM30: -2829.436174 | EN30: -430.7462164 | EO30: -441.5148718 | EP30: -452.5527436 | EQ30: -463.8665622 | ER30: -198.3655438 | ES30: 0 | ET30: 0 | EU30: 0 | EV30: 0 | EW30: 0 | EX30: 0 | EY30: 0 | EZ30: 0 | FA30: 0 | FC30: Operating Costs | FJ30: -9416.854258 | FK30: -9032.51866 | FL30: -9877.035244 | FM30: -10415.1648 | FN30: -9810.369164 | FO30: -9220.196081 | FP30: -9135.209855 | FQ30: -9524.916133 | FR30: -9444.460479 | FS30: -9549.485745 | FT30: -9693.032633 | FU30: -9762.624785 | FV30: -9883.696227 | FW30: -9867.929896 | FX30: -7171.373736 | FY30: -6842.873399 | FZ30: -6932.457062 | GA30: -7000.615205 | GB30: -7094.974584 | GC30: -7681.619829 | GD30: -5224.37473 | GE30: -4322.488606 | GF30: -4388.561929 | GG30: -4451.321839 | GH30: -4519.44002 | GI30: -4587.164153 | GJ30: -4375.752546 | GK30: -4133.411709 | GL30: -3957.811668 | GM30: -2146.217644 | GN30: -317.8549316 | GO30: -322.6227555 | GP30: -327.4620969 | GQ30: -332.3740283 | GR30: -141.2811054 | GS30: 0 | GT30: 0 | GU30: 0 | GV30: 0 | GW30: 0 | GX30: 0 | GY30: 0 | GZ30: 0 | HA30: 0
A31: Spain | B31: Investment & Capex | C31: Investment & Capex | J31: -3203.047147 | K31: -3630.558749 | L31: -2776.264808 | M31: -3862.913918 | N31: -3107.159588 | O31: -2825.428697 | P31: -1686.940824 | Q31: -1342.41525 | R31: -1188.897002 | S31: -1624.416577 | T31: -1879.293709 | U31: -2398.463808 | V31: -2317.142623 | W31: 370.9232563 | X31: -1762.817511 | Y31: -4034.921597 | Z31: -3975.836555 | AA31: -4511.273269 | AB31: -2064.552008 | AC31: -1737.480192 | AD31: -4622.6003 | AE31: -761.4126677 | AF31: -236.0069299 | AG31: -515.5698404 | AH31: -661.5938461 | AI31: -783.2970926 | AJ31: -323.1344967 | AK31: -845.3066469 | AL31: -798.0663914 | AM31: -759.7879462 | AN31: 0 | AO31: 0 | AP31: 0 | AQ31: 0 | AR31: 0 | AS31: 0 | AT31: 0 | AU31: 0 | AV31: 0 | AW31: 0 | AX31: 0 | AY31: 0 | AZ31: 0 | BA31: 0 | BC31: Investment & Capex | BJ31: -3203.047147 | BK31: -3630.558749 | BL31: -2776.264808 | BM31: -3862.913918 | BN31: -3107.159588 | BO31: -2825.428697 | BP31: -1686.940824 | BQ31: -1342.41525 | BR31: -1188.897002 | BS31: -1624.416577 | BT31: -1879.293709 | BU31: -2398.463808 | BV31: -2317.142623 | BW31: 370.9232563 | BX31: -1762.817511 | BY31: -4034.921597 | BZ31: -3975.836555 | CA31: -4511.273269 | CB31: -2064.552008 | CC31: -1737.480192 | CD31: -4622.6003 | CE31: -761.4126677 | CF31: -236.0069299 | CG31: -515.5698404 | CH31: -661.5938461 | CI31: -783.2970926 | CJ31: -323.1344967 | CK31: -845.3066469 | CL31: -798.0663914 | CM31: -759.7879462 | CN31: 0 | CO31: 0 | CP31: 0 | CQ31: 0 | CR31: 0 | CS31: 0 | CT31: 0 | CU31: 0 | CV31: 0 | CW31: 0 | CX31: 0 | CY31: 0 | CZ31: 0 | DA31: 0 | DC31: Investment & Capex | DJ31: -3248.042034 | DK31: -3694.927495 | DL31: -2837.67441 | DM31: -3968.566532 | DN31: -3201.147905 | DO31: -2914.932067 | DP31: -1744.361502 | DQ31: -1391.929917 | DR31: -1240.964679 | DS31: -1704.539056 | DT31: -1992.775571 | DU31: -2556.242118 | DV31: -2481.827051 | DW31: 260.7037673 | DX31: -1922.616593 | DY31: -4411.072039 | DZ31: -4358.894662 | EA31: -4959.272621 | EB31: -2278.198085 | EC31: -1916.557013 | ED31: -4629.265074 | EE31: -847.192149 | EF31: -264.1795502 | EG31: -579.9877192 | EH31: -748.9759619 | EI31: -889.4930291 | EJ31: -368.7423781 | EK31: -964.2096783 | EL31: -919.9184598 | EM31: -879.838999 | EN31: 0 | EO31: 0 | EP31: 0 | EQ31: 0 | ER31: 0 | ES31: 0 | ET31: 0 | EU31: 0 | EV31: 0 | EW31: 0 | EX31: 0 | EY31: 0 | EZ31: 0 | FA31: 0 | FC31: Investment & Capex | FJ31: -3158.550928 | FK31: -3567.116841 | FL31: -2715.970404 | FM31: -3759.731535 | FN31: -3015.573222 | FO31: -2738.294013 | FP31: -1631.288297 | FQ31: -1294.586153 | FR31: -1138.906533 | FS31: -1548.413849 | FT31: -1772.67963 | FU31: -2249.070976 | FV31: -2162.970416 | FW31: 473.1641443 | FX31: -1615.646729 | FY31: -3689.261874 | FZ31: -3624.852912 | GA31: -4101.664251 | GB31: -1869.743036 | GC31: -1573.70813 | GD31: -4615.717299 | GE31: -683.8260534 | GF31: -210.6947494 | GG31: -458.0432467 | GH31: -584.0536188 | GI31: -689.3489957 | GJ31: -282.983965 | GK31: -741.1894826 | GL31: -691.8724451 | GM31: -655.6446382 | GN31: 0 | GO31: 0 | GP31: 0 | GQ31: 0 | GR31: 0 | GS31: 0 | GT31: 0 | GU31: 0 | GV31: 0 | GW31: 0 | GX31: 0 | GY31: 0 | GZ31: 0 | HA31: 0
A32: Spain | B32: Into / Out Operating Reserve Accounts | C32: Into / Out Operating Reserve Accounts | J32: 0 | K32: 0 | L32: 0 | M32: 0 | N32: 0 | O32: 0 | P32: 0 | Q32: 0 | R32: 0 | S32: 0 | T32: 0 | U32: 0 | V32: 0 | W32: 0 | X32: 0 | Y32: 0 | Z32: 0 | AA32: 0 | AB32: 0 | AC32: 0 | AD32: 0 | AE32: 0 | AF32: 0 | AG32: 0 | AH32: 0 | AI32: 0 | AJ32: 0 | AK32: 0 | AL32: 0 | AM32: 0 | AN32: 0 | AO32: 0 | AP32: 0 | AQ32: 0 | AR32: 0 | AS32: 0 | AT32: 0 | AU32: 0 | AV32: 0 | AW32: 0 | AX32: 0 | AY32: 0 | AZ32: 0 | BA32: 0 | BC32: Into / Out Operating Reserve Accounts | BJ32: 0 | BK32: 0 | BL32: 0 | BM32: 0 | BN32: 0 | BO32: 0 | BP32: 0 | BQ32: 0 | BR32: 0 | BS32: 0 | BT32: 0 | BU32: 0 | BV32: 0 | BW32: 0 | BX32: 0 | BY32: 0 | BZ32: 0 | CA32: 0 | CB32: 0 | CC32: 0 | CD32: 0 | CE32: 0 | CF32: 0 | CG32: 0 | CH32: 0 | CI32: 0 | CJ32: 0 | CK32: 0 | CL32: 0 | CM32: 0 | CN32: 0 | CO32: 0 | CP32: 0 | CQ32: 0 | CR32: 0 | CS32: 0 | CT32: 0 | CU32: 0 | CV32: 0 | CW32: 0 | CX32: 0 | CY32: 0 | CZ32: 0 | DA32: 0 | DC32: Into / Out Operating Reserve Accounts | DJ32: 0 | DK32: 0 | DL32: 0 | DM32: 0 | DN32: 0 | DO32: 0 | DP32: 0 | DQ32: 0 | DR32: 0 | DS32: 0 | DT32: 0 | DU32: 0 | DV32: 0 | DW32: 0 | DX32: 0 | DY32: 0 | DZ32: 0 | EA32: 0 | EB32: 0 | EC32: 0 | ED32: 0 | EE32: 0 | EF32: 0 | EG32: 0 | EH32: 0 | EI32: 0 | EJ32: 0 | EK32: 0 | EL32: 0 | EM32: 0 | EN32: 0 | EO32: 0 | EP32: 0 | EQ32: 0 | ER32: 0 | ES32: 0 | ET32: 0 | EU32: 0 | EV32: 0 | EW32: 0 | EX32: 0 | EY32: 0 | EZ32: 0 | FA32: 0 | FC32: Into / Out Operating Reserve Accounts | FJ32: 0 | FK32: 0 | FL32: 0 | FM32: 0 | FN32: 0 | FO32: 0 | FP32: 0 | FQ32: 0 | FR32: 0 | FS32: 0 | FT32: 0 | FU32: 0 | FV32: 0 | FW32: 0 | FX32: 0 | FY32: 0 | FZ32: 0 | GA32: 0 | GB32: 0 | GC32: 0 | GD32: 0 | GE32: 0 | GF32: 0 | GG32: 0 | GH32: 0 | GI32: 0 | GJ32: 0 | GK32: 0 | GL32: 0 | GM32: 0 | GN32: 0 | GO32: 0 | GP32: 0 | GQ32: 0 | GR32: 0 | GS32: 0 | GT32: 0 | GU32: 0 | GV32: 0 | GW32: 0 | GX32: 0 | GY32: 0 | GZ32: 0 | HA32: 0
A33: Spain | B33: Operating Cash Flow | C33: Operating Cash Flow | J33: 31241.40399 | K33: 38113.57156 | L33: 45328.95871 | M33: 44270.985 | N33: 55644.89253 | O33: 55592.2953 | P33: 44543.44956 | Q33: 50102.61583 | R33: 47584.64406 | S33: 50578.70244 | T33: 53660.51532 | U33: 57041.32605 | V33: 58090.50925 | W33: 95090.63429 | X33: 44846.58409 | Y33: 37804.79546 | Z33: 38903.17021 | AA33: 48323.13648 | AB33: 40497.5642 | AC33: 46351.92477 | AD33: 45796.9776 | AE33: 23484.01649 | AF33: 25983.75199 | AG33: 13700.29161 | AH33: 14003.74027 | AI33: 14348.06472 | AJ33: 11834.44133 | AK33: 10783.77702 | AL33: 10841.27007 | AM33: 3923.230101 | AN33: 739.9243562 | AO33: 765.876247 | AP33: 792.1684633 | AQ33: 819.4926568 | AR33: 152.8139578 | AS33: 0 | AT33: 0 | AU33: 0 | AV33: 0 | AW33: 0 | AX33: 0 | AY33: 0 | AZ33: 0 | BA33: 0 | BC33: Operating Cash Flow | BJ33: 31241.40399 | BK33: 38113.57156 | BL33: 45328.95871 | BM33: 44270.985 | BN33: 55644.89253 | BO33: 55592.2953 | BP33: 44543.44956 | BQ33: 50102.61583 | BR33: 47584.64406 | BS33: 50578.70244 | BT33: 53660.51532 | BU33: 57041.32605 | BV33: 58090.50925 | BW33: 95090.63429 | BX33: 44846.58409 | BY33: 37804.79546 | BZ33: 38903.17021 | CA33: 48323.13648 | CB33: 40497.5642 | CC33: 46351.92477 | CD33: 45796.9776 | CE33: 23484.01649 | CF33: 25983.75199 | CG33: 13700.29161 | CH33: 14003.74027 | CI33: 14348.06472 | CJ33: 11834.44133 | CK33: 10783.77702 | CL33: 10841.27007 | CM33: 3923.230101 | CN33: 739.9243562 | CO33: 765.876247 | CP33: 792.1684633 | CQ33: 819.4926568 | CR33: 152.8139578 | CS33: 0 | CT33: 0 | CU33: 0 | CV33: 0 | CW33: 0 | CX33: 0 | CY33: 0 | CZ33: 0 | DA33: 0 | DC33: Operating Cash Flow | DJ33: 31162.49913 | DK33: 38173.72932 | DL33: 45747.64497 | DM33: 45612.83859 | DN33: 57040.18617 | DO33: 57130.48592 | DP33: 46617.32682 | DQ33: 52214.49633 | DR33: 50391.66088 | DS33: 53591.50817 | DT33: 58683.25358 | DU33: 61725.33918 | DV33: 61900.61345 | DW33: 99903.89913 | DX33: 48756.34683 | DY33: 41378.52897 | DZ33: 42477.27584 | EA33: 53083.09643 | EB33: 44997.62518 | EC33: 52208.23218 | ED33: 50363.27358 | EE33: 27101.82225 | EF33: 28366.70775 | EG33: 15429.68111 | EH33: 15847.87383 | EI33: 16318.69479 | EJ33: 13536.97265 | EK33: 12384.26074 | EL33: 12509.25585 | EM33: 4558.356091 | EN33: 861.3756535 | EO33: 895.9517397 | EP33: 931.2480749 | EQ33: 968.0867468 | ER33: 181.7132373 | ES33: 0 | ET33: 0 | EU33: 0 | EV33: 0 | EW33: 0 | EX33: 0 | EY33: 0 | EZ33: 0 | FA33: 0 | FC33: Operating Cash Flow | FJ33: 31309.45948 | FK33: 38028.84635 | FL33: 44886.03137 | FM33: 42935.44372 | FN33: 54309.92088 | FO33: 54142.00575 | FP33: 42828.75539 | FQ33: 47656.20758 | FR33: 43477.28174 | FS33: 47613.92337 | FT33: 51354.17492 | FU33: 53345.22657 | FV33: 53563.3542 | FW33: 90538.82302 | FX33: 41266.29995 | FY33: 34366.81457 | FZ33: 35392.35169 | GA33: 43894.83774 | GB33: 36278.54602 | GC33: 41226.26484 | GD33: 41362.98602 | GE33: 20160.91017 | GF33: 24054.70637 | GG33: 12155.93032 | GH33: 12364.87724 | GI33: 12605.52897 | GJ33: 10337.24002 | GK33: 9383.491785 | GL33: 9388.855603 | GM33: 3372.940039 | GN33: 635.1214657 | GO33: 654.1794785 | GP33: 673.3232737 | GQ33: 693.1374487 | GR33: 128.3995623 | GS33: 0 | GT33: 0 | GU33: 0 | GV33: 0 | GW33: 0 | GX33: 0 | GY33: 0 | GZ33: 0 | HA33: 0
A34: Spain | B34: Taxes | C34: Taxes | J34: -574.9088537 | K34: -2955.303247 | L34: -2267.664427 | M34: -1949.723703 | N34: -1982.055983 | O34: -1564.951586 | P34: -2498.566683 | Q34: -2546.260477 | R34: -2902.018657 | S34: -3160.026563 | T34: -3407.624004 | U34: -3623.524508 | V34: -4039.678419 | W34: -4195.195034 | X34: -6652.291716 | Y34: -4596.429697 | Z34: -4677.062195 | AA34: -4876.048473 | AB34: -4936.283908 | AC34: -5994.582594 | AD34: -3726.620119 | AE34: -3791.676784 | AF34: -2705.794973 | AG34: -2809.32882 | AH34: -2902.037904 | AI34: -2988.737188 | AJ34: -3121.882505 | AK34: -2571.642427 | AL34: -2503.503893 | AM34: -898.965244 | AN34: -129.1292578 | AO34: -134.8994451 | AP34: -140.7716584 | AQ34: -146.8381634 | AR34: -39.29994103 | AS34: 0 | AT34: 0 | AU34: 0 | AV34: 0 | AW34: 0 | AX34: 0 | AY34: 0 | AZ34: 0 | BA34: 0 | BC34: Taxes | BJ34: -574.9088537 | BK34: -2955.303247 | BL34: -2267.664427 | BM34: -1949.723703 | BN34: -1982.055983 | BO34: -1564.951586 | BP34: -2498.566683 | BQ34: -2546.260477 | BR34: -2902.018657 | BS34: -3160.026563 | BT34: -3407.624004 | BU34: -3623.524508 | BV34: -4039.678419 | BW34: -4195.195034 | BX34: -6652.291716 | BY34: -4596.429697 | BZ34: -4677.062195 | CA34: -4876.048473 | CB34: -4936.283908 | CC34: -5994.582594 | CD34: -3726.620119 | CE34: -3791.676784 | CF34: -2705.794973 | CG34: -2809.32882 | CH34: -2902.037904 | CI34: -2988.737188 | CJ34: -3121.882505 | CK34: -2571.642427 | CL34: -2503.503893 | CM34: -898.965244 | CN34: -129.1292578 | CO34: -134.8994451 | CP34: -140.7716584 | CQ34: -146.8381634 | CR34: -39.29994103 | CS34: 0 | CT34: 0 | CU34: 0 | CV34: 0 | CW34: 0 | CX34: 0 | CY34: 0 | CZ34: 0 | DA34: 0 | DC34: Taxes | DJ34: -578.7639131 | DK34: -3018.602187 | DL34: -2321.05573 | DM34: -2049.411811 | DN34: -2167.835867 | DO34: -1880.825534 | DP34: -2788.611476 | DQ34: -2809.842011 | DR34: -3217.213567 | DS34: -3533.768313 | DT34: -3918.278095 | DU34: -4215.79051 | DV34: -5154.500336 | DW34: -5124.660565 | DX34: -7662.213565 | DY34: -5339.045321 | DZ34: -5350.134941 | EA34: -5448.914744 | EB34: -5607.612199 | EC34: -6845.323032 | ED34: -4245.36652 | EE34: -4325.190513 | EF34: -3094.238427 | EG34: -3228.698316 | EH34: -3361.728726 | EI34: -3478.629188 | EJ34: -3682.826357 | EK34: -2993.759359 | EL34: -2930.465648 | EM34: -1065.260922 | EN34: -158.7145051 | EO34: -166.4783627 | EP34: -174.4508636 | EQ34: -182.7292566 | ER34: -49.11594987 | ES34: 0 | ET34: 0 | EU34: 0 | EV34: 0 | EW34: 0 | EX34: 0 | EY34: 0 | EZ34: 0 | FA34: 0 | FC34: Taxes | FJ34: -568.8494441 | FK34: -2886.54596 | FL34: -2209.30638 | FM34: -1879.792433 | FN34: -1831.088297 | FO34: -1353.611155 | FP34: -2089.286507 | FQ34: -2288.385652 | FR34: -2596.745151 | FS34: -2812.530709 | FT34: -2969.232523 | FU34: -3305.493634 | FV34: -3367.967133 | FW34: -3053.507069 | FX34: -5950.156085 | FY34: -3998.83879 | FZ34: -3960.393891 | GA34: -4148.849218 | GB34: -4260.854231 | GC34: -5199.45198 | GD34: -3257.143862 | GE34: -3311.145052 | GF34: -2358.058497 | GG34: -2435.776515 | GH34: -2500.056734 | GI34: -2556.933419 | GJ34: -2629.308063 | GK34: -2202.591576 | GL34: -2132.129283 | GM34: -755.0100881 | GN34: -103.6771454 | GO34: -107.8760106 | GP34: -112.1027293 | GQ34: -116.4465785 | GR34: -31.03140816 | GS34: 0 | GT34: 0 | GU34: 0 | GV34: 0 | GW34: 0 | GX34: 0 | GY34: 0 | GZ34: 0 | HA34: 0
A35: Spain | B35: Operating Cash Flow After Tax | C35: Operating Cash Flow After Tax | J35: 30666.49514 | K35: 35158.26831 | L35: 43061.29428 | M35: 42321.2613 | N35: 53662.83655 | O35: 54027.34371 | P35: 42044.88288 | Q35: 47556.35535 | R35: 44682.6254 | S35: 47418.67587 | T35: 50252.89131 | U35: 53417.80154 | V35: 54050.83083 | W35: 90895.43925 | X35: 38194.29238 | Y35: 33208.36577 | Z35: 34226.10802 | AA35: 43447.088 | AB35: 35561.28029 | AC35: 40357.34218 | AD35: 42070.35748 | AE35: 19692.3397 | AF35: 23277.95702 | AG35: 10890.96279 | AH35: 11101.70237 | AI35: 11359.32753 | AJ35: 8712.558822 | AK35: 8212.134591 | AL35: 8337.766175 | AM35: 3024.264857 | AN35: 610.7950984 | AO35: 630.9768018 | AP35: 651.3968049 | AQ35: 672.6544934 | AR35: 113.5140168 | AS35: 0 | AT35: 0 | AU35: 0 | AV35: 0 | AW35: 0 | AX35: 0 | AY35: 0 | AZ35: 0 | BA35: 0 | BC35: Operating Cash Flow After Tax | BJ35: 30666.49514 | BK35: 35158.26831 | BL35: 43061.29428 | BM35: 42321.2613 | BN35: 53662.83655 | BO35: 54027.34371 | BP35: 42044.88288 | BQ35: 47556.35535 | BR35: 44682.6254 | BS35: 47418.67587 | BT35: 50252.89131 | BU35: 53417.80154 | BV35: 54050.83083 | BW35: 90895.43925 | BX35: 38194.29238 | BY35: 33208.36577 | BZ35: 34226.10802 | CA35: 43447.088 | CB35: 35561.28029 | CC35: 40357.34218 | CD35: 42070.35748 | CE35: 19692.3397 | CF35: 23277.95702 | CG35: 10890.96279 | CH35: 11101.70237 | CI35: 11359.32753 | CJ35: 8712.558822 | CK35: 8212.134591 | CL35: 8337.766175 | CM35: 3024.264857 | CN35: 610.7950984 | CO35: 630.9768018 | CP35: 651.3968049 | CQ35: 672.6544934 | CR35: 113.5140168 | CS35: 0 | CT35: 0 | CU35: 0 | CV35: 0 | CW35: 0 | CX35: 0 | CY35: 0 | CZ35: 0 | DA35: 0 | DC35: Operating Cash Flow After Tax | DJ35: 30583.73522 | DK35: 35155.12714 | DL35: 43426.58924 | DM35: 43563.42678 | DN35: 54872.3503 | DO35: 55249.66038 | DP35: 43828.71535 | DQ35: 49404.65432 | DR35: 47174.44731 | DS35: 50057.73986 | DT35: 54764.97549 | DU35: 57509.54867 | DV35: 56746.11311 | DW35: 94779.23856 | DX35: 41094.13326 | DY35: 36039.48365 | DZ35: 37127.1409 | EA35: 47634.18169 | EB35: 39390.01299 | EC35: 45362.90915 | ED35: 46117.90706 | EE35: 22776.63173 | EF35: 25272.46932 | EG35: 12200.98279 | EH35: 12486.1451 | EI35: 12840.0656 | EJ35: 9854.146289 | EK35: 9390.501377 | EL35: 9578.790202 | EM35: 3493.095169 | EN35: 702.6611485 | EO35: 729.4733771 | EP35: 756.7972113 | EQ35: 785.3574902 | ER35: 132.5972875 | ES35: 0 | ET35: 0 | EU35: 0 | EV35: 0 | EW35: 0 | EX35: 0 | EY35: 0 | EZ35: 0 | FA35: 0 | FC35: Operating Cash Flow After Tax | FJ35: 30740.61003 | FK35: 35142.30039 | FL35: 42676.72499 | FM35: 41055.65128 | FN35: 52478.83258 | FO35: 52788.39459 | FP35: 40739.46888 | FQ35: 45367.82193 | FR35: 40880.53659 | FS35: 44801.39266 | FT35: 48384.9424 | FU35: 50039.73293 | FV35: 50195.38707 | FW35: 87485.31595 | FX35: 35316.14387 | FY35: 30367.97578 | FZ35: 31431.9578 | GA35: 39745.98852 | GB35: 32017.69179 | GC35: 36026.81286 | GD35: 38105.84215 | GE35: 16849.76512 | GF35: 21696.64787 | GG35: 9720.15381 | GH35: 9864.820504 | GI35: 10048.59555 | GJ35: 7707.931958 | GK35: 7180.90021 | GL35: 7256.72632 | GM35: 2617.929951 | GN35: 531.4443203 | GO35: 546.3034679 | GP35: 561.2205445 | GQ35: 576.6908702 | GR35: 97.36815412 | GS35: 0 | GT35: 0 | GU35: 0 | GV35: 0 | GW35: 0 | GX35: 0 | GY35: 0 | GZ35: 0 | HA35: 0
A36: Spain | B36: Debt Service | C36: Debt Service | J36: -22642.98195 | K36: -16329.74707 | L36: -36226.11107 | M36: 16381.72547 | N36: -39196.54592 | O36: -43425.92736 | P36: -32937.10321 | Q36: -33332.23058 | R36: -32241.64198 | S36: -32387.43632 | T36: -27729.66003 | U36: 14091.51154 | V36: -17741.68445 | W36: -20683.52577 | X36: -14149.68347 | Y36: -14627.8094 | Z36: -15496.93538 | AA36: -25216.78998 | AB36: -13143.49478 | AC36: -108.2036271 | AD36: 11.04612458 | AE36: 10.61374328 | AF36: 10.17750957 | AG36: 9.684307146 | AH36: 9.185120135 | AI36: 8.661444679 | AJ36: 8.129438003 | AK36: 2.675889157 | AL36: 0.6740270503 | AM36: 0.2215851365 | AN36: 0 | AO36: 0 | AP36: 0 | AQ36: 0 | AR36: 0 | AS36: 0 | AT36: 0 | AU36: 0 | AV36: 0 | AW36: 0 | AX36: 0 | AY36: 0 | AZ36: 0 | BA36: 0 | BC36: Debt Service | BJ36: -22642.98195 | BK36: -16329.74707 | BL36: -36226.11107 | BM36: 16381.72547 | BN36: -39196.54592 | BO36: -43425.92736 | BP36: -32937.10321 | BQ36: -33332.23058 | BR36: -32241.64198 | BS36: -32387.43632 | BT36: -27729.66003 | BU36: 14091.51154 | BV36: -17741.68445 | BW36: -20683.52577 | BX36: -14149.68347 | BY36: -14627.8094 | BZ36: -15496.93538 | CA36: -25216.78998 | CB36: -13143.49478 | CC36: -108.2036271 | CD36: 11.04612458 | CE36: 10.61374328 | CF36: 10.17750957 | CG36: 9.684307146 | CH36: 9.185120135 | CI36: 8.661444679 | CJ36: 8.129438003 | CK36: 2.675889157 | CL36: 0.6740270503 | CM36: 0.2215851365 | CN36: 0 | CO36: 0 | CP36: 0 | CQ36: 0 | CR36: 0 | CS36: 0 | CT36: 0 | CU36: 0 | CV36: 0 | CW36: 0 | CX36: 0 | CY36: 0 | CZ36: 0 | DA36: 0 | DC36: Debt Service | DJ36: -22641.6918 | DK36: -11273.94429 | DL36: -36334.7735 | DM36: 20654.00234 | DN36: -39816.43029 | DO36: -44017.58606 | DP36: -33884.02034 | DQ36: -34309.61031 | DR36: -33822.36603 | DS36: -34025.79245 | DT36: -29185.72268 | DU36: 17799.39958 | DV36: -17893.17274 | DW36: -22268.21784 | DX36: -15453.77908 | DY36: -15960.38131 | DZ36: -17176.44148 | EA36: -27641.98237 | EB36: -14959.34654 | EC36: -108.2262097 | ED36: 11.02354198 | EE36: 10.59116068 | EF36: 10.15486511 | EG36: 9.661724548 | EH36: 9.162537538 | EI36: 8.638862081 | EJ36: 8.106793535 | EK36: 2.708111021 | EL36: 0.6740270503 | EM36: 0.2215851365 | EN36: 0 | EO36: 0 | EP36: 0 | EQ36: 0 | ER36: 0 | ES36: 0 | ET36: 0 | EU36: 0 | EV36: 0 | EW36: 0 | EX36: 0 | EY36: 0 | EZ36: 0 | FA36: 0 | FC36: Debt Service | FJ36: -22693.64502 | FK36: -20851.10445 | FL36: -36114.42029 | FM36: 12789.1564 | FN36: -38591.46636 | FO36: -42781.32849 | FP36: -32390.70579 | FQ36: -32060.5767 | FR36: -29547.10277 | FS36: -30918.89315 | FT36: -27640.53479 | FU36: 11100.58606 | FV36: -18701.27051 | FW36: -19137.71576 | FX36: -12887.92042 | FY36: -13267.52013 | FZ36: -14103.78564 | GA36: -22881.05939 | GB36: -11974.54059 | GC36: -108.1823214 | GD36: 11.06743028 | GE36: 10.63504898 | GF36: 10.19887365 | GG36: 9.705612847 | GH36: 9.206425836 | GI36: 8.68275038 | GJ36: 8.150802076 | GK36: 2.648039188 | GL36: 0.6740270503 | GM36: 0.2215851365 | GN36: 0 | GO36: 0 | GP36: 0 | GQ36: 0 | GR36: 0 | GS36: 0 | GT36: 0 | GU36: 0 | GV36: 0 | GW36: 0 | GX36: 0 | GY36: 0 | GZ36: 0 | HA36: 0
A37: Spain | B37: Interest income | C37: Interest income | J37: 0 | K37: 0 | L37: 0 | M37: 0 | N37: 0 | O37: 0 | P37: 0 | Q37: 0 | R37: 0 | S37: 0 | T37: 0 | U37: 0 | V37: 0 | W37: 0 | X37: 0 | Y37: 0 | Z37: 0 | AA37: 0 | AB37: 0 | AC37: 0 | AD37: 0 | AE37: 0 | AF37: 0 | AG37: 0 | AH37: 0 | AI37: 0 | AJ37: 0 | AK37: 0 | AL37: 0 | AM37: 0 | AN37: 0 | AO37: 0 | AP37: 0 | AQ37: 0 | AR37: 0 | AS37: 0 | AT37: 0 | AU37: 0 | AV37: 0 | AW37: 0 | AX37: 0 | AY37: 0 | AZ37: 0 | BA37: 0 | BC37: Interest income | BJ37: 0 | BK37: 0 | BL37: 0 | BM37: 0 | BN37: 0 | BO37: 0 | BP37: 0 | BQ37: 0 | BR37: 0 | BS37: 0 | BT37: 0 | BU37: 0 | BV37: 0 | BW37: 0 | BX37: 0 | BY37: 0 | BZ37: 0 | CA37: 0 | CB37: 0 | CC37: 0 | CD37: 0 | CE37: 0 | CF37: 0 | CG37: 0 | CH37: 0 | CI37: 0 | CJ37: 0 | CK37: 0 | CL37: 0 | CM37: 0 | CN37: 0 | CO37: 0 | CP37: 0 | CQ37: 0 | CR37: 0 | CS37: 0 | CT37: 0 | CU37: 0 | CV37: 0 | CW37: 0 | CX37: 0 | CY37: 0 | CZ37: 0 | DA37: 0 | DC37: Interest income | DJ37: 0 | DK37: 0 | DL37: 0 | DM37: 0 | DN37: 0 | DO37: 0 | DP37: 0 | DQ37: 0 | DR37: 0 | DS37: 0 | DT37: 0 | DU37: 0 | DV37: 0 | DW37: 0 | DX37: 0 | DY37: 0 | DZ37: 0 | EA37: 0 | EB37: 0 | EC37: 0 | ED37: 0 | EE37: 0 | EF37: 0 | EG37: 0 | EH37: 0 | EI37: 0 | EJ37: 0 | EK37: 0 | EL37: 0 | EM37: 0 | EN37: 0 | EO37: 0 | EP37: 0 | EQ37: 0 | ER37: 0 | ES37: 0 | ET37: 0 | EU37: 0 | EV37: 0 | EW37: 0 | EX37: 0 | EY37: 0 | EZ37: 0 | FA37: 0 | FC37: Interest income | FJ37: 0 | FK37: 0 | FL37: 0 | FM37: 0 | FN37: 0 | FO37: 0 | FP37: 0 | FQ37: 0 | FR37: 0 | FS37: 0 | FT37: 0 | FU37: 0 | FV37: 0 | FW37: 0 | FX37: 0 | FY37: 0 | FZ37: 0 | GA37: 0 | GB37: 0 | GC37: 0 | GD37: 0 | GE37: 0 | GF37: 0 | GG37: 0 | GH37: 0 | GI37: 0 | GJ37: 0 | GK37: 0 | GL37: 0 | GM37: 0 | GN37: 0 | GO37: 0 | GP37: 0 | GQ37: 0 | GR37: 0 | GS37: 0 | GT37: 0 | GU37: 0 | GV37: 0 | GW37: 0 | GX37: 0 | GY37: 0 | GZ37: 0 | HA37: 0
A38: Spain | B38: Free Cash Flow To Equity | C38: Free Cash Flow To Equity | J38: 8023.513193 | K38: 18828.52124 | L38: 6835.183212 | M38: 58702.98677 | N38: 14466.29063 | O38: 10601.41636 | P38: 9107.779664 | Q38: 14224.12477 | R38: 12440.98343 | S38: 15031.23955 | T38: 22523.23129 | U38: 67509.31308 | V38: 36309.14638 | W38: 70211.91348 | X38: 24044.6089 | Y38: 18580.55637 | Z38: 18729.17264 | AA38: 18230.29802 | AB38: 22417.78551 | AC38: 40249.13855 | AD38: 42081.40361 | AE38: 19702.95344 | AF38: 23288.13453 | AG38: 10900.64709 | AH38: 11110.88749 | AI38: 11367.98897 | AJ38: 8720.68826 | AK38: 8214.81048 | AL38: 8338.440202 | AM38: 3024.486442 | AN38: 610.7950984 | AO38: 630.9768018 | AP38: 651.3968049 | AQ38: 672.6544934 | AR38: 113.5140168 | AS38: 0 | AT38: 0 | AU38: 0 | AV38: 0 | AW38: 0 | AX38: 0 | AY38: 0 | AZ38: 0 | BA38: 0 | BC38: Free Cash Flow To Equity | BJ38: 8023.513193 | BK38: 18828.52124 | BL38: 6835.183212 | BM38: 58702.98677 | BN38: 14466.29063 | BO38: 10601.41636 | BP38: 9107.779664 | BQ38: 14224.12477 | BR38: 12440.98343 | BS38: 15031.23955 | BT38: 22523.23129 | BU38: 67509.31308 | BV38: 36309.14638 | BW38: 70211.91348 | BX38: 24044.6089 | BY38: 18580.55637 | BZ38: 18729.17264 | CA38: 18230.29802 | CB38: 22417.78551 | CC38: 40249.13855 | CD38: 42081.40361 | CE38: 19702.95344 | CF38: 23288.13453 | CG38: 10900.64709 | CH38: 11110.88749 | CI38: 11367.98897 | CJ38: 8720.68826 | CK38: 8214.81048 | CL38: 8338.440202 | CM38: 3024.486442 | CN38: 610.7950984 | CO38: 630.9768018 | CP38: 651.3968049 | CQ38: 672.6544934 | CR38: 113.5140168 | CS38: 0 | CT38: 0 | CU38: 0 | CV38: 0 | CW38: 0 | CX38: 0 | CY38: 0 | CZ38: 0 | DA38: 0 | DC38: Free Cash Flow To Equity | DJ38: 7942.043419 | DK38: 23881.18285 | DL38: 7091.815739 | DM38: 64217.42911 | DN38: 15055.92001 | DO38: 11232.07432 | DP38: 9944.695003 | DQ38: 15095.04401 | DR38: 13352.08128 | DS38: 16031.94741 | DT38: 25579.25281 | DU38: 75308.94825 | DV38: 38852.94037 | DW38: 72511.02072 | DX38: 25640.35418 | DY38: 20079.10234 | DZ38: 19950.69941 | EA38: 19992.19932 | EB38: 24430.66645 | EC38: 45254.68294 | ED38: 46128.93061 | EE38: 22787.22289 | EF38: 25282.62419 | EG38: 12210.64452 | EH38: 12495.30764 | EI38: 12848.70446 | EJ38: 9862.253083 | EK38: 9393.209488 | EL38: 9579.464229 | EM38: 3493.316754 | EN38: 702.6611485 | EO38: 729.4733771 | EP38: 756.7972113 | EQ38: 785.3574902 | ER38: 132.5972875 | ES38: 0 | ET38: 0 | EU38: 0 | EV38: 0 | EW38: 0 | EX38: 0 | EY38: 0 | EZ38: 0 | FA38: 0 | FC38: Free Cash Flow To Equity | FJ38: 8046.965008 | FK38: 14291.19594 | FL38: 6562.304703 | FM38: 53844.80769 | FN38: 13887.36622 | FO38: 10007.0661 | FP38: 8348.763088 | FQ38: 13307.24523 | FR38: 11333.43382 | FS38: 13882.49951 | FT38: 20744.40761 | FU38: 61140.31899 | FV38: 31494.11656 | FW38: 68347.60018 | FX38: 22428.22345 | FY38: 17100.45564 | FZ38: 17328.17216 | GA38: 16864.92913 | GB38: 20043.1512 | GC38: 35918.63054 | GD38: 38116.90958 | GE38: 16860.40017 | GF38: 21706.84675 | GG38: 9729.859423 | GH38: 9874.026929 | GI38: 10057.2783 | GJ38: 7716.08276 | GK38: 7183.548249 | GL38: 7257.400347 | GM38: 2618.151536 | GN38: 531.4443203 | GO38: 546.3034679 | GP38: 561.2205445 | GQ38: 576.6908702 | GR38: 97.36815412 | GS38: 0 | GT38: 0 | GU38: 0 | GV38: 0 | GW38: 0 | GX38: 0 | GY38: 0 | GZ38: 0 | HA38: 0
A39: Spain | B39: Distributions to Shareholders | C39: Distributions to Shareholders | J39: -8051.483818 | K39: -19363.17028 | L39: -7412.837501 | M39: -52474.27714 | N39: -13754.59432 | O39: -15209.74355 | P39: -14002.61582 | Q39: -11012.38471 | R39: -17429.41613 | S39: -15504.2182 | T39: -23033.52211 | U39: -67512.08656 | V39: -27042.67668 | W39: -36486.5736 | X39: -41353.088 | Y39: -46183.44299 | Z39: -18729.17242 | AA39: -18230.90538 | AB39: -22417.78543 | AC39: -42249.13842 | AD39: -42361.59351 | AE39: -19702.95296 | AF39: -23288.13458 | AG39: -10900.64709 | AH39: -11110.88749 | AI39: -11367.98897 | AJ39: -3052.257664 | AK39: -7149.012248 | AL39: -10493.02214 | AM39: -5553.362787 | AN39: -2936.548598 | AO39: -630.9768018 | AP39: -651.3968049 | AQ39: -672.6544934 | AR39: -113.5140168 | AS39: 0 | AT39: 0 | AU39: 0 | AV39: 0 | AW39: 0 | AX39: 0 | AY39: 0 | AZ39: 0 | BA39: 0 | BC39: Distributions to Shareholders | BJ39: -8051.483818 | BK39: -19363.17028 | BL39: -7412.837501 | BM39: -52474.27714 | BN39: -13754.59432 | BO39: -15209.74355 | BP39: -14002.61582 | BQ39: -11012.38471 | BR39: -17429.41613 | BS39: -15504.2182 | BT39: -23033.52211 | BU39: -67512.08656 | BV39: -27042.67668 | BW39: -36486.5736 | BX39: -41353.088 | BY39: -46183.44299 | BZ39: -18729.17242 | CA39: -18230.90538 | CB39: -22417.78543 | CC39: -42249.13842 | CD39: -42361.59351 | CE39: -19702.95296 | CF39: -23288.13458 | CG39: -10900.64709 | CH39: -11110.88749 | CI39: -11367.98897 | CJ39: -3052.257664 | CK39: -7149.012248 | CL39: -10493.02214 | CM39: -5553.362787 | CN39: -2936.548598 | CO39: -630.9768018 | CP39: -651.3968049 | CQ39: -672.6544934 | CR39: -113.5140168 | CS39: 0 | CT39: 0 | CU39: 0 | CV39: 0 | CW39: 0 | CX39: 0 | CY39: 0 | CZ39: 0 | DA39: 0 | DC39: Distributions to Shareholders | DJ39: -8020.851135 | DK39: -24435.89488 | DL39: -7671.94206 | DM39: -57752.99375 | DN39: -14063.24409 | DO39: -15637.10298 | DP39: -15327.30516 | DQ39: -11884.29704 | DR39: -18396.85423 | DS39: -16499.981 | DT39: -26082.06448 | DU39: -73421.19307 | DV39: -31346.9952 | DW39: -38447.49581 | DX39: -39615.16896 | DY39: -51575.58114 | DZ39: -19950.69906 | EA39: -19993.25187 | EB39: -24430.66681 | EC39: -47254.68341 | ED39: -46409.03322 | EE39: -22787.22327 | EF39: -25282.62437 | EG39: -12210.64452 | EH39: -12495.30764 | EI39: -12848.70446 | EJ39: -4179.242241 | EK39: -8065.990888 | EL39: -11984.14481 | EM39: -5631.842828 | EN39: -3444.221425 | EO39: -729.4733771 | EP39: -756.7972113 | EQ39: -785.3574902 | ER39: -132.5972875 | ES39: 0 | ET39: 0 | EU39: 0 | EV39: 0 | EW39: 0 | EX39: 0 | EY39: 0 | EZ39: 0 | FA39: 0 | FC39: Distributions to Shareholders | FJ39: -8071.424187 | FK39: -14804.84197 | FL39: -7137.872869 | FM39: -47831.60845 | FN39: -13445.95217 | FO39: -14823.85516 | FP39: -12843.15284 | FQ39: -9986.5536 | FR39: -16260.43277 | FS39: -14358.71529 | FT39: -21266.02742 | FU39: -61141.59 | FV39: -24602.9078 | FW39: -32524.49071 | FX39: -43190.09974 | FY39: -40884.83455 | FZ39: -17328.17204 | GA39: -16865.11605 | GB39: -20043.15157 | GC39: -37918.63045 | GD39: -38396.97373 | GE39: -16860.40054 | GF39: -21706.84649 | GG39: -9729.859423 | GH39: -9874.026929 | GI39: -10057.2783 | GJ39: -2060.392579 | GK39: -6358.96347 | GL39: -9180.45342 | GM39: -5485.032387 | GN39: -2497.188588 | GO39: -546.3034679 | GP39: -561.2205445 | GQ39: -576.6908702 | GR39: -97.36815412 | GS39: 0 | GT39: 0 | GU39: 0 | GV39: 0 | GW39: 0 | GX39: 0 | GY39: 0 | GZ39: 0 | HA39: 0
A40: Spain | B40: Equity | C40: Equity | J40: 0 | K40: 0 | L40: 0 | M40: 0 | N40: 0 | O40: 0 | P40: 0 | Q40: 0 | R40: 0 | S40: 0 | T40: 0 | U40: 0 | V40: 0 | W40: 0 | X40: 0 | Y40: 0 | Z40: 0 | AA40: 0 | AB40: 0 | AC40: 0 | AD40: 0 | AE40: 0 | AF40: 0 | AG40: 0 | AH40: 0 | AI40: 0 | AJ40: 0 | AK40: 0 | AL40: 0 | AM40: 0 | AN40: 0 | AO40: 0 | AP40: 0 | AQ40: 0 | AR40: 0 | AS40: 0 | AT40: 0 | AU40: 0 | AV40: 0 | AW40: 0 | AX40: 0 | AY40: 0 | AZ40: 0 | BA40: 0 | BC40: Equity | BJ40: 0 | BK40: 0 | BL40: 0 | BM40: 0 | BN40: 0 | BO40: 0 | BP40: 0 | BQ40: 0 | BR40: 0 | BS40: 0 | BT40: 0 | BU40: 0 | BV40: 0 | BW40: 0 | BX40: 0 | BY40: 0 | BZ40: 0 | CA40: 0 | CB40: 0 | CC40: 0 | CD40: 0 | CE40: 0 | CF40: 0 | CG40: 0 | CH40: 0 | CI40: 0 | CJ40: 0 | CK40: 0 | CL40: 0 | CM40: 0 | CN40: 0 | CO40: 0 | CP40: 0 | CQ40: 0 | CR40: 0 | CS40: 0 | CT40: 0 | CU40: 0 | CV40: 0 | CW40: 0 | CX40: 0 | CY40: 0 | CZ40: 0 | DA40: 0 | DC40: Equity | DJ40: 0 | DK40: 0 | DL40: 0 | DM40: 0 | DN40: 0 | DO40: 0 | DP40: 0 | DQ40: 0 | DR40: 0 | DS40: 0 | DT40: 0 | DU40: 0 | DV40: 0 | DW40: 0 | DX40: 0 | DY40: 0 | DZ40: 0 | EA40: 0 | EB40: 0 | EC40: 0 | ED40: 0 | EE40: 0 | EF40: 0 | EG40: 0 | EH40: 0 | EI40: 0 | EJ40: 0 | EK40: 0 | EL40: 0 | EM40: 0 | EN40: 0 | EO40: 0 | EP40: 0 | EQ40: 0 | ER40: 0 | ES40: 0 | ET40: 0 | EU40: 0 | EV40: 0 | EW40: 0 | EX40: 0 | EY40: 0 | EZ40: 0 | FA40: 0 | FC40: Equity | FJ40: 0 | FK40: 0 | FL40: 0 | FM40: 0 | FN40: 0 | FO40: 0 | FP40: 0 | FQ40: 0 | FR40: 0 | FS40: 0 | FT40: 0 | FU40: 0 | FV40: 0 | FW40: 0 | FX40: 0 | FY40: 0 | FZ40: 0 | GA40: 0 | GB40: 0 | GC40: 0 | GD40: 0 | GE40: 0 | GF40: 0 | GG40: 0 | GH40: 0 | GI40: 0 | GJ40: 0 | GK40: 0 | GL40: 0 | GM40: 0 | GN40: 0 | GO40: 0 | GP40: 0 | GQ40: 0 | GR40: 0 | GS40: 0 | GT40: 0 | GU40: 0 | GV40: 0 | GW40: 0 | GX40: 0 | GY40: 0 | GZ40: 0 | HA40: 0
A41: Spain | B41: Net Cash Flow | C41: Net Cash Flow | J41: -27.97062517 | K41: -534.6490347 | L41: -577.6542888 | M41: 6228.709631 | N41: 711.6963027 | O41: -4608.327196 | P41: -4894.836152 | Q41: 3211.740056 | R41: -4988.432698 | S41: -472.9786533 | T41: -510.2908183 | U41: -2.773486746 | V41: 9266.4697 | W41: 33725.33988 | X41: -17308.4791 | Y41: -27602.88662 | Z41: 0.0002181504533 | AA41: -0.6073556845 | AB41: 8.123436419e-05 | AC41: -1999.999864 | AD41: -280.1899007 | AE41: 0.0004891090248 | AF41: -4.701591752e-05 | AG41: -3.637978807e-12 | AH41: 3.637978807e-12 | AI41: -1.091393642e-11 | AJ41: 5668.430595 | AK41: 1065.798232 | AL41: -2154.581939 | AM41: -2528.876345 | AN41: -2325.7535 | AO41: 0 | AP41: 1.136868377e-13 | AQ41: 1.136868377e-13 | AR41: -1.136868377e-13 | AS41: 0 | AT41: 0 | AU41: 0 | AV41: 0 | AW41: 0 | AX41: 0 | AY41: 0 | AZ41: 0 | BA41: 0 | BC41: Net Cash Flow | BJ41: -27.97062517 | BK41: -534.6490347 | BL41: -577.6542888 | BM41: 6228.709631 | BN41: 711.6963027 | BO41: -4608.327196 | BP41: -4894.836152 | BQ41: 3211.740056 | BR41: -4988.432698 | BS41: -472.9786533 | BT41: -510.2908183 | BU41: -2.773486746 | BV41: 9266.4697 | BW41: 33725.33988 | BX41: -17308.4791 | BY41: -27602.88662 | BZ41: 0.0002181504533 | CA41: -0.6073556845 | CB41: 8.123436419e-05 | CC41: -1999.999864 | CD41: -280.1899007 | CE41: 0.0004891090248 | CF41: -4.701591752e-05 | CG41: -3.637978807e-12 | CH41: 3.637978807e-12 | CI41: -1.091393642e-11 | CJ41: 5668.430595 | CK41: 1065.798232 | CL41: -2154.581939 | CM41: -2528.876345 | CN41: -2325.7535 | CO41: 0 | CP41: 1.136868377e-13 | CQ41: 1.136868377e-13 | CR41: -1.136868377e-13 | CS41: 0 | CT41: 0 | CU41: 0 | CV41: 0 | CW41: 0 | CX41: 0 | CY41: 0 | CZ41: 0 | DA41: 0 | DC41: Net Cash Flow | DJ41: -78.80771609 | DK41: -554.7120308 | DL41: -580.1263215 | DM41: 6464.435365 | DN41: 992.6759157 | DO41: -4405.028664 | DP41: -5382.610159 | DQ41: 3210.746963 | DR41: -5044.772948 | DS41: -468.0335909 | DT41: -502.8116715 | DU41: 1887.755178 | DV41: 7505.945179 | DW41: 34063.52492 | DX41: -13974.81478 | DY41: -31496.4788 | DZ41: 0.0003527131375 | EA41: -1.052542867 | EB41: -0.0003653646054 | EC41: -2000.000474 | ED41: -280.1026109 | EE41: -0.0003801888524 | EF41: -0.0001855050396 | EG41: -3.637978807e-12 | EH41: 5.456968211e-12 | EI41: -7.275957614e-12 | EJ41: 5683.010841 | EK41: 1327.2186 | EL41: -2404.680582 | EM41: -2138.526074 | EN41: -2741.560276 | EO41: 1.136868377e-13 | EP41: 0 | EQ41: 1.136868377e-13 | ER41: 2.842170943e-14 | ES41: 0 | ET41: 0 | EU41: 0 | EV41: 0 | EW41: 0 | EX41: 0 | EY41: 0 | EZ41: 0 | FA41: 0 | FC41: Net Cash Flow | FJ41: -24.45917868 | FK41: -513.6460278 | FL41: -575.5681657 | FM41: 6013.199239 | FN41: 441.4140503 | FO41: -4816.789067 | FP41: -4494.389753 | FQ41: 3320.691633 | FR41: -4926.998948 | FS41: -476.2157854 | FT41: -521.6198086 | FU41: -1.271006986 | FV41: 6891.208757 | FW41: 35823.10947 | FX41: -20761.87629 | FY41: -23784.37891 | FZ41: 0.0001187609814 | GA41: -0.1869248953 | GB41: -0.000373108971 | GC41: -1999.999907 | GD41: -280.0641443 | GE41: -0.0003719381784 | GF41: 0.0002529032718 | GG41: -3.637978807e-12 | GH41: 1.818989404e-12 | GI41: 0 | GJ41: 5655.690181 | GK41: 824.5847785 | GL41: -1923.053073 | GM41: -2866.880851 | GN41: -1965.744268 | GO41: -1.136868377e-13 | GP41: -1.136868377e-13 | GQ41: 0 | GR41: 1.278976924e-13 | GS41: 0 | GT41: 0 | GU41: 0 | GV41: 0 | GW41: 0 | GX41: 0 | GY41: 0 | GZ41: 0 | HA41: 0
A42: Spain | B42: Cash EoP | C42: Cash EoP | I42: =+CHOOSE($G$3,BI42,DI42,FI42)*$F$3 -> 10943.35866 | J42: 10915.38803 | K42: 10380.739 | L42: 9803.084709 | M42: 16031.79434 | N42: 16743.49064 | O42: 12135.16345 | P42: 7240.327294 | Q42: 10452.06735 | R42: 5463.634652 | S42: 4990.655999 | T42: 4480.365181 | U42: 4477.591694 | V42: 13744.06139 | W42: 47469.40128 | X42: 30160.92218 | Y42: 2558.035563 | Z42: 2558.035781 | AA42: 2557.428425 | AB42: 2557.428506 | AC42: 557.4286428 | AD42: 277.238742 | AE42: 277.2392311 | AF42: 277.2391841 | AG42: 277.2391841 | AH42: 277.2391841 | AI42: 277.2391841 | AJ42: 5945.66978 | AK42: 7011.468012 | AL42: 4856.886073 | AM42: 2328.009728 | AN42: 2.256228439 | AO42: 2.256228439 | AP42: 2.256228439 | AQ42: 2.256228439 | AR42: 2.256228439 | AS42: 2.256228439 | AT42: 2.256228439 | AU42: 2.256228439 | AV42: 2.256228439 | AW42: 2.256228439 | AX42: 2.256228439 | AY42: 2.256228439 | AZ42: 2.256228439 | BA42: 2.256228439 | BC42: Cash EoP | BI42: 10943.35866 | BJ42: 10915.38803 | BK42: 10380.739 | BL42: 9803.084709 | BM42: 16031.79434 | BN42: 16743.49064 | BO42: 12135.16345 | BP42: 7240.327294 | BQ42: 10452.06735 | BR42: 5463.634652 | BS42: 4990.655999 | BT42: 4480.365181 | BU42: 4477.591694 | BV42: 13744.06139 | BW42: 47469.40128 | BX42: 30160.92218 | BY42: 2558.035563 | BZ42: 2558.035781 | CA42: 2557.428425 | CB42: 2557.428506 | CC42: 557.4286428 | CD42: 277.238742 | CE42: 277.2392311 | CF42: 277.2391841 | CG42: 277.2391841 | CH42: 277.2391841 | CI42: 277.2391841 | CJ42: 5945.66978 | CK42: 7011.468012 | CL42: 4856.886073 | CM42: 2328.009728 | CN42: 2.256228439 | CO42: 2.256228439 | CP42: 2.256228439 | CQ42: 2.256228439 | CR42: 2.256228439 | CS42: 2.256228439 | CT42: 2.256228439 | CU42: 2.256228439 | CV42: 2.256228439 | CW42: 2.256228439 | CX42: 2.256228439 | CY42: 2.256228439 | CZ42: 2.256228439 | DA42: 2.256228439 | DC42: Cash EoP | DI42: 10921.13512 | DJ42: 10842.32741 | DK42: 10287.61538 | DL42: 9707.489054 | DM42: 16171.92442 | DN42: 17164.60034 | DO42: 12759.57167 | DP42: 7376.961512 | DQ42: 10587.70848 | DR42: 5542.935528 | DS42: 5074.901937 | DT42: 4572.090265 | DU42: 6459.845443 | DV42: 13965.79062 | DW42: 48029.31554 | DX42: 34054.50076 | DY42: 2558.021961 | DZ42: 2558.022314 | EA42: 2556.969771 | EB42: 2556.969406 | EC42: 556.9689315 | ED42: 276.8663206 | EE42: 276.8659405 | EF42: 276.865755 | EG42: 276.865755 | EH42: 276.865755 | EI42: 276.865755 | EJ42: 5959.876596 | EK42: 7287.095196 | EL42: 4882.414615 | EM42: 2743.888541 | EN42: 2.32826422 | EO42: 2.32826422 | EP42: 2.32826422 | EQ42: 2.32826422 | ER42: 2.32826422 | ES42: 2.32826422 | ET42: 2.32826422 | EU42: 2.32826422 | EV42: 2.32826422 | EW42: 2.32826422 | EX42: 2.32826422 | EY42: 2.32826422 | EZ42: 2.32826422 | FA42: 2.32826422 | FC42: Cash EoP | FI42: 10965.64065 | FJ42: 10941.18148 | FK42: 10427.53545 | FL42: 9851.967283 | FM42: 15865.16652 | FN42: 16306.58057 | FO42: 11489.79151 | FP42: 6995.401753 | FQ42: 10316.09339 | FR42: 5389.094438 | FS42: 4912.878653 | FT42: 4391.258844 | FU42: 4389.987837 | FV42: 11281.19659 | FW42: 47104.30607 | FX42: 26342.42977 | FY42: 2558.050861 | FZ42: 2558.05098 | GA42: 2557.864055 | GB42: 2557.863682 | GC42: 557.8637746 | GD42: 277.7996303 | GE42: 277.7992584 | GF42: 277.7995113 | GG42: 277.7995113 | GH42: 277.7995113 | GI42: 277.7995113 | GJ42: 5933.489692 | GK42: 6758.074471 | GL42: 4835.021398 | GM42: 1968.140546 | GN42: 2.396278757 | GO42: 2.396278757 | GP42: 2.396278757 | GQ42: 2.396278757 | GR42: 2.396278757 | GS42: 2.396278757 | GT42: 2.396278757 | GU42: 2.396278757 | GV42: 2.396278757 | GW42: 2.396278757 | GX42: 2.396278757 | GY42: 2.396278757 | GZ42: 2.396278757 | HA42: 2.396278757
C47: Colombia | BC47: Colombia | DC47: Colombia | FC47: Colombia
C49: Cash Flow Colombia - [000' EUR] | BC49: Cash Flow Colombia - [000' EUR] | DC49: Cash Flow Colombia - [000' EUR] | FC49: Cash Flow Colombia - [000' EUR]
C50: Year | J50: 2022 | K50: 2023 | L50: 2024 | M50: 2025 | N50: 2026 | O50: 2027 | P50: 2028 | Q50: 2029 | R50: 2030 | S50: 2031 | T50: 2032 | U50: 2033 | V50: 2034 | W50: 2035 | X50: 2036 | Y50: 2037 | Z50: 2038 | AA50: 2039 | AB50: 2040 | AC50: 2041 | AD50: 2042 | AE50: 2043 | AF50: 2044 | AG50: 2045 | AH50: 2046 | AI50: 2047 | AJ50: 2048 | AK50: 2049 | AL50: 2050 | AM50: 2051 | AN50: 2052 | AO50: 2053 | AP50: 2054 | AQ50: 2055 | AR50: 2056 | AS50: 2057 | AT50: 2058 | AU50: 2059 | AV50: 2060 | AW50: 2061 | AX50: 2062 | AY50: 2063 | AZ50: 2064 | BA50: 2065 | BC50: Year | BJ50: 2022 | BK50: 2023 | BL50: 2024 | BM50: 2025 | BN50: 2026 | BO50: 2027 | BP50: 2028 | BQ50: 2029 | BR50: 2030 | BS50: 2031 | BT50: 2032 | BU50: 2033 | BV50: 2034 | BW50: 2035 | BX50: 2036 | BY50: 2037 | BZ50: 2038 | CA50: 2039 | CB50: 2040 | CC50: 2041 | CD50: 2042 | CE50: 2043 | CF50: 2044 | CG50: 2045 | CH50: 2046 | CI50: 2047 | CJ50: 2048 | CK50: 2049 | CL50: 2050 | CM50: 2051 | CN50: 2052 | CO50: 2053 | CP50: 2054 | CQ50: 2055 | CR50: 2056 | CS50: 2057 | CT50: 2058 | CU50: 2059 | CV50: 2060 | CW50: 2061 | CX50: 2062 | CY50: 2063 | CZ50: 2064 | DA50: 2065 | DC50: Year | DJ50: 2022 | DK50: 2023 | DL50: 2024 | DM50: 2025 | DN50: 2026 | DO50: 2027 | DP50: 2028 | DQ50: 2029 | DR50: 2030 | DS50: 2031 | DT50: 2032 | DU50: 2033 | DV50: 2034 | DW50: 2035 | DX50: 2036 | DY50: 2037 | DZ50: 2038 | EA50: 2039 | EB50: 2040 | EC50: 2041 | ED50: 2042 | EE50: 2043 | EF50: 2044 | EG50: 2045 | EH50: 2046 | EI50: 2047 | EJ50: 2048 | EK50: 2049 | EL50: 2050 | EM50: 2051 | EN50: 2052 | EO50: 2053 | EP50: 2054 | EQ50: 2055 | ER50: 2056 | ES50: 2057 | ET50: 2058 | EU50: 2059 | EV50: 2060 | EW50: 2061 | EX50: 2062 | EY50: 2063 | EZ50: 2064 | FA50: 2065 | FC50: Year | FJ50: 2022 | FK50: 2023 | FL50: 2024 | FM50: 2025 | FN50: 2026 | FO50: 2027 | FP50: 2028 | FQ50: 2029 | FR50: 2030 | FS50: 2031 | FT50: 2032 | FU50: 2033 | FV50: 2034 | FW50: 2035 | FX50: 2036 | FY50: 2037 | FZ50: 2038 | GA50: 2039 | GB50: 2040 | GC50: 2041 | GD50: 2042 | GE50: 2043 | GF50: 2044 | GG50: 2045 | GH50: 2046 | GI50: 2047 | GJ50: 2048 | GK50: 2049 | GL50: 2050 | GM50: 2051 | GN50: 2052 | GO50: 2053 | GP50: 2054 | GQ50: 2055 | GR50: 2056 | GS50: 2057 | GT50: 2058 | GU50: 2059 | GV50: 2060 | GW50: 2061 | GX50: 2062 | GY50: 2063 | GZ50: 2064 | HA50: 2065
A51: =+C47 -> Colombia | B51: =+C51 -> Income | C51: Income | J51: =+CHOOSE($G$4,BJ51,DJ51,FJ51)*$F$4 -> 221897.5513 | K51: =+CHOOSE($G$4,BK51,DK51,FK51)*$F$4 -> 271468.9406 | L51: =+CHOOSE($G$4,BL51,DL51,FL51)*$F$4 -> 239118.5355 | M51: =+CHOOSE($G$4,BM51,DM51,FM51)*$F$4 -> 261034.7626 | N51: =+CHOOSE($G$4,BN51,DN51,FN51)*$F$4 -> 241315.9093 | O51: =+CHOOSE($G$4,BO51,DO51,FO51)*$F$4 -> 254418.9858 | P51: =+CHOOSE($G$4,BP51,DP51,FP51)*$F$4 -> 323687.376 | Q51: =+CHOOSE($G$4,BQ51,DQ51,FQ51)*$F$4 -> 295898.4976 | R51: =+CHOOSE($G$4,BR51,DR51,FR51)*$F$4 -> 288689.7613 | S51: =+CHOOSE($G$4,BS51,DS51,FS51)*$F$4 -> 271027.8891 | T51: =+CHOOSE($G$4,BT51,DT51,FT51)*$F$4 -> 273216.2966 | U51: =+CHOOSE($G$4,BU51,DU51,FU51)*$F$4 -> 376236.5043 | V51: =+CHOOSE($G$4,BV51,DV51,FV51)*$F$4 -> 351791.4917 | W51: =+CHOOSE($G$4,BW51,DW51,FW51)*$F$4 -> 345483.6965 | X51: =+CHOOSE($G$4,BX51,DX51,FX51)*$F$4 -> 327644.8479 | Y51: =+CHOOSE($G$4,BY51,DY51,FY51)*$F$4 -> 374865.8222 | Z51: =+CHOOSE($G$4,BZ51,DZ51,FZ51)*$F$4 -> 296833.0536 | AA51: =+CHOOSE($G$4,CA51,EA51,GA51)*$F$4 -> 324398.7344 | AB51: =+CHOOSE($G$4,CB51,EB51,GB51)*$F$4 -> 302444.8613 | AC51: =+CHOOSE($G$4,CC51,EC51,GC51)*$F$4 -> 283562.2274 | AD51: =+CHOOSE($G$4,CD51,ED51,GD51)*$F$4 -> 126850.3357 | AE51: =+CHOOSE($G$4,CE51,EE51,GE51)*$F$4 -> 132515.0116 | AF51: =+CHOOSE($G$4,CF51,EF51,GF51)*$F$4 -> 257350.2924 | AG51: =+CHOOSE($G$4,CG51,EG51,GG51)*$F$4 -> 103128.9476 | AH51: =+CHOOSE($G$4,CH51,EH51,GH51)*$F$4 -> 0 | AI51: =+CHOOSE($G$4,CI51,EI51,GI51)*$F$4 -> 0 | AJ51: =+CHOOSE($G$4,CJ51,EJ51,GJ51)*$F$4 -> 0 | AK51: =+CHOOSE($G$4,CK51,EK51,GK51)*$F$4 -> 0 | AL51: =+CHOOSE($G$4,CL51,EL51,GL51)*$F$4 -> 0 | AM51: =+CHOOSE($G$4,CM51,EM51,GM51)*$F$4 -> 0 | AN51: =+CHOOSE($G$4,CN51,EN51,GN51)*$F$4 -> 0 | AO51: =+CHOOSE($G$4,CO51,EO51,GO51)*$F$4 -> 0 | AP51: =+CHOOSE($G$4,CP51,EP51,GP51)*$F$4 -> 0 | AQ51: =+CHOOSE($G$4,CQ51,EQ51,GQ51)*$F$4 -> 0 | AR51: =+CHOOSE($G$4,CR51,ER51,GR51)*$F$4 -> 0 | AS51: =+CHOOSE($G$4,CS51,ES51,GS51)*$F$4 -> 0 | AT51: =+CHOOSE($G$4,CT51,ET51,GT51)*$F$4 -> 0 | AU51: =+CHOOSE($G$4,CU51,EU51,GU51)*$F$4 -> 0 | AV51: =+CHOOSE($G$4,CV51,EV51,GV51)*$F$4 -> 0 | AW51: =+CHOOSE($G$4,CW51,EW51,GW51)*$F$4 -> 0 | AX51: =+CHOOSE($G$4,CX51,EX51,GX51)*$F$4 -> 0 | AY51: =+CHOOSE($G$4,CY51,EY51,GY51)*$F$4 -> 0 | AZ51: =+CHOOSE($G$4,CZ51,EZ51,GZ51)*$F$4 -> 0 | BA51: =+CHOOSE($G$4,DA51,FA51,HA51)*$F$4 -> 0 | BC51: Income | BJ51: 221897.5513 | BK51: 271468.9406 | BL51: 239118.5355 | BM51: 261034.7626 | BN51: 241315.9093 | BO51: 254418.9858 | BP51: 323687.376 | BQ51: 295898.4976 | BR51: 288689.7613 | BS51: 271027.8891 | BT51: 273216.2966 | BU51: 376236.5043 | BV51: 351791.4917 | BW51: 345483.6965 | BX51: 327644.8479 | BY51: 374865.8222 | BZ51: 296833.0536 | CA51: 324398.7344 | CB51: 302444.8613 | CC51: 283562.2274 | CD51: 126850.3357 | CE51: 132515.0116 | CF51: 257350.2924 | CG51: 103128.9476 | CH51: 0 | CI51: 0 | CJ51: 0 | CK51: 0 | CL51: 0 | CM51: 0 | CN51: 0 | CO51: 0 | CP51: 0 | CQ51: 0 | CR51: 0 | CS51: 0 | CT51: 0 | CU51: 0 | CV51: 0 | CW51: 0 | CX51: 0 | CY51: 0 | CZ51: 0 | DA51: 0 | DC51: Income | DJ51: 221810.8647 | DK51: 272861.7225 | DL51: 241049.1923 | DM51: 264674.8429 | DN51: 244639.9601 | DO51: 258768.8613 | DP51: 331358.6167 | DQ51: 303189.032 | DR51: 297595.9951 | DS51: 278970.4746 | DT51: 282141.1884 | DU51: 392005.4154 | DV51: 366203.0978 | DW51: 363011.8274 | DX51: 342406.0717 | DY51: 397143.0626 | DZ51: 314405.1338 | EA51: 345972.871 | EB51: 323603.6253 | EC51: 303676.3074 | ED51: 140053.3583 | EE51: 146981.3475 | EF51: 287729.715 | EG51: 124845.0246 | EH51: 0 | EI51: 0 | EJ51: 0 | EK51: 0 | EL51: 0 | EM51: 0 | EN51: 0 | EO51: 0 | EP51: 0 | EQ51: 0 | ER51: 0 | ES51: 0 | ET51: 0 | EU51: 0 | EV51: 0 | EW51: 0 | EX51: 0 | EY51: 0 | EZ51: 0 | FA51: 0 | FC51: Income | FJ51: 221477.0605 | FK51: 269725.7667 | FL51: 236804.3415 | FM51: 257255.2387 | FN51: 237532.4846 | FO51: 249580.6138 | FP51: 315497.7082 | FQ51: 288380.8326 | FR51: 280688.4402 | FS51: 262909.8639 | FT51: 264378.3286 | FU51: 360382.2098 | FV51: 337624.869 | FW51: 330879.6266 | FX51: 313491.3955 | FY51: 353813.2126 | FZ51: 280349.2054 | GA51: 304075.5522 | GB51: 282807.7282 | GC51: 265096.7352 | GD51: 114678.3818 | GE51: 119165.4206 | GF51: 226691.9626 | GG51: 96148.484 | GH51: 0 | GI51: 0 | GJ51: 0 | GK51: 0 | GL51: 0 | GM51: 0 | GN51: 0 | GO51: 0 | GP51: 0 | GQ51: 0 | GR51: 0 | GS51: 0 | GT51: 0 | GU51: 0 | GV51: 0 | GW51: 0 | GX51: 0 | GY51: 0 | GZ51: 0 | HA51: 0
A52: =+A51 -> Colombia | B52: Income with mitigated demand risk | C52: Income with mitigated demand risk | J52: 221897.5513 | K52: 271468.9406 | L52: 239118.5355 | M52: 261034.7626 | N52: 241315.9093 | O52: 254418.9858 | P52: 323687.376 | Q52: 295898.4976 | R52: 288689.7613 | S52: 271027.8891 | T52: 273216.2966 | U52: 376236.5043 | V52: 351791.4917 | W52: 345483.6965 | X52: 327644.8479 | Y52: 374865.8222 | Z52: 296833.0536 | AA52: 324398.7344 | AB52: 302444.8613 | AC52: 283562.2274 | AD52: 126850.3357 | AE52: 132515.0116 | AF52: 257350.2924 | AG52: 103128.9476 | AH52: 0 | AI52: 0 | AJ52: 0 | AK52: 0 | AL52: 0 | AM52: 0 | AN52: 0 | AO52: 0 | AP52: 0 | AQ52: 0 | AR52: 0 | AS52: 0 | AT52: 0 | AU52: 0 | AV52: 0 | AW52: 0 | AX52: 0 | AY52: 0 | AZ52: 0 | BA52: 0 | BC52: Income with mitigated demand risk | BJ52: 221897.5513 | BK52: 271468.9406 | BL52: 239118.5355 | BM52: 261034.7626 | BN52: 241315.9093 | BO52: 254418.9858 | BP52: 323687.376 | BQ52: 295898.4976 | BR52: 288689.7613 | BS52: 271027.8891 | BT52: 273216.2966 | BU52: 376236.5043 | BV52: 351791.4917 | BW52: 345483.6965 | BX52: 327644.8479 | BY52: 374865.8222 | BZ52: 296833.0536 | CA52: 324398.7344 | CB52: 302444.8613 | CC52: 283562.2274 | CD52: 126850.3357 | CE52: 132515.0116 | CF52: 257350.2924 | CG52: 103128.9476 | CH52: 0 | CI52: 0 | CJ52: 0 | CK52: 0 | CL52: 0 | CM52: 0 | CN52: 0 | CO52: 0 | CP52: 0 | CQ52: 0 | CR52: 0 | CS52: 0 | CT52: 0 | CU52: 0 | CV52: 0 | CW52: 0 | CX52: 0 | CY52: 0 | CZ52: 0 | DA52: 0 | DC52: Income with mitigated demand risk | DJ52: 221810.8647 | DK52: 272861.7225 | DL52: 241049.1923 | DM52: 264674.8429 | DN52: 244639.9601 | DO52: 258768.8613 | DP52: 331358.6167 | DQ52: 303189.032 | DR52: 297595.9951 | DS52: 278970.4746 | DT52: 282141.1884 | DU52: 392005.4154 | DV52: 366203.0978 | DW52: 363011.8274 | DX52: 342406.0717 | DY52: 397143.0626 | DZ52: 314405.1338 | EA52: 345972.871 | EB52: 323603.6253 | EC52: 303676.3074 | ED52: 140053.3583 | EE52: 146981.3475 | EF52: 287729.715 | EG52: 124845.0246 | EH52: 0 | EI52: 0 | EJ52: 0 | EK52: 0 | EL52: 0 | EM52: 0 | EN52: 0 | EO52: 0 | EP52: 0 | EQ52: 0 | ER52: 0 | ES52: 0 | ET52: 0 | EU52: 0 | EV52: 0 | EW52: 0 | EX52: 0 | EY52: 0 | EZ52: 0 | FA52: 0 | FC52: Income with mitigated demand risk | FJ52: 221477.0605 | FK52: 269725.7667 | FL52: 236804.3415 | FM52: 257255.2387 | FN52: 237532.4846 | FO52: 249580.6138 | FP52: 315497.7082 | FQ52: 288380.8326 | FR52: 280688.4402 | FS52: 262909.8639 | FT52: 264378.3286 | FU52: 360382.2098 | FV52: 337624.869 | FW52: 330879.6266 | FX52: 313491.3955 | FY52: 353813.2126 | FZ52: 280349.2054 | GA52: 304075.5522 | GB52: 282807.7282 | GC52: 265096.7352 | GD52: 114678.3818 | GE52: 119165.4206 | GF52: 226691.9626 | GG52: 96148.484 | GH52: 0 | GI52: 0 | GJ52: 0 | GK52: 0 | GL52: 0 | GM52: 0 | GN52: 0 | GO52: 0 | GP52: 0 | GQ52: 0 | GR52: 0 | GS52: 0 | GT52: 0 | GU52: 0 | GV52: 0 | GW52: 0 | GX52: 0 | GY52: 0 | GZ52: 0 | HA52: 0
A53: Colombia | B53: Income with low demand risk | C53: Income with low demand risk | J53: 0 | K53: 0 | L53: 0 | M53: 0 | N53: 0 | O53: 0 | P53: 0 | Q53: 0 | R53: 0 | S53: 0 | T53: 0 | U53: 0 | V53: 0 | W53: 0 | X53: 0 | Y53: 0 | Z53: 0 | AA53: 0 | AB53: 0 | AC53: 0 | AD53: 0 | AE53: 0 | AF53: 0 | AG53: 0 | AH53: 0 | AI53: 0 | AJ53: 0 | AK53: 0 | AL53: 0 | AM53: 0 | AN53: 0 | AO53: 0 | AP53: 0 | AQ53: 0 | AR53: 0 | AS53: 0 | AT53: 0 | AU53: 0 | AV53: 0 | AW53: 0 | AX53: 0 | AY53: 0 | AZ53: 0 | BA53: 0 | BC53: Income with low demand risk | BJ53: 0 | BK53: 0 | BL53: 0 | BM53: 0 | BN53: 0 | BO53: 0 | BP53: 0 | BQ53: 0 | BR53: 0 | BS53: 0 | BT53: 0 | BU53: 0 | BV53: 0 | BW53: 0 | BX53: 0 | BY53: 0 | BZ53: 0 | CA53: 0 | CB53: 0 | CC53: 0 | CD53: 0 | CE53: 0 | CF53: 0 | CG53: 0 | CH53: 0 | CI53: 0 | CJ53: 0 | CK53: 0 | CL53: 0 | CM53: 0 | CN53: 0 | CO53: 0 | CP53: 0 | CQ53: 0 | CR53: 0 | CS53: 0 | CT53: 0 | CU53: 0 | CV53: 0 | CW53: 0 | CX53: 0 | CY53: 0 | CZ53: 0 | DA53: 0 | DC53: Income with low demand risk | DJ53: 0 | DK53: 0 | DL53: 0 | DM53: 0 | DN53: 0 | DO53: 0 | DP53: 0 | DQ53: 0 | DR53: 0 | DS53: 0 | DT53: 0 | DU53: 0 | DV53: 0 | DW53: 0 | DX53: 0 | DY53: 0 | DZ53: 0 | EA53: 0 | EB53: 0 | EC53: 0 | ED53: 0 | EE53: 0 | EF53: 0 | EG53: 0 | EH53: 0 | EI53: 0 | EJ53: 0 | EK53: 0 | EL53: 0 | EM53: 0 | EN53: 0 | EO53: 0 | EP53: 0 | EQ53: 0 | ER53: 0 | ES53: 0 | ET53: 0 | EU53: 0 | EV53: 0 | EW53: 0 | EX53: 0 | EY53: 0 | EZ53: 0 | FA53: 0 | FC53: Income with low demand risk | FJ53: 0 | FK53: 0 | FL53: 0 | FM53: 0 | FN53: 0 | FO53: 0 | FP53: 0 | FQ53: 0 | FR53: 0 | FS53: 0 | FT53: 0 | FU53: 0 | FV53: 0 | FW53: 0 | FX53: 0 | FY53: 0 | FZ53: 0 | GA53: 0 | GB53: 0 | GC53: 0 | GD53: 0 | GE53: 0 | GF53: 0 | GG53: 0 | GH53: 0 | GI53: 0 | GJ53: 0 | GK53: 0 | GL53: 0 | GM53: 0 | GN53: 0 | GO53: 0 | GP53: 0 | GQ53: 0 | GR53: 0 | GS53: 0 | GT53: 0 | GU53: 0 | GV53: 0 | GW53: 0 | GX53: 0 | GY53: 0 | GZ53: 0 | HA53: 0
A54: Colombia | B54: Income with demand risk | C54: Income with demand risk | J54: 0 | K54: 0 | L54: 0 | M54: 0 | N54: 0 | O54: 0 | P54: 0 | Q54: 0 | R54: 0 | S54: 0 | T54: 0 | U54: 0 | V54: 0 | W54: 0 | X54: 0 | Y54: 0 | Z54: 0 | AA54: 0 | AB54: 0 | AC54: 0 | AD54: 0 | AE54: 0 | AF54: 0 | AG54: 0 | AH54: 0 | AI54: 0 | AJ54: 0 | AK54: 0 | AL54: 0 | AM54: 0 | AN54: 0 | AO54: 0 | AP54: 0 | AQ54: 0 | AR54: 0 | AS54: 0 | AT54: 0 | AU54: 0 | AV54: 0 | AW54: 0 | AX54: 0 | AY54: 0 | AZ54: 0 | BA54: 0 | BC54: Income with demand risk | BJ54: 0 | BK54: 0 | BL54: 0 | BM54: 0 | BN54: 0 | BO54: 0 | BP54: 0 | BQ54: 0 | BR54: 0 | BS54: 0 | BT54: 0 | BU54: 0 | BV54: 0 | BW54: 0 | BX54: 0 | BY54: 0 | BZ54: 0 | CA54: 0 | CB54: 0 | CC54: 0 | CD54: 0 | CE54: 0 | CF54: 0 | CG54: 0 | CH54: 0 | CI54: 0 | CJ54: 0 | CK54: 0 | CL54: 0 | CM54: 0 | CN54: 0 | CO54: 0 | CP54: 0 | CQ54: 0 | CR54: 0 | CS54: 0 | CT54: 0 | CU54: 0 | CV54: 0 | CW54: 0 | CX54: 0 | CY54: 0 | CZ54: 0 | DA54: 0 | DC54: Income with demand risk | DJ54: 0 | DK54: 0 | DL54: 0 | DM54: 0 | DN54: 0 | DO54: 0 | DP54: 0 | DQ54: 0 | DR54: 0 | DS54: 0 | DT54: 0 | DU54: 0 | DV54: 0 | DW54: 0 | DX54: 0 | DY54: 0 | DZ54: 0 | EA54: 0 | EB54: 0 | EC54: 0 | ED54: 0 | EE54: 0 | EF54: 0 | EG54: 0 | EH54: 0 | EI54: 0 | EJ54: 0 | EK54: 0 | EL54: 0 | EM54: 0 | EN54: 0 | EO54: 0 | EP54: 0 | EQ54: 0 | ER54: 0 | ES54: 0 | ET54: 0 | EU54: 0 | EV54: 0 | EW54: 0 | EX54: 0 | EY54: 0 | EZ54: 0 | FA54: 0 | FC54: Income with demand risk | FJ54: 0 | FK54: 0 | FL54: 0 | FM54: 0 | FN54: 0 | FO54: 0 | FP54: 0 | FQ54: 0 | FR54: 0 | FS54: 0 | FT54: 0 | FU54: 0 | FV54: 0 | FW54: 0 | FX54: 0 | FY54: 0 | FZ54: 0 | GA54: 0 | GB54: 0 | GC54: 0 | GD54: 0 | GE54: 0 | GF54: 0 | GG54: 0 | GH54: 0 | GI54: 0 | GJ54: 0 | GK54: 0 | GL54: 0 | GM54: 0 | GN54: 0 | GO54: 0 | GP54: 0 | GQ54: 0 | GR54: 0 | GS54: 0 | GT54: 0 | GU54: 0 | GV54: 0 | GW54: 0 | GX54: 0 | GY54: 0 | GZ54: 0 | HA54: 0
